{"text_format":"1","workbook":"xlsx","n_sheets":17,"sheets":["Postal Code Guide","Vendor","District","WHT","Vendor Change","VendorReqTbl","Postl codes","START","INSTRUCTIONS","Interest Indicator","Currency","Dropdowns","Payment term","reconccilliation accout","Country","Regions","regions table"],"not_rendered":{"charts":0,"images":6,"macros":1,"external_links":0,"defined_names":72,"comments":0,"pivot_tables":0},"unopened":[],"bounds":{"document_bytes":16777216,"sheet_cells":100000,"rows_first":2000,"rows_last":500,"rows_between":2000,"halvings":0,"cell_chars":16384,"cell_head_chars":4096},"cells_cut":0,"cells_raw":0,"read":"whole","date_system":"1900"}

{"sheet":"Postal Code Guide","index":0,"n_rows":58,"n_cols":10,"rows_kept":58,"cut":false,"hidden":true,"merged":[]}
[null,null,"Country","Length","Check Rule","Country Name",null,null,"Check Rule","Description"]
[null,null,"AR","4","4","Argentina",null,null,1,"Maximum value length, without gaps"]
[null,null,"AT","4","4","Austria",null,null,2,"Maximum value length, numerical, without gaps"]
[null,null,"AU","7","2","Australia",null,null,3,"Length to be kept to exactly, without gaps"]
[null,null,"BE","4","4","Belgium",null,null,4,"Length to be kept to exactly, numerical, without gaps"]
[null,null,"BG","4","4","Bulgaria",null,null,5,"Maximum value length"]
[null,null,"BR","9","7","Brazil",null,null,6,"Maximum value length, numerical"]
[null,null,"BY","6","4","Belarus",null,null,7,"Length to be kept to exactly"]
[null,null,"CA","6","9","Canada",null,null,8,"Length to be kept to exactly, numerical"]
[null,null,"CH",4,"4","Switzerland",null,null,9,"Check against country-specific edit format"]
[null,null,"CL","7","1","Chile"]
[null,null,"CN","6","4","China"]
[null,null,"CR","5","4","Costa Rica"]
[null,null,"CY","4","4","Cyprus"]
[null,null,"CZ","6","9","Czech Republic"]
[null,null,"DE","5","4","Germany"]
[null,null,"DK","4","4","Denmark"]
[null,null,"DZ","5","4","Algeria"]
[null,null,"EE","5","4","Estonia"]
[null,null,"ES","5","4","Spain"]
[null,null,"FI","5","4","Finland"]
[null,null,"FO","3","4","Faroe Islands"]
[null,null,"FR","5","4","France"]
[null,null,"GB","9","5","United Kingdom"]
[null,null,"GR","5","4","Greece"]
[null,null,"HR","5","4","Croatia"]
[null,null,"HU","4","4","Hungary"]
[null,null,"ID","5","4","Indonesia"]
[null,null,"IL","5","4","Israel"]
[null,null,"IN","6","4","India"]
[null,null,"IR","5","4","Iran"]
[null,null,"IS","3","4","Iceland"]
[null,null,"IT","5","4","Italy"]
[null,null,"JP","7","4","Japan"]
[null,null,"KG","6","4","Kyrgyzstan"]
[null,null,"KP","7","5","North Korea"]
[null,null,"KR","7","9","South Korea"]
[null,null,"KW","5","4","Kuwait"]
[null,null,"KZ","6","4","Kazakhstan"]
[null,null,"LI","4","4","Liechtenstein"]
[null,null,"LS","3","4","Lesotho"]
[null,null,"LU","4","4","Luxembourg"]
[null,null,"LV","7","1","Latvia"]
[null,null,"MC","5","4","Monaco"]
[null,null,"ME","5","4","Montenegro"]
[null,null,"MX","5","4","Mexico"]
[null,null,"MY","5","4","Malaysia"]
[null,null,"NL","6","4","Netherlands"]
[null,null,"NO","4","4","Norway"]
[null,null,"NP","6","4","Nepal"]
[null,null,"NZ","4","4","New Zealand"]
[null,null,"PH","4","4","Philippines"]
[null,null,"PL","6","9","Poland"]
[null,null,"PT","8","3","Portugal"]
[null,null,"RO","6","4","Romania"]
[null,null,"RS","5","4","Serbia"]
[null,null,"RU","6","4","Russian Federation"]
[null,null,"SA","5","4","Saudi Arabia"]

{"sheet":"Vendor","index":1,"n_rows":43,"n_cols":40,"rows_kept":43,"cut":false,"hidden":true,"merged":[[37,32,37,33],[38,32,38,33],[32,6,32,7],[22,6,22,7],[35,38,35,39],[35,32,35,33],[32,38,32,39],[31,32,31,33],[28,3,28,14],[35,6,35,7],[30,12,30,13],[28,29,28,40],[32,32,32,33],[34,12,34,13],[31,12,31,13],[28,16,28,27],[10,29,10,40],[21,19,21,20],[13,19,13,23],[14,19,14,23],[15,19,15,23],[12,19,12,23],[37,6,37,7],[38,6,38,7],[9,32,9,35],[9,36,9,38],[23,32,23,33],[29,3,29,14],[33,3,33,14],[10,3,10,14],[22,32,22,33],[22,19,22,20],[23,19,23,20],[23,6,23,7],[10,16,10,27],[20,19,20,20],[17,19,17,20],[18,19,18,20],[2,1,4,1],[6,32,6,34],[6,1,8,1],[7,32,7,34],[0,3,4,14],[0,29,4,40],[0,16,4,27],[6,38,6,39],[6,36,6,37],[7,36,7,37],[0,1,1,1]]}
[null,"Select the specific 'VENDOR REQUIREMENT' from the list",null,"VENDOR CREATION",null,null,null,null,null,null,null,null,null,null,null,null,"VENDOR EXTENSION",null,null,null,null,null,null,null,null,null,null,null,null,"VENDOR CHANGE"]
[]
[null,"Vendor_Creation"]
[]
[]
[null,{"$f":"IF(OR(B10=VendorReqTbl!A2,B10=VendorReqTbl!A3,B10=VendorReqTbl!A4,B10=VendorReqTbl!A5,B10=VendorReqTbl!A6,B10=VendorReqTbl!A7),VendorReqTbl[[#Headers],[Vendor_Creation]],IF(OR(B10=VendorReqTbl!B2,B10=VendorReqTbl!B3,B10=VendorReqTbl!B4),VendorReqTbl[[#Headers],[Vendor_Extension]],IF(OR(B10=VendorReqTbl!C2,B10=VendorReqTbl!C3,B10=VendorReqTbl!C4),VendorReqTbl[[#Headers],[Vendor_Change]])))","v":"Vendor_Creation"}]
[null,"Select the specific 'VENDOR SUB-REQUIREMENT' from the list"]
[null,null,null,null,null,null,null,null,null,null,null,null,null,null,null,null,"Business Partner Code","*",2134567,null,null,null,null,null,null,null,null,null,null,"Business Partner Code","*",123456]
[null,null,null,"Company Code","*",1000,null,null,null,{"$f":"IF(F9<>\"\",VLOOKUP(F9,Dropdowns!$A$2:$B$20,2,FALSE),\"\")","v":"E.B.Creasy  & Co.PLC"},null,null,null,null,null,null,null,null,null,null,null,null,null,null,null,null,null,null,null,"Company Code","*",1000,null,null,null,{"$f":"IF(AF9<>\"\",VLOOKUP(AF9,Dropdowns!$A$2:$B$19,2,FALSE),\"\")","v":"E.B.Creasy  & Co.PLC"}]
[null,"Z1DM Domestic Business Partners"]
[null,null,null,"General Information",null,null,null,null,null,null,null,null,null,null,null,null,"Other Information",null,null,null,null,null,null,null,null,null,null,null,null,"General Information"]
[null,"Vendor 2.5",null,"Business Partner Category",{"$f":"IF(NOT(B10=\"Z6IL Investments/Loans Business Partners\"),\"*\",\"\")","v":"*"},"Private Institution/Person"]
[null,null,null,"Title",null,null,null,null,null,"District",{"$f":"IF(AND(F12=\"Private Institution/Person\",NOT(B10=\"Z2FR Foreign Business Partners\"),NOT(B10=\"Z6IL Investments/Loans Business Partners\"),NOT(B10=\"Z5EM Employee Business Partners\")),\"*\",\"\")","v":"*"},"MULLAITIVU",null,null,null,null,"Company Code ","*",3500,null,null,null,null,null,null,null,null,null,null,"Title",null,null,null,null,null,"District"]
[null,null,null,"First Name","*","FIRST NAME",null,null,null,"Last Name",null,"",null,"\"",null,null,null,null,null,null,null,null,null,null,null,null,null,null,null,"First Name",null,null,null,null,null,"Last Name",null,null,null,"\""]
[null,null,null,"Search Term 1","*","FIRST",null,null,null,"Search Term 2",{"$f":"IF(B10=\"Z5EM Employee Business Partners\",\"*\",\"\")","v":""},"SAMPLE1234",null,null,null,null,null,null,null,null,null,null,null,null,null,null,null,null,null,"Seach Term 1",null,null,null,null,null,"Search term 2",{"$f":"IF(AF9=\"Z5EM Employee Business Partners\",\"*\",\"\")","v":""}," "]
[null,null,null,"Street/House No","*","STREET/HOUSE NO",null,null,null,"BR/NIC/Passport",{"$f":"IF(AND(F12=\"Private Institution/Person\",NOT(B10=\"Z2FR Foreign Business Partners\")),\"*\",\"\")","v":"*"},"BR Number",null,1234,null,null,null,null,null,null,null,null,null,null,null,null,null,null,null,"Street/House number",null,null,null,null,null,"NIC/Passport"]
[null,null,null,"Street 2",null,null,null,null,null,null,null,null,null,null,null,null,null,null,null,null,null,null,null,null,null,null,null,null,null,"Street 2",null,null,null,null,null,"Business Reg. No."]
[null,null,null,"Street 3",null,null,null,null,null,"VAT number",null,"",null,null,null,null,"Reconciliation acct","*","Domestic Vendors",{"$f":"IF(ISBLANK(S18),\"\",VLOOKUP(S18,'reconccilliation accout'!$A$1:$B$56,2,FALSE))","v":30030000},null,null,null,"Sort key",null,"012",null,null,null,"Street 3",null,null,null,null,null,"VAT"]
[null,null,null,"Street 4",null,null,null,null,null,"Telephone 1/2",null,null,null,null,null,null,"Terms of Payment (For Company)","*","0001 -  Pay immediately w/o deduction",{"$f":"IF(ISBLANK(S19),\"\",VLOOKUP(S19,'Payment term'!$A$2:$B$67,2,FALSE))","v":"0001"},null,null,null,"Check Double Invoice",null,"x",null,null,null,"Street 4",null,null,null,null,null,"Telephone 1/2"]
[null,null,null,"Street 5",null,null,null,null,null,"Mobile phone 1/2",null,null,null,null,null,null,null,null,null,null,null,null,null,null,null,null,null,null,null,"Street 5",null,null,null,null,null,"Mobile Phone 1/2"]
[null,null,null,"City","*","CITY",null,null,null,"Email 1/2",null,null,null,null,null,null,"Purchasing Organization",null,{"$f":"IF(OR(S13=1600,T13=\"1600\",S14=\"1600\",T14=\"1600\",S15=\"1600\",T15=\"1600\",S16=\"1600\",T16=\"1600\"),\"1600\",IF(OR(S13=3000,T13=\"3000\",S14=\"3000\",T14=\"3000\",S15=\"3000\",T15=\"3000\",S16=\"3000\",T16=\"3000\"),\"3000\",IF(OR(S13=3100,T13=\"3100\",S14=\"3100\",T14=\"3100\",S15=\"3100\",T15=\"3100\",S16=\"3100\",T16=\"3100\"),\"3000\",IF(OR(S13=3500,T13=\"3500\",S14=\"3500\",T14=\"3500\",S15=\"3500\",T15=\"3500\",S16=\"3500\",T16=\"3500\"),\"3000\",IF(OR(S13=3800,T13=\"3800\",S14=\"3800\",T14=\"3800\",S15=\"3800\",T15=\"3800\",S16=\"3800\",T16=\"3800\"),\"3000\",IF(OR(S13=3900,T13=\"3900\",S14=\"3900\",T14=\"3900\",S15=\"3900\",T15=\"3900\",S16=\"3900\",T16=\"3900\"),\"3000\",IF(OR(S13=2000,T13=\"2000\",S14=\"2000\",T14=\"2000\",S15=\"2000\",T15=\"2000\",S16=\"2000\",T16=\"2000\"),\"2000\",IF(OR(S13=2100,T13=\"2100\",S14=\"2100\",T14=\"2100\",S15=\"2100\",T15=\"2100\",S16=\"2100\",T16=\"2100\"),\"2100\",IF(OR(S13=2200,T13=\"2200\",S14=\"2200\",T14=\"2200\",S15=\"2200\",T15=\"2200\",S16=\"2200\",T16=\"2200\"),\"2200\",IF(OR(S13=2300,T13=\"2300\",S14=\"2300\",T14=\"2300\",S15=\"2300\",T15=\"2300\",S16=\"2300\",T16=\"2300\"),\"2300\",IF(AND(S13=\"\",T13=\"\",S14=\"\",T14=\"\",S15=\"\",T15=\"\",S16=\"\",T16=\"\"),\"\",\"1000\") ) ) ) ) ))))))","v":"3000"},null,null,null,null,"Order Currency","*","Sri Lankan Rupee - LKR",{"$f":"IF(ISBLANK(Z21),\"\",VLOOKUP(Z21,Currency!$A$2:$B$211,2,FALSE))","v":"LKR"},null,null,"City",null,null,null,null,null,"Email 1/2"]
[null,null,null,"Postal Code","*","00000",null,null,null,null,null,null,null,null,null,null,"Terms of Payment (For P.Org.)","*","0005 -  from the 10th of subs. Month",{"$f":"IF(ISBLANK(S22),\"\",VLOOKUP(S22,'Payment term'!$A$2:$B$67,2,FALSE))","v":"0005"},null,null,null,"Schema Grp Supp",null,{"$f":"IF(OR(AND(ISNUMBER(VALUE(S8)), LEN(S8)=7, LEFT(S8,1)=\"2\"), AND(ISNUMBER(VALUE(S8)), LEN(S8)=6, LEFT(S8,1)=\"2\"), AND(ISNUMBER(VALUE(S8)), LEN(S8)=5, LEFT(S8,1)=\"2\"), AND(ISNUMBER(VALUE(S8)), LEN(S8)=4, LEFT(S8,1)=\"2\")), \"S2\", \"S1\")","v":"S2"},null,null,null,"Postal Code"]
[null,null,null,"Country","*","Sri Lanka",{"$f":"IF(ISBLANK(country_),\"\",VLOOKUP(F23,Dropdowns!$E$2:$F$250,2,FALSE))","v":"LK"},null,null,null,null,null,null,null,null,null,null,null,null,null,null,null,null,null,null,null,null,null,null,"Country",null,null,{"$f":"IF(ISBLANK(CountryChange_),\"\",VLOOKUP(AF23,Dropdowns!$E$2:$F$250,2,FALSE))","v":""}]
[null,null,null,"Region","*","Central Province",{"$f":"IF(ISBLANK(F24),\"\",VLOOKUP(F24,Regions!$C$2:$D$1961,2,FALSE))","v":"01"},null,null,null,null,null,null,null,null,null,null,null,null,null,null,null,null,null,null,null,null,null,null,"Region",null,null,{"$f":"IF(ISBLANK(AF24),\"\",VLOOKUP(AF24,Regions!$C$2:$D$1961,2,FALSE))","v":""}]
[null,null,null,"Bank Account Number ",{"$f":"IF(OR(F25<>\"\",F26<>\"\",F27<>\"\",F28<>\"\",L26<>\"\",L28<>\"\",L27<>\"\"),\"*\",\"\")","v":""},"",null,null,null,null,null,null,null,null,null,null,null,null,null,null,null,null,null,null,null,null,null,null,null,"Bank Account Number ",{"$f":"IF(OR(AF25<>\"\",AF26<>\"\",AF27<>\"\",AF28<>\"\",AL26<>\"\",AL28<>\"\",AL27<>\"\"),\"*\",\"\")","v":""},""]
[null,null,null,"Bank Name ",{"$f":"IF(OR(F25<>\"\",F26<>\"\",F27<>\"\",F28<>\"\",L26<>\"\",L28<>\"\",L27<>\"\"),\"*\",\"\")","v":""},null,null,null,null,"Bank Code",{"$f":"IF(OR(F25<>\"\",F26<>\"\",F27<>\"\",F28<>\"\",L26<>\"\",L28<>\"\",L27<>\"\"),\"*\",\"\")","v":""},null,null,null,null,null,null,null,null,null,null,null,null,null,null,null,null,null,null,"Bank Name",{"$f":"IF(OR(AF25<>\"\",AF26<>\"\",AF27<>\"\",AF28<>\"\",AL26<>\"\",AL28<>\"\",AL27<>\"\"),\"*\",\"\")","v":""},null,null,null,null,"Bank Code",{"$f":"IF(OR(AF25<>\"\",AF26<>\"\",AF27<>\"\",AF28<>\"\",AL26<>\"\",AL28<>\"\",AL27<>\"\"),\"*\",\"\")","v":""}]
[null,null,null,"Branch Name",{"$f":"IF(OR(F25<>\"\",F26<>\"\",F27<>\"\",F28<>\"\",L26<>\"\",L28<>\"\",L27<>\"\"),\"*\",\"\")","v":""},null,null,null,null,"Branch Code",{"$f":"IF(OR(F25<>\"\",F26<>\"\",F27<>\"\",F28<>\"\",L26<>\"\",L28<>\"\",L27<>\"\"),\"*\",\"\")","v":""},null,null,null,null,null,null,null,null,null,null,null,null,null,null,null,null,null,null,"Branch Name",{"$f":"IF(OR(AF25<>\"\",AF26<>\"\",AF27<>\"\",AF28<>\"\",AL26<>\"\",AL28<>\"\",AL27<>\"\"),\"*\",\"\")","v":""},null,null,null,null,"Branch Code",{"$f":"IF(OR(AF25<>\"\",AF26<>\"\",AF27<>\"\",AF28<>\"\",AL26<>\"\",AL28<>\"\",AL27<>\"\"),\"*\",\"\")","v":""}]
[null,null,null,"Account Holder Name",{"$f":"IF(OR(F25<>\"\",F26<>\"\",F27<>\"\",F28<>\"\",L26<>\"\",L28<>\"\",L27<>\"\"),\"*\",\"\")","v":""},null,null,null,null,"SWIFT Code",{"$f":"IF(OR(F25<>\"\",F26<>\"\",F27<>\"\",F28<>\"\",L26<>\"\",L28<>\"\",L27<>\"\"),\"*\",\"\")","v":""},null,null,null,null,null,null,null,null,null,null,null,null,null,null,null,null,null,null,"Account Holder Name",{"$f":"IF(OR(AF25<>\"\",AF26<>\"\",AF27<>\"\",AF28<>\"\",AL26<>\"\",AL28<>\"\",AL27<>\"\"),\"*\",\"\")","v":""},null,null,null,null,"SWIFT Code",{"$f":"IF(OR(AF25<>\"\",AF26<>\"\",AF27<>\"\",AF28<>\"\",AL26<>\"\",AL28<>\"\",AL27<>\"\"),\"*\",\"\")","v":""}]
[null,null,null,"Other Information",null,null,null,null,null,null,null,null,null,null,null,null,null,null,null,null,null,null,null,null,null,null,null,null,null,"Other Information"]
[]
[null,null,null,"Company",null,{"$f":"IF(F9<>\"\",F9,\"\")","v":1000},null,null,null,"Reconciliation Acct","*","Domestic Vendors",{"$f":"IF(ISBLANK(L31),\"\",VLOOKUP(L31,'reconccilliation accout'!$A$1:$B$56,2,FALSE))","v":30030000},null,null,null,null,null,null,null,null,null,null,null,null,null,null,null,null,"Company",null,{"$f":"IF(AF9<>\"\",AF9,\"\")","v":1000}]
[null,null,null,"Sort Key",null,"012",null,null,null,"Interest indicator",null,"No Interest",{"$f":"IF(ISBLANK(L32),\"\",VLOOKUP(L32,'Interest Indicator'!$A$2:$B$3061,2,FALSE))","v":0},null,null,null,null,null,null,null,null,null,null,null,null,null,null,null,null,"Reconciliation acct",null,null,{"$f":"IF(ISBLANK(AF32),\"\",VLOOKUP(AF32,'reconccilliation accout'!$A$1:$B$56,2,FALSE))","v":""}]
[null,null,null,"Terms of Payment (For Company)","*","0002 -  14 days 2%, 30 net",{"$f":"IF(ISBLANK(F33),\"\",VLOOKUP(F33,'Payment term'!$A$2:$B$67,2,FALSE))","v":"0002"},null,null,"Check Double Invoice",null,"x",null,null,null,null,null,null,null,null,null,null,null,null,null,null,null,null,null,"Terms of Payment (For Company)",null,null,{"$f":"IF(ISBLANK(AF33),\"\",VLOOKUP(AF33,'Payment term'!$A$2:$B$67,2,FALSE))","v":""},null,null,"Interest indicator",null,null,{"$f":"IF(ISBLANK(AL33),\"\",VLOOKUP(AL33,'Interest Indicator'!$A$2:$B$3061,2,FALSE))","v":""}]
[]
[null,null,null,"Purchasing Organization",null,{"$f":"IF(OR(F31=1000,F31=1100,F31=1200,F31=1300,F31=1400,F31=1500,F31=1550,F31=1700,F31=1800),1000,IF(F31=1600,1600,IF(F31=2000,2000,IF(F31=2100,2100,IF(F31=2200,2200,IF(F31=2300,2300,IF(F31=3000,3000,IF(F31=3100,3000, IF(F31=3800,3000,IF(F31=3900,3000,\"\"))))))))))","v":1000},null,null,null,"Order Currency",{"$f":"IF(OR(F8=\"Z5EM Employee Business Partners\",F8=\"Z6IL Investments/Loans Business Partners\"),\"\",\"*\")","v":"*"},"Sri Lankan Rupee - LKR",{"$f":"IF(ISBLANK(L35),\"\",VLOOKUP(L35,Currency!$A$2:$B$211,2,FALSE))","v":"LKR"},null,null,null,null,null,null,null,null,null,null,null,null,null,null,null,null,"Purchasing Organization"]
[null,null,null,"Terms of Payment (For P.Org)",null,{"$f":"IF(F33<>\"\",F33,\"\")","v":"0002 -  14 days 2%, 30 net"},{"$f":"G33","v":"0002"},null,null,"Schema Grp Supp",null,{"$f":"IF(OR(B10=\"Z1DM Domestic Business Partners\",B10=\"Z7ON One time Business Partners\"),\"S1\",IF(B10=\"Z2FR Foreign Business Partners\",\"S2\",\"\"))","v":"S1"},null,null,null,null,null,null,null,null,null,null,null,null,null,null,null,null,null,"Terms of Payment (For P.Org)",null,null,{"$f":"IF(ISBLANK(AF36),\"\",VLOOKUP(AF36,'Payment term'!$A$2:$B$67,2,FALSE))","v":""},null,null,"Order Currency",null,null,{"$f":"IF(ISBLANK(AL36),\"\",VLOOKUP(AL36,Currency!$A$2:$B$211,2,FALSE))","v":""}]
[]
[null,null,null,"With Holding Tax  Wtax Type",null,"NO Tax Type",{"$f":"IF(ISBLANK(F38),\"\",VLOOKUP(F38,WHT!$B$1:$C$3,2,FALSE))","v":0},null,null,null,null,null,null,null,null,null,null,null,null,null,null,null,null,null,null,null,null,null,null,"With Holding Tax  Wtax Type",null,null,{"$f":"IF(ISBLANK(AF38),\"\",VLOOKUP(AF38,WHT!$B$1:$C$3,2,FALSE))","v":""}]
[null,null,null,"                                      Wtax Code",null,"No Tax Code",{"$f":"IF(ISBLANK(F39),\"\",VLOOKUP(F39,WHT!$B$6:$C$15,2,FALSE))","v":0},null,null,null,null,null,null,null,null,null,null,null,null,null,null,null,null,null,null,null,null,null,null,"                                     Wtax Code",null,null,{"$f":"IF(ISBLANK(AF39),\"\",VLOOKUP(AF39,WHT!$B$6:$C$15,2,FALSE))","v":""}]
[]
[]
[]
[null,null,null,null,null,null,null,null,null,null,null,"LKR"]

{"sheet":"District","index":2,"n_rows":25,"n_cols":2,"rows_kept":25,"cut":false,"hidden":true,"merged":[]}
["COLOMBO"]
["GAMPAHA"]
["KALUTARA"]
["KANDY"]
["MATALE"]
["NUWARA ELIYA"]
["GALLE"]
["MATARA"]
["HAMBANTOTA"]
["JAFFNA","Please Select"]
["KILINOCHCHI"]
["MANNAR"]
["VAVUNIYA"]
["MULLAITIVU"]
["BATTICALOA"]
["AMPARA"]
["TRINCOMALEE"]
["KURUNEGALA"]
["PUTTALAM"]
["ANURADHAPURA"]
["POLONNARUWA"]
["BADULLA"]
["MONERAGALA"]
["RATNAPURA"]
["KEGALLE"]

{"sheet":"WHT","index":3,"n_rows":52,"n_cols":3,"rows_kept":52,"cut":false,"hidden":true,"merged":[]}
["Wtax Type","P1 - (WHT Payment (Accumulation Month))","P1"]
[null,"P2 - (WHT Payment)","P2"]
[null,"NO Tax Type",0]
[]
[]
["Wtax Code","No Tax Code",0]
[null,"P1 - A2 (5% on Amt exceeding Rs.100,000 per Month)","A2"]
[null,"P1 - A3 (10% on Rent exceeding 100,000 Rs per Month)","A3"]
[null,"P2 - B1 (14% on Service fees & Insurance)","B1"]
[null,"Please Select","B2"]
[null,"P2 - B3 (10% on Rent paid to a Resident Person)","B3"]
[null,"P2 - B4 (14 % on Payment other cases (Sec 84))","B4"]
[null,"P2 - B5 (15 % on Dividend)","B5"]
[null,"P2 - B6 (Charge,natural resource pay or prem 14%)","B6"]
[null,"P2 - B7 (Royalty -- 14%)","B7"]
[]
[]
[]
[]
[]
[]
[]
[]
[]
[]
[]
[]
[]
[]
[]
[]
[]
[]
[]
[]
[]
[]
[]
[]
[]
[]
[]
[]
[]
[]
[]
[]
[]
[]
[]
[]
[null,"No Tax Code"]

{"sheet":"Vendor Change","index":4,"n_rows":5,"n_cols":4,"rows_kept":5,"cut":false,"hidden":true,"merged":[]}
["ChangeType","General_Info","Company_Code_Info","Purchasing_Org_Info"]
["General Information","Name","Reconciliation Account","Payment Term"]
["Other Information","Search term","Payment Term","Order Currency"]
[null,"Address","Interest Indicator"]
[null,"Email/Telephone"]

{"sheet":"VendorReqTbl","index":5,"n_rows":10,"n_cols":9,"rows_kept":10,"cut":false,"hidden":true,"merged":[]}
["Vendor_Creation","Vendor_Extension","Vendor_Change"]
["Z1DM Domestic Business Partners","Extend Both FI Vendor and Vendor","General Information"]
["Z2FR Foreign Business Partners","Extend Only FI Vendor","Other Information",null,null,null,null,null,{"$f":"INDEX(VendorReqTbl[],1,Col_Num_VendorReq):INDEX(VendorReqTbl[],COUNTA(Entire_Col_VendorReq),Col_Num_VendorReq)","v":{"$error":"#VALUE!"}}]
["Z5EM Employee Business Partners","Extend Only Vendor","Both General & Other Information"]
["Z6IL Investments/Loans Business Partners"]
["Z7ON One time Business Partners"]
["Z3IC Inter Company Business Partners"]
[null,null,null,null,null,null,null,null,"Z3IC Inter Company Business Partners"]
[]
[null,"Please Select"]

{"sheet":"Postl codes","index":6,"n_rows":251,"n_cols":5,"rows_kept":251,"cut":false,"hidden":true,"merged":[]}
[" ","Format ",null,"Denomination ","Regex"]
["Afghanistan ",9999,{"$f":"LEN(B2)","v":4},"Post code ","Yes"]
["Åland Islands ",99999,{"$f":"LEN(B3)","v":5},"Postcode ","Yes"]
["Albania ",9999,4,"Kodi postar ","Yes"]
["Algeria ",99999,5,"Code postal ","Yes"]
["American Samoa ",99999,5,"Zip Code (US) ","Yes"]
["Andorra ","AA999 ",6,"Código postal ","Yes"]
["Angola ","- ",2,"Not used ","No"]
["Anguilla ","AA-9999 ",8,"Post code ","Yes"]
["Antarctica ",9999,4,"Postcode ","Yes"]
["Antigua and Barbuda ",99999,5,"Post code ","Yes"]
["Argentine ","A9999AAA ",9,"CPA ","Yes"]
["Armenia ",9999,4,"Postal index ","Yes"]
["Aruba ","9999 AA ",8,"postcode (NL) ","Yes"]
["Australia ",9999,4,"Postcode ","Yes"]
["Austria ",9999,4,"PLZ ","Yes"]
["Azerbaijan ","AA 9999 ",8,"İndeks ","Yes"]
["Bahamas ","- ",2,"Not used ","No"]
["Bahrain ",9999,4,"Post code ","Yes"]
["Bangladesh ",9999,4,"Post code ","Yes"]
["Barbados ","AA99999 ",8,"Postal code ","Yes"]
["Belarus ",999999,6,"Индекс ","Yes"]
["Belgium ",9999,4,"Code postal ","Yes"]
["Belize ","- ",2,"Not used ","No"]
["Benin ","- ",2,"Not used ","No"]
["Bermuda ","AA 99 ",6,"Post codes ","Yes"]
["Bhutan ",99999,5,"Post code ","Yes"]
["Bolivia ","- ",2,"Not used ","No"]
["Bonaire, Sint Eustatius, Saba ","9999 AA ",8,"Postcode ","Yes"]
["Bosnia and Herzegovina ",99999,5,"Poštanski broj ","Yes"]
["Botswana ","- ",2,"Not used ","No"]
["Bouvet Island ","- ",2,"Not used ","No"]
["Brazil ","99999-999 ",10,"CEP ","Yes"]
["British Indian Ocean Territory ","AA9A 9AA ",9,"Postcode ","Yes"]
["British Virgin Islands ","AA9999 ",7,"Postal code ","Yes"]
["Brunei Darussalam ","AA9999 ",7,"Kod ","Yes"]
["Bulgaria ",9999,4,"Пощенски код ","Yes"]
["Burkina Faso ","- ",2,"Not used ","No"]
["Burundi ","- ",2,"Not used ","No"]
["Cambodia ",99999,5,"Postal code ","Yes"]
["Cameroon ","- ",2,"Not used ","No"]
["Canada ","A9A 9A9 ",8,"Post code ","Yes"]
["Cape Verde ",9999,4,"CIP ","Yes"]
["Cayman Islands ","AA9-9999 ",9,"Postcode (UK) ","Yes"]
["Central African Republic ","- ",2,"Not used ","No"]
["Chad ",99999,5,"Postal code ","Yes"]
["Chile ",9999999,7,"Código postal ","Yes"]
["China ",999999,6,"郵政編碼 ","Yes"]
["Christmas Island ",9999,4,"Postcode ","Yes"]
["Cocos (Keeling) Islands ","9999 A9 ",8,"Post code ","Yes"]
["Colombia ",999999,6,"Código postal ","Yes"]
["Comoros ","- ",2,"Not used ","No"]
["Congo (Brazzville) ","- ",2,"Not used ","No"]
["Congo DR ","- ",2,"Not used ","No"]
["Cook Islands ","- ",2,"Not used ","No"]
["Costa Rica ",99999,5,"Código postal ","Yes"]
["Croatia ",99999,5,"Zip ","Yes"]
["Cuba ",99999,5,"Código postal ","Yes"]
["Curacao ","9999 AA ",8,"Postcode (NL) ","Yes"]
["Cyprus ",9999,4,"Postcode ","Yes"]
["Czech Republic ","999 99 ",7,"PSČ ","Yes"]
["Denmark ",9999,4,"Postnumre ","Yes"]
["Djibouti ","- ",2,"Not used ","No"]
["Dominica ","- ",2,"Not used ","No"]
["Dominican Republic ",99999,5,"Código postal ","Yes"]
["East Timor ","- ",2,"Not used ","No"]
["Ecuador ",999999,{"$f":"LEN(B67)","v":6},"Código postal ","Yes"]
["Egypt ",99999,5,"الرمز البريدي ","Yes"]
["El Salvador ",9999,4,"Código postal ","Yes"]
["Equatorial Guinea ","- ",2,"Not used ","No"]
["Eritrea ","- ",2,"Not used ","No"]
["Estonia ",99999,5,"Postiindeks ","Yes"]
["Ethiopia ",9999,4,"Postal code ","Yes"]
["Falkland Islands (Malvinas) ","AAAA 9AA ",9,"Postcode ","Yes"]
["Faroe Islands ",999,3,"Postnumre (DK) ","Yes"]
["Fiji ","- ",2,"Not used ","No"]
["Finland ",99999,5,"Postinumero ","Yes"]
["France ",99999,5,"Code postal ","Yes"]
["French Guiana ",99999,5,"Code postal (FR) ","Yes"]
["French Polynesia ",99999,5,"Code postal (FR) ","Yes"]
["French Southern Territories ",99999,5,"Code postal ","Yes"]
["Gabon ","- ",2,"Not used ","No"]
["Gambia ","- ",2,"Not used ","No"]
["Georgia ",9999,4,"Post code ","Yes"]
["Germany ",99999,5,"PLZ ","Yes"]
["Ghana ","- ",2,"Not used ","No"]
["Gibraltar ","AA99 9AA ",9,"Postcode (UK) ","Yes"]
["Greece ","999 99 ",7,"T.K. ","Yes"]
["Greenland ",9999,4,"Postnumre (DK) ","Yes"]
["Grenada ","- ",2,"Not used ","No"]
["Guadeloupe ",99999,5,"Code postal (FR) ","Yes"]
["Guam ",99999,5,"Zip Code (US) ","Yes"]
["Guatemala ",99999,5,"Código postal ","Yes"]
["Guernsey ","AA9 9AA ",8,"Postcode (UK) ","Yes"]
["Guinea ",999,3,"Code postal ","Yes"]
["Guinea-Bissau ",9999,4,"Código postal ","Yes"]
["Guyana ","- ",2,"Not used ","No"]
["Haiti ",9999,4,"Code postal ","Yes"]
["Heard and McDonald ",9999,4,"Postcode ","Yes"]
["Honduras ",99999,5,"Código postal ","Yes"]
["Hong Kong ",999999,6,"郵政編碼 ","Yes"]
["Hungary ",9999,4,"Irányítószám ","Yes"]
["Iceland ",999,3,"Póstnúmer ","Yes"]
["India ",999999,6,"PIN code ","Yes"]
["Indonesia ",99999,5,"Kodepos ","Yes"]
["Iran ",99999,5,"کد پستی ","Yes"]
["Iraq ",99999,5,"Postal code ","Yes"]
["Ireland ","- ",2,"Not used ","No"]
["Isle of Man ","AA99 9AA ",9,"Postcode (UK) ","Yes"]
["Israel ",9999999,7,"Postal code ","Yes"]
["Italy ",99999,5,"CAP ","Yes"]
["Ivory Coast ","- ",2,"Not used ","No"]
["Jamaica ","AAAAA99 ",8,"Postal code ","Yes"]
["Japan ","999-9999 ",9,"郵便番号 ","Yes"]
["Jersey ","AA9 9AA ",8,"Postcode (UK) ","Yes"]
["Jordan ",99999,5,"Postal code ","Yes"]
["Kazakhstan ",999999,6,"Почтового индекса ","Yes"]
["Kenya ",99999,5,"Postal code ","Yes"]
["Kiribati ","- ",2,"Not used ","No"]
["Kosovo ",99999,5,"Поштански код ","Yes"]
["Kuwait ",99999,5,"Postal code ","Yes"]
["Kyrgyzstan ",999999,6,"Почтовый индекс ","Yes"]
["Laos ",99999,5,"Postal code ","Yes"]
["Latvia ","AA-9999 ",8,"Pasta indekss ","Yes"]
["Lebanon ",9999,4,"Code postal ","Yes"]
["Lesotho ",999,3,"Postal code ","Yes"]
["Liberia ",9999,4,"Postal code ","Yes"]
["Libya ",99999,5,"Postal code ","Yes"]
["Liechtenstein ",9999,4,"PLZ (CH) ","Yes"]
["Lithuania ",99999,5,"Pašto kodas ","Yes"]
["Luxembourg ",9999,{"$f":"LEN(B131)","v":4},"Code postal ","Yes"]
["Macau ",999999,6,"$郵政編碼 ","Yes"]
["Macedonia ",9999,4,"Поштенски код ","Yes"]
["Madagascar ",999,3,"Code postal ","Yes"]
["Malawi ","- ",2,"Not used ","No"]
["Malaysia ",99999,5,"Postal code ","Yes"]
["Maldives ",99999,5,"Post code ","Yes"]
["Mali ","- ",2,"Not used ","No"]
["Malta ","AAA 9999 ",9,"Kodiċi Postali ","Yes"]
["Marshall Islands ",99999,5,"ZIP code (US) ","Yes"]
["Martinique ",99999,5,"Code postal (FR) ","Yes"]
["Mauritania ","- ",2,"Not used ","No"]
["Mauritius ","A9999 ",6,"Post code ","Yes"]
["Mayotte ",99999,5,"Code postal (FR) ","Yes"]
["Mexico ",99999,5,"Código postal ","Yes"]
["Micronesia ",99999,5,"Zip code (US) ","Yes"]
["Moldova ",9999,4,"Coduri poştale ","Yes"]
["Monaco ",99999,5,"Code postal (FR) ","Yes"]
["Mongolia ",99999,5,"Zipcode ","Yes"]
["Montenegro ",99999,5,"Поштански код ","Yes"]
["Montserrat ","AAA9999 ",8,"Post code ","Yes"]
["Morocco ",99999,5,"Code postal ","Yes"]
["Mozambique ",9999,4,"Código postal ","Yes"]
["Myanmar ",99999,5,"Postal code ","Yes"]
["Namibia ","- ",2,"Not used ","No"]
["Nauru ","- ",2,"Not used ","No"]
["Nepal ",99999,5,"Postal code ","Yes"]
["Netherlands ","9999 AA ",8,"Postcode ","Yes"]
["Netherlands Antilles ","- ",2,"Not used ","No"]
["New Caledonia ",99999,5,"Code postal (FR) ","Yes"]
["New Zealand ",9999,4,"Postcode ","Yes"]
["Nicaragua ",99999,5,"Código postal ","Yes"]
["Niger ",9999,4,"Code postal ","Yes"]
["Nigeria ",999999,6,"Postal code ","Yes"]
["Niue ","- ",2,"Not used ","No"]
["Norfolk Island ",9999,4,"Post code ","Yes"]
["North Korea ","- ",2,"Not used ","No"]
["Northern Mariana Islands ",99999,5,"Zip Code (US) ","Yes"]
["Norway ",9999,4,"Postnummer ","Yes"]
["Oman ",999,3,"Postal code ","Yes"]
["Pakistan ",99999,5,"Post code ","Yes"]
["Palau ",99999,5,"Postal code ","Yes"]
["Palestine (Gaza) ","999-999 ",8,"Post code ","Yes"]
["Panama ","- ",2,"Not used ","No"]
["Papua New Guinea ",999,3,"Postal code ","Yes"]
["Paraguay ",9999,4,"Código postal ","Yes"]
["Peru ",99999,5,"Código postal ","Yes"]
["Philippines ",9999,4,"Zipcode ","Yes"]
["Pitcairn ","AAA9 9AA ",9,"Post code ","Yes"]
["Poland ","99-999 ",7,"Kod pocztowy ","Yes"]
["Portugal ","9999-999 ",9,"Código postal ","Yes"]
["Puerto Rico ",99999,5,"ZIP code (US) ","Yes"]
["Qatar ","- ",2,"Not used ","No"]
["Réunion ",99999,5,"Code postal (FR) ","Yes"]
["Romania ",999999,6,"Cod poştal ","Yes"]
["Russia ",999999,6,"Почтовый индекс ","Yes"]
["Rwanda ","- ",2,"Not used ","No"]
["Sahrawi Arab ",99999,5,"Code postal (MA) ","Yes"]
["Saint Barthelme ",99999,5,"Code postal (FR) ","Yes"]
["Saint Kitts and Nevis ","- ",2,"Not used ","No"]
["Saint Lucia ","- ",2,"Not used ","No"]
["Saint Martin ",99999,5,"Code postal (FR) ","Yes"]
["Saint Pierre And Miquelon ",99999,5,"Code postal (FR) ","Yes"]
["Saint Vincent and the Grenadines ","AA9999 ",7,"Postal code ","Yes"]
["Samoa ",99999,{"$f":"LEN(B195)","v":5},"Postal code ","Yes"]
["San Marino ",99999,5,"CAP (IT) ","Yes"]
["Santa Helena, Ascension and Tristan Da Cunha ","AAAA 9AA ",9,"Postcode (UK) ","Yes"]
["São Tomé and Príncipe ","- ",2,"Not used ","No"]
["Saudi Arabia ","99999-9999 ",11,"Postal code ","Yes"]
["Senegal ",99999,5,"Code postal ","Yes"]
["Serbia ",99999,5,"Поштански код ","Yes"]
["Seychelles ","- ",2,"Not used ","No"]
["Sierra Leone ","- ",2,"Not used ","No"]
["Singapore ",999999,6,"Postal code ","Yes"]
["Sint Maarten ","9999 AA ",8,"Post code ","Yes"]
["Slovakia ","999 99 ",7,"PSČ ","Yes"]
["Slovenia ",9999,4,"Poštna številka ","Yes"]
["Solomon Islands ","- ",2,"Not used ","No"]
["Somalia ","- ",2,"Not used ","No"]
["South Africa ",9999,4,"Postal code ","Yes"]
["South Georgia & Sandwich ","AAAA 9AA ",9,"Post code ","Yes"]
["South Korea ",99999,5,"우편번호 ","Yes"]
["South Sudan ",99999,5,"Postal code ","Yes"]
["Spain ",99999,5,"Código postal ","Yes"]
["Sri Lanka ",99999,5,"Postcode ","Yes"]
["Sudan ",99999,5,"Postal code ","Yes"]
["Suriname ","- ",2,"Not used ","No"]
["Svalbard and Jan Mayen ",9999,4,"Postnummer (NO) ","Yes"]
["Swaziland ","A999 ",5,"Postal code ","Yes"]
["Sweden ","999 99 ",7,"Postnummer ","Yes"]
["Switzerland ",9999,4,"PLZ / Code postal ","Yes"]
["Syria ","- ",2,"Not used ","No"]
["Taiwan ",99999,5,"郵遞區號 ","Yes"]
["Tajikistan ",999,3,"Нишонаи почта ","Yes"]
["Tanzania ",99999,5,"Postal code ","Yes"]
["Thailand ",99999,5,"รหัสไปรษณีย์ ","Yes"]
["Togo ","- ",2,"Not used ","No"]
["Tokelau ","- ",2,"Not used ","No"]
["Tonga ","- ",2,"Not used ","No"]
["Trinidad and Tobago ","- ",2,"Not used ","No"]
["Tunisia ",9999,4,"Code postal ","Yes"]
["Turkey ",99999,5,"Posta kodu ","Yes"]
["Turkmenistan ",999999,6,"Почтовый индекс ","Yes"]
["Turks and Caicos Islands ","AAAA 9AA ",9,"Postcode (UK) ","Yes"]
["Tuvalu ","- ",2,"Not used ","No"]
["U.S. Virgin Islands ",99999,5,"Zip Code (US) ","Yes"]
["Uganda ","- ",2,"Not used ","No"]
["Ukraine ",99999,5,"Поштовий індекс ","Yes"]
["United Arab Emirates ","- ",2,"Not used ","No"]
["United Kingdom ","AA9 9AA ",8,"Postcode ","Yes"]
["United States ","99999-9999 ",11,"ZIP code ","Yes"]
["Uruguay ",99999,5,"Código postal ","Yes"]
["Uzbekistan ",999999,6,"Почтовый индекс ","Yes"]
["Vanuatu ","- ",2,"Not used ","No"]
["Vatican City State ",999,3,"CAP (IT) ","Yes"]
["Venezuela ",9999,4,"Código postal ","Yes"]
["Viet Nam ",999999,6,"Mã bưu chính ","Yes"]
["Wallis and Futuna ",99999,5,"Code postal (FR) ","Yes"]
["Yemen ","- ",2,"Not used ","No"]
["Zambia ",99999,5,"Postal code ","Yes"]
["Zimbabwe ","- ",2,"Not used ","No"]

{"sheet":"START","index":7,"n_rows":10,"n_cols":2,"rows_kept":10,"cut":false,"hidden":false,"merged":[[0,0,3,16383]]}
["                                           You must enable macros before using the vendor template"]
[]
[]
[]
[]
[]
[]
[]
[]
[null,"Please Select"]

{"sheet":"INSTRUCTIONS","index":8,"n_rows":0,"n_cols":0,"rows_kept":0,"cut":false,"hidden":true,"merged":[]}

{"sheet":"Interest Indicator","index":9,"n_rows":3061,"n_cols":6,"rows_kept":3061,"cut":false,"hidden":true,"merged":[]}
["Interest calculation Indicator name","Interest Indicator"]
["No Interest"]
["10.00","BS"]
["10.01","BT",null,10]
["10.02","BU",null,{"$f":"_xlfn._xlws.FILTER(A2:A3061,ISNUMBER(SEARCH(Vendor!L32,A2:A3061)),\"Not found\")","v":"No Interest"},null,{"$f":"_xlfn._xlws.FILTER(A2:A2360,ISNUMBER(SEARCH(Vendor!AL33,A2:A2360)),\"Not found\")","v":"No Interest"}]
["10.03","BV",null,null,null,"10.00"]
["10.04","BW",null,null,null,"10.01"]
["10.05","BX",null,null,null,"10.02"]
["10.06","BY",null,null,null,"10.03"]
["10.07","BZ",null,null,null,"10.04"]
["10.08","CA",null,null,null,"10.05"]
["10.09","CB",null,null,null,"10.06"]
["10.10","CC",null,null,null,"10.07"]
["10.11","CD",null,null,null,"10.08"]
["10.12","CE",null,null,null,"10.09"]
["10.13","CF",null,null,null,"10.10"]
["10.14","CG",null,null,null,"10.11"]
["10.15","CH",null,null,null,"10.12"]
["10.16","CI",null,null,null,"10.13"]
["10.17","CJ",null,null,null,"10.14"]
["10.18","CK",null,null,null,"10.15"]
["10.19","CL",null,null,null,"10.16"]
["10.20","CM",null,null,null,"10.17"]
["10.21","CN",null,null,null,"10.18"]
["10.22","CO",null,null,null,"10.19"]
["10.23","CP",null,null,null,"10.20"]
["10.24","CQ",null,null,null,"10.21"]
["10.25","CR",null,null,null,"10.22"]
["10.26","CS",null,null,null,"10.23"]
["10.27","CT",null,null,null,"10.24"]
["10.28","CU",null,null,null,"10.25"]
["10.29","CV",null,null,null,"10.26"]
["10.30","CW",null,null,null,"10.27"]
["10.31","CX",null,null,null,"10.28"]
["10.32","CY",null,null,null,"10.29"]
["10.33","CZ",null,null,null,"10.30"]
["10.34","DA",null,null,null,"10.31"]
["10.35","DB",null,null,null,"10.32"]
["10.36","DC",null,null,null,"10.33"]
["10.37","DD",null,null,null,"10.34"]
["10.38","DE",null,null,null,"10.35"]
["10.39","DF",null,null,null,"10.36"]
["10.40","DG",null,null,null,"10.37"]
["10.41","DH",null,null,null,"10.38"]
["10.42","DI",null,null,null,"10.39"]
["10.43","DJ",null,null,null,"10.40"]
["10.44","DK",null,null,null,"10.41"]
["10.45","DL",null,null,null,"10.42"]
["10.46","DM",null,null,null,"10.43"]
["10.47","DN",null,null,null,"10.44"]
["10.48","DO",null,null,null,"10.45"]
["10.49","DP",null,null,null,"10.46"]
["10.50","DQ",null,null,null,"10.47"]
["10.51","DR",null,null,null,"10.48"]
["10.52","DS",null,null,null,"10.49"]
["10.53","DT",null,null,null,"10.50"]
["10.54","DU",null,null,null,"10.51"]
["10.55","DV",null,null,null,"10.52"]
["10.56","DW",null,null,null,"10.53"]
["10.57","DX",null,null,null,"10.54"]
["10.58","DY",null,null,null,"10.55"]
["10.59","DZ",null,null,null,"10.56"]
["10.60","EA",null,null,null,"10.57"]
["10.61","EB",null,null,null,"10.58"]
["10.62","EC",null,null,null,"10.59"]
["10.63","ED",null,null,null,"10.60"]
["10.64","EE",null,null,null,"10.61"]
["10.65","EF",null,null,null,"10.62"]
["10.66","EG",null,null,null,"10.63"]
["10.67","EH",null,null,null,"10.64"]
["10.68","EI",null,null,null,"10.65"]
["10.69","EJ",null,null,null,"10.66"]
["10.70","EK",null,null,null,"10.67"]
["10.71","EL",null,null,null,"10.68"]
["10.72","EM",null,null,null,"10.69"]
["10.73","EN",null,null,null,"10.70"]
["10.74","EO",null,null,null,"10.71"]
["10.75","EP",null,null,null,"10.72"]
["10.76","EQ",null,null,null,"10.73"]
["10.77","ER",null,null,null,"10.74"]
["10.78","ES",null,null,null,"10.75"]
["10.79","ET",null,null,null,"10.76"]
["10.80","EU",null,null,null,"10.77"]
["10.81","EV",null,null,null,"10.78"]
["10.82","EW",null,null,null,"10.79"]
["10.83","EX",null,null,null,"10.80"]
["10.84","EY",null,null,null,"10.81"]
["10.85","EZ",null,null,null,"10.82"]
["10.86","FA",null,null,null,"10.83"]
["10.87","FB",null,null,null,"10.84"]
["10.88","FC",null,null,null,"10.85"]
["10.89","FD",null,null,null,"10.86"]
["10.90","FE",null,null,null,"10.87"]
["10.91","FF",null,null,null,"10.88"]
["10.92","FG",null,null,null,"10.89"]
["10.93","FH",null,null,null,"10.90"]
["10.94","FI",null,null,null,"10.91"]
["10.95","FJ",null,null,null,"10.92"]
["10.96","FK",null,null,null,"10.93"]
["10.97","FL",null,null,null,"10.94"]
["10.98","FM",null,null,null,"10.95"]
["10.99","FN",null,null,null,"10.96"]
["11.00","FO",null,null,null,"10.97"]
["11.01","FP",null,null,null,"10.98"]
["11.02","FQ",null,null,null,"10.99"]
["11.03","FR",null,null,null,"11.00"]
["11.04","FS",null,null,null,"11.01"]
["11.05","FT",null,null,null,"11.02"]
["11.06","FU",null,null,null,"11.03"]
["11.07","FV",null,null,null,"11.04"]
["11.08","FW",null,null,null,"11.05"]
["11.09","FX",null,null,null,"11.06"]
["11.10","FY",null,null,null,"11.07"]
["11.11","FZ",null,null,null,"11.08"]
["11.12","GA",null,null,null,"11.09"]
["11.13","GB",null,null,null,"11.10"]
["11.14","GC",null,null,null,"11.11"]
["11.15","GD",null,null,null,"11.12"]
["11.16","GE",null,null,null,"11.13"]
["11.17","GF",null,null,null,"11.14"]
["11.18","GG",null,null,null,"11.15"]
["11.19","GH",null,null,null,"11.16"]
["11.20","GI",null,null,null,"11.17"]
["11.21","GJ",null,null,null,"11.18"]
["11.22","GK",null,null,null,"11.19"]
["11.23","GL",null,null,null,"11.20"]
["11.24","GM",null,null,null,"11.21"]
["11.25","GN",null,null,null,"11.22"]
["11.26","GO",null,null,null,"11.23"]
["11.27","GP",null,null,null,"11.24"]
["11.28","GQ",null,null,null,"11.25"]
["11.29","GR",null,null,null,"11.26"]
["11.30","GS",null,null,null,"11.27"]
["11.31","GT",null,null,null,"11.28"]
["11.32","GU",null,null,null,"11.29"]
["11.33","GV",null,null,null,"11.30"]
["11.34","GW",null,null,null,"11.31"]
["11.35","GX",null,null,null,"11.32"]
["11.36","GY",null,null,null,"11.33"]
["11.37","GZ",null,null,null,"11.34"]
["11.38","HA",null,null,null,"11.35"]
["11.39","HB",null,null,null,"11.36"]
["11.40","HC",null,null,null,"11.37"]
["11.41","HD",null,null,null,"11.38"]
["11.42","HE",null,null,null,"11.39"]
["11.43","HF",null,null,null,"11.40"]
["11.44","HG",null,null,null,"11.41"]
["11.45","HH",null,null,null,"11.42"]
["11.46","HI",null,null,null,"11.43"]
["11.47","HJ",null,null,null,"11.44"]
["11.48","HK",null,null,null,"11.45"]
["11.49","HL",null,null,null,"11.46"]
["11.50","HM",null,null,null,"11.47"]
["11.51","HN",null,null,null,"11.48"]
["11.52","HO",null,null,null,"11.49"]
["11.53","HP",null,null,null,"11.50"]
["11.54","HQ",null,null,null,"11.51"]
["11.55","HR",null,null,null,"11.52"]
["11.56","HS",null,null,null,"11.53"]
["11.57","HT",null,null,null,"11.54"]
["11.58","HU",null,null,null,"11.55"]
["11.59","HV",null,null,null,"11.56"]
["11.60","HW",null,null,null,"11.57"]
["11.61","HX",null,null,null,"11.58"]
["11.62","HY",null,null,null,"11.59"]
["11.63","HZ",null,null,null,"11.60"]
["11.64","IA",null,null,null,"11.61"]
["11.65","IB",null,null,null,"11.62"]
["11.66","IC",null,null,null,"11.63"]
["11.67","ID",null,null,null,"11.64"]
["11.68","IE",null,null,null,"11.65"]
["11.69","IF",null,null,null,"11.66"]
["11.70","IG",null,null,null,"11.67"]
["11.71","II",null,null,null,"11.68"]
["11.72","IJ",null,null,null,"11.69"]
["11.73","IK",null,null,null,"11.70"]
["11.74","IL",null,null,null,"11.71"]
["11.75","IM",null,null,null,"11.72"]
["11.76","IN",null,null,null,"11.73"]
["11.77","IO",null,null,null,"11.74"]
["11.78","IP",null,null,null,"11.75"]
["11.79","IQ",null,null,null,"11.76"]
["11.80","IR",null,null,null,"11.77"]
["11.81","IS",null,null,null,"11.78"]
["11.82","IT",null,null,null,"11.79"]
["11.83","IU",null,null,null,"11.80"]
["11.84","IV",null,null,null,"11.81"]
["11.85","IW",null,null,null,"11.82"]
["11.86","IX",null,null,null,"11.83"]
["11.87","IY",null,null,null,"11.84"]
["11.88","IZ",null,null,null,"11.85"]
["11.89","JA",null,null,null,"11.86"]
["11.90","JB",null,null,null,"11.87"]
["11.91","JC",null,null,null,"11.88"]
["11.92","JD",null,null,null,"11.89"]
["11.93","JE",null,null,null,"11.90"]
["11.94","JF",null,null,null,"11.91"]
["11.95","JG",null,null,null,"11.92"]
["11.96","JH",null,null,null,"11.93"]
["11.97","JI",null,null,null,"11.94"]
["11.98","JJ",null,null,null,"11.95"]
["11.99","JK",null,null,null,"11.96"]
["12.00","JL",null,null,null,"11.97"]
["12.01","JM",null,null,null,"11.98"]
["12.02","JN",null,null,null,"11.99"]
["12.03","JO",null,null,null,"12.00"]
["12.04","JP",null,null,null,"12.01"]
["12.05","JQ",null,null,null,"12.02"]
["12.06","JR",null,null,null,"12.03"]
["12.07","JS",null,null,null,"12.04"]
["12.08","JT",null,null,null,"12.05"]
["12.09","JU",null,null,null,"12.06"]
["12.10","JV",null,null,null,"12.07"]
["12.11","JW",null,null,null,"12.08"]
["12.12","JX",null,null,null,"12.09"]
["12.13","JY",null,null,null,"12.10"]
["12.14","JZ",null,null,null,"12.11"]
["12.15","KA",null,null,null,"12.12"]
["12.16","KB",null,null,null,"12.13"]
["12.17","KC",null,null,null,"12.14"]
["12.18","KD",null,null,null,"12.15"]
["12.19","KE",null,null,null,"12.16"]
["12.20","KF",null,null,null,"12.17"]
["12.21","KG",null,null,null,"12.18"]
["12.22","KH",null,null,null,"12.19"]
["12.23","KI",null,null,null,"12.20"]
["12.24","KJ",null,null,null,"12.21"]
["12.25","KK",null,null,null,"12.22"]
["12.26","KL",null,null,null,"12.23"]
["12.27","KM",null,null,null,"12.24"]
["12.28","KN",null,null,null,"12.25"]
["12.29","KO",null,null,null,"12.26"]
["12.30","KP",null,null,null,"12.27"]
["12.31","KQ",null,null,null,"12.28"]
["12.32","KR",null,null,null,"12.29"]
["12.33","KS",null,null,null,"12.30"]
["12.34","KT",null,null,null,"12.31"]
["12.35","KU",null,null,null,"12.32"]
["12.36","KV",null,null,null,"12.33"]
["12.37","KW",null,null,null,"12.34"]
["12.38","KX",null,null,null,"12.35"]
["12.39","KY",null,null,null,"12.36"]
["12.40","KZ",null,null,null,"12.37"]
["12.41","LA",null,null,null,"12.38"]
["12.42","LB",null,null,null,"12.39"]
["12.43","LC",null,null,null,"12.40"]
["12.44","LD",null,null,null,"12.41"]
["12.45","LE",null,null,null,"12.42"]
["12.46","LF",null,null,null,"12.43"]
["12.47","LG",null,null,null,"12.44"]
["12.48","LH",null,null,null,"12.45"]
["12.49","LI",null,null,null,"12.46"]
["12.50","LJ",null,null,null,"12.47"]
["12.51","LK",null,null,null,"12.48"]
["12.52","LL",null,null,null,"12.49"]
["12.53","LM",null,null,null,"12.50"]
["12.54","LN",null,null,null,"12.51"]
["12.55","LO",null,null,null,"12.52"]
["12.56","LP",null,null,null,"12.53"]
["12.57","LQ",null,null,null,"12.54"]
["12.58","LR",null,null,null,"12.55"]
["12.59","LS",null,null,null,"12.56"]
["12.60","LT",null,null,null,"12.57"]
["12.61","LU",null,null,null,"12.58"]
["12.62","LV",null,null,null,"12.59"]
["12.63","LW",null,null,null,"12.60"]
["12.64","LX",null,null,null,"12.61"]
["12.65","LY",null,null,null,"12.62"]
["12.66","LZ",null,null,null,"12.63"]
["12.67","MA",null,null,null,"12.64"]
["12.68","MB",null,null,null,"12.65"]
["12.69","MC",null,null,null,"12.66"]
["12.70","MD",null,null,null,"12.67"]
["12.71","ME",null,null,null,"12.68"]
["12.72","MF",null,null,null,"12.69"]
["12.73","MG",null,null,null,"12.70"]
["12.74","MH",null,null,null,"12.71"]
["12.75","MI",null,null,null,"12.72"]
["12.76","MJ",null,null,null,"12.73"]
["12.77","MK",null,null,null,"12.74"]
["12.78","ML",null,null,null,"12.75"]
["12.79","MM",null,null,null,"12.76"]
["12.80","MN",null,null,null,"12.77"]
["12.81","MO",null,null,null,"12.78"]
["12.82","MP",null,null,null,"12.79"]
["12.83","MQ",null,null,null,"12.80"]
["12.84","MR",null,null,null,"12.81"]
["12.85","MS",null,null,null,"12.82"]
["12.86","MT",null,null,null,"12.83"]
["12.87","MU",null,null,null,"12.84"]
["12.88","MV",null,null,null,"12.85"]
["12.89","MW",null,null,null,"12.86"]
["12.90","MX",null,null,null,"12.87"]
["12.91","MY",null,null,null,"12.88"]
["12.92","MZ",null,null,null,"12.89"]
["12.93","NA",null,null,null,"12.90"]
["12.94","NB",null,null,null,"12.91"]
["12.95","NC",null,null,null,"12.92"]
["12.96","ND",null,null,null,"12.93"]
["12.97","NE",null,null,null,"12.94"]
["12.98","NF",null,null,null,"12.95"]
["12.99","NG",null,null,null,"12.96"]
["13.00","NH",null,null,null,"12.97"]
["13.01","NI",null,null,null,"12.98"]
["13.02","NJ",null,null,null,"12.99"]
["13.03","NK",null,null,null,"13.00"]
["13.04","NL",null,null,null,"13.01"]
["13.05","NM",null,null,null,"13.02"]
["13.06","NN",null,null,null,"13.03"]
["13.07","NO",null,null,null,"13.04"]
["13.08","NP",null,null,null,"13.05"]
["13.09","NQ",null,null,null,"13.06"]
["13.10","NR",null,null,null,"13.07"]
["13.11","NS",null,null,null,"13.08"]
["13.12","NT",null,null,null,"13.09"]
["13.13","NU",null,null,null,"13.10"]
["13.14","NV",null,null,null,"13.11"]
["13.15","NW",null,null,null,"13.12"]
["13.16","NX",null,null,null,"13.13"]
["13.17","NY",null,null,null,"13.14"]
["13.18","NZ",null,null,null,"13.15"]
["13.19","OA",null,null,null,"13.16"]
["13.20","OB",null,null,null,"13.17"]
["13.21","OC",null,null,null,"13.18"]
["13.22","OD",null,null,null,"13.19"]
["13.23","OE",null,null,null,"13.20"]
["13.24","OF",null,null,null,"13.21"]
["13.25","OG",null,null,null,"13.22"]
["13.26","OH",null,null,null,"13.23"]
["13.27","OI",null,null,null,"13.24"]
["13.28","OJ",null,null,null,"13.25"]
["13.29","OK",null,null,null,"13.26"]
["13.30","OL",null,null,null,"13.27"]
["13.31","OM",null,null,null,"13.28"]
["13.32","ON",null,null,null,"13.29"]
["13.33","OO",null,null,null,"13.30"]
["13.34","OP",null,null,null,"13.31"]
["13.35","OQ",null,null,null,"13.32"]
["13.36","OR",null,null,null,"13.33"]
["13.37","OS",null,null,null,"13.34"]
["13.38","OT",null,null,null,"13.35"]
["13.39","OU",null,null,null,"13.36"]
["13.40","OV",null,null,null,"13.37"]
["13.41","OW",null,null,null,"13.38"]
["13.42","OX",null,null,null,"13.39"]
["13.43","OY",null,null,null,"13.40"]
["13.44","OZ",null,null,null,"13.41"]
["13.45","PA",null,null,null,"13.42"]
["13.46","PB",null,null,null,"13.43"]
["13.47","PC",null,null,null,"13.44"]
["13.48","PD",null,null,null,"13.45"]
["13.49","PE",null,null,null,"13.46"]
["13.50","PF",null,null,null,"13.47"]
["13.51","PG",null,null,null,"13.48"]
["13.52","PH",null,null,null,"13.49"]
["13.53","PI",null,null,null,"13.50"]
["13.54","PJ",null,null,null,"13.51"]
["13.55","PK",null,null,null,"13.52"]
["13.56","PL",null,null,null,"13.53"]
["13.57","PM",null,null,null,"13.54"]
["13.58","PN",null,null,null,"13.55"]
["13.59","PO",null,null,null,"13.56"]
["13.60","PP",null,null,null,"13.57"]
["13.61","PQ",null,null,null,"13.58"]
["13.62","PR",null,null,null,"13.59"]
["13.63","PS",null,null,null,"13.60"]
["13.64","PT",null,null,null,"13.61"]
["13.65","PU",null,null,null,"13.62"]
["13.66","PV",null,null,null,"13.63"]
["13.67","PW",null,null,null,"13.64"]
["13.68","PX",null,null,null,"13.65"]
["13.69","PY",null,null,null,"13.66"]
["13.70","PZ",null,null,null,"13.67"]
["13.71","QA",null,null,null,"13.68"]
["13.72","QB",null,null,null,"13.69"]
["13.73","QC",null,null,null,"13.70"]
["13.74","QD",null,null,null,"13.71"]
["13.75","QE",null,null,null,"13.72"]
["13.76","QF",null,null,null,"13.73"]
["13.77","QG",null,null,null,"13.74"]
["13.78","QH",null,null,null,"13.75"]
["13.79","QI",null,null,null,"13.76"]
["13.80","QJ",null,null,null,"13.77"]
["13.81","QK",null,null,null,"13.78"]
["13.82","QL",null,null,null,"13.79"]
["13.83","QM",null,null,null,"13.80"]
["13.84","QN",null,null,null,"13.81"]
["13.85","QO",null,null,null,"13.82"]
["13.86","QP",null,null,null,"13.83"]
["13.87","QQ",null,null,null,"13.84"]
["13.88","QR",null,null,null,"13.85"]
["13.89","QS",null,null,null,"13.86"]
["13.90","QT",null,null,null,"13.87"]
["13.91","QU",null,null,null,"13.88"]
["13.92","QV",null,null,null,"13.89"]
["13.93","QW",null,null,null,"13.90"]
["13.94","QX",null,null,null,"13.91"]
["13.95","QY",null,null,null,"13.92"]
["13.96","QZ",null,null,null,"13.93"]
["13.97","RA",null,null,null,"13.94"]
["13.98","RB",null,null,null,"13.95"]
["13.99","RC",null,null,null,"13.96"]
["14.00","RD",null,null,null,"13.97"]
["14.01","RE",null,null,null,"13.98"]
["14.02","RF",null,null,null,"13.99"]
["14.03","RG",null,null,null,"14.00"]
["14.04","RH",null,null,null,"14.01"]
["14.05","RI",null,null,null,"14.02"]
["14.06","RJ",null,null,null,"14.03"]
["14.07","RK",null,null,null,"14.04"]
["14.08","RL",null,null,null,"14.05"]
["14.09","RM",null,null,null,"14.06"]
["14.10","RN",null,null,null,"14.07"]
["14.11","RO",null,null,null,"14.08"]
["14.12","RP",null,null,null,"14.09"]
["14.13","RQ",null,null,null,"14.10"]
["14.14","RR",null,null,null,"14.11"]
["14.15","RS",null,null,null,"14.12"]
["14.16","RT",null,null,null,"14.13"]
["14.17","RU",null,null,null,"14.14"]
["14.18","RV",null,null,null,"14.15"]
["14.19","RW",null,null,null,"14.16"]
["14.20","RX",null,null,null,"14.17"]
["14.21","RY",null,null,null,"14.18"]
["14.22","RZ",null,null,null,"14.19"]
["14.23","SA",null,null,null,"14.20"]
["14.24","SB",null,null,null,"14.21"]
["14.25","SC",null,null,null,"14.22"]
["14.26","SD",null,null,null,"14.23"]
["14.27","SE",null,null,null,"14.24"]
["14.28","SF",null,null,null,"14.25"]
["14.29","SG",null,null,null,"14.26"]
["14.30","SH",null,null,null,"14.27"]
["14.31","SI",null,null,null,"14.28"]
["14.32","SJ",null,null,null,"14.29"]
["14.33","SK",null,null,null,"14.30"]
["14.34","SL",null,null,null,"14.31"]
["14.35","SM",null,null,null,"14.32"]
["14.36","SN",null,null,null,"14.33"]
["14.37","SO",null,null,null,"14.34"]
["14.38","SP",null,null,null,"14.35"]
["14.39","SQ",null,null,null,"14.36"]
["14.40","SR",null,null,null,"14.37"]
["14.41","SS",null,null,null,"14.38"]
["14.42","ST",null,null,null,"14.39"]
["14.43","SU",null,null,null,"14.40"]
["14.44","SV",null,null,null,"14.41"]
["14.45","SW",null,null,null,"14.42"]
["14.46","SX",null,null,null,"14.43"]
["14.47","SY",null,null,null,"14.44"]
["14.48","SZ",null,null,null,"14.45"]
["14.49","TA",null,null,null,"14.46"]
["14.50","TB",null,null,null,"14.47"]
["14.51","TC",null,null,null,"14.48"]
["14.52","TD",null,null,null,"14.49"]
["14.53","TE",null,null,null,"14.50"]
["14.54","TF",null,null,null,"14.51"]
["14.55","TG",null,null,null,"14.52"]
["14.56","TH",null,null,null,"14.53"]
["14.57","TI",null,null,null,"14.54"]
["14.58","TJ",null,null,null,"14.55"]
["14.59","TK",null,null,null,"14.56"]
["14.60","TL",null,null,null,"14.57"]
["14.61","TM",null,null,null,"14.58"]
["14.62","TN",null,null,null,"14.59"]
["14.63","TO",null,null,null,"14.60"]
["14.64","TP",null,null,null,"14.61"]
["14.65","TQ",null,null,null,"14.62"]
["14.66","TR",null,null,null,"14.63"]
["14.67","TS",null,null,null,"14.64"]
["14.68","TT",null,null,null,"14.65"]
["14.69","TU",null,null,null,"14.66"]
["14.70","TV",null,null,null,"14.67"]
["14.71","TW",null,null,null,"14.68"]
["14.72","TX",null,null,null,"14.69"]
["14.73","TY",null,null,null,"14.70"]
["14.74","TZ",null,null,null,"14.71"]
["14.75","VA",null,null,null,"14.72"]
["14.76","VB",null,null,null,"14.73"]
["14.77","VC",null,null,null,"14.74"]
["14.78","VD",null,null,null,"14.75"]
["14.79","VE",null,null,null,"14.76"]
["14.80","VF",null,null,null,"14.77"]
["14.81","VG",null,null,null,"14.78"]
["14.82","VH",null,null,null,"14.79"]
["14.83","VI",null,null,null,"14.80"]
["14.84","VJ",null,null,null,"14.81"]
["14.85","VL",null,null,null,"14.82"]
["14.86","VM",null,null,null,"14.83"]
["14.87","VN",null,null,null,"14.84"]
["14.88","VO",null,null,null,"14.85"]
["14.89","VP",null,null,null,"14.86"]
["14.90","VQ",null,null,null,"14.87"]
["14.91","VR",null,null,null,"14.88"]
["14.92","VS",null,null,null,"14.89"]
["14.93","VT",null,null,null,"14.90"]
["14.94","VU",null,null,null,"14.91"]
["14.95","VV",null,null,null,"14.92"]
["14.96","VW",null,null,null,"14.93"]
["14.97","VX",null,null,null,"14.94"]
["14.98","VY",null,null,null,"14.95"]
["14.99","VZ",null,null,null,"14.96"]
["15.00","UA",null,null,null,"14.97"]
["15.01","UB",null,null,null,"14.98"]
["15.02","UC",null,null,null,"14.99"]
["15.03","UD",null,null,null,"15.00"]
["15.04","UE",null,null,null,"15.01"]
["15.05","UF",null,null,null,"15.02"]
["15.06","UG",null,null,null,"15.03"]
["15.07","UH",null,null,null,"15.04"]
["15.08","UI",null,null,null,"15.05"]
["15.09","UJ",null,null,null,"15.06"]
["15.10","UK",null,null,null,"15.07"]
["15.11","UL",null,null,null,"15.08"]
["15.12","UM",null,null,null,"15.09"]
["15.13","UN",null,null,null,"15.10"]
["15.14","UO",null,null,null,"15.11"]
["15.15","UP",null,null,null,"15.12"]
["15.16","UQ",null,null,null,"15.13"]
["15.17","UR",null,null,null,"15.14"]
["15.18","US",null,null,null,"15.15"]
["15.19","UT",null,null,null,"15.16"]
["15.20","UU",null,null,null,"15.17"]
["15.21","UV",null,null,null,"15.18"]
["15.22","UW",null,null,null,"15.19"]
["15.23","UX",null,null,null,"15.20"]
["15.24","UY",null,null,null,"15.21"]
["15.25","UZ",null,null,null,"15.22"]
["15.26","WA",null,null,null,"15.23"]
["15.27","WB",null,null,null,"15.24"]
["15.28","WC",null,null,null,"15.25"]
["15.29","WD",null,null,null,"15.26"]
["15.30","WE",null,null,null,"15.27"]
["15.31","WF",null,null,null,"15.28"]
["15.32","WG",null,null,null,"15.29"]
["15.33","WH",null,null,null,"15.30"]
["15.34","WI",null,null,null,"15.31"]
["15.35","WJ",null,null,null,"15.32"]
["15.36","WK",null,null,null,"15.33"]
["15.37","WL",null,null,null,"15.34"]
["15.38","WM",null,null,null,"15.35"]
["15.39","WN",null,null,null,"15.36"]
["15.40","WO",null,null,null,"15.37"]
["15.41","WP",null,null,null,"15.38"]
["15.42","WQ",null,null,null,"15.39"]
["15.43","WR",null,null,null,"15.40"]
["15.44","WS",null,null,null,"15.41"]
["15.45","WT",null,null,null,"15.42"]
["15.46","WU",null,null,null,"15.43"]
["15.47","WV",null,null,null,"15.44"]
["15.48","WW",null,null,null,"15.45"]
["15.49","WX",null,null,null,"15.46"]
["15.50","WY",null,null,null,"15.47"]
["15.51","WZ",null,null,null,"15.48"]
["15.52","XA",null,null,null,"15.49"]
["15.53","XB",null,null,null,"15.50"]
["15.54","XC",null,null,null,"15.51"]
["15.55","XD",null,null,null,"15.52"]
["15.56","XE",null,null,null,"15.53"]
["15.57","XF",null,null,null,"15.54"]
["15.58","XG",null,null,null,"15.55"]
["15.59","XH",null,null,null,"15.56"]
["15.60","XI",null,null,null,"15.57"]
["15.61","XJ",null,null,null,"15.58"]
["15.62","XK",null,null,null,"15.59"]
["15.63","XL",null,null,null,"15.60"]
["15.64","XM",null,null,null,"15.61"]
["15.65","XN",null,null,null,"15.62"]
["15.66","XO",null,null,null,"15.63"]
["15.67","XP",null,null,null,"15.64"]
["15.68","XQ",null,null,null,"15.65"]
["15.69","XR",null,null,null,"15.66"]
["15.70","XS",null,null,null,"15.67"]
["15.71","XT",null,null,null,"15.68"]
["15.72","XU",null,null,null,"15.69"]
["15.73","XV",null,null,null,"15.70"]
["15.74","XW",null,null,null,"15.71"]
["15.75","XX",null,null,null,"15.72"]
["15.76","XY",null,null,null,"15.73"]
["15.77","XZ",null,null,null,"15.74"]
["15.78","YA",null,null,null,"15.75"]
["15.79","YB",null,null,null,"15.76"]
["15.80","YC",null,null,null,"15.77"]
["15.81","YD",null,null,null,"15.78"]
["15.82","YE",null,null,null,"15.79"]
["15.83","YF",null,null,null,"15.80"]
["15.84","YG",null,null,null,"15.81"]
["15.85","YH",null,null,null,"15.82"]
["15.86","YI",null,null,null,"15.83"]
["15.87","YJ",null,null,null,"15.84"]
["15.88","YK",null,null,null,"15.85"]
["15.89","YL",null,null,null,"15.86"]
["15.90","YM",null,null,null,"15.87"]
["15.91","YN",null,null,null,"15.88"]
["15.92","YO",null,null,null,"15.89"]
["15.93","YP",null,null,null,"15.90"]
["15.94","YQ",null,null,null,"15.91"]
["15.95","YR",null,null,null,"15.92"]
["15.96","YS",null,null,null,"15.93"]
["15.97","YT",null,null,null,"15.94"]
["15.98","YU",null,null,null,"15.95"]
["15.99","YV",null,null,null,"15.96"]
["16.00","YW",null,null,null,"15.97"]
["16.01","YX",null,null,null,"15.98"]
["16.02","YY",null,null,null,"15.99"]
["16.03","YZ",null,null,null,"16.00"]
["16.04","ZA",null,null,null,"16.01"]
["16.05","ZB",null,null,null,"16.02"]
["16.06","ZC",null,null,null,"16.03"]
["16.07","ZD",null,null,null,"16.04"]
["16.08","ZE",null,null,null,"16.05"]
["16.09","ZF",null,null,null,"16.06"]
["16.10","ZG",null,null,null,"16.07"]
["16.11","ZH",null,null,null,"16.08"]
["16.12","ZI",null,null,null,"16.09"]
["16.13","ZJ",null,null,null,"16.10"]
["16.14","ZK",null,null,null,"16.11"]
["16.15","ZL",null,null,null,"16.12"]
["16.16","ZM",null,null,null,"16.13"]
["16.17","ZN",null,null,null,"16.14"]
["16.18","ZO",null,null,null,"16.15"]
["16.19","ZP",null,null,null,"16.16"]
["16.20","ZQ",null,null,null,"16.17"]
["16.21","ZR",null,null,null,"16.18"]
["16.22","ZS",null,null,null,"16.19"]
["16.23","ZT",null,null,null,"16.20"]
["16.24","ZU",null,null,null,"16.21"]
["16.25","ZV",null,null,null,"16.22"]
["16.26","ZW",null,null,null,"16.23"]
["16.27","ZX",null,null,null,"16.24"]
["16.28","ZY",null,null,null,"16.25"]
["16.29","ZZ",null,null,null,"16.26"]
["16.30",".A",null,null,null,"16.27"]
["16.31",".B",null,null,null,"16.28"]
["16.32",".C",null,null,null,"16.29"]
["16.33",".D",null,null,null,"16.30"]
["16.34",".E",null,null,null,"16.31"]
["16.35",".F",null,null,null,"16.32"]
["16.36",".G",null,null,null,"16.33"]
["16.37",".H",null,null,null,"16.34"]
["16.38",".I",null,null,null,"16.35"]
["16.39",".J",null,null,null,"16.36"]
["16.40",".L",null,null,null,"16.37"]
["16.41",".M",null,null,null,"16.38"]
["16.42",".N",null,null,null,"16.39"]
["16.43",".O",null,null,null,"16.40"]
["16.44",".P",null,null,null,"16.41"]
["16.45",".Q",null,null,null,"16.42"]
["16.46",".R",null,null,null,"16.43"]
["16.47",".S",null,null,null,"16.44"]
["16.48",".T",null,null,null,"16.45"]
["16.49",".U",null,null,null,"16.46"]
["16.50",".V",null,null,null,"16.47"]
["16.51",".W",null,null,null,"16.48"]
["16.52",".X",null,null,null,"16.49"]
["16.53",".Y",null,null,null,"16.50"]
["16.54",".Z",null,null,null,"16.51"]
["16.55","*A",null,null,null,"16.52"]
["16.56","*B",null,null,null,"16.53"]
["16.57","*C",null,null,null,"16.54"]
["16.58","*D",null,null,null,"16.55"]
["16.59","*E",null,null,null,"16.56"]
["16.60","*F",null,null,null,"16.57"]
["16.61","*G",null,null,null,"16.58"]
["16.62","*H",null,null,null,"16.59"]
["16.63","*I",null,null,null,"16.60"]
["16.64","*J",null,null,null,"16.61"]
["16.65","*L",null,null,null,"16.62"]
["16.66","*M",null,null,null,"16.63"]
["16.67","*N",null,null,null,"16.64"]
["16.68","*O",null,null,null,"16.65"]
["16.69","*P",null,null,null,"16.66"]
["16.70","*Q",null,null,null,"16.67"]
["16.71","*R",null,null,null,"16.68"]
["16.72","*S",null,null,null,"16.69"]
["16.73","*T",null,null,null,"16.70"]
["16.74","*U",null,null,null,"16.71"]
["16.75","*V",null,null,null,"16.72"]
["16.76","*W",null,null,null,"16.73"]
["16.77","*X",null,null,null,"16.74"]
["16.78","*Y",null,null,null,"16.75"]
["16.79","*Z",null,null,null,"16.76"]
["16.80","-A",null,null,null,"16.77"]
["16.81","-B",null,null,null,"16.78"]
["16.82","-C",null,null,null,"16.79"]
["16.83","-D",null,null,null,"16.80"]
["16.84","-E",null,null,null,"16.81"]
["16.85","-F",null,null,null,"16.82"]
["16.86","-G",null,null,null,"16.83"]
["16.87","-H",null,null,null,"16.84"]
["16.88","-I",null,null,null,"16.85"]
["16.89","-J",null,null,null,"16.86"]
["16.90","-K",null,null,null,"16.87"]
["16.91","-L",null,null,null,"16.88"]
["16.92","-M",null,null,null,"16.89"]
["16.93","-N",null,null,null,"16.90"]
["16.94","-O",null,null,null,"16.91"]
["16.95","-P",null,null,null,"16.92"]
["16.96","-Q",null,null,null,"16.93"]
["16.97","-R",null,null,null,"16.94"]
["16.98","-S",null,null,null,"16.95"]
["16.99","-T",null,null,null,"16.96"]
["17.00","-U",null,null,null,"16.97"]
["17.01","-V",null,null,null,"16.98"]
["17.02","-W",null,null,null,"16.99"]
["17.03","-X",null,null,null,"17.00"]
["17.04","-Y",null,null,null,"17.01"]
["17.05","-Z",null,null,null,"17.02"]
["17.06","+A",null,null,null,"17.03"]
["17.07","+B",null,null,null,"17.04"]
["17.08","+C",null,null,null,"17.05"]
["17.09","+D",null,null,null,"17.06"]
["17.10","+E",null,null,null,"17.07"]
["17.11","+F",null,null,null,"17.08"]
["17.12","+G",null,null,null,"17.09"]
["17.13","+H",null,null,null,"17.10"]
["17.14","+I",null,null,null,"17.11"]
["17.15","+J",null,null,null,"17.12"]
["17.16","+K",null,null,null,"17.13"]
["17.17","+L",null,null,null,"17.14"]
["17.18","+M",null,null,null,"17.15"]
["17.19","+N",null,null,null,"17.16"]
["17.20","+O",null,null,null,"17.17"]
["17.21","+P",null,null,null,"17.18"]
["17.22","+Q",null,null,null,"17.19"]
["17.23","+R",null,null,null,"17.20"]
["17.24","+S",null,null,null,"17.21"]
["17.25","+T",null,null,null,"17.22"]
["17.26","+U",null,null,null,"17.23"]
["17.27","+V",null,null,null,"17.24"]
["17.28","+W",null,null,null,"17.25"]
["17.29","+X",null,null,null,"17.26"]
["17.30","+Y",null,null,null,"17.27"]
["17.31","+Z",null,null,null,"17.28"]
["17.32","/A",null,null,null,"17.29"]
["17.33","/B",null,null,null,"17.30"]
["17.34","/C",null,null,null,"17.31"]
["17.35","/D",null,null,null,"17.32"]
["17.36","/E",null,null,null,"17.33"]
["17.37","/F",null,null,null,"17.34"]
["17.38","/G",null,null,null,"17.35"]
["17.39","/H",null,null,null,"17.36"]
["17.40","/I",null,null,null,"17.37"]
["17.41","/J",null,null,null,"17.38"]
["17.42","/K",null,null,null,"17.39"]
["17.43","/L",null,null,null,"17.40"]
["17.44","/M",null,null,null,"17.41"]
["17.45","/N",null,null,null,"17.42"]
["17.46","/O",null,null,null,"17.43"]
["17.47","/P",null,null,null,"17.44"]
["17.48","/Q",null,null,null,"17.45"]
["17.49","/R",null,null,null,"17.46"]
["17.50","/S",null,null,null,"17.47"]
["17.51","/T",null,null,null,"17.48"]
["17.52","/U",null,null,null,"17.49"]
["17.53","/V",null,null,null,"17.50"]
["17.54","/W",null,null,null,"17.51"]
["17.55","/X",null,null,null,"17.52"]
["17.56","/Y",null,null,null,"17.53"]
["17.57","/Z",null,null,null,"17.54"]
["17.58","$A",null,null,null,"17.55"]
["17.59","$B",null,null,null,"17.56"]
["17.60","$C",null,null,null,"17.57"]
["17.61","$D",null,null,null,"17.58"]
["17.62","$E",null,null,null,"17.59"]
["17.63","$F",null,null,null,"17.60"]
["17.64","$G",null,null,null,"17.61"]
["17.65","$H",null,null,null,"17.62"]
["17.66","$I",null,null,null,"17.63"]
["17.67","$J",null,null,null,"17.64"]
["17.68","$K",null,null,null,"17.65"]
["17.69","$L",null,null,null,"17.66"]
["17.70","$M",null,null,null,"17.67"]
["17.71","$N",null,null,null,"17.68"]
["17.72","$O",null,null,null,"17.69"]
["17.73","$P",null,null,null,"17.70"]
["17.74","$Q",null,null,null,"17.71"]
["17.75","$R",null,null,null,"17.72"]
["17.76","$S",null,null,null,"17.73"]
["17.77","$T",null,null,null,"17.74"]
["17.78","$U",null,null,null,"17.75"]
["17.79","$V",null,null,null,"17.76"]
["17.80","$W",null,null,null,"17.77"]
["17.81","$X",null,null,null,"17.78"]
["17.82","$Y",null,null,null,"17.79"]
["17.83","$Z",null,null,null,"17.80"]
["17.84","A!",null,null,null,"17.81"]
["17.85","B!",null,null,null,"17.82"]
["17.86","C!",null,null,null,"17.83"]
["17.87","D!",null,null,null,"17.84"]
["17.88","E!",null,null,null,"17.85"]
["17.89","F!",null,null,null,"17.86"]
["17.90","G!",null,null,null,"17.87"]
["17.91","H!",null,null,null,"17.88"]
["17.92","I!",null,null,null,"17.89"]
["17.93","J!",null,null,null,"17.90"]
["17.94","K!",null,null,null,"17.91"]
["17.95","L!",null,null,null,"17.92"]
["17.96","M!",null,null,null,"17.93"]
["17.97","N!",null,null,null,"17.94"]
["17.98","O!",null,null,null,"17.95"]
["17.99","P!",null,null,null,"17.96"]
["18.00","(J",null,null,null,"17.97"]
["18.01","(K",null,null,null,"17.98"]
["18.02","(L",null,null,null,"17.99"]
["18.03","(M",null,null,null,"18.00"]
["18.04","(N",null,null,null,"18.01"]
["18.05","(O",null,null,null,"18.02"]
["18.06","(P",null,null,null,"18.03"]
["18.07","(Q",null,null,null,"18.04"]
["18.08","(R",null,null,null,"18.05"]
["18.09","(S",null,null,null,"18.06"]
["18.10","(T",null,null,null,"18.07"]
["18.11","(U",null,null,null,"18.08"]
["18.12","(V",null,null,null,"18.09"]
["18.13","(W",null,null,null,"18.10"]
["18.14","(X",null,null,null,"18.11"]
["18.15","(Y",null,null,null,"18.12"]
["18.16","(Z",null,null,null,"18.13"]
["18.17","A%",null,null,null,"18.14"]
["18.18","B%",null,null,null,"18.15"]
["18.19","C%",null,null,null,"18.16"]
["18.20","D%",null,null,null,"18.17"]
["18.21","E%",null,null,null,"18.18"]
["18.22","F%",null,null,null,"18.19"]
["18.23","G%",null,null,null,"18.20"]
["18.24","H%",null,null,null,"18.21"]
["18.25","I%",null,null,null,"18.22"]
["18.26","J%",null,null,null,"18.23"]
["18.27","K%",null,null,null,"18.24"]
["18.28","L%",null,null,null,"18.25"]
["18.29","M%",null,null,null,"18.26"]
["18.30","N%",null,null,null,"18.27"]
["18.31","O%",null,null,null,"18.28"]
["18.32","P%",null,null,null,"18.29"]
["18.33","Q%",null,null,null,"18.30"]
["18.34","R%",null,null,null,"18.31"]
["18.35","S%",null,null,null,"18.32"]
["18.36","T%",null,null,null,"18.33"]
["18.37","U%",null,null,null,"18.34"]
["18.38","V%",null,null,null,"18.35"]
["18.39","W%",null,null,null,"18.36"]
["18.40","X%",null,null,null,"18.37"]
["18.41","Y%",null,null,null,"18.38"]
["18.42","Z%",null,null,null,"18.39"]
["18.43","A@",null,null,null,"18.40"]
["18.44","B@",null,null,null,"18.41"]
["18.45","C@",null,null,null,"18.42"]
["18.46","M@",null,null,null,"18.43"]
["18.47","E@",null,null,null,"18.44"]
["18.48","F@",null,null,null,"18.45"]
["18.49","G@",null,null,null,"18.46"]
["18.50","H@",null,null,null,"18.47"]
["18.51","I@",null,null,null,"18.48"]
["18.52","J@",null,null,null,"18.49"]
["18.53","K@",null,null,null,"18.50"]
["18.54","L@",null,null,null,"18.51"]
["18.55","N@",null,null,null,"18.52"]
["18.56","O@",null,null,null,"18.53"]
["18.57","P@",null,null,null,"18.54"]
["18.58","Q@",null,null,null,"18.55"]
["18.59","R@",null,null,null,"18.56"]
["18.60","S@",null,null,null,"18.57"]
["18.61","T@",null,null,null,"18.58"]
["18.62","U@",null,null,null,"18.59"]
["18.63","V@",null,null,null,"18.60"]
["18.64","W@",null,null,null,"18.61"]
["18.65","X@",null,null,null,"18.62"]
["18.66","Y@",null,null,null,"18.63"]
["18.67","Z@",null,null,null,"18.64"]
["18.68","A#",null,null,null,"18.65"]
["18.69","B#",null,null,null,"18.66"]
["18.70","C#",null,null,null,"18.67"]
["18.71","D#",null,null,null,"18.68"]
["18.72","E#",null,null,null,"18.69"]
["18.73","F#",null,null,null,"18.70"]
["18.74","G#",null,null,null,"18.71"]
["18.75","H#",null,null,null,"18.72"]
["18.76","I#",null,null,null,"18.73"]
["18.77","J#",null,null,null,"18.74"]
["18.78","K#",null,null,null,"18.75"]
["18.79","L#",null,null,null,"18.76"]
["18.80","M#",null,null,null,"18.77"]
["18.81","N#",null,null,null,"18.78"]
["18.82","O#",null,null,null,"18.79"]
["18.83","P#",null,null,null,"18.80"]
["18.84","Q#",null,null,null,"18.81"]
["18.85","R#",null,null,null,"18.82"]
["18.86","S#",null,null,null,"18.83"]
["18.87","T#",null,null,null,"18.84"]
["18.88","U#",null,null,null,"18.85"]
["18.89","V#",null,null,null,"18.86"]
["18.90","W#",null,null,null,"18.87"]
["18.91","X#",null,null,null,"18.88"]
["18.92","Y#",null,null,null,"18.89"]
["18.93","A$",null,null,null,"18.90"]
["18.94","B$",null,null,null,"18.91"]
["18.95","C$",null,null,null,"18.92"]
["18.96","D$",null,null,null,"18.93"]
["18.97","E$",null,null,null,"18.94"]
["18.98","F$",null,null,null,"18.95"]
["18.99","G$",null,null,null,"18.96"]
["19.00","Y=",null,null,null,"18.97"]
["19.01","Z=",null,null,null,"18.98"]
["19.02","A_",null,null,null,"18.99"]
["19.03","B_",null,null,null,"19.00"]
["19.04","C_",null,null,null,"19.01"]
["19.05","D_",null,null,null,"19.02"]
["19.06","E_",null,null,null,"19.03"]
["19.07","F_",null,null,null,"19.04"]
["19.08","G_",null,null,null,"19.05"]
["19.09","H_",null,null,null,"19.06"]
["19.10","I_",null,null,null,"19.07"]
["19.11","J_",null,null,null,"19.08"]
["19.12","K_",null,null,null,"19.09"]
["19.13","L_",null,null,null,"19.10"]
["19.14","M_",null,null,null,"19.11"]
["19.15","N_",null,null,null,"19.12"]
["19.16","O_",null,null,null,"19.13"]
["19.17","P_",null,null,null,"19.14"]
["19.18","Q_",null,null,null,"19.15"]
["19.19","R_",null,null,null,"19.16"]
["19.20","S_",null,null,null,"19.17"]
["19.21","T_",null,null,null,"19.18"]
["19.22","U_",null,null,null,"19.19"]
["19.23","V_",null,null,null,"19.20"]
["19.24","W_",null,null,null,"19.21"]
["19.25","X_",null,null,null,"19.22"]
["19.26","Y_",null,null,null,"19.23"]
["19.27","Z_",null,null,null,"19.24"]
["19.28","A+",null,null,null,"19.25"]
["19.29","B+",null,null,null,"19.26"]
["19.30","C+",null,null,null,"19.27"]
["19.31","D+",null,null,null,"19.28"]
["19.32","E+",null,null,null,"19.29"]
["19.33","F+",null,null,null,"19.30"]
["19.34","G+",null,null,null,"19.31"]
["19.35","H+",null,null,null,"19.32"]
["19.36","I+",null,null,null,"19.33"]
["19.37","J+",null,null,null,"19.34"]
["19.38","K+",null,null,null,"19.35"]
["19.39","L+",null,null,null,"19.36"]
["19.40","M+",null,null,null,"19.37"]
["19.41","N+",null,null,null,"19.38"]
["19.42","O+",null,null,null,"19.39"]
["19.43","P+",null,null,null,"19.40"]
["19.44","Q+",null,null,null,"19.41"]
["19.45","R+",null,null,null,"19.42"]
["19.46","S+",null,null,null,"19.43"]
["19.47","T+",null,null,null,"19.44"]
["19.48","U+",null,null,null,"19.45"]
["19.49","V+",null,null,null,"19.46"]
["19.50","W+",null,null,null,"19.47"]
["19.51","X+",null,null,null,"19.48"]
["19.52","Y+",null,null,null,"19.49"]
["19.53","Z+",null,null,null,"19.50"]
["19.54","A,",null,null,null,"19.51"]
["19.55","B,",null,null,null,"19.52"]
["19.56","C,",null,null,null,"19.53"]
["19.57","D,",null,null,null,"19.54"]
["19.58","E,",null,null,null,"19.55"]
["19.59","F,",null,null,null,"19.56"]
["19.60","G,",null,null,null,"19.57"]
["19.61","H,",null,null,null,"19.58"]
["19.62","I,",null,null,null,"19.59"]
["19.63","J,",null,null,null,"19.60"]
["19.64","K,",null,null,null,"19.61"]
["19.65","L,",null,null,null,"19.62"]
["19.66","M,",null,null,null,"19.63"]
["19.67","N,",null,null,null,"19.64"]
["19.68","O,",null,null,null,"19.65"]
["19.69","P,",null,null,null,"19.66"]
["19.70","Q,",null,null,null,"19.67"]
["19.71","R,",null,null,null,"19.68"]
["19.72","S,",null,null,null,"19.69"]
["19.73","T,",null,null,null,"19.70"]
["19.74","U,",null,null,null,"19.71"]
["19.75","V,",null,null,null,"19.72"]
["19.76","W,",null,null,null,"19.73"]
["19.77","X,",null,null,null,"19.74"]
["19.78","Y,",null,null,null,"19.75"]
["19.79","Z,",null,null,null,"19.76"]
["19.80","A.",null,null,null,"19.77"]
["19.81","B.",null,null,null,"19.78"]
["19.82","C.",null,null,null,"19.79"]
["19.83","D.",null,null,null,"19.80"]
["19.84","E.",null,null,null,"19.81"]
["19.85","F.",null,null,null,"19.82"]
["19.86","G.",null,null,null,"19.83"]
["19.87","H.",null,null,null,"19.84"]
["19.88","I.",null,null,null,"19.85"]
["19.89","J.",null,null,null,"19.86"]
["19.90","K.",null,null,null,"19.87"]
["19.91","L.",null,null,null,"19.88"]
["19.92","M.",null,null,null,"19.89"]
["19.93","N.",null,null,null,"19.90"]
["19.94","O.",null,null,null,"19.91"]
["19.95","P.",null,null,null,"19.92"]
["19.96","Q.",null,null,null,"19.93"]
["19.97","R.",null,null,null,"19.94"]
["19.98","S.",null,null,null,"19.95"]
["19.99","T.",null,null,null,"19.96"]
["20.00","A|",null,null,null,"19.97"]
["20.01","B|",null,null,null,"19.98"]
["20.02","C|",null,null,null,"19.99"]
["20.03","D|",null,null,null,"20.00"]
["20.04","E|",null,null,null,"20.01"]
["20.05","F|",null,null,null,"20.02"]
["20.06","G|",null,null,null,"20.03"]
["20.07","H|",null,null,null,"20.04"]
["20.08","I|",null,null,null,"20.05"]
["20.09","J|",null,null,null,"20.06"]
["20.10","K|",null,null,null,"20.07"]
["20.11","L|",null,null,null,"20.08"]
["20.12","M|",null,null,null,"20.09"]
["20.13","N|",null,null,null,"20.10"]
["20.14","O|",null,null,null,"20.11"]
["20.15","P|",null,null,null,"20.12"]
["20.16","Q|",null,null,null,"20.13"]
["20.17","R|",null,null,null,"20.14"]
["20.18","S|",null,null,null,"20.15"]
["20.19","T|",null,null,null,"20.16"]
["20.20","U|",null,null,null,"20.17"]
["20.21","V|",null,null,null,"20.18"]
["20.22","W|",null,null,null,"20.19"]
["20.23","X|",null,null,null,"20.20"]
["20.24","Y|",null,null,null,"20.21"]
["20.25","Z|",null,null,null,"20.22"]
["20.26","|1",null,null,null,"20.23"]
["20.27","|2",null,null,null,"20.24"]
["20.28","|3",null,null,null,"20.25"]
["20.29","|4",null,null,null,"20.26"]
["20.30","|5",null,null,null,"20.27"]
["20.31","|6",null,null,null,"20.28"]
["20.32","|7",null,null,null,"20.29"]
["20.33","|8",null,null,null,"20.30"]
["20.34","|9",null,null,null,"20.31"]
["20.35","|0",null,null,null,"20.32"]
["20.36","1|",null,null,null,"20.33"]
["20.37","2|",null,null,null,"20.34"]
["20.38","3|",null,null,null,"20.35"]
["20.39","4|",null,null,null,"20.36"]
["20.40","5|",null,null,null,"20.37"]
["20.41","6|",null,null,null,"20.38"]
["20.42","7|",null,null,null,"20.39"]
["20.43","8|",null,null,null,"20.40"]
["20.44","9|",null,null,null,"20.41"]
["20.45","0|",null,null,null,"20.42"]
["20.46",24,null,null,null,"20.43"]
["20.47",25,null,null,null,"20.44"]
["20.48",26,null,null,null,"20.45"]
["20.49",27,null,null,null,"20.46"]
["20.50",28,null,null,null,"20.47"]
["20.51",29,null,null,null,"20.48"]
["20.52",14,null,null,null,"20.49"]
["20.53",30,null,null,null,"20.50"]
["20.54",31,null,null,null,"20.51"]
["20.55",32,null,null,null,"20.52"]
["20.56",33,null,null,null,"20.53"]
["20.57",34,null,null,null,"20.54"]
["20.58",35,null,null,null,"20.55"]
["20.59",36,null,null,null,"20.56"]
["20.60",37,null,null,null,"20.57"]
["20.61",38,null,null,null,"20.58"]
["20.62",39,null,null,null,"20.59"]
["20.63",40,null,null,null,"20.60"]
["20.64",41,null,null,null,"20.61"]
["20.65",42,null,null,null,"20.62"]
["20.66",43,null,null,null,"20.63"]
["20.67",44,null,null,null,"20.64"]
["20.68",45,null,null,null,"20.65"]
["20.69",13,null,null,null,"20.66"]
["20.70",46,null,null,null,"20.67"]
["20.71",47,null,null,null,"20.68"]
["20.72",16,null,null,null,"20.69"]
["20.73",17,null,null,null,"20.70"]
["20.74",18,null,null,null,"20.71"]
["20.75",19,null,null,null,"20.72"]
["20.76",12,null,null,null,"20.73"]
["20.77",20,null,null,null,"20.74"]
["20.78",21,null,null,null,"20.75"]
["20.79",22,null,null,null,"20.76"]
["20.80",23,null,null,null,"20.77"]
["20.81",15,null,null,null,"20.78"]
["20.82",11,null,null,null,"20.79"]
["20.83",49,null,null,null,"20.80"]
["20.84",51,null,null,null,"20.81"]
["20.85",52,null,null,null,"20.82"]
["20.86",53,null,null,null,"20.83"]
["20.87",54,null,null,null,"20.84"]
["20.88",55,null,null,null,"20.85"]
["20.89",56,null,null,null,"20.86"]
["20.90",57,null,null,null,"20.87"]
["20.91",48,null,null,null,"20.88"]
["20.92","#0",null,null,null,"20.89"]
["20.93","0#",null,null,null,"20.90"]
["20.94","/7",null,null,null,"20.91"]
["20.95","/8",null,null,null,"20.92"]
["20.96","/9",null,null,null,"20.93"]
["20.97","/0",null,null,null,"20.94"]
["20.98","$0",null,null,null,"20.95"]
["20.99","0!",null,null,null,"20.96"]
["21.00","KΠ",null,null,null,"20.97"]
["21.01","LΠ",null,null,null,"20.98"]
["21.02","MΠ",null,null,null,"20.99"]
["21.03","NΠ",null,null,null,"21.00"]
["21.04","OΠ",null,null,null,"21.01"]
["21.05","PΠ",null,null,null,"21.02"]
["21.06","QΠ",null,null,null,"21.03"]
["21.07","RΠ",null,null,null,"21.04"]
["21.08","SΠ",null,null,null,"21.05"]
["21.09","TΠ",null,null,null,"21.06"]
["21.10","UΠ",null,null,null,"21.07"]
["21.11","VΠ",null,null,null,"21.08"]
["21.12","WΠ",null,null,null,"21.09"]
["21.13","~A",null,null,null,"21.10"]
["21.14","~B",null,null,null,"21.11"]
["21.15","~C",null,null,null,"21.12"]
["21.16","~D",null,null,null,"21.13"]
["21.17","~E",null,null,null,"21.14"]
["21.18","~F",null,null,null,"21.15"]
["21.19","~G",null,null,null,"21.16"]
["21.20","~H",null,null,null,"21.17"]
["21.21","~I",null,null,null,"21.18"]
["21.22","~J",null,null,null,"21.19"]
["21.23","~K",null,null,null,"21.20"]
["21.24","~L",null,null,null,"21.21"]
["21.25","~M",null,null,null,"21.22"]
["21.26","~N",null,null,null,"21.23"]
["21.27","~O",null,null,null,"21.24"]
["21.28","~P",null,null,null,"21.25"]
["21.29","~Q",null,null,null,"21.26"]
["21.30","~R",null,null,null,"21.27"]
["21.31","~S",null,null,null,"21.28"]
["21.32","~T",null,null,null,"21.29"]
["21.33","~U",null,null,null,"21.30"]
["21.34","~V",null,null,null,"21.31"]
["21.35","~W",null,null,null,"21.32"]
["21.36","~X",null,null,null,"21.33"]
["21.37","~Y",null,null,null,"21.34"]
["21.38","~Z",null,null,null,"21.35"]
["21.39","_A",null,null,null,"21.36"]
["21.40","_B",null,null,null,"21.37"]
["21.41","_C",null,null,null,"21.38"]
["21.42","_D",null,null,null,"21.39"]
["21.43","_E",null,null,null,"21.40"]
["21.44","_F",null,null,null,"21.41"]
["21.45","_G",null,null,null,"21.42"]
["21.46","_H",null,null,null,"21.43"]
["21.47","_I",null,null,null,"21.44"]
["21.48","_J",null,null,null,"21.45"]
["21.49","_K",null,null,null,"21.46"]
["21.50","_L",null,null,null,"21.47"]
["21.51","_M",null,null,null,"21.48"]
["21.52","_N",null,null,null,"21.49"]
["21.53","_O",null,null,null,"21.50"]
["21.54","_P",null,null,null,"21.51"]
["21.55","_Q",null,null,null,"21.52"]
["21.56","_R",null,null,null,"21.53"]
["21.57","_S",null,null,null,"21.54"]
["21.58","_T",null,null,null,"21.55"]
["21.59","_U",null,null,null,"21.56"]
["21.60","_V",null,null,null,"21.57"]
["21.61","_W",null,null,null,"21.58"]
["21.62","_X",null,null,null,"21.59"]
["21.63","_Y",null,null,null,"21.60"]
["21.64","_Z",null,null,null,"21.61"]
["21.65",")A",null,null,null,"21.62"]
["21.66",")B",null,null,null,"21.63"]
["21.67",")C",null,null,null,"21.64"]
["21.68",")D",null,null,null,"21.65"]
["21.69",")E",null,null,null,"21.66"]
["21.70",")F",null,null,null,"21.67"]
["21.71",")G",null,null,null,"21.68"]
["21.72",")H",null,null,null,"21.69"]
["21.73",")I",null,null,null,"21.70"]
["21.74",")J",null,null,null,"21.71"]
["21.75",")K",null,null,null,"21.72"]
["21.76",")L",null,null,null,"21.73"]
["21.77",")M",null,null,null,"21.74"]
["21.78",")N",null,null,null,"21.75"]
["21.79",")O",null,null,null,"21.76"]
["21.80",")P",null,null,null,"21.77"]
["21.81",")Q",null,null,null,"21.78"]
["21.82",")R",null,null,null,"21.79"]
["21.83",")S",null,null,null,"21.80"]
["21.84",")T",null,null,null,"21.81"]
["21.85",")U",null,null,null,"21.82"]
["21.86",")V",null,null,null,"21.83"]
["21.87",")W",null,null,null,"21.84"]
["21.88",")X",null,null,null,"21.85"]
["21.89",")Y",null,null,null,"21.86"]
["21.90",")Z",null,null,null,"21.87"]
["21.91","(A",null,null,null,"21.88"]
["21.92","(B",null,null,null,"21.89"]
["21.93","(C",null,null,null,"21.90"]
["21.94","(D",null,null,null,"21.91"]
["21.95","(E",null,null,null,"21.92"]
["21.96","(F",null,null,null,"21.93"]
["21.97","(G",null,null,null,"21.94"]
["21.98","(H",null,null,null,"21.95"]
["21.99","(I",null,null,null,"21.96"]
["22.00%","H$",null,null,null,"21.97"]
["22.01%","I$",null,null,null,"21.98"]
["22.02%","J$",null,null,null,"21.99"]
["22.03%","K$",null,null,null,"22.00%"]
["22.04%","L$",null,null,null,"22.01%"]
["22.05%","M$",null,null,null,"22.02%"]
["22.06%","N$",null,null,null,"22.03%"]
["22.07%","O$",null,null,null,"22.04%"]
["22.08%","P$",null,null,null,"22.05%"]
["22.09%","Q$",null,null,null,"22.06%"]
["22.10%","R$",null,null,null,"22.07%"]
["22.11%","S$",null,null,null,"22.08%"]
["22.12%","T$",null,null,null,"22.09%"]
["22.13%","U$",null,null,null,"22.10%"]
["22.14%","V$",null,null,null,"22.11%"]
["22.15%","W$",null,null,null,"22.12%"]
["22.16%","X$",null,null,null,"22.13%"]
["22.17%","Y$",null,null,null,"22.14%"]
["22.18%","Z$",null,null,null,"22.15%"]
["22.19%","A^",null,null,null,"22.16%"]
["22.20%","B^",null,null,null,"22.17%"]
["22.21%","C^",null,null,null,"22.18%"]
["22.22%","D^",null,null,null,"22.19%"]
["22.23%","E^",null,null,null,"22.20%"]
["22.24%","F^",null,null,null,"22.21%"]
["22.25%","G^",null,null,null,"22.22%"]
["22.26%","H^",null,null,null,"22.23%"]
["22.27%","I^",null,null,null,"22.24%"]
["22.28%","J^",null,null,null,"22.25%"]
["22.29%","K^",null,null,null,"22.26%"]
["22.30%","L^",null,null,null,"22.27%"]
["22.31%","M^",null,null,null,"22.28%"]
["22.32%","N^",null,null,null,"22.29%"]
["22.33%","O^",null,null,null,"22.30%"]
["22.34%","P^",null,null,null,"22.31%"]
["22.35%","Q^",null,null,null,"22.32%"]
["22.36%","R^",null,null,null,"22.33%"]
["22.37%","S^",null,null,null,"22.34%"]
["22.38%","T^",null,null,null,"22.35%"]
["22.39%","U^",null,null,null,"22.36%"]
["22.40%","V^",null,null,null,"22.37%"]
["22.41%","W^",null,null,null,"22.38%"]
["22.42%","X^",null,null,null,"22.39%"]
["22.43%","Y^",null,null,null,"22.40%"]
["22.44%","Z^",null,null,null,"22.41%"]
["22.45%","A&",null,null,null,"22.42%"]
["22.46%","B&",null,null,null,"22.43%"]
["22.47%","C&",null,null,null,"22.44%"]
["22.48%","D&",null,null,null,"22.45%"]
["22.49%","E&",null,null,null,"22.46%"]
["22.50%","F&",null,null,null,"22.47%"]
["22.51%","G&",null,null,null,"22.48%"]
["22.52%","H&",null,null,null,"22.49%"]
["22.53%","I&",null,null,null,"22.50%"]
["22.54%","J&",null,null,null,"22.51%"]
["22.55%","K&",null,null,null,"22.52%"]
["22.56%","L&",null,null,null,"22.53%"]
["22.57%","M&",null,null,null,"22.54%"]
["22.58%","N&",null,null,null,"22.55%"]
["22.59%","O&",null,null,null,"22.56%"]
["22.60%","P&",null,null,null,"22.57%"]
["22.61%","R&",null,null,null,"22.58%"]
["22.62%","S&",null,null,null,"22.59%"]
["22.63%","T&",null,null,null,"22.60%"]
["22.64%","U&",null,null,null,"22.61%"]
["22.65%","W&",null,null,null,"22.62%"]
["22.66%","X&",null,null,null,"22.63%"]
["22.67%","Y&",null,null,null,"22.64%"]
["22.68%","Z&",null,null,null,"22.65%"]
["22.69%","V&",null,null,null,"22.66%"]
["22.70%","Q&",null,null,null,"22.67%"]
["22.71%","A*",null,null,null,"22.68%"]
["22.72%","B*",null,null,null,"22.69%"]
["22.73%","C*",null,null,null,"22.70%"]
["22.74%","D*",null,null,null,"22.71%"]
["22.75%","E*",null,null,null,"22.72%"]
["22.76%","F*",null,null,null,"22.73%"]
["22.77%","G*",null,null,null,"22.74%"]
["22.78%","H*",null,null,null,"22.75%"]
["22.79%","I*",null,null,null,"22.76%"]
["22.80%","J*",null,null,null,"22.77%"]
["22.81%","K*",null,null,null,"22.78%"]
["22.82%","L*",null,null,null,"22.79%"]
["22.83%","M*",null,null,null,"22.80%"]
["22.84%","N*",null,null,null,"22.81%"]
["22.85%","O*",null,null,null,"22.82%"]
["22.86%","P*",null,null,null,"22.83%"]
["22.87%","Q*",null,null,null,"22.84%"]
["22.88%","R*",null,null,null,"22.85%"]
["22.89%","S*",null,null,null,"22.86%"]
["22.90%","T*",null,null,null,"22.87%"]
["22.91%","U*",null,null,null,"22.88%"]
["22.92%","V*",null,null,null,"22.89%"]
["22.93%","W*",null,null,null,"22.90%"]
["22.94%","X*",null,null,null,"22.91%"]
["22.95%","Y*",null,null,null,"22.92%"]
["22.96%","Z*",null,null,null,"22.93%"]
["22.97%","A(",null,null,null,"22.94%"]
["22.98%","B(",null,null,null,"22.95%"]
["22.99%","C(",null,null,null,"22.96%"]
["23.00","R!",null,null,null,"22.97%"]
["23.01","B]",null,null,null,"22.98%"]
["23.02","C]",null,null,null,"22.99%"]
["23.03","D]",null,null,null,"23.00"]
["23.04","E]",null,null,null,"23.01"]
["23.05","F]",null,null,null,"23.02"]
["23.06","G]",null,null,null,"23.03"]
["23.07","H]",null,null,null,"23.04"]
["23.08","I]",null,null,null,"23.05"]
["23.09","J]",null,null,null,"23.06"]
["23.10","K]",null,null,null,"23.07"]
["23.11","L]",null,null,null,"23.08"]
["23.12","M]",null,null,null,"23.09"]
["23.13","N]",null,null,null,"23.10"]
["23.14","O]",null,null,null,"23.11"]
["23.15","P]",null,null,null,"23.12"]
["23.16","Q]",null,null,null,"23.13"]
["23.17","R]",null,null,null,"23.14"]
["23.18","S]",null,null,null,"23.15"]
["23.19","T]",null,null,null,"23.16"]
["23.20","U]",null,null,null,"23.17"]
["23.21","S!",null,null,null,"23.18"]
["23.22","W]",null,null,null,"23.19"]
["23.23","X]",null,null,null,"23.20"]
["23.24","Y]",null,null,null,"23.21"]
["23.25","Z]",null,null,null,"23.22"]
["23.26","A[",null,null,null,"23.23"]
["23.27","B[",null,null,null,"23.24"]
["23.28","C[",null,null,null,"23.25"]
["23.29","D[",null,null,null,"23.26"]
["23.30","E[",null,null,null,"23.27"]
["23.31","F[",null,null,null,"23.28"]
["23.32","G[",null,null,null,"23.29"]
["23.33","H[",null,null,null,"23.30"]
["23.34","I[",null,null,null,"23.31"]
["23.35","J[",null,null,null,"23.32"]
["23.36","K[",null,null,null,"23.33"]
["23.37","L[",null,null,null,"23.34"]
["23.38","M[",null,null,null,"23.35"]
["23.39","N[",null,null,null,"23.36"]
["23.40","O[",null,null,null,"23.37"]
["23.41","P[",null,null,null,"23.38"]
["23.42","Q[",null,null,null,"23.39"]
["23.43","R[",null,null,null,"23.40"]
["23.44","S[",null,null,null,"23.41"]
["23.45","T[",null,null,null,"23.42"]
["23.46","U[",null,null,null,"23.43"]
["23.47","V[",null,null,null,"23.44"]
["23.48","W[",null,null,null,"23.45"]
["23.49","X[",null,null,null,"23.46"]
["23.50","Y[",null,null,null,"23.47"]
["23.51","Z[",null,null,null,"23.48"]
["23.52","1}",null,null,null,"23.49"]
["23.53","B}",null,null,null,"23.50"]
["23.54","C}",null,null,null,"23.51"]
["23.55","D}",null,null,null,"23.52"]
["23.56","E}",null,null,null,"23.53"]
["23.57","F}",null,null,null,"23.54"]
["23.58","G}",null,null,null,"23.55"]
["23.59","H}",null,null,null,"23.56"]
["23.60","I}",null,null,null,"23.57"]
["23.61","J}",null,null,null,"23.58"]
["23.62","K}",null,null,null,"23.59"]
["23.63","L}",null,null,null,"23.60"]
["23.64","M}",null,null,null,"23.61"]
["23.65","N}",null,null,null,"23.62"]
["23.66","O}",null,null,null,"23.63"]
["23.67","P}",null,null,null,"23.64"]
["23.68","Q}",null,null,null,"23.65"]
["23.69","R}",null,null,null,"23.66"]
["23.70","S}",null,null,null,"23.67"]
["23.71","T}",null,null,null,"23.68"]
["23.72","U}",null,null,null,"23.69"]
["23.73","V}",null,null,null,"23.70"]
["23.74","W}",null,null,null,"23.71"]
["23.75","X}",null,null,null,"23.72"]
["23.76","Y}",null,null,null,"23.73"]
["23.77","Z}",null,null,null,"23.74"]
["23.78","1{",null,null,null,"23.75"]
["23.79","2{",null,null,null,"23.76"]
["23.80","3{",null,null,null,"23.77"]
["23.81","4{",null,null,null,"23.78"]
["23.82","5{",null,null,null,"23.79"]
["23.83","6{",null,null,null,"23.80"]
["23.84","7{",null,null,null,"23.81"]
["23.85","8{",null,null,null,"23.82"]
["23.86","9{",null,null,null,"23.83"]
["23.87","0{",null,null,null,"23.84"]
["23.88","/6",null,null,null,"23.85"]
["23.89","2}",null,null,null,"23.86"]
["23.90","3}",null,null,null,"23.87"]
["23.91","4}",null,null,null,"23.88"]
["23.92","5}",null,null,null,"23.89"]
["23.93","6}",null,null,null,"23.90"]
["23.94","7}",null,null,null,"23.91"]
["23.95","8}",null,null,null,"23.92"]
["23.96","9}",null,null,null,"23.93"]
["23.97","0}",null,null,null,"23.94"]
["23.98","/4",null,null,null,"23.95"]
["23.99","/5",null,null,null,"23.96"]
["24.00%",">Q",null,null,null,"23.97"]
["24.01%",">R",null,null,null,"23.98"]
["24.02%",">S",null,null,null,"23.99"]
["24.03%",">T",null,null,null,"24.00%"]
["24.04%",">U",null,null,null,"24.01%"]
["24.05%",">V",null,null,null,"24.02%"]
["24.06%",">W",null,null,null,"24.03%"]
["24.07%",">X",null,null,null,"24.04%"]
["24.08%",">Y",null,null,null,"24.05%"]
["24.09%",">Z",null,null,null,"24.06%"]
["24.10%","<A",null,null,null,"24.07%"]
["24.11%","<B",null,null,null,"24.08%"]
["24.12%","<C",null,null,null,"24.09%"]
["24.13%","<D",null,null,null,"24.10%"]
["24.14%","<E",null,null,null,"24.11%"]
["24.15%","<F",null,null,null,"24.12%"]
["24.16%","<G",null,null,null,"24.13%"]
["24.17%","<H",null,null,null,"24.14%"]
["24.18%","<I",null,null,null,"24.15%"]
["24.19%","<J",null,null,null,"24.16%"]
["24.20%","<K",null,null,null,"24.17%"]
["24.21%","<L",null,null,null,"24.18%"]
["24.22%","<M",null,null,null,"24.19%"]
["24.23%","<N",null,null,null,"24.20%"]
["24.24%","<O",null,null,null,"24.21%"]
["24.25%","<P",null,null,null,"24.22%"]
["24.26%","<Q",null,null,null,"24.23%"]
["24.27%","<R",null,null,null,"24.24%"]
["24.28%","<S",null,null,null,"24.25%"]
["24.29%","<T",null,null,null,"24.26%"]
["24.30%","<U",null,null,null,"24.27%"]
["24.31%","<V",null,null,null,"24.28%"]
["24.32%","<W",null,null,null,"24.29%"]
["24.33%","<X",null,null,null,"24.30%"]
["24.34%","<Y",null,null,null,"24.31%"]
["24.35%","<Z",null,null,null,"24.32%"]
["24.36%","|A",null,null,null,"24.33%"]
["24.37%","|B",null,null,null,"24.34%"]
["24.38%","|C",null,null,null,"24.35%"]
["24.39%","|D",null,null,null,"24.36%"]
["24.40%","|E",null,null,null,"24.37%"]
["24.41%","|F",null,null,null,"24.38%"]
["24.42%","|G",null,null,null,"24.39%"]
["24.43%","|H",null,null,null,"24.40%"]
["24.44%","|I",null,null,null,"24.41%"]
["24.45%","|J",null,null,null,"24.42%"]
["24.46%","|K",null,null,null,"24.43%"]
["24.47%","|L",null,null,null,"24.44%"]
["24.48%","|M",null,null,null,"24.45%"]
["24.49%","|N",null,null,null,"24.46%"]
["24.50%","|O",null,null,null,"24.47%"]
["24.51%","|P",null,null,null,"24.48%"]
["24.52%","|Q",null,null,null,"24.49%"]
["24.53%","|R",null,null,null,"24.50%"]
["24.54%","|S",null,null,null,"24.51%"]
["24.55%","|T",null,null,null,"24.52%"]
["24.56%","|U",null,null,null,"24.53%"]
["24.57%","|V",null,null,null,"24.54%"]
["24.58%","|W",null,null,null,"24.55%"]
["24.59%","|X",null,null,null,"24.56%"]
["24.60%","|Y",null,null,null,"24.57%"]
["24.61%","|Z",null,null,null,"24.58%"]
["24.62%","\"A",null,null,null,"24.59%"]
["24.63%","\"B",null,null,null,"24.60%"]
["24.64%","\"C",null,null,null,"24.61%"]
["24.65%","\"D",null,null,null,"24.62%"]
["24.66%","\"E",null,null,null,"24.63%"]
["24.67%","\"F",null,null,null,"24.64%"]
["24.68%","\"G",null,null,null,"24.65%"]
["24.69%","\"H",null,null,null,"24.66%"]
["24.70%","\"I",null,null,null,"24.67%"]
["24.71%","\"J",null,null,null,"24.68%"]
["24.72%","\"K",null,null,null,"24.69%"]
["24.73%","\"L",null,null,null,"24.70%"]
["24.74%","\"M",null,null,null,"24.71%"]
["24.75%","\"N",null,null,null,"24.72%"]
["24.76%","\"O",null,null,null,"24.73%"]
["24.77%","\"P",null,null,null,"24.74%"]
["24.78%","\"Q",null,null,null,"24.75%"]
["24.79%","\"R",null,null,null,"24.76%"]
["24.80%","\"S",null,null,null,"24.77%"]
["24.81%","\"T",null,null,null,"24.78%"]
["24.82%","\"U",null,null,null,"24.79%"]
["24.83%","\"V",null,null,null,"24.80%"]
["24.84%","\"W",null,null,null,"24.81%"]
["24.85%","\"X",null,null,null,"24.82%"]
["24.86%","\"Y",null,null,null,"24.83%"]
["24.87%","\"Z",null,null,null,"24.84%"]
["24.88%","`A",null,null,null,"24.85%"]
["24.89%","`B",null,null,null,"24.86%"]
["24.90%","`C",null,null,null,"24.87%"]
["24.91%","`D",null,null,null,"24.88%"]
["24.92%","`E",null,null,null,"24.89%"]
["24.93%","`F",null,null,null,"24.90%"]
["24.94%","`G",null,null,null,"24.91%"]
["24.95%","`H",null,null,null,"24.92%"]
["24.96%","`I",null,null,null,"24.93%"]
["24.97%","`J",null,null,null,"24.94%"]
["24.98%","`K",null,null,null,"24.95%"]
["24.99%","`L",null,null,null,"24.96%"]
["25.00","T!",null,null,null,"24.97%"]
["25.01%","D(",null,null,null,"24.98%"]
["25.02%","E(",null,null,null,"24.99%"]
["25.03%","F(",null,null,null,"25.00"]
["25.04%","G(",null,null,null,"25.01%"]
["25.05%","H(",null,null,null,"25.02%"]
["25.06%","I(",null,null,null,"25.03%"]
["25.07%","J(",null,null,null,"25.04%"]
["25.08%","K(",null,null,null,"25.05%"]
["25.09%","L(",null,null,null,"25.06%"]
["25.10%","M(",null,null,null,"25.07%"]
["25.11%","N(",null,null,null,"25.08%"]
["25.12%","O(",null,null,null,"25.09%"]
["25.13%","P(",null,null,null,"25.10%"]
["25.14%","Q(",null,null,null,"25.11%"]
["25.15%","R(",null,null,null,"25.12%"]
["25.16%","S(",null,null,null,"25.13%"]
["25.17%","T(",null,null,null,"25.14%"]
["25.18%","U(",null,null,null,"25.15%"]
["25.19%","V(",null,null,null,"25.16%"]
["25.20%","W(",null,null,null,"25.17%"]
["25.21%","X(",null,null,null,"25.18%"]
["25.22%","Y(",null,null,null,"25.19%"]
["25.23%","Z(",null,null,null,"25.20%"]
["25.24%","A)",null,null,null,"25.21%"]
["25.25%","B)",null,null,null,"25.22%"]
["25.26%","C)",null,null,null,"25.23%"]
["25.27%","D)",null,null,null,"25.24%"]
["25.28%","E)",null,null,null,"25.25%"]
["25.29%","F)",null,null,null,"25.26%"]
["25.30%","G)",null,null,null,"25.27%"]
["25.31%","H)",null,null,null,"25.28%"]
["25.32%","I)",null,null,null,"25.29%"]
["25.33%","J)",null,null,null,"25.30%"]
["25.34%","K)",null,null,null,"25.31%"]
["25.35%","L)",null,null,null,"25.32%"]
["25.36%","M)",null,null,null,"25.33%"]
["25.37%","N)",null,null,null,"25.34%"]
["25.38%","O)",null,null,null,"25.35%"]
["25.39%","P)",null,null,null,"25.36%"]
["25.40%","Q)",null,null,null,"25.37%"]
["25.41%","R)",null,null,null,"25.38%"]
["25.42%","S)",null,null,null,"25.39%"]
["25.43%","T)",null,null,null,"25.40%"]
["25.44%","U)",null,null,null,"25.41%"]
["25.45%","V)",null,null,null,"25.42%"]
["25.46%","W)",null,null,null,"25.43%"]
["25.47%","X)",null,null,null,"25.44%"]
["25.48%","Y)",null,null,null,"25.45%"]
["25.49%","Z)",null,null,null,"25.46%"]
["25.50%","A-",null,null,null,"25.47%"]
["25.51%","B-",null,null,null,"25.48%"]
["25.52%","C-",null,null,null,"25.49%"]
["25.53%","D-",null,null,null,"25.50%"]
["25.54%","E-",null,null,null,"25.51%"]
["25.55%","F-",null,null,null,"25.52%"]
["25.56%","G-",null,null,null,"25.53%"]
["25.57%","H-",null,null,null,"25.54%"]
["25.58%","I-",null,null,null,"25.55%"]
["25.59%","J-",null,null,null,"25.56%"]
["25.60%","K-",null,null,null,"25.57%"]
["25.61%","L-",null,null,null,"25.58%"]
["25.62%","M-",null,null,null,"25.59%"]
["25.63%","N-",null,null,null,"25.60%"]
["25.64%","O-",null,null,null,"25.61%"]
["25.65%","P-",null,null,null,"25.62%"]
["25.66%","Q-",null,null,null,"25.63%"]
["25.67%","R-",null,null,null,"25.64%"]
["25.68%","S-",null,null,null,"25.65%"]
["25.69%","T-",null,null,null,"25.66%"]
["25.70%","U-",null,null,null,"25.67%"]
["25.71%","V-",null,null,null,"25.68%"]
["25.72%","W-",null,null,null,"25.69%"]
["25.73%","X-",null,null,null,"25.70%"]
["25.74%","Y-",null,null,null,"25.71%"]
["25.75%","Z-",null,null,null,"25.72%"]
["25.76%","A=",null,null,null,"25.73%"]
["25.77%","B=",null,null,null,"25.74%"]
["25.78%","C=",null,null,null,"25.75%"]
["25.79%","D=",null,null,null,"25.76%"]
["25.80%","E=",null,null,null,"25.77%"]
["25.81%","F=",null,null,null,"25.78%"]
["25.82%","G=",null,null,null,"25.79%"]
["25.83%","H=",null,null,null,"25.80%"]
["25.84%","I=",null,null,null,"25.81%"]
["25.85%","J=",null,null,null,"25.82%"]
["25.86%","K=",null,null,null,"25.83%"]
["25.87%","L=",null,null,null,"25.84%"]
["25.88%","M=",null,null,null,"25.85%"]
["25.89%","N=",null,null,null,"25.86%"]
["25.90%","O=",null,null,null,"25.87%"]
["25.91%","P=",null,null,null,"25.88%"]
["25.92%","Q=",null,null,null,"25.89%"]
["25.93%","R=",null,null,null,"25.90%"]
["25.94%","S=",null,null,null,"25.91%"]
["25.95%","T=",null,null,null,"25.92%"]
["25.96%","U=",null,null,null,"25.93%"]
["25.97%","V=",null,null,null,"25.94%"]
["25.98%","W=",null,null,null,"25.95%"]
["25.99%","X=",null,null,null,"25.96%"]
["26.00",":B",null,null,null,"25.97%"]
["26.01",":C",null,null,null,"25.98%"]
["26.02",":D",null,null,null,"25.99%"]
["26.03",":E",null,null,null,"26.00"]
["26.04",":F",null,null,null,"26.01"]
["26.05",":G",null,null,null,"26.02"]
["26.06",":H",null,null,null,"26.03"]
["26.07",":I",null,null,null,"26.04"]
["26.08",":J",null,null,null,"26.05"]
["26.09",":K",null,null,null,"26.06"]
["26.10",":L",null,null,null,"26.07"]
["26.11",":M",null,null,null,"26.08"]
["26.12",":N",null,null,null,"26.09"]
["26.13",":O",null,null,null,"26.10"]
["26.14",":P",null,null,null,"26.11"]
["26.15",":Q",null,null,null,"26.12"]
["26.16",":R",null,null,null,"26.13"]
["26.17",":S",null,null,null,"26.14"]
["26.18",":T",null,null,null,"26.15"]
["26.19",":U",null,null,null,"26.16"]
["26.20",":V",null,null,null,"26.17"]
["26.21",":W",null,null,null,"26.18"]
["26.22",":X",null,null,null,"26.19"]
["26.23",":Y",null,null,null,"26.20"]
["26.24",":Z",null,null,null,"26.21"]
["26.25",":1",null,null,null,"26.22"]
["26.26",":2",null,null,null,"26.23"]
["26.27",":3",null,null,null,"26.24"]
["26.28",":4",null,null,null,"26.25"]
["26.29",":5",null,null,null,"26.26"]
["26.30",":6",null,null,null,"26.27"]
["26.31",":7",null,null,null,"26.28"]
["26.32",":8",null,null,null,"26.29"]
["26.33",":9",null,null,null,"26.30"]
["26.34",":0",null,null,null,"26.31"]
["26.35","A>",null,null,null,"26.32"]
["26.36","B>",null,null,null,"26.33"]
["26.37","C>",null,null,null,"26.34"]
["26.38","D>",null,null,null,"26.35"]
["26.39","E>",null,null,null,"26.36"]
["26.40","F>",null,null,null,"26.37"]
["26.41","G>",null,null,null,"26.38"]
["26.42","H>",null,null,null,"26.39"]
["26.43","I>",null,null,null,"26.40"]
["26.44","J>",null,null,null,"26.41"]
["26.45","K>",null,null,null,"26.42"]
["26.46","L>",null,null,null,"26.43"]
["26.47","M>",null,null,null,"26.44"]
["26.48","N>",null,null,null,"26.45"]
["26.49","O>",null,null,null,"26.46"]
["26.50","P>",null,null,null,"26.47"]
["26.51","Q>",null,null,null,"26.48"]
["26.52","R>",null,null,null,"26.49"]
["26.53","S>",null,null,null,"26.50"]
["26.54","T>",null,null,null,"26.51"]
["26.55","U>",null,null,null,"26.52"]
["26.56","V>",null,null,null,"26.53"]
["26.57","W>",null,null,null,"26.54"]
["26.58","X>",null,null,null,"26.55"]
["26.59","Y>",null,null,null,"26.56"]
["26.60","Z>",null,null,null,"26.57"]
["26.61","A/",null,null,null,"26.58"]
["26.62","B/",null,null,null,"26.59"]
["26.63","C/",null,null,null,"26.60"]
["26.64","D/",null,null,null,"26.61"]
["26.65","E/",null,null,null,"26.62"]
["26.66","F/",null,null,null,"26.63"]
["26.67","G/",null,null,null,"26.64"]
["26.68","H/",null,null,null,"26.65"]
["26.69","I/",null,null,null,"26.66"]
["26.70","J/",null,null,null,"26.67"]
["26.71","K/",null,null,null,"26.68"]
["26.72","L/",null,null,null,"26.69"]
["26.73","M/",null,null,null,"26.70"]
["26.74","N/",null,null,null,"26.71"]
["26.75","O/",null,null,null,"26.72"]
["26.76","P/",null,null,null,"26.73"]
["26.77","Q/",null,null,null,"26.74"]
["26.78","R/",null,null,null,"26.75"]
["26.79","S/",null,null,null,"26.76"]
["26.80","T/",null,null,null,"26.77"]
["26.81","U/",null,null,null,"26.78"]
["26.82","V/",null,null,null,"26.79"]
["26.83","W/",null,null,null,"26.80"]
["26.84","X/",null,null,null,"26.81"]
["26.85","Y/",null,null,null,"26.82"]
["26.86","Z/",null,null,null,"26.83"]
["26.87","1/",null,null,null,"26.84"]
["26.88","2/",null,null,null,"26.85"]
["26.89","3/",null,null,null,"26.86"]
["26.90","4/",null,null,null,"26.87"]
["26.91","5/",null,null,null,"26.88"]
["26.92","6/",null,null,null,"26.89"]
["26.93","7/",null,null,null,"26.90"]
["26.94","8/",null,null,null,"26.91"]
["26.95","9/",null,null,null,"26.92"]
["26.96","0/",null,null,null,"26.93"]
["26.97","/1",null,null,null,"26.94"]
["26.98","/2",null,null,null,"26.95"]
["26.99","/3",null,null,null,"26.96"]
["27.00","=A",null,null,null,"26.97"]
["27.01","=B",null,null,null,"26.98"]
["27.02","=C",null,null,null,"26.99"]
["27.03","=D",null,null,null,"27.00"]
["27.04","=E",null,null,null,"27.01"]
["27.05","=F",null,null,null,"27.02"]
["27.06","=G",null,null,null,"27.03"]
["27.07","=H",null,null,null,"27.04"]
["27.08","=I",null,null,null,"27.05"]
["27.09","=J",null,null,null,"27.06"]
["27.10","=K",null,null,null,"27.07"]
["27.11","=L",null,null,null,"27.08"]
["27.12","=M",null,null,null,"27.09"]
["27.13","=N",null,null,null,"27.10"]
["27.14","=O",null,null,null,"27.11"]
["27.15","=P",null,null,null,"27.12"]
["27.16","=Q",null,null,null,"27.13"]
["27.17","=R",null,null,null,"27.14"]
["27.18","=S",null,null,null,"27.15"]
["27.19","=T",null,null,null,"27.16"]
["27.20","=U",null,null,null,"27.17"]
["27.21","=V",null,null,null,"27.18"]
["27.22","=X",null,null,null,"27.19"]
["27.23","=Y",null,null,null,"27.20"]
["27.24","=Z",null,null,null,"27.21"]
["27.25","=1",null,null,null,"27.22"]
["27.26","=2",null,null,null,"27.23"]
["27.27","=3",null,null,null,"27.24"]
["27.28","=4",null,null,null,"27.25"]
["27.29","=5",null,null,null,"27.26"]
["27.30","=6",null,null,null,"27.27"]
["27.31","=7",null,null,null,"27.28"]
["27.32","=8",null,null,null,"27.29"]
["27.33","=9",null,null,null,"27.30"]
["27.34","1@",null,null,null,"27.31"]
["27.35","2@",null,null,null,"27.32"]
["27.36","3@",null,null,null,"27.33"]
["27.37","4@",null,null,null,"27.34"]
["27.38","5@",null,null,null,"27.35"]
["27.39","6@",null,null,null,"27.36"]
["27.40","7@",null,null,null,"27.37"]
["27.41","9@",null,null,null,"27.38"]
["27.42","ℼI",null,null,null,"27.39"]
["27.43","ℼH",null,null,null,"27.40"]
["27.44","ℼG",null,null,null,"27.41"]
["27.45","ℼF",null,null,null,"27.42"]
["27.46","ℼE",null,null,null,"27.43"]
["27.47","ℼD",null,null,null,"27.44"]
["27.48","ℼC",null,null,null,"27.45"]
["27.49","ℼB",null,null,null,"27.46"]
["27.50","ℼA",null,null,null,"27.47"]
["27.51","ΠK",null,null,null,"27.48"]
["27.52","ΠL",null,null,null,"27.49"]
["27.53","ΠM",null,null,null,"27.50"]
["27.54","ΠN",null,null,null,"27.51"]
["27.55","ΠO",null,null,null,"27.52"]
["27.56","ΠP",null,null,null,"27.53"]
["27.57","ΠQ",null,null,null,"27.54"]
["27.58","ΠR",null,null,null,"27.55"]
["27.59","ΠS",null,null,null,"27.56"]
["27.60","ΠT",null,null,null,"27.57"]
["27.61","ΠU",null,null,null,"27.58"]
["27.62","ΠV",null,null,null,"27.59"]
["27.63","ΠW",null,null,null,"27.60"]
["27.64","ΠX",null,null,null,"27.61"]
["27.65","ΠY",null,null,null,"27.62"]
["27.66","ΠZ",null,null,null,"27.63"]
["27.67","AΠ",null,null,null,"27.64"]
["27.68","BΠ",null,null,null,"27.65"]
["27.69","CΠ",null,null,null,"27.66"]
["27.70","DΠ",null,null,null,"27.67"]
["27.71","EΠ",null,null,null,"27.68"]
["27.72","FΠ",null,null,null,"27.69"]
["27.73","GΠ",null,null,null,"27.70"]
["27.74","HΠ",null,null,null,"27.71"]
["27.75","IΠ",null,null,null,"27.72"]
["27.76","JΠ",null,null,null,"27.73"]
["27.77",":A",null,null,null,"27.74"]
["27.78","_2",null,null,null,"27.75"]
["27.79","_3",null,null,null,"27.76"]
["27.80","_4",null,null,null,"27.77"]
["27.81","_5",null,null,null,"27.78"]
["27.82","_6",null,null,null,"27.79"]
["27.83","_7",null,null,null,"27.80"]
["27.84","_8",null,null,null,"27.81"]
["27.85","_9",null,null,null,"27.82"]
["27.86","_0",null,null,null,"27.83"]
["27.87","1>",null,null,null,"27.84"]
["27.88","2>",null,null,null,"27.85"]
["27.89","3>",null,null,null,"27.86"]
["27.90","4>",null,null,null,"27.87"]
["27.91","5>",null,null,null,"27.88"]
["27.92","6>",null,null,null,"27.89"]
["27.93","7>",null,null,null,"27.90"]
["27.94","8>",null,null,null,"27.91"]
["27.96","9>",null,null,null,"27.92"]
["27.97","0>",null,null,null,"27.93"]
["27.98","ℼJ",null,null,null,"27.94"]
["27.99","0@",null,null,null,"27.96"]
["28.00","U!",null,null,null,"27.97"]
["28.01","V!",null,null,null,"27.98"]
["28.02","W!",null,null,null,"27.99"]
["28.03","X!",null,null,null,"28.00"]
["28.04","Y!",null,null,null,"28.01"]
["28.05","Z!",null,null,null,"28.02"]
["28.06",",A",null,null,null,"28.03"]
["28.07",",B",null,null,null,"28.04"]
["28.08",",C",null,null,null,"28.05"]
["28.09",",D",null,null,null,"28.06"]
["28.10",",E",null,null,null,"28.07"]
["28.11",",F",null,null,null,"28.08"]
["28.12",",G",null,null,null,"28.09"]
["28.13",",H",null,null,null,"28.10"]
["28.14",",I",null,null,null,"28.11"]
["28.15",",J",null,null,null,"28.12"]
["28.16",",K",null,null,null,"28.13"]
["28.17",",L",null,null,null,"28.14"]
["28.18",",M",null,null,null,"28.15"]
["28.19",",N",null,null,null,"28.16"]
["28.20",",O",null,null,null,"28.17"]
["28.21",",P",null,null,null,"28.18"]
["28.22",",Q",null,null,null,"28.19"]
["28.23",",R",null,null,null,"28.20"]
["28.24",",S",null,null,null,"28.21"]
["28.25",",T",null,null,null,"28.22"]
["28.26",",U",null,null,null,"28.23"]
["28.27",",V",null,null,null,"28.24"]
["28.28",",W",null,null,null,"28.25"]
["28.29",",X",null,null,null,"28.26"]
["28.30",",Y",null,null,null,"28.27"]
["28.31",",Z",null,null,null,"28.28"]
["28.32","\\A",null,null,null,"28.29"]
["28.33","\\B",null,null,null,"28.30"]
["28.34","\\C",null,null,null,"28.31"]
["28.35","\\D",null,null,null,"28.32"]
["28.36","\\E",null,null,null,"28.33"]
["28.37","\\F",null,null,null,"28.34"]
["28.38","\\G",null,null,null,"28.35"]
["28.39","\\H",null,null,null,"28.36"]
["28.40","\\I",null,null,null,"28.37"]
["28.41","\\J",null,null,null,"28.38"]
["28.42","\\K",null,null,null,"28.39"]
["28.43","\\L",null,null,null,"28.40"]
["28.44","\\M",null,null,null,"28.41"]
["28.45","\\N",null,null,null,"28.42"]
["28.46","\\O",null,null,null,"28.43"]
["28.47","\\P",null,null,null,"28.44"]
["28.48","\\Q",null,null,null,"28.45"]
["28.49","\\R",null,null,null,"28.46"]
["28.50","\\S",null,null,null,"28.47"]
["28.51","\\T",null,null,null,"28.48"]
["28.52","\\U",null,null,null,"28.49"]
["28.53","\\V",null,null,null,"28.50"]
["28.54","\\W",null,null,null,"28.51"]
["28.55","\\X",null,null,null,"28.52"]
["28.56","\\Y",null,null,null,"28.53"]
["28.57","\\Z",null,null,null,"28.54"]
["28.58","^A",null,null,null,"28.55"]
["28.59","^B",null,null,null,"28.56"]
["28.60","^C",null,null,null,"28.57"]
["28.61","^D",null,null,null,"28.58"]
["28.62","^E",null,null,null,"28.59"]
["28.63","^F",null,null,null,"28.60"]
["28.64","^G",null,null,null,"28.61"]
["28.65","^H",null,null,null,"28.62"]
["28.66","^I",null,null,null,"28.63"]
["28.67","^J",null,null,null,"28.64"]
["28.68","^K",null,null,null,"28.65"]
["28.69","^L",null,null,null,"28.66"]
["28.70","^M",null,null,null,"28.67"]
["28.71","^N",null,null,null,"28.68"]
["28.72","^O",null,null,null,"28.69"]
["28.73","^P",null,null,null,"28.70"]
["28.74","^Q",null,null,null,"28.71"]
["28.75","^R",null,null,null,"28.72"]
["28.76","^S",null,null,null,"28.73"]
["28.77","^T",null,null,null,"28.74"]
["28.78","^U",null,null,null,"28.75"]
["28.79","^V",null,null,null,"28.76"]
["28.80","^W",null,null,null,"28.77"]
["28.81","^X",null,null,null,"28.78"]
["28.82","^Y",null,null,null,"28.79"]
["28.83","^Z",null,null,null,"28.80"]
["28.84",">A",null,null,null,"28.81"]
["28.85",">B",null,null,null,"28.82"]
["28.86",">C",null,null,null,"28.83"]
["28.87",">D",null,null,null,"28.84"]
["28.88",">E",null,null,null,"28.85"]
["28.89",">F",null,null,null,"28.86"]
["28.90",">G",null,null,null,"28.87"]
["28.91",">H",null,null,null,"28.88"]
["28.92",">I",null,null,null,"28.89"]
["28.93",">J",null,null,null,"28.90"]
["28.94",">K",null,null,null,"28.91"]
["28.95",">L",null,null,null,"28.92"]
["28.96",">M",null,null,null,"28.93"]
["28.97",">N",null,null,null,"28.94"]
["28.98",">O",null,null,null,"28.95"]
["28.99",">P",null,null,null,"28.96"]
["29.00","AΣ",null,null,null,"28.97"]
["29.01","BΣ",null,null,null,"28.98"]
["29.02","CΣ",null,null,null,"28.99"]
["29.03","DΣ",null,null,null,"29.00"]
["29.04","EΣ",null,null,null,"29.01"]
["29.05","FΣ",null,null,null,"29.02"]
["29.06","GΣ",null,null,null,"29.03"]
["29.07","HΣ",null,null,null,"29.04"]
["29.08","IΣ",null,null,null,"29.05"]
["29.09","JΣ",null,null,null,"29.06"]
["29.10","KΣ",null,null,null,"29.07"]
["29.11","LΣ",null,null,null,"29.08"]
["29.12","MΣ",null,null,null,"29.09"]
["29.13","NΣ",null,null,null,"29.10"]
["29.14","OΣ",null,null,null,"29.11"]
["29.15","PΣ",null,null,null,"29.12"]
["29.16","QΣ",null,null,null,"29.13"]
["29.17","RΣ",null,null,null,"29.14"]
["29.18","SΣ",null,null,null,"29.15"]
["29.19","TΣ",null,null,null,"29.16"]
["29.20","UΣ",null,null,null,"29.17"]
["29.21","VΣ",null,null,null,"29.18"]
["29.22","WΣ",null,null,null,"29.19"]
["29.23","XΣ",null,null,null,"29.20"]
["29.24","YΣ",null,null,null,"29.21"]
["29.25","ZΣ",null,null,null,"29.22"]
["29.26","ΣA",null,null,null,"29.23"]
["29.27","ΣB",null,null,null,"29.24"]
["29.28","ΣC",null,null,null,"29.25"]
["29.29","ΣD",null,null,null,"29.26"]
["29.30","ΣE",null,null,null,"29.27"]
["29.31","ΣF",null,null,null,"29.28"]
["29.32","ΣG",null,null,null,"29.29"]
["29.33","ΣH",null,null,null,"29.30"]
["29.34","ΣI",null,null,null,"29.31"]
["29.35","ΣJ",null,null,null,"29.32"]
["29.36","ΣK",null,null,null,"29.33"]
["29.37","ΣL",null,null,null,"29.34"]
["29.38","ΣM",null,null,null,"29.35"]
["29.39","ΣN",null,null,null,"29.36"]
["29.40","ΣO",null,null,null,"29.37"]
["29.41","ΣP",null,null,null,"29.38"]
["29.42","ΣQ",null,null,null,"29.39"]
["29.43","ΣR",null,null,null,"29.40"]
["29.44","ΣS",null,null,null,"29.41"]
["29.45","ΣT",null,null,null,"29.42"]
["29.46","ΣU",null,null,null,"29.43"]
["29.47","ΣV",null,null,null,"29.44"]
["29.48","ΣW",null,null,null,"29.45"]
["29.49","ΣX",null,null,null,"29.46"]
["29.50","ΣY",null,null,null,"29.47"]
["29.51","ΣZ",null,null,null,"29.48"]
["29.52","1Σ",null,null,null,"29.49"]
["29.53","2Σ",null,null,null,"29.50"]
["29.54","3Σ",null,null,null,"29.51"]
["29.55","4Σ",null,null,null,"29.52"]
["29.56","5Σ",null,null,null,"29.53"]
["29.57","6Σ",null,null,null,"29.54"]
["29.58","7Σ",null,null,null,"29.55"]
["29.59","8Σ",null,null,null,"29.56"]
["29.60","9Σ",null,null,null,"29.57"]
["29.61","0Σ",null,null,null,"29.58"]
["29.62","Σ1",null,null,null,"29.59"]
["29.63","Σ2",null,null,null,"29.60"]
["29.64","Σ3",null,null,null,"29.61"]
["29.65","Σ4",null,null,null,"29.62"]
["29.66","Σ5",null,null,null,"29.63"]
["29.67","Σ6",null,null,null,"29.64"]
["29.68","Σ7",null,null,null,"29.65"]
["29.69","Σ8",null,null,null,"29.66"]
["29.70","Σ9",null,null,null,"29.67"]
["29.71","Σ0",null,null,null,"29.68"]
["29.72","AΔ",null,null,null,"29.69"]
["29.73","BΛ",null,null,null,"29.70"]
["29.74","CΛ",null,null,null,"29.71"]
["29.75","DΛ",null,null,null,"29.72"]
["29.76","EΛ",null,null,null,"29.73"]
["29.77","FΛ",null,null,null,"29.74"]
["29.78","GΛ",null,null,null,"29.75"]
["29.79","HΛ",null,null,null,"29.76"]
["29.80","IΛ",null,null,null,"29.77"]
["29.81","JΛ",null,null,null,"29.78"]
["29.82","KΛ",null,null,null,"29.79"]
["29.83","LΛ",null,null,null,"29.80"]
["29.84","MΛ",null,null,null,"29.81"]
["29.85","NΛ",null,null,null,"29.82"]
["29.86","OΛ",null,null,null,"29.83"]
["29.87","PΛ",null,null,null,"29.84"]
["29.88","QΛ",null,null,null,"29.85"]
["29.89","RΛ",null,null,null,"29.86"]
["29.90","SΛ",null,null,null,"29.87"]
["29.91","TΛ",null,null,null,"29.88"]
["29.92","UΛ",null,null,null,"29.89"]
["29.93","VΛ",null,null,null,"29.90"]
["29.94","WΛ",null,null,null,"29.91"]
["29.95","XΛ",null,null,null,"29.92"]
["29.96","YΛ",null,null,null,"29.93"]
["29.97","ZΛ",null,null,null,"29.94"]
["29.98","1Λ",null,null,null,"29.95"]
["29.99","2Λ",null,null,null,"29.96"]
["30.00","A:",null,null,null,"29.97"]
["30.01","B:",null,null,null,"29.98"]
["30.02","C:",null,null,null,"29.99"]
["30.03","D:",null,null,null,"30.00"]
["30.04","E:",null,null,null,"30.01"]
["30.05","F:",null,null,null,"30.02"]
["30.06","G:",null,null,null,"30.03"]
["30.07","H:",null,null,null,"30.04"]
["30.08","I:",null,null,null,"30.05"]
["30.09","J:",null,null,null,"30.06"]
["30.10","K:",null,null,null,"30.07"]
["30.11","L:",null,null,null,"30.08"]
["30.12","M:",null,null,null,"30.09"]
["30.13","N:",null,null,null,"30.10"]
["30.14","O:",null,null,null,"30.11"]
["30.15","P:",null,null,null,"30.12"]
["30.16","Q:",null,null,null,"30.13"]
["30.17","R:",null,null,null,"30.14"]
["30.18","S:",null,null,null,"30.15"]
["30.19","T:",null,null,null,"30.16"]
["30.20","U:",null,null,null,"30.17"]
["30.21","V:",null,null,null,"30.18"]
["30.22","W:",null,null,null,"30.19"]
["30.23","X:",null,null,null,"30.20"]
["30.24","Y:",null,null,null,"30.21"]
["30.25","Z:",null,null,null,"30.22"]
["30.26","[A",null,null,null,"30.23"]
["30.27","[B",null,null,null,"30.24"]
["30.28","[C",null,null,null,"30.25"]
["30.29","[D",null,null,null,"30.26"]
["30.30","[E",null,null,null,"30.27"]
["30.31","[F",null,null,null,"30.28"]
["30.32","[G",null,null,null,"30.29"]
["30.33","[H",null,null,null,"30.30"]
["30.34","[I",null,null,null,"30.31"]
["30.35","[J",null,null,null,"30.32"]
["30.36","[K",null,null,null,"30.33"]
["30.37","[L",null,null,null,"30.34"]
["30.38","[M",null,null,null,"30.35"]
["30.39","[N",null,null,null,"30.36"]
["30.40","[O",null,null,null,"30.37"]
["30.41","[P",null,null,null,"30.38"]
["30.42","[Q",null,null,null,"30.39"]
["30.43","[R",null,null,null,"30.40"]
["30.44","[S",null,null,null,"30.41"]
["30.45","[T",null,null,null,"30.42"]
["30.46","[U",null,null,null,"30.43"]
["30.47","[V",null,null,null,"30.44"]
["30.48","[W",null,null,null,"30.45"]
["30.49","[X",null,null,null,"30.46"]
["30.50","[Y",null,null,null,"30.47"]
["30.51","[Z",null,null,null,"30.48"]
["30.52","A~",null,null,null,"30.49"]
["30.53","B~",null,null,null,"30.50"]
["30.54","C~",null,null,null,"30.51"]
["30.55","D~",null,null,null,"30.52"]
["30.56","E~",null,null,null,"30.53"]
["30.57","F~",null,null,null,"30.54"]
["30.58","G~",null,null,null,"30.55"]
["30.59","H~",null,null,null,"30.56"]
["30.60","I~",null,null,null,"30.57"]
["30.61","J~",null,null,null,"30.58"]
["30.62","K~",null,null,null,"30.59"]
["30.63","L~",null,null,null,"30.60"]
["30.64","M~",null,null,null,"30.61"]
["30.65","N~",null,null,null,"30.62"]
["30.66","O~",null,null,null,"30.63"]
["30.67","P~",null,null,null,"30.64"]
["30.68","Q~",null,null,null,"30.65"]
["30.69","R~",null,null,null,"30.66"]
["30.70","S~",null,null,null,"30.67"]
["30.71","T~",null,null,null,"30.68"]
["30.72","U~",null,null,null,"30.69"]
["30.73","V~",null,null,null,"30.70"]
["30.74","W~",null,null,null,"30.71"]
["30.75","X~",null,null,null,"30.72"]
["30.76","Y~",null,null,null,"30.73"]
["30.77","Z~",null,null,null,"30.74"]
["30.78","1:",null,null,null,"30.75"]
["30.79","2:",null,null,null,"30.76"]
["30.80","3:",null,null,null,"30.77"]
["30.81","4:",null,null,null,"30.78"]
["30.82","5:",null,null,null,"30.79"]
["30.83","6:",null,null,null,"30.80"]
["30.84","7:",null,null,null,"30.81"]
["30.85","8:",null,null,null,"30.82"]
["30.86","9:",null,null,null,"30.83"]
["30.87","0:",null,null,null,"30.84"]
["30.88","1#",null,null,null,"30.85"]
["30.89","2#",null,null,null,"30.86"]
["30.90","3#",null,null,null,"30.87"]
["30.91","4#",null,null,null,"30.88"]
["30.92","5#",null,null,null,"30.89"]
["30.93","6#",null,null,null,"30.90"]
["30.94","7#",null,null,null,"30.91"]
["30.95","8#",null,null,null,"30.92"]
["30.96","9#",null,null,null,"30.93"]
["30.97","[1",null,null,null,"30.94"]
["30.98","[2",null,null,null,"30.95"]
["30.99","[3",null,null,null,"30.96"]
["31.00","AΞ",null,null,null,"30.97"]
["31.01","BΞ",null,null,null,"30.98"]
["31.02","CΞ",null,null,null,"30.99"]
["31.03","DΞ",null,null,null,"31.00"]
["31.04","EΞ",null,null,null,"31.01"]
["31.05","FΞ",null,null,null,"31.02"]
["31.06","GΞ",null,null,null,"31.03"]
["31.07","HΞ",null,null,null,"31.04"]
["31.08","IΞ",null,null,null,"31.05"]
["31.09","JΞ",null,null,null,"31.06"]
["31.10","KΞ",null,null,null,"31.07"]
["31.11","LΞ",null,null,null,"31.08"]
["31.12","MΞ",null,null,null,"31.09"]
["31.13","NΞ",null,null,null,"31.10"]
["31.14","OΞ",null,null,null,"31.11"]
["31.15","PΞ",null,null,null,"31.12"]
["31.16","QΞ",null,null,null,"31.13"]
["31.17","RΞ",null,null,null,"31.14"]
["31.18","SΞ",null,null,null,"31.15"]
["31.19","TΞ",null,null,null,"31.16"]
["31.20","UΞ",null,null,null,"31.17"]
["31.21","VΞ",null,null,null,"31.18"]
["31.22","WΞ",null,null,null,"31.19"]
["31.23","XΞ",null,null,null,"31.20"]
["31.24","YΞ",null,null,null,"31.21"]
["31.25","ZΞ",null,null,null,"31.22"]
["31.26","AƔ",null,null,null,"31.23"]
["31.27","BƔ",null,null,null,"31.24"]
["31.28","CƔ",null,null,null,"31.25"]
["31.29","DƔ",null,null,null,"31.26"]
["31.30","EƔ",null,null,null,"31.27"]
["31.31","FƔ",null,null,null,"31.28"]
["31.32","GƔ",null,null,null,"31.29"]
["31.33","HƔ",null,null,null,"31.30"]
["31.34","IƔ",null,null,null,"31.31"]
["31.35","JƔ",null,null,null,"31.32"]
["31.36","KƔ",null,null,null,"31.33"]
["31.37","LƔ",null,null,null,"31.34"]
["31.38","MƔ",null,null,null,"31.35"]
["31.39","NƔ",null,null,null,"31.36"]
["31.40","OƔ",null,null,null,"31.37"]
["31.41","PƔ",null,null,null,"31.38"]
["31.42","QƔ",null,null,null,"31.39"]
["31.43","RƔ",null,null,null,"31.40"]
["31.44","SƔ",null,null,null,"31.41"]
["31.45","TƔ",null,null,null,"31.42"]
["31.46","UƔ",null,null,null,"31.43"]
["31.47","VƔ",null,null,null,"31.44"]
["31.48","WƔ",null,null,null,"31.45"]
["31.49","XƔ",null,null,null,"31.46"]
["31.50","YƔ",null,null,null,"31.47"]
["31.51","ZƔ",null,null,null,"31.48"]
["31.52","BΔ",null,null,null,"31.49"]
["31.53","CΔ",null,null,null,"31.50"]
["31.54","DΔ",null,null,null,"31.51"]
["31.55","EΔ",null,null,null,"31.52"]
["31.56","FΔ",null,null,null,"31.53"]
["31.57","GΔ",null,null,null,"31.54"]
["31.58","HΔ",null,null,null,"31.55"]
["31.59","IΔ",null,null,null,"31.56"]
["31.60","JΔ",null,null,null,"31.57"]
["31.61","KΔ",null,null,null,"31.58"]
["31.62","LΔ",null,null,null,"31.59"]
["31.63","MΔ",null,null,null,"31.60"]
["31.64","NΔ",null,null,null,"31.61"]
["31.65","OΔ",null,null,null,"31.62"]
["31.66","PΔ",null,null,null,"31.63"]
["31.67","QΔ",null,null,null,"31.64"]
["31.68","RΔ",null,null,null,"31.65"]
["31.69","SΔ",null,null,null,"31.66"]
["31.70","TΔ",null,null,null,"31.67"]
["31.71","UΔ",null,null,null,"31.68"]
["31.72","VΔ",null,null,null,"31.69"]
["31.73","WΔ",null,null,null,"31.70"]
["31.74","XΔ",null,null,null,"31.71"]
["31.75","YΔ",null,null,null,"31.72"]
["31.76","ZΔ",null,null,null,"31.73"]
["31.77","AΘ",null,null,null,"31.74"]
["31.78","BΘ",null,null,null,"31.75"]
["31.79","CΘ",null,null,null,"31.76"]
["31.80","DΘ",null,null,null,"31.77"]
["31.81","EΘ",null,null,null,"31.78"]
["31.82","FΘ",null,null,null,"31.79"]
["31.83","GΘ",null,null,null,"31.80"]
["31.84","HΘ",null,null,null,"31.81"]
["31.85","IΘ",null,null,null,"31.82"]
["31.86","JΘ",null,null,null,"31.83"]
["31.87","KΘ",null,null,null,"31.84"]
["31.88","LΘ",null,null,null,"31.85"]
["31.89","MΘ",null,null,null,"31.86"]
["31.90","NΘ",null,null,null,"31.87"]
["31.91","OΘ",null,null,null,"31.88"]
["31.92","PΘ",null,null,null,"31.89"]
["31.93","QΘ",null,null,null,"31.90"]
["31.94","RΘ",null,null,null,"31.91"]
["31.95","SΘ",null,null,null,"31.92"]
["31.96","TΘ",null,null,null,"31.93"]
["31.97","UΘ",null,null,null,"31.94"]
["31.98","VΘ",null,null,null,"31.95"]
["31.99","WΘ",null,null,null,"31.96"]
["32.00%","ΞA",null,null,null,"31.97"]
["32.01","ΞB",null,null,null,"31.98"]
["32.02","ΞC",null,null,null,"31.99"]
["32.03","ΞD",null,null,null,"32.00%"]
["32.04","ΞE",null,null,null,"32.01"]
["32.05","ΞF",null,null,null,"32.02"]
["32.06","ΞG",null,null,null,"32.03"]
["32.07","ΞH",null,null,null,"32.04"]
["32.08","ΞI",null,null,null,"32.05"]
["32.09","ΞJ",null,null,null,"32.06"]
["32.10","ΞK",null,null,null,"32.07"]
["32.11","ΞL",null,null,null,"32.08"]
["32.12","ΞM",null,null,null,"32.09"]
["32.13","ΞN",null,null,null,"32.10"]
["32.14","ΞO",null,null,null,"32.11"]
["32.15","ΞP",null,null,null,"32.12"]
["32.16","ΞQ",null,null,null,"32.13"]
["32.17","ΞR",null,null,null,"32.14"]
["32.18","ΞS",null,null,null,"32.15"]
["32.19","ΞT",null,null,null,"32.16"]
["32.20","ΞU",null,null,null,"32.17"]
["32.21","ΞV",null,null,null,"32.18"]
["32.22","ΞW",null,null,null,"32.19"]
["32.23","ΞX",null,null,null,"32.20"]
["32.24","ΞY",null,null,null,"32.21"]
["32.25","ΞZ",null,null,null,"32.22"]
["32.26","ƔA",null,null,null,"32.23"]
["32.27","ƔB",null,null,null,"32.24"]
["32.28","ƔC",null,null,null,"32.25"]
["32.29","ƔD",null,null,null,"32.26"]
["32.3","ƔE",null,null,null,"32.27"]
["32.31","ƔF",null,null,null,"32.28"]
["32.32","ƔG",null,null,null,"32.29"]
["32.33","ƔH",null,null,null,"32.3"]
["32.34","ƔI",null,null,null,"32.31"]
["32.35","ƔJ",null,null,null,"32.32"]
["32.36","ƔK",null,null,null,"32.33"]
["32.37","ƔL",null,null,null,"32.34"]
["32.38","ƔM",null,null,null,"32.35"]
["32.39","ƔN",null,null,null,"32.36"]
["32.4","ƔO",null,null,null,"32.37"]
["32.41","ƔP",null,null,null,"32.38"]
["32.42","ƔQ",null,null,null,"32.39"]
["32.43","ƔR",null,null,null,"32.4"]
["32.44","ƔS",null,null,null,"32.41"]
["32.45","ƔT",null,null,null,"32.42"]
["32.46","ƔU",null,null,null,"32.43"]
["32.47","ƔV",null,null,null,"32.44"]
["32.48","ƔW",null,null,null,"32.45"]
["32.49","ƔX",null,null,null,"32.46"]
["32.5","ƔY",null,null,null,"32.47"]
["32.51","ƔZ",null,null,null,"32.48"]
["32.52","ΔA",null,null,null,"32.49"]
["32.53","ΔB",null,null,null,"32.5"]
["32.54","ΔC",null,null,null,"32.51"]
["32.55","ΔD",null,null,null,"32.52"]
["32.56","ΔE",null,null,null,"32.53"]
["32.57","ΔF",null,null,null,"32.54"]
["32.58","ΔG",null,null,null,"32.55"]
["32.59","ΔH",null,null,null,"32.56"]
["32.60","ΔI",null,null,null,"32.57"]
["32.61","ΔJ",null,null,null,"32.58"]
["32.62","ΔK",null,null,null,"32.59"]
["32.63","ΔL",null,null,null,"32.60"]
["32.64","ΔM",null,null,null,"32.61"]
["32.65","ΔN",null,null,null,"32.62"]
["32.66","ΔO",null,null,null,"32.63"]
["32.67","ΔP",null,null,null,"32.64"]
["32.68","ΔQ",null,null,null,"32.65"]
["32.69","ΔR",null,null,null,"32.66"]
["32.70","ΔS",null,null,null,"32.67"]
["32.71","ΔT",null,null,null,"32.68"]
["32.72","ΔU",null,null,null,"32.69"]
["32.73","ΔV",null,null,null,"32.70"]
["32.74","ΔW",null,null,null,"32.71"]
["32.75","ΔX",null,null,null,"32.72"]
["32.76","ΔY",null,null,null,"32.73"]
["32.77","ΔZ",null,null,null,"32.74"]
["32.78","ΘA",null,null,null,"32.75"]
["32.79","ΘB",null,null,null,"32.76"]
["32.80","ΘC",null,null,null,"32.77"]
["32.81","ΘD",null,null,null,"32.78"]
["32.82","ΘE",null,null,null,"32.79"]
["32.83","ΘF",null,null,null,"32.80"]
["32.84","ΘG",null,null,null,"32.81"]
["32.85","ΘH",null,null,null,"32.82"]
["32.86","ΘI",null,null,null,"32.83"]
["32.87","ΘJ",null,null,null,"32.84"]
["32.88","ΘK",null,null,null,"32.85"]
["32.89","ΘL",null,null,null,"32.86"]
["32.90","ΘM",null,null,null,"32.87"]
["32.91","ΘN",null,null,null,"32.88"]
["32.92","ΘO",null,null,null,"32.89"]
["32.93","ΘP",null,null,null,"32.90"]
["32.94","ΘQ",null,null,null,"32.91"]
["32.95","ΘR",null,null,null,"32.92"]
["32.96","ΘS",null,null,null,"32.93"]
["32.97","ΘT",null,null,null,"32.94"]
["32.98","ΘU",null,null,null,"32.95"]
["32.99","ΘV",null,null,null,"32.96"]
["33.00%","A¢",null,null,null,"32.97"]
["33.01%","B¢",null,null,null,"32.98"]
["33.02%","C¢",null,null,null,"32.99"]
["33.03%","D¢",null,null,null,"33.00%"]
["33.04%","E¢",null,null,null,"33.01%"]
["33.05%","F¢",null,null,null,"33.02%"]
["33.06%","G¢",null,null,null,"33.03%"]
["33.07%","H¢",null,null,null,"33.04%"]
["33.08%","I¢",null,null,null,"33.05%"]
["33.09%","J¢",null,null,null,"33.06%"]
["33.10%","K¢",null,null,null,"33.07%"]
["33.11%","L¢",null,null,null,"33.08%"]
["33.12%","M¢",null,null,null,"33.09%"]
["33.13%","N¢",null,null,null,"33.10%"]
["33.14%","O¢",null,null,null,"33.11%"]
["33.15%","P¢",null,null,null,"33.12%"]
["33.16%","Q¢",null,null,null,"33.13%"]
["33.17%","R¢",null,null,null,"33.14%"]
["33.18%","S¢",null,null,null,"33.15%"]
["33.19%","T¢",null,null,null,"33.16%"]
["33.20%","U¢",null,null,null,"33.17%"]
["33.21%","V¢",null,null,null,"33.18%"]
["33.22%","W¢",null,null,null,"33.19%"]
["33.23%","X¢",null,null,null,"33.20%"]
["33.24%","Y¢",null,null,null,"33.21%"]
["33.25%","Z¢",null,null,null,"33.22%"]
["33.26%","¢A",null,null,null,"33.23%"]
["33.27%","¢B",null,null,null,"33.24%"]
["33.28%","¢C",null,null,null,"33.25%"]
["33.29%","¢D",null,null,null,"33.26%"]
["33.30%","¢E",null,null,null,"33.27%"]
["33.31%","¢F",null,null,null,"33.28%"]
["33.32%","¢G",null,null,null,"33.29%"]
["33.33%","¢H",null,null,null,"33.30%"]
["33.34%","¢I",null,null,null,"33.31%"]
["33.35%","¢J",null,null,null,"33.32%"]
["33.36%","¢K",null,null,null,"33.33%"]
["33.37%","¢L",null,null,null,"33.34%"]
["33.38%","¢M",null,null,null,"33.35%"]
["33.39%","¢N",null,null,null,"33.36%"]
["33.40%","¢O",null,null,null,"33.37%"]
["33.41%","¢P",null,null,null,"33.38%"]
["33.42%","¢Q",null,null,null,"33.39%"]
["33.43%","¢R",null,null,null,"33.40%"]
["33.44%","¢S",null,null,null,"33.41%"]
["33.45%","¢T",null,null,null,"33.42%"]
["33.46%","¢U",null,null,null,"33.43%"]
["33.47%","¢V",null,null,null,"33.44%"]
["33.48%","¢W",null,null,null,"33.45%"]
["33.49%","¢X",null,null,null,"33.46%"]
["33.50%","¢Y",null,null,null,"33.47%"]
["33.51%","¢Z",null,null,null,"33.48%"]
["33.52%","¢1",null,null,null,"33.49%"]
["33.53%","¢2",null,null,null,"33.50%"]
["33.54%","¢3",null,null,null,"33.51%"]
["33.55%","¢4",null,null,null,"33.52%"]
["33.56%","¢5",null,null,null,"33.53%"]
["33.57%","¢6",null,null,null,"33.54%"]
["33.58%","¢7",null,null,null,"33.55%"]
["33.59%","¢8",null,null,null,"33.56%"]
["33.60%","¢9",null,null,null,"33.57%"]
["33.61%","1¢",null,null,null,"33.58%"]
["33.62%","2¢"]
["33.63%","3¢"]
["33.64%","4¢"]
["33.65%","5¢"]
["33.66%","6¢"]
["33.67%","7¢"]
["33.68%","8¢"]
["33.69%","9¢"]
["33.70%","ΤA"]
["33.71%","ΤB"]
["33.72%","ΤC"]
["33.73%","ΤD"]
["33.74%","ΤE"]
["33.75%","ΤF"]
["33.76%","ΤG"]
["33.77%","ΤH"]
["33.78%","ΤI"]
["33.79%","ΤJ"]
["33.80%","ΤK"]
["33.81%","ΤL"]
["33.82%","ΤM"]
["33.83%","ΤN"]
["33.84%","ΤO"]
["33.85%","ΤP"]
["33.86%","ΤQ"]
["33.87%","ΤR"]
["33.88%","ΤS"]
["33.89%","ΤT"]
["33.90%","ΤU"]
["33.91%","ΤV"]
["33.92%","ΤW"]
["33.93%","ΤX"]
["33.94%","ΤY"]
["33.95%","ΤZ"]
["33.96%","Τ!"]
["33.97%","Τ#"]
["33.98%","Τ$"]
["33.99%","Τ^"]
["34.00","XΘ"]
["34.01","YΘ"]
["34.02","ZΘ"]
["34.03","ΘW"]
["34.04","ΘX"]
["34.05","ΘY"]
["34.06","ΘZ"]
["34.07","1Θ"]
["34.08","2Θ"]
["34.09","3Θ"]
["34.10","4Θ"]
["34.11","5Θ"]
["34.12","6Θ"]
["34.13","7Θ"]
["34.14","8Θ"]
["34.15","9Θ"]
["34.16","Θ1"]
["34.17","Θ2"]
["34.18","Θ3"]
["34.19","Θ4"]
["34.20","Θ5"]
["34.21","Θ6"]
["34.22","Θ7"]
["34.23","Θ8"]
["34.24","Θ9"]
["34.25","1Ξ"]
["34.26","2Ξ"]
["34.27","3Ξ"]
["34.28","4Ξ"]
["34.29","5Ξ"]
["34.30","6Ξ"]
["34.31","7Ξ"]
["34.32","8Ξ"]
["34.33","9Ξ"]
["34.34","Ξ1"]
["34.35","Ξ2"]
["34.36","Ξ3"]
["34.37","Ξ4"]
["34.38","Ξ5"]
["34.39%","Ξ6"]
["34.40%","Ξ7"]
["34.41%","Ξ8"]
["34.42%","Ξ9"]
["34.43","1Ɣ"]
["34.44","2Ɣ"]
["34.45","3Ɣ"]
["34.46","4Ɣ"]
["34.47","5Ɣ"]
["34.48","6Ɣ"]
["34.49","7Ɣ"]
["34.50","8Ɣ"]
["34.51","9Ɣ"]
["34.52%","Ë~"]
["34.53%","Ë("]
["34.54%","Ë@"]
["34.55%","Ë#"]
["34.56%","Ë$"]
["34.57%","Ë%"]
["34.58%","Ë^"]
["34.59%","Ë&"]
["34.60%","Ë*"]
["34.61","1Δ"]
["34.62","2Δ"]
["34.63","3Δ"]
["34.64","4Δ"]
["34.65%","5Δ"]
["34.66%","6Δ"]
["34.67%","7Δ"]
["34.68%","8Δ"]
["34.69%","9Δ"]
["34.70%","Δ1"]
["34.71%","Δ2"]
["34.72%","Δ3"]
["34.73%","Δ4"]
["34.74%","Δ5"]
["34.75%","Δ6"]
["34.76%","Δ7"]
["34.77%","Δ8"]
["34.78%","Δ9"]
["34.79%","1Ë"]
["34.80%","2Ë"]
["34.81%","3Ë"]
["34.82%","4Ë"]
["34.83%","5Ë"]
["34.84%","6Ë"]
["34.85%","7Ë"]
["34.86%","8Ë"]
["34.87%","9Ë"]
["34.88%","~Ë"]
["34.89%","(Ë"]
["34.90%","@Ë"]
["34.91%","#Ë"]
["34.92%","$Ë"]
["34.93%","%Ë"]
["34.94%","^Ë"]
["34.95%","&Ë"]
["34.96%","*Ë"]
["34.97","ஃA"]
["34.98","ஃB"]
["34.99","ஃC"]
["35.00%","ƷA"]
["35.01%","ƷB"]
["35.02%","ƷC"]
["35.03%","ƷD"]
["35.04%","ƷE"]
["35.05%","ƷF"]
["35.06%","ƷG"]
["35.07%","ƷH"]
["35.08%","ƷI"]
["35.09%","ƷJ"]
["35.10%","ƷK"]
["35.11%","ƷL"]
["35.12%","ƷM"]
["35.13%","ƷN"]
["35.14%","ƷO"]
["35.15%","ƷP"]
["35.16%","ƷQ"]
["35.17%","ƷR"]
["35.18%","ƷS"]
["35.19%","ƷT"]
["35.20%","ƷU"]
["35.21%","ƷV"]
["35.22%","ƷW"]
["35.23%","ƷX"]
["35.24%","ƷY"]
["35.25%","ƷZ"]
["35.26%","Ʒ1"]
["35.27%","Ʒ2"]
["35.28%","Ʒ3"]
["35.29%","Ʒ4"]
["35.30%","Ʒ5"]
["35.31%","Ʒ6"]
["35.32%","Ʒ7"]
["35.33%","Ʒ8"]
["35.34%","Ʒ9"]
["35.35%","AƷ"]
["35.36%","BƷ"]
["35.37%","CƷ"]
["35.38%","DƷ"]
["35.39%","EƷ"]
["35.40%","FƷ"]
["35.41%","GƷ"]
["35.42%","HƷ"]
["35.43%","IƷ"]
["35.44%","JƷ"]
["35.45%","KƷ"]
["35.46%","LƷ"]
["35.47%","MƷ"]
["35.48%","NƷ"]
["35.49%","OƷ"]
["35.50%","PƷ"]
["35.51%","QƷ"]
["35.52%","RƷ"]
["35.53%","SƷ"]
["35.54%","TƷ"]
["35.55%","UƷ"]
["35.56%","VƷ"]
["35.57%","WƷ"]
["35.58%","XƷ"]
["35.59%","YƷ"]
["35.60%","ZƷ"]
["35.61%","1Ʒ"]
["35.62%","2Ʒ"]
["35.63%","3Ʒ"]
["35.64%","4Ʒ"]
["35.65%","5Ʒ"]
["35.66%","6Ʒ"]
["35.67%","7Ʒ"]
["35.68%","8Ʒ"]
["35.69%","9Ʒ"]
["35.70%","AΤ"]
["35.71%","BΤ"]
["35.72%","CΤ"]
["35.73%","DΤ"]
["35.74%","EΤ"]
["35.75%","FΤ"]
["35.76%","GΤ"]
["35.77%","HΤ"]
["35.78%","IΤ"]
["35.79%","JΤ"]
["35.80%","KΤ"]
["35.81%","LΤ"]
["35.82%","MΤ"]
["35.83%","NΤ"]
["35.84%","OΤ"]
["35.85%","PΤ"]
["35.86%","QΤ"]
["35.87%","RΤ"]
["35.88%","SΤ"]
["35.89%","TΤ"]
["35.90%","UΤ"]
["35.91%","VΤ"]
["35.92%","WΤ"]
["35.93%","XΤ"]
["35.94%","YΤ"]
["35.95%","ZΤ"]
["35.96%","(Τ"]
["35.97%","#Τ"]
["35.98%","$Τ"]
[0.3599,")Τ"]
["6.01","A1"]
["6.02","A2"]
["6.03","A3"]
["6.04","A4"]
["6.05","A5"]
["6.06","A6"]
["6.07","A7"]
["6.08","A8"]
["6.09","A9"]
["6.10","B1"]
["6.11","B2"]
["6.12","B3"]
["6.13","B4"]
["6.14","B5"]
["6.15","B6"]
["6.16","B7"]
["6.17","B8"]
["6.18","B9"]
["6.19","C1"]
["6.20","C2"]
["6.21","C3"]
["6.22","C4"]
["6.23","C5"]
["6.24","C6"]
["6.25","C7"]
["6.26","C8"]
["6.27","C9"]
["6.28","D@"]
["6.29","D3"]
["6.30","D4"]
["6.31","D5"]
["6.32","D6"]
["6.33","D7"]
["6.34","D8"]
["6.35","D9"]
["6.36","D0"]
["6.37","E1"]
["6.38","E2"]
["6.39","E3"]
["6.40","E4"]
["6.41","E5"]
["6.42","E6"]
["6.43","E7"]
["6.44","E8"]
["6.45","E9"]
["6.46","F0"]
["6.47","F1"]
["6.48","F2"]
["6.49","F3"]
["6.50","F4"]
["6.51","F5"]
["6.52","F6"]
["6.53","F7"]
["6.54","F8"]
["6.55","G0"]
["6.56","G1"]
["6.57","G2"]
["6.58","G3"]
["6.59","G4"]
["6.60","G5"]
["6.61","G6"]
["6.62","G7"]
["6.63","G8"]
["6.64","H0"]
["6.65","H1"]
["6.66","H2"]
["6.67","H3"]
["6.68","H4"]
["6.69","H5"]
["6.70","H6"]
["6.71","H7"]
["6.72","H8"]
["6.73","I0"]
["6.74","I1"]
["6.75","I2"]
["6.76","I3"]
["6.77","I4"]
["6.78","I5"]
["6.79","I6"]
["6.80","I7"]
["6.81","I8"]
["6.82","J0"]
["6.83","J1"]
["6.84","J2"]
["6.85","J3"]
["6.86","J4"]
["6.87","J5"]
["6.88","J6"]
["6.89","J7"]
["6.90","J8"]
["6.91","K0"]
["6.92","K1"]
["6.93","K2"]
["6.94","K3"]
["6.95","K4"]
["6.96","K5"]
["6.97","K6"]
["6.98","K7"]
["6.99","K8"]
["7.01","@A"]
["7.02","@B"]
["7.03","@C"]
["7.04","@D"]
["7.05","@E"]
["7.06","@F"]
["7.07","@G"]
["7.08","@H"]
["7.09","@I"]
["7.10","@J"]
["7.11","@K"]
["7.12","@L"]
["7.13","@M"]
["7.14","@N"]
["7.15","@O"]
["7.16","@P"]
["7.17","@Q"]
["7.18","@R"]
["7.19","@S"]
["7.20","@T"]
["7.21","@U"]
["7.22","@V"]
["7.23","@W"]
["7.24","@X"]
["7.25","@Y"]
["7.26","@Z"]
["7.27","&A"]
["7.28","&B"]
["7.29","&C"]
["7.30","&D"]
["7.31","&E"]
["7.32","&F"]
["7.33","&G"]
["7.34","&H"]
["7.35","&I"]
["7.36","&J"]
["7.37","&K"]
["7.38","&L"]
["7.39","&M"]
["7.40","&N"]
["7.41","&O"]
["7.42","&P"]
["7.43","&Q"]
["7.44","&R"]
["7.45","&S"]
["7.46","&T"]
["7.47","&U"]
["7.48","&V"]
["7.49","&W"]
["7.50","&X"]
["7.51","&Y"]
["7.52","&Z"]
["7.53","%A"]
["7.54","%B"]
["7.55","%C"]
["7.56","%D"]
["7.57","%E"]
["7.58","%F"]
["7.59","%G"]
["7.60","%H"]
["7.61","%I"]
["7.62","%J"]
["7.63","%K"]
["7.64","%L"]
["7.65","%M"]
["7.66","%N"]
["7.67","%O"]
["7.68","%P"]
["7.69","%Q"]
["7.70","%R"]
["7.71","%S"]
["7.72","%T"]
["7.73","%U"]
["7.74","%V"]
["7.75","%W"]
["7.76","%X"]
["7.77","%Y"]
["7.78","%Z"]
["7.79","3A"]
["7.80","3B"]
["7.81","3C"]
["7.82","3D"]
["7.83","3E"]
["7.84","3F"]
["7.85","3G"]
["7.86","3H"]
["7.87","3I"]
["7.88","3J"]
["7.89","3K"]
["7.90","3L"]
["7.91","3M"]
["7.92","3N"]
["7.93","3O"]
["7.94","3P"]
["7.95","3Q"]
["7.96","3R"]
["7.97","3S"]
["7.98","3T"]
["7.99","3U"]
["8.00","4A"]
["8.01","4B"]
["8.02","4C"]
["8.03","4D"]
["8.04","4E"]
["8.05","4F"]
["8.06","4G"]
["8.07","4H"]
["8.08","4I"]
["8.09","4J"]
["8.10","4K"]
["8.11","4L"]
["8.12","4M"]
["8.13","4N"]
["8.14","4O"]
["8.15","4P"]
["8.16","4Q"]
["8.17","4R"]
["8.18","4S"]
["8.19","4T"]
["8.20","4U"]
["8.21","4V"]
["8.22","4W"]
["8.23","4X"]
["8.24","4Y"]
["8.25","4Z"]
["8.26","5A"]
["8.27","5B"]
["8.28","5C"]
["8.29","5D"]
["8.30","5E"]
["8.31","5F"]
["8.32","5G"]
["8.33","5H"]
["8.34","5I"]
["8.35","5J"]
["8.36","5K"]
["8.37","5L"]
["8.38","5M"]
["8.39","5N"]
["8.40","5O"]
["8.41","5P"]
["8.42","5Q"]
["8.43","5R"]
["8.44","5S"]
["8.45","5T"]
["8.46","5U"]
["8.47","5V"]
["8.48","5W"]
["8.49","5X"]
["8.50","5Y"]
["8.51","5Z"]
["8.52","6A"]
["8.53","6B"]
["8.54","6C"]
["8.55","6D"]
["8.56","6E"]
["8.57","6F"]
["8.58","6G"]
["8.59","6H"]
["8.60","6I"]
["8.61","6J"]
["8.62","6K"]
["8.63","6L"]
["8.64","6M"]
["8.65","6N"]
["8.66","6O"]
["8.67","6P"]
["8.68","6Q"]
["8.69","6R"]
["8.70","6S"]
["8.71","6T"]
["8.72","6U"]
["8.73","6V"]
["8.74","6W"]
["8.75","6X"]
["8.76","6Y"]
["8.77","6Z"]
["8.78","7A"]
["8.79","7B"]
["8.80","7C"]
["8.81","7D"]
["8.82","7E"]
["8.83","7F"]
["8.84","7G"]
["8.85","7H"]
["8.86","7I"]
["8.87","7J"]
["8.88","7K"]
["8.89","7L"]
["8.90","7M"]
["8.91","7N"]
["8.92","7O"]
["8.93","7P"]
["8.94","7Q"]
["8.95","7R"]
["8.96","7S"]
["8.97","7T"]
["8.98","7U"]
["8.99","7V"]
["9.00","7W"]
["9.01","7X"]
["9.02","7Y"]
["9.03","7Z"]
["9.04","8A"]
["9.05","8B"]
["9.06","8C"]
["9.07","8D"]
["9.08","8E"]
["9.09","8F"]
["9.10","8G"]
["9.11","8H"]
["9.12","8I"]
["9.13","8J"]
["9.14","8K"]
["9.15","8L"]
["9.16","8M"]
["9.17","8N"]
["9.18","8O"]
["9.19","8P"]
["9.20","8Q"]
["9.21","8R"]
["9.22","8S"]
["9.23","8T"]
["9.24","8U"]
["9.25","8V"]
["9.26","8W"]
["9.27","8X"]
["9.28","8Y"]
["9.29","8Z"]
["9.30","9A"]
["9.31","9B"]
["9.32","9C"]
["9.33","9D"]
["9.34","9E"]
["9.35","9F"]
["9.36","9G"]
["9.37","9H"]
["9.38","9I"]
["9.39","9J"]
["9.40","9K"]
["9.41","9L"]
["9.42","9M"]
["9.43","9N"]
["9.44","9O"]
["9.45","9P"]
["9.46","9Q"]
["9.47","9R"]
["9.48","9S"]
["9.49","9T"]
["9.50","9U"]
["9.51","9V"]
["9.52","9W"]
["9.53","9X"]
["9.54","9Y"]
["9.55","9Z"]
["9.56","AA"]
["9.57","AB"]
["9.58","AC"]
["9.59","AD"]
["9.60","AE"]
["9.61","AF"]
["9.62","AG"]
["9.63","AH"]
["9.64","AI"]
["9.65","AJ"]
["9.66","AK"]
["9.67","AL"]
["9.68","AM"]
["9.69","AN"]
["9.70","AO"]
["9.71","AP"]
["9.72","AQ"]
["9.73","AR"]
["9.74","AS"]
["9.75","AT"]
["9.76","AU"]
["9.77","AV"]
["9.78","AW"]
["9.79","AX"]
["9.80","AY"]
["9.81","AZ"]
["9.82","BA"]
["9.83","BB"]
["9.84","BC"]
["9.85","BD"]
["9.86","BE"]
["9.87","BF"]
["9.88","BG"]
["9.89","BH"]
["9.90","BI"]
["9.91","BJ"]
["9.92","BK"]
["9.93","BL"]
["9.94","BM"]
["9.95","BN"]
["9.96","BO"]
["9.97","BP"]
["9.98","BQ"]
["9.99","BR"]
["Bal.int.calc.term 2","03"]
["Bal.int.calc.term 3","05"]
["CF - HNB Loan","1H"]
["CM-HNB-Money Mkt Loa","2C"]
["CWM Grp CA Inter Com","2J"]
["CWM Grp CA Inter Pro","2K"]
["CWM Grp-Inter Compny","2H"]
["CWM Grp-Inter Profit","2I"]
["CW-SCAN -HNB","2B"]
["CW-SCB-Packing Credi","2A"]
["DB TR Commercial","D1"]
["DB TR HNB","D2"]
["Debenture Type A","1J"]
["Debenture Type B","1K"]
["Debenture Type C","1L"]
["Debenture Type D","1M"]
["EB Comm Paper","1U"]
["EB LT Comm 1","1N"]
["EB LT Comm 2","1P"]
["EB LT Comm 3","1Q"]
["EB LT HNB","1R"]
["EB LT NDB","1!"]
["EB LT NTB","1S"]
["EB LT Sampth","1O"]
["EB ST HNB","1T"]
["EB TR Comm","1V"]
["EB TR HNB","1Y"]
["EB TR NTB","1Z"]
["EB TR Sampath","1X"]
["Int-Security Dep 10%","50"]
["Item int.calc.IOA CL","VK"]
["Item int.calc.term 2","04"]
["KVC -CBC- Long","2D"]
["KVC -CBC- Savings","2G"]
["KVC -CBC- Short1","2E"]
["KVC -CBC- Short2","2F"]
["LB LT Sampath","L2"]
["LB TR DFCC","L4"]
["LB TR Sampath","L1"]
["LB TR UBC","L3"]
["LS - HNB - Fixed","1E"]
["LS - HNB - Saving","1C"]
["LS - NDB - Fixed","1F"]
["LS - NDB - Saving","1D"]
["LS-Inter Company","1G"]
["LS-NTB-Term-Y1&Y2","1A"]
["LS-NTB-Term-Y3&Y4","1B"]
["MP -Inter Company","1I"]
["Pjct interest calc.","10"]
["Postenverz. Kond. 2","04"]
["Postenverz. Standard","01"]
["Postenverz. VZ KK","VK"]
["PP TR HNB","P1"]
["PP TR NDB","P3"]
["PP TR UBC","P2"]
["Projektverzinsung","10"]
["Saldenverz. Kond. 2","03"]
["Saldenverz. Kond. 3","05"]
["Saldenverz. Standard","02"]
["Short Term Loan","Z1"]
["Standard bal.int.cal","02"]
["Standard itm int.cal","01"]

{"sheet":"Currency","index":10,"n_rows":211,"n_cols":9,"rows_kept":211,"cut":false,"hidden":true,"merged":[]}
[null,null,null,"O35",null,null,"Z21",null,"AL36"]
["Sri Lankan Rupee - LKR","LKR",null,{"$f":"_xlfn._xlws.FILTER(A2:A211,ISNUMBER(SEARCH(Vendor!L35,A2:A211)),\"Not found\")","v":"Sri Lankan Rupee - LKR"},null,null,{"$f":"_xlfn._xlws.FILTER(A2:A211,ISNUMBER(SEARCH(Vendor!Z21,A2:A211)),\"Not found\")","v":"Sri Lankan Rupee - LKR"},null,{"$f":"_xlfn._xlws.FILTER(A2:A211,ISNUMBER(SEARCH(Vendor!AL36,A2:A211)),\"Not found\")","v":"Sri Lankan Rupee - LKR"}]
["United States Dollar - USD","USD",null,null,null,null,null,null,"United States Dollar - USD"]
["British Pound - GBP","GBP",null,null,null,null,null,null,"British Pound - GBP"]
["Andorran Peseta --> (Old --> EUR) - ADP","ADP",null,null,null,null,null,null,"Andorran Peseta --> (Old --> EUR) - ADP"]
["United Arab Emirates Dirham - AED","AED",null,null,null,null,null,null,"United Arab Emirates Dirham - AED"]
["Afghani (Old) - AFA","AFA",null,null,null,null,null,null,"Afghani (Old) - AFA"]
["Afghani - AFN","AFN",null,null,null,null,null,null,"Afghani - AFN"]
["Albanian Lek - ALL","ALL",null,null,null,null,null,null,"Albanian Lek - ALL"]
["Armenian Dram - AMD","AMD",null,null,null,null,null,null,"Armenian Dram - AMD"]
["West Indian Guilder - ANG","ANG",null,null,null,null,null,null,"West Indian Guilder - ANG"]
["Angolanische Kwanza - AOA","AOA",null,null,null,null,null,null,"Angolanische Kwanza - AOA"]
["Angolan New Kwanza (Old) - AON","AON",null,null,null,null,null,null,"Angolan New Kwanza (Old) - AON"]
["Angolan Kwanza Reajustado (Old) - AOR","AOR",null,null,null,null,null,null,"Angolan Kwanza Reajustado (Old) - AOR"]
["Argentine Peso - ARS","ARS",null,null,null,null,null,null,"Argentine Peso - ARS"]
["Austrian Schilling (Old --> EUR) - ATS","ATS",null,null,null,null,null,null,"Austrian Schilling (Old --> EUR) - ATS"]
["Australian Dollar - AUD","AUD",null,null,null,null,null,null,"Australian Dollar - AUD"]
["Aruban Florin - AWG","AWG",null,null,null,null,null,null,"Aruban Florin - AWG"]
["Azerbaijani Manat (Old) - AZM","AZM",null,null,null,null,null,null,"Azerbaijani Manat (Old) - AZM"]
["Azerbaijani Manat - AZN","AZN",null,null,null,null,null,null,"Azerbaijani Manat - AZN"]
["Bosnia and Herzegovina Convertible Mark - BAM","BAM",null,null,null,null,null,null,"Bosnia and Herzegovina Convertible Mark - BAM"]
["Barbados Dollar - BBD","BBD",null,null,null,null,null,null,"Barbados Dollar - BBD"]
["Bangladesh Taka - BDT","BDT",null,null,null,null,null,null,"Bangladesh Taka - BDT"]
["Belgian Franc (Old --> EUR) - BEF","BEF",null,null,null,null,null,null,"Belgian Franc (Old --> EUR) - BEF"]
["Bulgarian Lev - BGN","BGN",null,null,null,null,null,null,"Bulgarian Lev - BGN"]
["Bahraini Dinar - BHD","BHD",null,null,null,null,null,null,"Bahraini Dinar - BHD"]
["Burundi Franc - BIF","BIF",null,null,null,null,null,null,"Burundi Franc - BIF"]
["Bermudan Dollar - BMD","BMD",null,null,null,null,null,null,"Bermudan Dollar - BMD"]
["Brunei Dollar - BND","BND",null,null,null,null,null,null,"Brunei Dollar - BND"]
["Boliviano - BOB","BOB",null,null,null,null,null,null,"Boliviano - BOB"]
["Brazilian Real - BRL","BRL",null,null,null,null,null,null,"Brazilian Real - BRL"]
["Bahaman Dollar - BSD","BSD",null,null,null,null,null,null,"Bahaman Dollar - BSD"]
["Bhutan Ngultrum - BTN","BTN",null,null,null,null,null,null,"Bhutan Ngultrum - BTN"]
["Botswana Pula - BWP","BWP",null,null,null,null,null,null,"Botswana Pula - BWP"]
["Belarusian Ruble (Old) - BYB","BYB",null,null,null,null,null,null,"Belarusian Ruble (Old) - BYB"]
["Belarusian Ruble - BYR","BYR",null,null,null,null,null,null,"Belarusian Ruble - BYR"]
["Belize Dollar - BZD","BZD",null,null,null,null,null,null,"Belize Dollar - BZD"]
["Canadian Dollar - CAD","CAD",null,null,null,null,null,null,"Canadian Dollar - CAD"]
["Congolese Franc - CDF","CDF",null,null,null,null,null,null,"Congolese Franc - CDF"]
["French Franc (Pacific Islands) - CFP","CFP",null,null,null,null,null,null,"French Franc (Pacific Islands) - CFP"]
["Swiss Franc - CHF","CHF",null,null,null,null,null,null,"Swiss Franc - CHF"]
["Chilean Peso - CLP","CLP",null,null,null,null,null,null,"Chilean Peso - CLP"]
["Chinese Renminbi - CNY","CNY",null,null,null,null,null,null,"Chinese Renminbi - CNY"]
["Colombian Peso - COP","COP",null,null,null,null,null,null,"Colombian Peso - COP"]
["Costa Rica Colon - CRC","CRC",null,null,null,null,null,null,"Costa Rica Colon - CRC"]
["Serbian Dinar (Old) - CSD","CSD",null,null,null,null,null,null,"Serbian Dinar (Old) - CSD"]
["Peso Convertible - CUC","CUC",null,null,null,null,null,null,"Peso Convertible - CUC"]
["Cuban Peso - CUP","CUP",null,null,null,null,null,null,"Cuban Peso - CUP"]
["Cape Verde Escudo - CVE","CVE",null,null,null,null,null,null,"Cape Verde Escudo - CVE"]
["Cyprus Pound  (Old --> EUR) - CYP","CYP",null,null,null,null,null,null,"Cyprus Pound  (Old --> EUR) - CYP"]
["Czech Krona - CZK","CZK",null,null,null,null,null,null,"Czech Krona - CZK"]
["German Mark    (Old --> EUR) - DEM","DEM",null,null,null,null,null,null,"German Mark    (Old --> EUR) - DEM"]
["(Internal) German Mark (3 dec.places) - DEM3","DEM3",null,null,null,null,null,null,"(Internal) German Mark (3 dec.places) - DEM3"]
["Djibouti Franc - DJF","DJF",null,null,null,null,null,null,"Djibouti Franc - DJF"]
["Danish Krone - DKK","DKK",null,null,null,null,null,null,"Danish Krone - DKK"]
["Dominican Peso - DOP","DOP",null,null,null,null,null,null,"Dominican Peso - DOP"]
["Algerian Dinar - DZD","DZD",null,null,null,null,null,null,"Algerian Dinar - DZD"]
["Ecuadorian Sucre (Old --> USD) - ECS","ECS",null,null,null,null,null,null,"Ecuadorian Sucre (Old --> USD) - ECS"]
["Estonian Krone (Old --> EUR) - EEK","EEK",null,null,null,null,null,null,"Estonian Krone (Old --> EUR) - EEK"]
["Egyptian Pound - EGP","EGP",null,null,null,null,null,null,"Egyptian Pound - EGP"]
["Eritrean Nafka - ERN","ERN",null,null,null,null,null,null,"Eritrean Nafka - ERN"]
["Spanish Peseta (Old --> EUR) - ESP","ESP",null,null,null,null,null,null,"Spanish Peseta (Old --> EUR) - ESP"]
["Ethiopian Birr - ETB","ETB",null,null,null,null,null,null,"Ethiopian Birr - ETB"]
["European Euro - EUR","EUR",null,null,null,null,null,null,"European Euro - EUR"]
["European Euro - EUR4","EUR4",null,null,null,null,null,null,"European Euro - EUR4"]
["Finnish Markka (Old --> EUR) - FIM","FIM",null,null,null,null,null,null,"Finnish Markka (Old --> EUR) - FIM"]
["Fiji Dollar - FJD","FJD",null,null,null,null,null,null,"Fiji Dollar - FJD"]
["Falkland Pound - FKP","FKP",null,null,null,null,null,null,"Falkland Pound - FKP"]
["French Franc (Old --> EUR) - FRF","FRF",null,null,null,null,null,null,"French Franc (Old --> EUR) - FRF"]
["Georgian Lari - GEL","GEL",null,null,null,null,null,null,"Georgian Lari - GEL"]
["Ghanaian Cedi (Old) - GHC","GHC",null,null,null,null,null,null,"Ghanaian Cedi (Old) - GHC"]
["Ghanian Cedi - GHS","GHS",null,null,null,null,null,null,"Ghanian Cedi - GHS"]
["Gibraltar Pound - GIP","GIP",null,null,null,null,null,null,"Gibraltar Pound - GIP"]
["Gambian Dalasi - GMD","GMD",null,null,null,null,null,null,"Gambian Dalasi - GMD"]
["Guinean Franc - GNF","GNF",null,null,null,null,null,null,"Guinean Franc - GNF"]
["Greek Drachma (Old --> EUR) - GRD","GRD",null,null,null,null,null,null,"Greek Drachma (Old --> EUR) - GRD"]
["Guatemalan Quetzal - GTQ","GTQ",null,null,null,null,null,null,"Guatemalan Quetzal - GTQ"]
["Guinea Peso (Old --> SHP) - GWP","GWP",null,null,null,null,null,null,"Guinea Peso (Old --> SHP) - GWP"]
["Guyana Dollar - GYD","GYD",null,null,null,null,null,null,"Guyana Dollar - GYD"]
["Hong Kong Dollar - HKD","HKD",null,null,null,null,null,null,"Hong Kong Dollar - HKD"]
["Honduran Lempira - HNL","HNL",null,null,null,null,null,null,"Honduran Lempira - HNL"]
["Croatian Kuna - HRK","HRK",null,null,null,null,null,null,"Croatian Kuna - HRK"]
["Haitian Gourde - HTG","HTG",null,null,null,null,null,null,"Haitian Gourde - HTG"]
["Hungarian Forint - HUF","HUF",null,null,null,null,null,null,"Hungarian Forint - HUF"]
["Indonesian Rupiah - IDR","IDR",null,null,null,null,null,null,"Indonesian Rupiah - IDR"]
["Irish Punt (Old --> EUR) - IEP","IEP",null,null,null,null,null,null,"Irish Punt (Old --> EUR) - IEP"]
["Israeli Scheckel - ILS","ILS",null,null,null,null,null,null,"Israeli Scheckel - ILS"]
["Indian Rupee - INR","INR",null,null,null,null,null,null,"Indian Rupee - INR"]
["Iraqui Dinar - IQD","IQD",null,null,null,null,null,null,"Iraqui Dinar - IQD"]
["Iranian Rial - IRR","IRR",null,null,null,null,null,null,"Iranian Rial - IRR"]
["Iceland Krona - ISK","ISK",null,null,null,null,null,null,"Iceland Krona - ISK"]
["Italian Lira (Old --> EUR) - ITL","ITL",null,null,null,null,null,null,"Italian Lira (Old --> EUR) - ITL"]
["Jamaican Dollar - JMD","JMD",null,null,null,null,null,null,"Jamaican Dollar - JMD"]
["Jordanian Dinar - JOD","JOD",null,null,null,null,null,null,"Jordanian Dinar - JOD"]
["Japanese Yen - JPY","JPY",null,null,null,null,null,null,"Japanese Yen - JPY"]
["Kenyan Shilling - KES","KES",null,null,null,null,null,null,"Kenyan Shilling - KES"]
["Kyrgyzstan Som - KGS","KGS",null,null,null,null,null,null,"Kyrgyzstan Som - KGS"]
["Cambodian Riel - KHR","KHR",null,null,null,null,null,null,"Cambodian Riel - KHR"]
["Comoros Franc - KMF","KMF",null,null,null,null,null,null,"Comoros Franc - KMF"]
["North Korean Won - KPW","KPW",null,null,null,null,null,null,"North Korean Won - KPW"]
["South Korean Won - KRW","KRW",null,null,null,null,null,null,"South Korean Won - KRW"]
["Kuwaiti Dinar - KWD","KWD",null,null,null,null,null,null,"Kuwaiti Dinar - KWD"]
["Cayman Dollar - KYD","KYD",null,null,null,null,null,null,"Cayman Dollar - KYD"]
["Kazakstanian Tenge - KZT","KZT",null,null,null,null,null,null,"Kazakstanian Tenge - KZT"]
["Laotian Kip - LAK","LAK",null,null,null,null,null,null,"Laotian Kip - LAK"]
["Lebanese Pound - LBP","LBP",null,null,null,null,null,null,"Lebanese Pound - LBP"]
["Liberian Dollar - LRD","LRD",null,null,null,null,null,null,"Liberian Dollar - LRD"]
["Lesotho Loti - LSL","LSL",null,null,null,null,null,null,"Lesotho Loti - LSL"]
["Lithuanian Lita - LTL","LTL",null,null,null,null,null,null,"Lithuanian Lita - LTL"]
["Luxembourg Franc (Old --> EUR) - LUF","LUF",null,null,null,null,null,null,"Luxembourg Franc (Old --> EUR) - LUF"]
["Latvian Lat - LVL","LVL",null,null,null,null,null,null,"Latvian Lat - LVL"]
["Libyan Dinar - LYD","LYD",null,null,null,null,null,null,"Libyan Dinar - LYD"]
["Moroccan Dirham - MAD","MAD",null,null,null,null,null,null,"Moroccan Dirham - MAD"]
["Moldavian Leu - MDL","MDL",null,null,null,null,null,null,"Moldavian Leu - MDL"]
["Madagascan Ariary - MGA","MGA",null,null,null,null,null,null,"Madagascan Ariary - MGA"]
["Madagascan Franc (Old - MGF","MGF",null,null,null,null,null,null,"Madagascan Franc (Old - MGF"]
["Macedonian Denar - MKD","MKD",null,null,null,null,null,null,"Macedonian Denar - MKD"]
["Myanmar Kyat - MMK","MMK",null,null,null,null,null,null,"Myanmar Kyat - MMK"]
["Mongolian Tugrik - MNT","MNT",null,null,null,null,null,null,"Mongolian Tugrik - MNT"]
["Macao Pataca - MOP","MOP",null,null,null,null,null,null,"Macao Pataca - MOP"]
["Mauritanian Ouguiya - MRO","MRO",null,null,null,null,null,null,"Mauritanian Ouguiya - MRO"]
["Maltese Lira (Old --> EUR) - MTL","MTL",null,null,null,null,null,null,"Maltese Lira (Old --> EUR) - MTL"]
["Mauritian Rupee - MUR","MUR",null,null,null,null,null,null,"Mauritian Rupee - MUR"]
["Maldive Rufiyaa - MVR","MVR",null,null,null,null,null,null,"Maldive Rufiyaa - MVR"]
["Malawi Kwacha - MWK","MWK",null,null,null,null,null,null,"Malawi Kwacha - MWK"]
["Mexican Pesos - MXN","MXN",null,null,null,null,null,null,"Mexican Pesos - MXN"]
["Malaysian Ringgit - MYR","MYR",null,null,null,null,null,null,"Malaysian Ringgit - MYR"]
["Mozambique Metical (Old) - MZM","MZM",null,null,null,null,null,null,"Mozambique Metical (Old) - MZM"]
["Mozambique Metical - MZN","MZN",null,null,null,null,null,null,"Mozambique Metical - MZN"]
["Namibian Dollar - NAD","NAD",null,null,null,null,null,null,"Namibian Dollar - NAD"]
["Nigerian Naira - NGN","NGN",null,null,null,null,null,null,"Nigerian Naira - NGN"]
["Nicaraguan Cordoba Oro - NIO","NIO",null,null,null,null,null,null,"Nicaraguan Cordoba Oro - NIO"]
["Dutch Guilder (Old --> EUR) - NLG","NLG",null,null,null,null,null,null,"Dutch Guilder (Old --> EUR) - NLG"]
["Norwegian Krone - NOK","NOK",null,null,null,null,null,null,"Norwegian Krone - NOK"]
["Nepalese Rupee - NPR","NPR",null,null,null,null,null,null,"Nepalese Rupee - NPR"]
["New Zealand Dollars - NZD","NZD",null,null,null,null,null,null,"New Zealand Dollars - NZD"]
["New Zealand Dollars - NZD5","NZD5",null,null,null,null,null,null,"New Zealand Dollars - NZD5"]
["Omani Rial - OMR","OMR",null,null,null,null,null,null,"Omani Rial - OMR"]
["Panamanian Balboa - PAB","PAB",null,null,null,null,null,null,"Panamanian Balboa - PAB"]
["Peruvian New Sol - PEN","PEN",null,null,null,null,null,null,"Peruvian New Sol - PEN"]
["Papua New Guinea Kina - PGK","PGK",null,null,null,null,null,null,"Papua New Guinea Kina - PGK"]
["Philippine Peso - PHP","PHP",null,null,null,null,null,null,"Philippine Peso - PHP"]
["Pakistani Rupee - PKR","PKR",null,null,null,null,null,null,"Pakistani Rupee - PKR"]
["Polish Zloty (new) - PLN","PLN",null,null,null,null,null,null,"Polish Zloty (new) - PLN"]
["Portuguese Escudo (Old --> EUR) - PTE","PTE",null,null,null,null,null,null,"Portuguese Escudo (Old --> EUR) - PTE"]
["Paraguayan Guarani - PYG","PYG",null,null,null,null,null,null,"Paraguayan Guarani - PYG"]
["Qatar Rial - QAR","QAR",null,null,null,null,null,null,"Qatar Rial - QAR"]
["Chinese Yuan Renminbi - RMB","RMB",null,null,null,null,null,null,"Chinese Yuan Renminbi - RMB"]
["Romanian Leu (Old) - ROL","ROL",null,null,null,null,null,null,"Romanian Leu (Old) - ROL"]
["Romanian Leu - RON","RON",null,null,null,null,null,null,"Romanian Leu - RON"]
["Serbian Dinar - RSD","RSD",null,null,null,null,null,null,"Serbian Dinar - RSD"]
["Russian Ruble - RUB","RUB",null,null,null,null,null,null,"Russian Ruble - RUB"]
["Rwandan Franc - RWF","RWF",null,null,null,null,null,null,"Rwandan Franc - RWF"]
["Saudi Riyal - SAR","SAR",null,null,null,null,null,null,"Saudi Riyal - SAR"]
["Solomon Islands Dollar - SBD","SBD",null,null,null,null,null,null,"Solomon Islands Dollar - SBD"]
["Seychelles Rupee - SCR","SCR",null,null,null,null,null,null,"Seychelles Rupee - SCR"]
["Sudanese Dinar (Old) - SDD","SDD",null,null,null,null,null,null,"Sudanese Dinar (Old) - SDD"]
["Sudanese Pound - SDG","SDG",null,null,null,null,null,null,"Sudanese Pound - SDG"]
["Sudanese Pound (until 1992) - SDP","SDP",null,null,null,null,null,null,"Sudanese Pound (until 1992) - SDP"]
["Swedish Krona - SEK","SEK",null,null,null,null,null,null,"Swedish Krona - SEK"]
["Singapore Dollar - SGD","SGD",null,null,null,null,null,null,"Singapore Dollar - SGD"]
["St.Helena Pound - SHP","SHP",null,null,null,null,null,null,"St.Helena Pound - SHP"]
["Slovenian Tolar (Old --> EUR) - SIT","SIT",null,null,null,null,null,null,"Slovenian Tolar (Old --> EUR) - SIT"]
["Slovakian Krona (Old --> EUR) - SKK","SKK",null,null,null,null,null,null,"Slovakian Krona (Old --> EUR) - SKK"]
["Sierra Leone Leone - SLL","SLL",null,null,null,null,null,null,"Sierra Leone Leone - SLL"]
["Somalian Shilling - SOS","SOS",null,null,null,null,null,null,"Somalian Shilling - SOS"]
["Surinam Dollar - SRD","SRD",null,null,null,null,null,null,"Surinam Dollar - SRD"]
["Surinam Guilder (Old) - SRG","SRG",null,null,null,null,null,null,"Surinam Guilder (Old) - SRG"]
["South Sudanese Pound - SSP","SSP",null,null,null,null,null,null,"South Sudanese Pound - SSP"]
["Sao Tome / Principe Dobra - STD","STD",null,null,null,null,null,null,"Sao Tome / Principe Dobra - STD"]
["El Salvador Colon - SVC","SVC",null,null,null,null,null,null,"El Salvador Colon - SVC"]
["Syrian Pound - SYP","SYP",null,null,null,null,null,null,"Syrian Pound - SYP"]
["Swaziland Lilangeni - SZL","SZL",null,null,null,null,null,null,"Swaziland Lilangeni - SZL"]
["Thailand Baht - THB","THB",null,null,null,null,null,null,"Thailand Baht - THB"]
["Tajikistani Ruble (Old) - TJR","TJR",null,null,null,null,null,null,"Tajikistani Ruble (Old) - TJR"]
["Tajikistani Somoni - TJS","TJS",null,null,null,null,null,null,"Tajikistani Somoni - TJS"]
["Turkmenistani Manat (Old) - TMM","TMM",null,null,null,null,null,null,"Turkmenistani Manat (Old) - TMM"]
["Turkmenistani Manat - TMT","TMT",null,null,null,null,null,null,"Turkmenistani Manat - TMT"]
["Tunisian Dinar - TND","TND",null,null,null,null,null,null,"Tunisian Dinar - TND"]
["Tongan Pa'anga - TOP","TOP",null,null,null,null,null,null,"Tongan Pa'anga - TOP"]
["Timor Escudo --> USD - TPE","TPE",null,null,null,null,null,null,"Timor Escudo --> USD - TPE"]
["Turkish Lira (Old) - TRL","TRL",null,null,null,null,null,null,"Turkish Lira (Old) - TRL"]
["Turkish Lira - TRY","TRY",null,null,null,null,null,null,"Turkish Lira - TRY"]
["Trinidad and Tobago Dollar - TTD","TTD",null,null,null,null,null,null,"Trinidad and Tobago Dollar - TTD"]
["New Taiwan Dollar - TWD","TWD",null,null,null,null,null,null,"New Taiwan Dollar - TWD"]
["Tanzanian Shilling - TZS","TZS",null,null,null,null,null,null,"Tanzanian Shilling - TZS"]
["Ukraine Hryvnia - UAH","UAH",null,null,null,null,null,null,"Ukraine Hryvnia - UAH"]
["Ugandan Shilling - UGX","UGX",null,null,null,null,null,null,"Ugandan Shilling - UGX"]
["(Internal) United States Dollar (5 Dec.) - USDN","USDN",null,null,null,null,null,null,"(Internal) United States Dollar (5 Dec.) - USDN"]
["Uruguayan Peso - UYU","UYU",null,null,null,null,null,null,"Uruguayan Peso - UYU"]
["Uzbekistan Som - UZS","UZS",null,null,null,null,null,null,"Uzbekistan Som - UZS"]
["Venezuelan Bolivar (Old) - VEB","VEB",null,null,null,null,null,null,"Venezuelan Bolivar (Old) - VEB"]
["Venezuelan Bolivar - VEF","VEF",null,null,null,null,null,null,"Venezuelan Bolivar - VEF"]
["Vietnamese Dong - VND","VND",null,null,null,null,null,null,"Vietnamese Dong - VND"]
["Vanuatu Vatu - VUV","VUV",null,null,null,null,null,null,"Vanuatu Vatu - VUV"]
["Samoan Tala - WST","WST",null,null,null,null,null,null,"Samoan Tala - WST"]
["Gabon CFA Franc BEAC - XAF","XAF",null,null,null,null,null,null,"Gabon CFA Franc BEAC - XAF"]
["East Carribean Dollar - XCD","XCD",null,null,null,null,null,null,"East Carribean Dollar - XCD"]
["European Currency Unit (E.C.U.) - XEU","XEU",null,null,null,null,null,null,"European Currency Unit (E.C.U.) - XEU"]
["Benin CFA Franc BCEAO - XOF","XOF",null,null,null,null,null,null,"Benin CFA Franc BCEAO - XOF"]
["CFP Franc - XPF","XPF",null,null,null,null,null,null,"CFP Franc - XPF"]
["Yemeni Ryal - YER","YER",null,null,null,null,null,null,"Yemeni Ryal - YER"]
["New Yugoslavian Dinar (Old) - YUM","YUM",null,null,null,null,null,null,"New Yugoslavian Dinar (Old) - YUM"]
["South African Rand - ZAR","ZAR",null,null,null,null,null,null,"South African Rand - ZAR"]
["Zambian Kwacha (Old) - ZMK","ZMK",null,null,null,null,null,null,"Zambian Kwacha (Old) - ZMK"]
["Zambian Kwacha (New) - ZMW","ZMW",null,null,null,null,null,null,"Zambian Kwacha (New) - ZMW"]
["Zaire (Old) - ZRN","ZRN",null,null,null,null,null,null,"Zaire (Old) - ZRN"]
["Zimbabwean Dollar (Old) - ZWD","ZWD",null,null,null,null,null,null,"Zimbabwean Dollar (Old) - ZWD"]
["Zimbabwean Dollar (New) - ZWL","ZWL",null,null,null,null,null,null,"Zimbabwean Dollar (New) - ZWL"]
["Zimbabwean Dollar (Old) - ZWN","ZWN",null,null,null,null,null,null,"Zimbabwean Dollar (Old) - ZWN"]
["Zimbabwean Dollar (Old) - ZWR","ZWR",null,null,null,null,null,null,"Zimbabwean Dollar (Old) - ZWR"]

{"sheet":"Dropdowns","index":11,"n_rows":250,"n_cols":16,"rows_kept":250,"cut":false,"hidden":true,"merged":[]}
["Company Code","Company Name","Grouping","Title","Country Name","Country Code","Schema Grp Supp","Purch.Org",null,"Company Code","Purch.Org",null,null,"BR Number",null,"Government Institutions"]
[1000,"E.B.Creasy  & Co.PLC","Z1DM Domestic Business Partners","0001 Ms.","Andorra","AD","S1",1000,null,"1000",1000,null,null,"NIC  Number",null,"Private Institution/Person"]
[1100,"Darley Butler & Co. Ltd","Z2FR Foreign Business Partners","0002 Mr.","United Arab Emirates","AE","S2",1600,null,"1100",1000,null,null,"Passport Number"]
[1200,"E.B Creasy Logistics Ltd","Z5EM Employee Business Partners","0003 Company","Afghanistan","AF",null,1800,null,"1200",1000]
[1300,"Candy Delights Limited","Z6IL Investments/Loans Business Partners",null,"Antigua and Barbuda","AG",null,2000,null,"1300",1000]
[1400,"Laxapana Batteries PLC","Z3IC Inter Company Business Partners",null,"Anguilla","AI",null,2100,null,"1400",1000]
[1500,"Muller& Phipps Ceylon PLC","Z7ON One time Business Partners",null,"Albania","AL",null,2200,null,"1500",1000]
[1550,"Pettah Pharmacy (Pvt) Ltd",null,null,"Armenia","AM",null,2300,null,"1550",1000]
[1600,"Lanka Special Steels Ltd",null,null,"Angola","AO",null,3000,null,1600,1600]
[1700,"E.B.C. Power & Energy Ltd",null,null,"Antarctica","AQ",null,null,null,1700,1000]
[1800,"CEYFLEX Rubber Ltd.",null,null,"Argentina","AR",null,null,null,1800,1000]
[2000,"CW Mackie PLC",null,null,"American Samoa","AS",null,null,null,2000,2000]
[2100,"Ceymac Rubber Co. Ltd",null,null,"Austria","AT",null,null,null,2100,2100]
[2200,"Ceytra (Pvt) Ltd",null,null,"Australia","AU",null,null,null,2200,2200]
[2300,"Kelani Valley Can Pvt Ltd",null,null,"Aruba","AW",null,null,null,2300,2300]
[3000,"Kiffs (Pvt) Ltd",null,null,"Azerbaijan","AZ",null,null,null,3000,3000]
[3100,"Alliance Five (Pvt) Ltd",null,null,"Bosnia and Herzegovina","BA",null,null,null,3100,3000]
[3500,"Lankem Minerals Limited",null,null,"Barbados","BB",null,null,null,3500,3000]
[3800,"ACME Printing & Packaging",null,null,"Bangladesh","BD",null,null,null,3800,3000]
[3900,"ACME Packaging Solutions",null,null,"Belgium","BE",null,null,null,3900,3000]
[null,null,null,null,"Burkina Faso","BF"]
[null,null,null,null,"Bulgaria","BG"]
[null,null,null,null,"Bahrain","BH"]
[null,null,null,null,"Burundi","BI"]
[null,null,null,null,"Benin","BJ"]
[null,null,null,null,"Blue","BL"]
[null,null,null,null,"Bermuda","BM"]
[null,null,null,null,"Brunei Darussalam","BN"]
[null,null,null,null,"Bolivia","BO"]
[null,null,null,null,"Bonaire, Sint Eustatius and Saba","BQ"]
[null,null,null,null,"Brazil","BR"]
[null,null,null,null,"Bahamas","BS"]
[null,null,null,null,"Bhutan","BT"]
[null,null,null,null,"Bouvet Islands","BV"]
[null,null,null,null,"Botswana","BW"]
[null,null,null,null,"Belarus","BY"]
[null,null,null,null,"Belize","BZ"]
[null,null,null,null,"Canada","CA"]
[null,null,null,null,"Cocos (Keeling) Islands","CC"]
[null,null,null,null,"Democratic Republic of the Congo","CD"]
[null,null,null,null,"Central African Republic","CF"]
[null,null,null,null,"Republic of the Congo","CG"]
[null,null,null,null,"Switzerland","CH"]
[null,null,null,null,"Cote d'Ivoire","CI"]
[null,null,null,null,"Cook Islands","CK"]
[null,null,null,null,"Chile","CL"]
[null,null,null,null,"Cameroon","CM"]
[null,null,null,null,"China","CN"]
[null,null,null,null,"Colombia","CO"]
[null,null,null,null,"Costa Rica","CR"]
[null,null,null,null,"Serbia and Montenegro","CS"]
[null,null,null,null,"Cuba","CU"]
[null,null,null,null,"Cape Verde","CV"]
[null,null,null,null,"Curacao","CW"]
[null,null,null,null,"Christmas Islnd","CX"]
[null,null,null,null,"Cyprus","CY"]
[null,null,null,null,"Czech Republic","CZ"]
[null,null,null,null,"Germany","DE"]
[null,null,null,null,"Djibouti","DJ"]
[null,null,null,null,"Denmark","DK"]
[null,null,null,null,"Dominica","DM"]
[null,null,null,null,"Dominican Republic","DO"]
[null,null,null,null,"Algeria","DZ"]
[null,null,null,null,"Ecuador","EC"]
[null,null,null,null,"Estonia","EE"]
[null,null,null,null,"Egypt","EG"]
[null,null,null,null,"Western Sahara","EH"]
[null,null,null,null,"Eritrea","ER"]
[null,null,null,null,"Spain","ES"]
[null,null,null,null,"Ethiopia","ET"]
[null,null,null,null,"European Union","EU"]
[null,null,null,null,"Finland","FI"]
[null,null,null,null,"Fiji","FJ"]
[null,null,null,null,"Falkland Islands","FK"]
[null,null,null,null,"Micronesia","FM"]
[null,null,null,null,"Faroe Islands","FO"]
[null,null,null,null,"France","FR"]
[null,null,null,null,"Gabon","GA"]
[null,null,null,null,"United Kingdom","GB"]
[null,null,null,null,"Grenada","GD"]
[null,null,null,null,"Georgia","GE"]
[null,null,null,null,"French Guyana","GF"]
[null,null,null,null,"Guernsey (Channel Islands)","GG"]
[null,null,null,null,"Ghana","GH"]
[null,null,null,null,"Gibraltar","GI"]
[null,null,null,null,"Greenland","GL"]
[null,null,null,null,"Gambia","GM"]
[null,null,null,null,"Guinea","GN"]
[null,null,null,null,"Guadeloupe","GP"]
[null,null,null,null,"Equatorial Guinea","GQ"]
[null,null,null,null,"Greece","GR"]
[null,null,null,null,"South Georgia and the Southern Sandwich Islands","GS"]
[null,null,null,null,"Guatemala","GT"]
[null,null,null,null,"Guam","GU"]
[null,null,null,null,"Guinea-Bissau","GW"]
[null,null,null,null,"Guyana","GY"]
[null,null,null,null,"Hong Kong","HK"]
[null,null,null,null,"Heard and McDonald Islands","HM"]
[null,null,null,null,"Honduras","HN"]
[null,null,null,null,"Croatia","HR"]
[null,null,null,null,"Haiti","HT"]
[null,null,null,null,"Hungary","HU"]
[null,null,null,null,"Indonesia","ID"]
[null,null,null,null,"Ireland","IE"]
[null,null,null,null,"Israel","IL"]
[null,null,null,null,"Isle of Man","IM"]
[null,null,null,null,"India","IN"]
[null,null,null,null,"British Indian Ocean Territory","IO"]
[null,null,null,null,"Iraq","IQ"]
[null,null,null,null,"Iran","IR"]
[null,null,null,null,"Iceland","IS"]
[null,null,null,null,"Italy","IT"]
[null,null,null,null,"Jersey","JE"]
[null,null,null,null,"Jamaica","JM"]
[null,null,null,null,"Jordan","JO"]
[null,null,null,null,"Japan","JP"]
[null,null,null,null,"Kenya","KE"]
[null,null,null,null,"Kyrgyzstan","KG"]
[null,null,null,null,"Cambodia","KH"]
[null,null,null,null,"Kiribati","KI"]
[null,null,null,null,"Comoros","KM"]
[null,null,null,null,"Saint Kitts and Nevis","KN"]
[null,null,null,null,"North Korea","KP"]
[null,null,null,null,"South Korea","KR"]
[null,null,null,null,"Kuwait","KW"]
[null,null,null,null,"Cayman Islands","KY"]
[null,null,null,null,"Kazakhstan","KZ"]
[null,null,null,null,"Laos","LA"]
[null,null,null,null,"Lebanon","LB"]
[null,null,null,null,"St. Lucia","LC"]
[null,null,null,null,"Liechtenstein","LI"]
[null,null,null,null,"Sri Lanka","LK"]
[null,null,null,null,"Liberia","LR"]
[null,null,null,null,"Lesotho","LS"]
[null,null,null,null,"Lithuania","LT"]
[null,null,null,null,"Luxembourg","LU"]
[null,null,null,null,"Latvia","LV"]
[null,null,null,null,"Libya","LY"]
[null,null,null,null,"Morocco","MA"]
[null,null,null,null,"Monaco","MC"]
[null,null,null,null,"Moldova","MD"]
[null,null,null,null,"Madagascar","MG"]
[null,null,null,null,"Marshall Islands","MH"]
[null,null,null,null,"Macedonia","MK"]
[null,null,null,null,"Mali","ML"]
[null,null,null,null,"Burma","MM"]
[null,null,null,null,"Mongolia","MN"]
[null,null,null,null,"Macau","MO"]
[null,null,null,null,"North Mariana Islands","MP"]
[null,null,null,null,"Martinique","MQ"]
[null,null,null,null,"Mauritania","MR"]
[null,null,null,null,"Montserrat","MS"]
[null,null,null,null,"Malta","MT"]
[null,null,null,null,"Mauritius","MU"]
[null,null,null,null,"Maldives","MV"]
[null,null,null,null,"Malawi","MW"]
[null,null,null,null,"Mexico","MX"]
[null,null,null,null,"Malaysia","MY"]
[null,null,null,null,"Mozambique","MZ"]
[null,null,null,null,"Namibia","NA"]
[null,null,null,null,"New Caledonia","NC"]
[null,null,null,null,"Niger","NE"]
[null,null,null,null,"Norfolk Islands","NF"]
[null,null,null,null,"Nigeria","NG"]
[null,null,null,null,"Nicaragua","NI"]
[null,null,null,null,"Netherlands","NL"]
[null,null,null,null,"Norway","NO"]
[null,null,null,null,"Nepal","NP"]
[null,null,null,null,"Nauru","NR"]
[null,null,null,null,"NATO","NT"]
[null,null,null,null,"Niue","NU"]
[null,null,null,null,"New Zealand","NZ"]
[null,null,null,null,"Oman","OM"]
[null,null,null,null,"Orange","OR"]
[null,null,null,null,"Panama","PA"]
[null,null,null,null,"Peru","PE"]
[null,null,null,null,"French Polynesia","PF"]
[null,null,null,null,"Papua New Guinea","PG"]
[null,null,null,null,"Philippines","PH"]
[null,null,null,null,"Pakistan","PK"]
[null,null,null,null,"Poland","PL"]
[null,null,null,null,"St. Pierre and Miquelon","PM"]
[null,null,null,null,"Pitcairn Islands","PN"]
[null,null,null,null,"Puerto Rico","PR"]
[null,null,null,null,"Palestine","PS"]
[null,null,null,null,"Portugal","PT"]
[null,null,null,null,"Palau","PW"]
[null,null,null,null,"Paraguay","PY"]
[null,null,null,null,"Qatar","QA"]
[null,null,null,null,"Reunion","RE"]
[null,null,null,null,"Romania","RO"]
[null,null,null,null,"Russian Federation","RU"]
[null,null,null,null,"Rwanda","RW"]
[null,null,null,null,"Saudi Arabia","SA"]
[null,null,null,null,"Solomon Islands","SB"]
[null,null,null,null,"Seychelles","SC"]
[null,null,null,null,"Sudan","SD"]
[null,null,null,null,"Sweden","SE"]
[null,null,null,null,"Singapore","SG"]
[null,null,null,null,"Saint Helena","SH"]
[null,null,null,null,"Slovenia","SI"]
[null,null,null,null,"Svalbard","SJ"]
[null,null,null,null,"Slovakia","SK"]
[null,null,null,null,"Sierra Leone","SL"]
[null,null,null,null,"San Marino","SM"]
[null,null,null,null,"Senegal","SN"]
[null,null,null,null,"Somalia","SO"]
[null,null,null,null,"Suriname","SR"]
[null,null,null,null,"South Sudan","SS"]
[null,null,null,null,"Sao Tome and Principe","ST"]
[null,null,null,null,"El Salvador","SV"]
[null,null,null,null,"Sint Maarten (Dutch part)","SX"]
[null,null,null,null,"Syria","SY"]
[null,null,null,null,"Swaziland","SZ"]
[null,null,null,null,"Turks and Caicos Islands","TC"]
[null,null,null,null,"Chad","TD"]
[null,null,null,null,"French Southern and Antarctic Lands","TF"]
[null,null,null,null,"Togo","TG"]
[null,null,null,null,"Thailand","TH"]
[null,null,null,null,"Tajikistan","TJ"]
[null,null,null,null,"Tokelau Islands","TK"]
[null,null,null,null,"East Timor","TL"]
[null,null,null,null,"Turkmenistan","TM"]
[null,null,null,null,"Tunisia","TN"]
[null,null,null,null,"Tonga","TO"]
[null,null,null,null,"East Timor","TP"]
[null,null,null,null,"Turkey","TR"]
[null,null,null,null,"Trinidad and Tobago","TT"]
[null,null,null,null,"Tuvalu","TV"]
[null,null,null,null,"Taiwan","TW"]
[null,null,null,null,"Tanzania","TZ"]
[null,null,null,null,"Ukraine","UA"]
[null,null,null,null,"Uganda","UG"]
[null,null,null,null,"United States Minor Outlying Islands","UM"]
[null,null,null,null,"United Nations","UN"]
[null,null,null,null,"USA","US"]
[null,null,null,null,"Uruguay","UY"]
[null,null,null,null,"Uzbekistan","UZ"]
[null,null,null,null,"Vatican City","VA"]
[null,null,null,null,"St. Vincent and the Grenadines","VC"]
[null,null,null,null,"Venezuela","VE"]
[null,null,null,null,"British Virgin Islands","VG"]
[null,null,null,null,"United States Virgin Islands","VI"]
[null,null,null,null,"Vietnam","VN"]
[null,null,null,null,"Vanuatu","VU"]
[null,null,null,null,"Wallis and Futuna Islands","WF"]
[null,null,null,null,"Samoa","WS"]
[null,null,null,null,"Yemen","YE"]
[null,null,null,null,"Mayotte","YT"]
[null,null,null,null,"South Africa","ZA"]

{"sheet":"Payment term","index":12,"n_rows":67,"n_cols":17,"rows_kept":67,"cut":false,"hidden":true,"merged":[]}
[null,null,null,"F33",null,null,null,null,"S19",null,null,null,"S22",null,"AF33",null,"AF36"]
["0001 -  Pay immediately w/o deduction","0001",null,{"$f":"_xlfn._xlws.FILTER(A2:A67,ISNUMBER(SEARCH(Vendor!F33,A2:A67)),\"Not found\")","v":"0002 -  14 days 2%, 30 net"},null,null,null,null,{"$f":"_xlfn._xlws.FILTER(A2:A67,ISNUMBER(SEARCH(Vendor!S19,A2:A67)),\"Not found\")","v":"0001 -  Pay immediately w/o deduction"},null,null,null,{"$f":"_xlfn._xlws.FILTER(A2:A67,ISNUMBER(SEARCH(Vendor!S22,A2:A67)),\"Not found\")","v":"0005 -  from the 10th of subs. month"},null,{"$f":"_xlfn._xlws.FILTER(A2:A67,ISNUMBER(SEARCH(Vendor!AF33,A2:A67)),\"Not found\")","v":"0001 -  Pay immediately w/o deduction"},null,{"$f":"_xlfn._xlws.FILTER(A2:A67,ISNUMBER(SEARCH(Vendor!AF36,A2:A67)),\"Not found\")","v":"0001 -  Pay immediately w/o deduction"}]
["0002 -  14 days 2%, 30 net","0002",null,null,null,null,null,null,null,null,null,null,null,null,"0002 -  14 days 2%, 30 net",null,"0002 -  14 days 2%, 30 net"]
["0003 -  14 days 3%, 20/2%, 30 net","0003",null,null,null,null,null,null,null,null,null,null,null,null,"0003 -  14 days 3%, 20/2%, 30 net",null,"0003 -  14 days 3%, 20/2%, 30 net"]
["0004 -  as of end of month","0004",null,null,null,null,null,null,null,null,null,null,null,null,"0004 -  as of end of month",null,"0004 -  as of end of month"]
["0005 -  from the 10th of subs. month","0005",null,null,null,null,null,null,null,null,null,null,null,null,"0005 -  from the 10th of subs. month",null,"0005 -  from the 10th of subs. month"]
["0006 -  End of month 4%, Mid-month 2%","0006",null,null,null,null,null,null,null,null,null,null,null,null,"0006 -  End of month 4%, Mid-month 2%",null,"0006 -  End of month 4%, Mid-month 2%"]
["0007 -  15th/31st subs. month 2%, ...","0007",null,null,null,null,null,null,null,null,null,null,null,null,"0007 -  15th/31st subs. month 2%, ...",null,"0007 -  15th/31st subs. month 2%, ..."]
["0008 -  14 days 2%, 30/1,5%, 45 net","0008",null,null,null,null,null,null,null,null,null,null,null,null,"0008 -  14 days 2%, 30/1,5%, 45 net",null,"0008 -  14 days 2%, 30/1,5%, 45 net"]
["0009 -  Payable in 3 installments","0009",null,null,null,null,null,null,null,null,null,null,null,null,"0009 -  Payable in 3 installments",null,"0009 -  Payable in 3 installments"]
["Z002 -  02 days Credit  period","Z002",null,null,null,null,null,null,null,null,null,null,null,null,"Z002 -  02 days Credit  period",null,"Z002 -  02 days Credit  period"]
["Z005 -  05 days Credit  period","Z005",null,null,null,null,null,null,null,null,null,null,null,null,"Z005 -  05 days Credit  period",null,"Z005 -  05 days Credit  period"]
["Z007 -  07 days Credit  period","Z007",null,null,null,null,null,null,null,null,null,null,null,null,"Z007 -  07 days Credit  period",null,"Z007 -  07 days Credit  period"]
["Z010 -  10 days Credit  period","Z010",null,null,null,null,null,null,null,null,null,null,null,null,"Z010 -  10 days Credit  period",null,"Z010 -  10 days Credit  period"]
["Z014 -  14 days Credit  period","Z014",null,null,null,null,null,null,null,null,null,null,null,null,"Z014 -  14 days Credit  period",null,"Z014 -  14 days Credit  period"]
["Z015 -  15 days Credit  period","Z015",null,null,null,null,null,null,null,null,null,null,null,null,"Z015 -  15 days Credit  period",null,"Z015 -  15 days Credit  period"]
["Z020 -  20days Credit  period","Z020",null,null,null,null,null,null,null,null,null,null,null,null,"Z020 -  20days Credit  period",null,"Z020 -  20days Credit  period"]
["Z021 -  21 days Credit  period","Z021",null,null,null,null,null,null,null,null,null,null,null,null,"Z021 -  21 days Credit  period",null,"Z021 -  21 days Credit  period"]
["Z025 -  25 days Credit  period","Z025",null,null,null,null,null,null,null,null,null,null,null,null,"Z025 -  25 days Credit  period",null,"Z025 -  25 days Credit  period"]
["Z030 -  30 days Credit  period","Z030",null,null,null,null,null,null,null,null,null,null,null,null,"Z030 -  30 days Credit  period",null,"Z030 -  30 days Credit  period"]
["Z035 -  35 days Credit  period","Z035",null,null,null,null,null,null,null,null,null,null,null,null,"Z035 -  35 days Credit  period",null,"Z035 -  35 days Credit  period"]
["Z037 -  37 days Credit  period","Z037",null,null,null,null,null,null,null,null,null,null,null,null,"Z037 -  37 days Credit  period",null,"Z037 -  37 days Credit  period"]
["Z040 -  40 days Credit  period","Z040",null,null,null,null,null,null,null,null,null,null,null,null,"Z040 -  40 days Credit  period",null,"Z040 -  40 days Credit  period"]
["Z045 -  45 days Credit  period","Z045",null,null,null,null,null,null,null,null,null,null,null,null,"Z045 -  45 days Credit  period",null,"Z045 -  45 days Credit  period"]
["Z050 -  50 days Credit  period","Z050",null,null,null,null,null,null,null,null,null,null,null,null,"Z050 -  50 days Credit  period",null,"Z050 -  50 days Credit  period"]
["Z055 -  55 days Credit  period","Z055",null,null,null,null,null,null,null,null,null,null,null,null,"Z055 -  55 days Credit  period",null,"Z055 -  55 days Credit  period"]
["Z060 -  60 days Credit  period","Z060",null,null,null,null,null,null,null,null,null,null,null,null,"Z060 -  60 days Credit  period",null,"Z060 -  60 days Credit  period"]
["Z065 -  65 days Credit  period","Z065",null,null,null,null,null,null,null,null,null,null,null,null,"Z065 -  65 days Credit  period",null,"Z065 -  65 days Credit  period"]
["Z070 -  70 days Credit  period","Z070",null,null,null,null,null,null,null,null,null,null,null,null,"Z070 -  70 days Credit  period",null,"Z070 -  70 days Credit  period"]
["Z075 -  75 days Credit  period","Z075",null,null,null,null,null,null,null,null,null,null,null,null,"Z075 -  75 days Credit  period",null,"Z075 -  75 days Credit  period"]
["Z080 -  80 days Credit  period","Z080",null,null,null,null,null,null,null,null,null,null,null,null,"Z080 -  80 days Credit  period",null,"Z080 -  80 days Credit  period"]
["Z085 -  85 days Credit  period","Z085",null,null,null,null,null,null,null,null,null,null,null,null,"Z085 -  85 days Credit  period",null,"Z085 -  85 days Credit  period"]
["Z090 -  90 days Credit  period","Z090",null,null,null,null,null,null,null,null,null,null,null,null,"Z090 -  90 days Credit  period",null,"Z090 -  90 days Credit  period"]
["Z100 -  100 days Credit  period","Z100",null,null,null,null,null,null,null,null,null,null,null,null,"Z100 -  100 days Credit  period",null,"Z100 -  100 days Credit  period"]
["Z120 -  120 days Credit  period","Z120",null,null,null,null,null,null,null,null,null,null,null,null,"Z120 -  120 days Credit  period",null,"Z120 -  120 days Credit  period"]
["Z121 -  150 days Credit period","Z121",null,null,null,null,null,null,null,null,null,null,null,null,"Z121 -  150 days Credit period",null,"Z121 -  150 days Credit period"]
["Z122 -  180 days Credit  period","Z122",null,null,null,null,null,null,null,null,null,null,null,null,"Z122 -  180 days Credit  period",null,"Z122 -  180 days Credit  period"]
["Z123 -  210 days Credit  period","Z123",null,null,null,null,null,null,null,null,null,null,null,null,"Z123 -  210 days Credit  period",null,"Z123 -  210 days Credit  period"]
["Z125 -  LC at Sight","Z125",null,null,null,null,null,null,null,null,null,null,null,null,"Z125 -  LC at Sight",null,"Z125 -  LC at Sight"]
["Z130 -  LC Usance 30 Days","Z130",null,null,null,null,null,null,null,null,null,null,null,null,"Z130 -  LC Usance 30 Days",null,"Z130 -  LC Usance 30 Days"]
["Z135 -  LC Usance 45 Days","Z135",null,null,null,null,null,null,null,null,null,null,null,null,"Z135 -  LC Usance 45 Days",null,"Z135 -  LC Usance 45 Days"]
["Z140 -  LC Usance 60 Days","Z140",null,null,null,null,null,null,null,null,null,null,null,null,"Z140 -  LC Usance 60 Days",null,"Z140 -  LC Usance 60 Days"]
["Z143 -  LC Usance 75 Days","Z143",null,null,null,null,null,null,null,null,null,null,null,null,"Z143 -  LC Usance 75 Days",null,"Z143 -  LC Usance 75 Days"]
["Z145 -  LC Usance 90 Days","Z145",null,null,null,null,null,null,null,null,null,null,null,null,"Z145 -  LC Usance 90 Days",null,"Z145 -  LC Usance 90 Days"]
["Z150 -  LC Usance 120 Days","Z150",null,null,null,null,null,null,null,null,null,null,null,null,"Z150 -  LC Usance 120 Days",null,"Z150 -  LC Usance 120 Days"]
["Z151 -  LC Usance 150 Days","Z151",null,null,null,null,null,null,null,null,null,null,null,null,"Z151 -  LC Usance 150 Days",null,"Z151 -  LC Usance 150 Days"]
["Z155 -  LC Usance 180 Days","Z155",null,null,null,null,null,null,null,null,null,null,null,null,"Z155 -  LC Usance 180 Days",null,"Z155 -  LC Usance 180 Days"]
["Z159 -  LC Usance 720 Days","Z159",null,null,null,null,null,null,null,null,null,null,null,null,"Z159 -  LC Usance 720 Days",null,"Z159 -  LC Usance 720 Days"]
["Z160 -  DP at sight","Z160",null,null,null,null,null,null,null,null,null,null,null,null,"Z160 -  DP at sight",null,"Z160 -  DP at sight"]
["Z165 -  DA 30 Days","Z165",null,null,null,null,null,null,null,null,null,null,null,null,"Z165 -  DA 30 Days",null,"Z165 -  DA 30 Days"]
["Z170 -  DA 45 Days","Z170",null,null,null,null,null,null,null,null,null,null,null,null,"Z170 -  DA 45 Days",null,"Z170 -  DA 45 Days"]
["Z175 -  DA 60 Days","Z175",null,null,null,null,null,null,null,null,null,null,null,null,"Z175 -  DA 60 Days",null,"Z175 -  DA 60 Days"]
["Z180 -  DA 90 Days","Z180",null,null,null,null,null,null,null,null,null,null,null,null,"Z180 -  DA 90 Days",null,"Z180 -  DA 90 Days"]
["Z185 -  DA 120 Days","Z185",null,null,null,null,null,null,null,null,null,null,null,null,"Z185 -  DA 120 Days",null,"Z185 -  DA 120 Days"]
["Z186 -  DA 150 Days","Z186",null,null,null,null,null,null,null,null,null,null,null,null,"Z186 -  DA 150 Days",null,"Z186 -  DA 150 Days"]
["Z190 -  DA 180 Days","Z190",null,null,null,null,null,null,null,null,null,null,null,null,"Z190 -  DA 180 Days",null,"Z190 -  DA 180 Days"]
["Z195 -  LC-% of PI amt in adv&bal@sigh","Z195",null,null,null,null,null,null,null,null,null,null,null,null,"Z195 -  LC-% of PI amt in adv&bal@sigh",null,"Z195 -  LC-% of PI amt in adv&bal@sigh"]
["Z200 -  TT – 100% in advance","Z200",null,null,null,null,null,null,null,null,null,null,null,null,"Z200 -  TT – 100% in advance",null,"Z200 -  TT – 100% in advance"]
["Z201 -  Payment in Advance","Z201",null,null,null,null,null,null,null,null,null,null,null,null,"Z201 -  Payment in Advance",null,"Z201 -  Payment in Advance"]
["Z205 -  Open account","Z205",null,null,null,null,null,null,null,null,null,null,null,null,"Z205 -  Open account",null,"Z205 -  Open account"]
["Z206 -  Mixed Term DP&TT","Z206",null,null,null,null,null,null,null,null,null,null,null,null,"Z206 -  Mixed Term DP&TT",null,"Z206 -  Mixed Term DP&TT"]
["Z207 -  Mixed Term DA&TT","Z207",null,null,null,null,null,null,null,null,null,null,null,null,"Z207 -  Mixed Term DA&TT",null,"Z207 -  Mixed Term DA&TT"]
["Z210 -  After receipt of invoice","Z210",null,null,null,null,null,null,null,null,null,null,null,null,"Z210 -  After receipt of invoice",null,"Z210 -  After receipt of invoice"]
["Z211 -  50% in adv and 50% after deliv","Z211",null,null,null,null,null,null,null,null,null,null,null,null,"Z211 -  50% in adv and 50% after deliv",null,"Z211 -  50% in adv and 50% after deliv"]
["Z212 -  Upon Completion of the Service","Z212",null,null,null,null,null,null,null,null,null,null,null,null,"Z212 -  Upon Completion of the Service",null,"Z212 -  Upon Completion of the Service"]
["Z213 -  Payment as per annexure","Z213",null,null,null,null,null,null,null,null,null,null,null,null,"Z213 -  Payment as per annexure",null,"Z213 -  Payment as per annexure"]
["Z214 -  Payment after delivery","Z214",null,null,null,null,null,null,null,null,null,null,null,null,"Z214 -  Payment after delivery",null,"Z214 -  Payment after delivery"]

{"sheet":"reconccilliation accout","index":13,"n_rows":56,"n_cols":2,"rows_kept":56,"cut":false,"hidden":true,"merged":[]}
["Advance for Capital Goods - Domestic",10002020]
["Advance for Capital Goods - Import",10002030]
["Advance for Capital Goods - Import",10002040]
["Advance for Capital Goods - Import",10002050]
["Advance for Capital Goods - Import",10002060]
["Advances - Domestic Vendors",10100000]
["Advances - Import Vendors",10100010]
["Advances - Inter Company Vendors",10100150]
["Advances - Inter Profit Center Vendors",10100160]
["Advances - One Time Vendors",10100170]
["Book Loan",10100120]
["CFLB Group Vendor",30030060]
["CFLB Loan A/c-Liab.",30040040]
["Claim Receivables - Domestic Vendors",10100030]
["Claim Receivables - Import Vendors",10100040]
["Commercial Paper",30000030]
["Domestic Vendors",30030000]
["Employee Vendors",30030040]
["Employees Claims Payable",30050790]
["Festival Advance",10100080]
["GP Loan",10100140]
["House Loan",10100100]
["Import Vendors",30030010]
["Inter Company CA A/c -Liab",30040000]
["Inter Company Loan A/c- Laib.",30040020]
["Inter company Vendors",30030020]
["Inter Profit Center CA A/c-Liab",30040010]
["Inter Profit Center Loan A/c-Liab.",30040030]
["Inter Profitcenter Vendors",30030030]
["Interest on Loans",30000100]
["IOU",10100070]
["Leases",30000010]
["Loans",30000000]
["One Time Vendors",30030050]
["PDC - Domestic Vendor",30050640]
["PDC - Import Vendor",30050650]
["PDC - Inter CompanyVendor",30050660]
["PDC - Inter Profit CenterVendor",30050670]
["PDC - One Time Vendor",30050680]
["Prepayments",10100130]
["Prepayments - Domestic Vendors",10100210]
["Prepayments - Import Vendors",10100220]
["Prepayments - One Time",10100250]
["Salary Advances - Employees",10100020]
["Sec.Dep from Employee (Liabilities)",30050500]
["Sec.Dep/Ref.Dep - Inter Company Vendors",10100180]
["Sec/Refun Depo - Inter Profit Center Vendors",10100190]
["Sec/Refun Depo - One Time Vendors",10100200]
["Security Deposits - Domestic Vendors",10100050]
["Security Deposits - Import Vendors",10100060]
["Short Term Loans",30001010]
["SPECIAL STAFF ADVANCE",10100560]
["Staff Loan",10100110]
["Staff Recoverable",10100570]
["Tour Advance/Rep Float",10100090]
["Trust Receipt Loans",30000020]

{"sheet":"Country","index":14,"n_rows":250,"n_cols":253,"rows_kept":250,"cut":false,"hidden":true,"merged":[]}
["Long name","Country Key","Count of regions"]
["Andorra","AD",{"$error":"#N/A"},null,{"$f":"_xlfn._xlws.FILTER(country_list,ISNUMBER(SEARCH(country_,country_list)),\"Not Found\")","v":"Sri Lanka"}]
["United Arab Emirates","AE",{"$error":"#N/A"}]
["Afghanistan","AF",{"$error":"#N/A"},null,{"$f":"_xlfn._xlws.FILTER(country_list,ISNUMBER(SEARCH(CountryChange_,country_list)),\"Not Found\")","v":"Sri Lanka"},"Argentina","Austria","Australia","Belgium","Bulgaria","Brazil","Canada","Switzerland","Chile","China","Colombia","Czech Republic","Germany","Denmark","Egypt","Spain","Finland","France","United Kingdom","Greece","Hong Kong","Croatia","Hungary","Indonesia","Ireland","Israel","India","Italy","Japan","South Korea","Kuwait","Kazakhstan","Mexico","Malaysia","Netherlands","Norway","New Zealand","Peru","Philippines","Poland","Portugal","Qatar","Romania","Russian Federation","Sweden","Singapore","Slovenia","Thailand","Turkey","Taiwan","Ukraine","USA","Venezuela","South Africa","Andorra","United Arab Emirates","Afghanistan","Antigua and Barbuda","Anguilla","Albania","Armenia","Angola","Antarctica","American Samoa","Aruba","Azerbaijan","Bosnia and Herzegovina","Barbados","Bangladesh","Burkina Faso","Bahrain","Burundi","Benin","Blue","Bermuda","Brunei Darussalam","Bolivia","Bonaire, Sint Eustatius and Saba","Bahamas","Bhutan","Bouvet Islands","Botswana","Belarus","Belize","Cocos (Keeling) Islands","Democratic Republic of the Congo","Central African Republic","Republic of the Congo","Cote d'Ivoire","Cook Islands","Cameroon","Costa Rica","Serbia and Montenegro","Cuba","Cape Verde","Curacao","Christmas Islnd","Cyprus","Djibouti","Dominica","Dominican Republic","Algeria","Ecuador","Estonia","Western Sahara","Eritrea","Ethiopia","European Union","Fiji","Falkland Islands","Micronesia","Faroe Islands","Gabon","Grenada","Georgia","French Guyana","Guernsey (Channel Islands)","Ghana","Gibraltar","Greenland","Gambia","Guinea","Guadeloupe","Equatorial Guinea","South Georgia and the Southern Sandwich Islands","Guatemala","Guam","Guinea-Bissau","Guyana","Heard and McDonald Islands","Honduras","Haiti","Isle of Man","British Indian Ocean Territory","Iraq","Iran","Iceland","Jersey","Jamaica","Jordan","Kenya","Kyrgyzstan","Cambodia","Kiribati","Comoros","Saint Kitts and Nevis","North Korea","Cayman Islands","Laos","Lebanon","St. Lucia","Liechtenstein","Liberia","Lesotho","Lithuania","Luxembourg","Latvia","Libya","Morocco","Monaco","Moldova","Madagascar","Marshall Islands","Macedonia","Mali","Burma","Mongolia","Macau","North Mariana Islands","Martinique","Mauritania","Montserrat","Malta","Mauritius","Maldives","Malawi","Mozambique","Namibia","New Caledonia","Niger","Norfolk Islands","Nigeria","Nicaragua","Nepal","Nauru","NATO","Niue","Oman","Orange","Panama","French Polynesia","Papua New Guinea","Pakistan","St. Pierre and Miquelon","Pitcairn Islands","Puerto Rico","Palestine","Palau","Paraguay","Reunion","Rwanda","Saudi Arabia","Solomon Islands","Seychelles","Sudan","Saint Helena","Svalbard","Slovakia","Sierra Leone","San Marino","Senegal","Somalia","Suriname","South Sudan","Sao Tome and Principe","El Salvador","Sint Maarten (Dutch part)","Syria","Swaziland","Turks and Caicos Islands","Chad","French Southern and Antarctic Lands","Togo","Tajikistan","Tokelau Islands","East Timor","Turkmenistan","Tunisia","Tonga","East Timor2","Trinidad and Tobago","Tuvalu","Tanzania","Uganda","United States Minor Outlying Islands","United Nations","Uruguay","Uzbekistan","Vatican City","St. Vincent and the Grenadines","British Virgin Islands","United States Virgin Islands","Vietnam","Vanuatu","Wallis and Futuna Islands","Samoa","Yemen","Mayotte"]
["Antigua and Barbuda","AG",{"$error":"#N/A"}]
["Anguilla","AI",{"$error":"#N/A"}]
["Albania","AL",{"$error":"#N/A"}]
["Armenia","AM",{"$error":"#N/A"}]
["Angola","AO",{"$error":"#N/A"}]
["Antarctica","AQ",{"$error":"#N/A"}]
["American Samoa","AS",{"$error":"#N/A"}]
["Aruba","AW",{"$error":"#N/A"}]
["Azerbaijan","AZ",{"$error":"#N/A"}]
["Bosnia and Herzegovina","BA",{"$error":"#N/A"}]
["Barbados","BB",{"$error":"#N/A"}]
["Bangladesh","BD",{"$error":"#N/A"}]
["Burkina Faso","BF",{"$error":"#N/A"}]
["Bahrain","BH",{"$error":"#N/A"}]
["Burundi","BI",{"$error":"#N/A"}]
["Benin","BJ",{"$error":"#N/A"}]
["Blue","BL",{"$error":"#N/A"}]
["Bermuda","BM",{"$error":"#N/A"}]
["Brunei Darussalam","BN",{"$error":"#N/A"}]
["Bolivia","BO",{"$error":"#N/A"}]
["Bonaire, Sint Eustatius and Saba","BQ",{"$error":"#N/A"}]
["Bahamas","BS",{"$error":"#N/A"}]
["Bhutan","BT",{"$error":"#N/A"}]
["Bouvet Islands","BV",{"$error":"#N/A"}]
["Botswana","BW",{"$error":"#N/A"}]
["Belarus","BY",{"$error":"#N/A"}]
["Belize","BZ",{"$error":"#N/A"}]
["Cocos (Keeling) Islands","CC",{"$error":"#N/A"}]
["Democratic Republic of the Congo","CD",{"$error":"#N/A"}]
["Central African Republic","CF",{"$error":"#N/A"}]
["Republic of the Congo","CG",{"$error":"#N/A"}]
["Cote d'Ivoire","CI",{"$error":"#N/A"}]
["Cook Islands","CK",{"$error":"#N/A"}]
["Cameroon","CM",{"$error":"#N/A"}]
["Costa Rica","CR",{"$error":"#N/A"}]
["Serbia and Montenegro","CS",{"$error":"#N/A"}]
["Cuba","CU",{"$error":"#N/A"}]
["Cape Verde","CV",{"$error":"#N/A"}]
["Curacao","CW",{"$error":"#N/A"}]
["Christmas Islnd","CX",{"$error":"#N/A"}]
["Cyprus","CY",{"$error":"#N/A"}]
["Djibouti","DJ",{"$error":"#N/A"}]
["Dominica","DM",{"$error":"#N/A"}]
["Dominican Republic","DO",{"$error":"#N/A"}]
["Algeria","DZ",{"$error":"#N/A"}]
["Ecuador","EC",{"$error":"#N/A"}]
["Estonia","EE",{"$error":"#N/A"}]
["Western Sahara","EH",{"$error":"#N/A"}]
["Eritrea","ER",{"$error":"#N/A"}]
["Ethiopia","ET",{"$error":"#N/A"}]
["European Union","EU",{"$error":"#N/A"}]
["Fiji","FJ",{"$error":"#N/A"}]
["Falkland Islands","FK",{"$error":"#N/A"}]
["Micronesia","FM",{"$error":"#N/A"}]
["Faroe Islands","FO",{"$error":"#N/A"}]
["Gabon","GA",{"$error":"#N/A"}]
["Grenada","GD",{"$error":"#N/A"}]
["Georgia","GE",{"$error":"#N/A"}]
["French Guyana","GF",{"$error":"#N/A"}]
["Guernsey (Channel Islands)","GG",{"$error":"#N/A"}]
["Ghana","GH",{"$error":"#N/A"}]
["Gibraltar","GI",{"$error":"#N/A"}]
["Greenland","GL",{"$error":"#N/A"}]
["Gambia","GM",{"$error":"#N/A"}]
["Guinea","GN",{"$error":"#N/A"}]
["Guadeloupe","GP",{"$error":"#N/A"}]
["Equatorial Guinea","GQ",{"$error":"#N/A"}]
["South Georgia and the Southern Sandwich Islands","GS",{"$error":"#N/A"}]
["Guatemala","GT",{"$error":"#N/A"}]
["Guam","GU",{"$error":"#N/A"}]
["Guinea-Bissau","GW",{"$error":"#N/A"}]
["Guyana","GY",{"$error":"#N/A"}]
["Heard and McDonald Islands","HM",{"$error":"#N/A"}]
["Honduras","HN",{"$error":"#N/A"}]
["Haiti","HT",{"$error":"#N/A"}]
["Isle of Man","IM",{"$error":"#N/A"}]
["British Indian Ocean Territory","IO",{"$error":"#N/A"}]
["Iraq","IQ",{"$error":"#N/A"}]
["Iran","IR",{"$error":"#N/A"}]
["Iceland","IS",{"$error":"#N/A"}]
["Jersey","JE",{"$error":"#N/A"}]
["Jamaica","JM",{"$error":"#N/A"}]
["Jordan","JO",{"$error":"#N/A"}]
["Kenya","KE",{"$error":"#N/A"}]
["Kyrgyzstan","KG",{"$error":"#N/A"}]
["Cambodia","KH",{"$error":"#N/A"}]
["Kiribati","KI",{"$error":"#N/A"}]
["Comoros","KM",{"$error":"#N/A"}]
["Saint Kitts and Nevis","KN",{"$error":"#N/A"}]
["North Korea","KP",{"$error":"#N/A"}]
["Cayman Islands","KY",{"$error":"#N/A"}]
["Laos","LA",{"$error":"#N/A"}]
["Lebanon","LB",{"$error":"#N/A"}]
["St. Lucia","LC",{"$error":"#N/A"}]
["Liechtenstein","LI",{"$error":"#N/A"}]
["Liberia","LR",{"$error":"#N/A"}]
["Lesotho","LS",{"$error":"#N/A"}]
["Lithuania","LT",{"$error":"#N/A"}]
["Luxembourg","LU",{"$error":"#N/A"}]
["Latvia","LV",{"$error":"#N/A"}]
["Libya","LY",{"$error":"#N/A"}]
["Morocco","MA",{"$error":"#N/A"}]
["Monaco","MC",{"$error":"#N/A"}]
["Moldova","MD",{"$error":"#N/A"}]
["Madagascar","MG",{"$error":"#N/A"}]
["Marshall Islands","MH",{"$error":"#N/A"}]
["Macedonia","MK",{"$error":"#N/A"}]
["Mali","ML",{"$error":"#N/A"}]
["Burma","MM",{"$error":"#N/A"}]
["Mongolia","MN",{"$error":"#N/A"}]
["Macau","MO",{"$error":"#N/A"}]
["North Mariana Islands","MP",{"$error":"#N/A"}]
["Martinique","MQ",{"$error":"#N/A"}]
["Mauritania","MR",{"$error":"#N/A"}]
["Montserrat","MS",{"$error":"#N/A"}]
["Malta","MT",{"$error":"#N/A"}]
["Mauritius","MU",{"$error":"#N/A"}]
["Maldives","MV",{"$error":"#N/A"}]
["Malawi","MW",{"$error":"#N/A"}]
["Mozambique","MZ",{"$error":"#N/A"}]
["Namibia","NA",{"$error":"#N/A"}]
["New Caledonia","NC",{"$error":"#N/A"}]
["Niger","NE",{"$error":"#N/A"}]
["Norfolk Islands","NF",{"$error":"#N/A"}]
["Nigeria","NG",{"$error":"#N/A"}]
["Nicaragua","NI",{"$error":"#N/A"}]
["Nepal","NP",{"$error":"#N/A"}]
["Nauru","NR",{"$error":"#N/A"}]
["NATO","NT",{"$error":"#N/A"}]
["Niue","NU",{"$error":"#N/A"}]
["Oman","OM",{"$error":"#N/A"}]
["Orange","OR",{"$error":"#N/A"}]
["Panama","PA",{"$error":"#N/A"}]
["French Polynesia","PF",{"$error":"#N/A"}]
["Papua New Guinea","PG",{"$error":"#N/A"}]
["Pakistan","PK",{"$error":"#N/A"}]
["St. Pierre and Miquelon","PM",{"$error":"#N/A"}]
["Pitcairn Islands","PN",{"$error":"#N/A"}]
["Puerto Rico","PR",{"$error":"#N/A"}]
["Palestine","PS",{"$error":"#N/A"}]
["Palau","PW",{"$error":"#N/A"}]
["Paraguay","PY",{"$error":"#N/A"}]
["Reunion","RE",{"$error":"#N/A"}]
["Rwanda","RW",{"$error":"#N/A"}]
["Saudi Arabia","SA",{"$error":"#N/A"}]
["Solomon Islands","SB",{"$error":"#N/A"}]
["Seychelles","SC",{"$error":"#N/A"}]
["Sudan","SD",{"$error":"#N/A"}]
["Saint Helena","SH",{"$error":"#N/A"}]
["Svalbard","SJ",{"$error":"#N/A"}]
["Slovakia","SK",{"$error":"#N/A"}]
["Sierra Leone","SL",{"$error":"#N/A"}]
["San Marino","SM",{"$error":"#N/A"}]
["Senegal","SN",{"$error":"#N/A"}]
["Somalia","SO",{"$error":"#N/A"}]
["Suriname","SR",{"$error":"#N/A"}]
["South Sudan","SS",{"$error":"#N/A"}]
["Sao Tome and Principe","ST",{"$error":"#N/A"}]
["El Salvador","SV",{"$error":"#N/A"}]
["Sint Maarten (Dutch part)","SX",{"$error":"#N/A"}]
["Syria","SY",{"$error":"#N/A"}]
["Swaziland","SZ",{"$error":"#N/A"}]
["Turks and Caicos Islands","TC",{"$error":"#N/A"}]
["Chad","TD",{"$error":"#N/A"}]
["French Southern and Antarctic Lands","TF",{"$error":"#N/A"}]
["Togo","TG",{"$error":"#N/A"}]
["Tajikistan","TJ",{"$error":"#N/A"}]
["Tokelau Islands","TK",{"$error":"#N/A"}]
["East Timor","TL",{"$error":"#N/A"}]
["Turkmenistan","TM",{"$error":"#N/A"}]
["Tunisia","TN",{"$error":"#N/A"}]
["Tonga","TO",{"$error":"#N/A"}]
["East Timor","TP",{"$error":"#N/A"}]
["Trinidad and Tobago","TT",{"$error":"#N/A"}]
["Tuvalu","TV",{"$error":"#N/A"}]
["Tanzania","TZ",{"$error":"#N/A"}]
["Uganda","UG",{"$error":"#N/A"}]
["United States Minor Outlying Islands","UM",{"$error":"#N/A"}]
["United Nations","UN",{"$error":"#N/A"}]
["Uruguay","UY",{"$error":"#N/A"}]
["Uzbekistan","UZ",{"$error":"#N/A"}]
["Vatican City","VA",{"$error":"#N/A"}]
["St. Vincent and the Grenadines","VC",{"$error":"#N/A"}]
["British Virgin Islands","VG",{"$error":"#N/A"}]
["United States Virgin Islands","VI",{"$error":"#N/A"}]
["Vietnam","VN",{"$error":"#N/A"}]
["Vanuatu","VU",{"$error":"#N/A"}]
["Wallis and Futuna Islands","WF",{"$error":"#N/A"}]
["Samoa","WS",{"$error":"#N/A"}]
["Yemen","YE",{"$error":"#N/A"}]
["Mayotte","YT",{"$error":"#N/A"}]
["Venezuela","VE","Venezuela"]
["USA","US","USA"]
["United Kingdom","GB","United Kingdom"]
["Ukraine","UA","Ukraine"]
["Turkey","TR","Turkey"]
["Thailand","TH","Thailand"]
["Taiwan","TW","Taiwan"]
["Switzerland","CH","Switzerland"]
["Sweden","SE","Sweden"]
["Sri Lanka","LK","Sri Lanka"]
["Spain","ES","Spain"]
["South Korea","KR","South Korea"]
["South Africa","ZA","South Africa"]
["Slovenia","SI","Slovenia"]
["Singapore","SG","Singapore"]
["Russian Federation","RU","Russian Federation"]
["Romania","RO","Romania"]
["Qatar","QA","Qatar"]
["Portugal","PT","Portugal"]
["Poland","PL","Poland"]
["Philippines","PH","Philippines"]
["Peru","PE","Peru"]
["Norway","NO","Norway"]
["New Zealand","NZ","New Zealand"]
["Netherlands","NL","Netherlands"]
["Mexico","MX","Mexico"]
["Malaysia","MY","Malaysia"]
["Kuwait","KW","Kuwait"]
["Kazakhstan","KZ","Kazakhstan"]
["Japan","JP","Japan"]
["Italy","IT","Italy"]
["Israel","IL","Israel"]
["Ireland","IE","Ireland"]
["Indonesia","ID","Indonesia"]
["India","IN","India"]
["Hungary","HU","Hungary"]
["Hong Kong","HK","Hong Kong"]
["Greece","GR","Greece"]
["Germany","DE","Germany"]
["France","FR","France"]
["Finland","FI","Finland"]
["Egypt","EG","Egypt"]
["Denmark","DK","Denmark"]
["Czech Republic","CZ","Czech Republic"]
["Croatia","HR","Croatia"]
["Colombia","CO","Colombia"]
["China","CN","China"]
["Chile","CL","Chile"]
["Canada","CA","Canada"]
["Bulgaria","BG","Bulgaria"]
["Brazil","BR","Brazil"]
["Belgium","BE","Belgium"]
["Austria","AT","Austria"]
["Australia","AU","Australia"]
["Argentina","AR","Argentina"]

{"sheet":"Regions","index":15,"n_rows":1961,"n_cols":4,"rows_kept":1961,"cut":false,"hidden":true,"merged":[]}
["Country","Country Key","Description","Region"]
["Argentina","AR","Capital Federal","00"]
["Argentina","AR","Buenos Aires","01"]
["Argentina","AR","Catamarca","02"]
["Argentina","AR","Cordoba","03"]
["Argentina","AR","Corrientes","04"]
["Argentina","AR","Entre Rios","05"]
["Argentina","AR","Jujuy","06"]
["Argentina","AR","Mendoza","07"]
["Argentina","AR","La Rioja","08"]
["Argentina","AR","Salta","09"]
["Argentina","AR","San Juan","10"]
["Argentina","AR","San Luis","11"]
["Argentina","AR","Santa Fe","12"]
["Argentina","AR","Santiago del Estero","13"]
["Argentina","AR","Tucuman","14"]
["Argentina","AR","Chaco","16"]
["Argentina","AR","Chubut","17"]
["Argentina","AR","Formosa","18"]
["Argentina","AR","Misiones","19"]
["Argentina","AR","Neuquen","20"]
["Argentina","AR","La Pampa","21"]
["Argentina","AR","Rio Negro","22"]
["Argentina","AR","Santa Cruz","23"]
["Argentina","AR","Tierra de Fuego","24"]
["Austria","AT","Burgenland","B"]
["Austria","AT","Carinthia","K"]
["Austria","AT","Lower Austria","NOE"]
["Austria","AT","Upper Austria","OOE"]
["Austria","AT","Salzburg","S"]
["Austria","AT","Styria","ST"]
["Austria","AT","Tyrol","T"]
["Austria","AT","Vorarlberg","V"]
["Austria","AT","Vienna","W"]
["Australia","AU","Aust Capital Terr","ACT"]
["Australia","AU","New South Wales","NSW"]
["Australia","AU","Northern Territory","NT"]
["Australia","AU","Queensland","QLD"]
["Australia","AU","South Australia","SA"]
["Australia","AU","Tasmania","TAS"]
["Australia","AU","Victoria","VIC"]
["Australia","AU","Western Australia","WA"]
["Belgium","BE","Antwerp","01"]
["Belgium","BE","Brabant","02"]
["Belgium","BE","Hainaut","03"]
["Belgium","BE","Liege","04"]
["Belgium","BE","Limburg","05"]
["Belgium","BE","Luxembourg","06"]
["Belgium","BE","Namur","07"]
["Belgium","BE","Oost-Vlaanderen","08"]
["Belgium","BE","West-Vlaanderen","09"]
["Belgium","BE","Brabant (Walloon)","10"]
["Belgium","BE","Brussels (Capital)","11"]
["Bulgaria","BG","Burgas","01"]
["Bulgaria","BG","Grad Sofiya","02"]
["Bulgaria","BG","Khaskovo","03"]
["Bulgaria","BG","Lovech","04"]
["Bulgaria","BG","Montana","05"]
["Bulgaria","BG","Plovdiv","06"]
["Bulgaria","BG","Ruse","07"]
["Bulgaria","BG","Sofiya","08"]
["Bulgaria","BG","Varna","09"]
["Brazil","BR","Acre","AC"]
["Brazil","BR","Alagoas","AL"]
["Brazil","BR","Amazon","AM"]
["Brazil","BR","Amapa","AP"]
["Brazil","BR","Bahia","BA"]
["Brazil","BR","Ceara","CE"]
["Brazil","BR","Brasilia","DF"]
["Brazil","BR","Espirito Santo","ES"]
["Brazil","BR","Goias","GO"]
["Brazil","BR","Maranhao","MA"]
["Brazil","BR","Minas Gerais","MG"]
["Brazil","BR","Mato Grosso do Sul","MS"]
["Brazil","BR","Mato Grosso","MT"]
["Brazil","BR","Para","PA"]
["Brazil","BR","Paraiba","PB"]
["Brazil","BR","Pernambuco","PE"]
["Brazil","BR","Piaui","PI"]
["Brazil","BR","Parana","PR"]
["Brazil","BR","Rio de Janeiro","RJ"]
["Brazil","BR","Rio Grande do Norte","RN"]
["Brazil","BR","Rondonia","RO"]
["Brazil","BR","Roraima","RR"]
["Brazil","BR","Rio Grande do Sul","RS"]
["Brazil","BR","Santa Catarina","SC"]
["Brazil","BR","Sergipe","SE"]
["Brazil","BR","Sao Paulo","SP"]
["Brazil","BR","Tocantins","TO"]
["Canada","CA","Alberta","AB"]
["Canada","CA","British Columbia","BC"]
["Canada","CA","Manitoba","MB"]
["Canada","CA","New Brunswick","NB"]
["Canada","CA","Newfoundland/Labrad.","NL"]
["Canada","CA","Nova Scotia","NS"]
["Canada","CA","Northwest Territory","NT"]
["Canada","CA","Nunavut","NU"]
["Canada","CA","Ontario","ON"]
["Canada","CA","Prince Edward Island","PE"]
["Canada","CA","Quebec","QC"]
["Canada","CA","Saskatchewan","SK"]
["Canada","CA","Yukon Territory","YT"]
["Switzerland","CH","Aargau","AG"]
["Switzerland","CH","Inner-Rhoden","AI"]
["Switzerland","CH","Ausser-Rhoden","AR"]
["Switzerland","CH","Bern","BE"]
["Switzerland","CH","Basel Land","BL"]
["Switzerland","CH","Basel Stadt","BS"]
["Switzerland","CH","Fribourg","FR"]
["Switzerland","CH","Geneva","GE"]
["Switzerland","CH","Glarus","GL"]
["Switzerland","CH","Graubuenden","GR"]
["Switzerland","CH","Jura","JU"]
["Switzerland","CH","Lucerne","LU"]
["Switzerland","CH","Neuchatel","NE"]
["Switzerland","CH","Nidwalden","NW"]
["Switzerland","CH","Obwalden","OW"]
["Switzerland","CH","St. Gallen","SG"]
["Switzerland","CH","Schaffhausen","SH"]
["Switzerland","CH","Solothurn","SO"]
["Switzerland","CH","Schwyz","SZ"]
["Switzerland","CH","Thurgau","TG"]
["Switzerland","CH","Ticino","TI"]
["Switzerland","CH","Uri","UR"]
["Switzerland","CH","Vaud","VD"]
["Switzerland","CH","Valais","VS"]
["Switzerland","CH","Zug","ZG"]
["Switzerland","CH","Zurich","ZH"]
["Chile","CL","I - Iquique","01"]
["Chile","CL","II - Antofagasta","02"]
["Chile","CL","III - Copiapo","03"]
["Chile","CL","IV - La Serena","04"]
["Chile","CL","V - Valparaiso","05"]
["Chile","CL","VI - Rancagua","06"]
["Chile","CL","VII - Talca","07"]
["Chile","CL","VIII - Concepcion","08"]
["Chile","CL","IX - Temuco","09"]
["Chile","CL","X - Puerto Montt","10"]
["Chile","CL","XI - Coyhaique","11"]
["Chile","CL","XII - Punta Arenas","12"]
["Chile","CL","RM - Santiago","13"]
["Chile","CL","XIV - Los Rios","14"]
["Chile","CL","XV - Arica y Parinac","15"]
["China","CN","Beijing","010"]
["China","CN","Shanghai","020"]
["China","CN","Tianjin","030"]
["China","CN","Nei Mongol","040"]
["China","CN","Shanxi","050"]
["China","CN","Hebei","060"]
["China","CN","Liaoning","070"]
["China","CN","Jilin","080"]
["China","CN","Heilongjiang","090"]
["China","CN","Jiangsu","100"]
["China","CN","Anhui","110"]
["China","CN","Shandong","120"]
["China","CN","Zhejiang","130"]
["China","CN","Jiangxi","140"]
["China","CN","Fujian","150"]
["China","CN","Hunan","160"]
["China","CN","Hubei","170"]
["China","CN","Henan","180"]
["China","CN","Guangdong","190"]
["China","CN","Hainan","200"]
["China","CN","Guangxi","210"]
["China","CN","Guizhou","220"]
["China","CN","Sichuan","230"]
["China","CN","Yunnan","240"]
["China","CN","Shaanxi","250"]
["China","CN","Gansu","260"]
["China","CN","Ningxia","270"]
["China","CN","Qinghai","280"]
["China","CN","Xinjiang","290"]
["China","CN","Xizang","300"]
["China","CN","Chong Qing","320"]
["Colombia","CO","ANTIOQUIA","05"]
["Colombia","CO","ATLANTICO","08"]
["Colombia","CO","BOGOTA","11"]
["Colombia","CO","BOLIVAR","13"]
["Colombia","CO","BOYACA","15"]
["Colombia","CO","CALDAS","17"]
["Colombia","CO","CAQUETA","18"]
["Colombia","CO","CAUCA","19"]
["Colombia","CO","CESAR","20"]
["Colombia","CO","CORDOBA","23"]
["Colombia","CO","CUNDINAMARCA","25"]
["Colombia","CO","CHOCO","27"]
["Colombia","CO","HUILA","41"]
["Colombia","CO","LA GUAJIRA","44"]
["Colombia","CO","MAGDALENA","47"]
["Colombia","CO","META","50"]
["Colombia","CO","NARINO","52"]
["Colombia","CO","NORTE SANTANDER","54"]
["Colombia","CO","QUINDIO","63"]
["Colombia","CO","RISARALDA","66"]
["Colombia","CO","SANTANDER","68"]
["Colombia","CO","SUCRE","70"]
["Colombia","CO","TOLIMA","73"]
["Colombia","CO","VALLE","76"]
["Colombia","CO","ARAUCA","81"]
["Colombia","CO","CASANARE","85"]
["Colombia","CO","PUTUMAYO","86"]
["Colombia","CO","SAN ANDRES","88"]
["Colombia","CO","AMAZONAS","91"]
["Colombia","CO","GUAINIA","94"]
["Colombia","CO","GUAVIARE","95"]
["Colombia","CO","VAUPES","97"]
["Colombia","CO","VICHADA","99"]
["Czech Republic","CZ","Praha","11"]
["Czech Republic","CZ","Stredocesky","21"]
["Czech Republic","CZ","Jihocesky","31"]
["Czech Republic","CZ","Plzensky","32"]
["Czech Republic","CZ","Karlovarsky","41"]
["Czech Republic","CZ","Ustecky","42"]
["Czech Republic","CZ","Liberecky","51"]
["Czech Republic","CZ","Kralovehradecky","52"]
["Czech Republic","CZ","Pardubicky","53"]
["Czech Republic","CZ","Vysocina","63"]
["Czech Republic","CZ","Jihomoravsky","64"]
["Czech Republic","CZ","Olomoucky","71"]
["Czech Republic","CZ","Zlinsky","72"]
["Czech Republic","CZ","Moravskoslezsky","81"]
["Germany","DE","Schleswig-Holstein","01"]
["Germany","DE","Hamburg","02"]
["Germany","DE","Lower Saxony","03"]
["Germany","DE","Bremen","04"]
["Germany","DE","Nrth Rhine Westfalia","05"]
["Germany","DE","Hessen","06"]
["Germany","DE","Rhineland Palatinate","07"]
["Germany","DE","Baden-Wurttemberg","08"]
["Germany","DE","Bavaria","09"]
["Germany","DE","Saarland","10"]
["Germany","DE","Berlin","11"]
["Germany","DE","Brandenburg","12"]
["Germany","DE","Mecklenburg-Vorpomm.","13"]
["Germany","DE","Saxony","14"]
["Germany","DE","Saxony-Anhalt","15"]
["Germany","DE","Thuringia","16"]
["Denmark","DK","Danish Capital Reg.","001"]
["Denmark","DK","Central Jutland","002"]
["Denmark","DK","North Jutland","003"]
["Denmark","DK","Zealand","004"]
["Denmark","DK","South Denmark","005"]
["Egypt","EG","Cairo","01"]
["Egypt","EG","Giza","02"]
["Egypt","EG","Al Sharqia","03"]
["Egypt","EG","Dakahlia","04"]
["Egypt","EG","Beheira","05"]
["Egypt","EG","Qalyubia","06"]
["Egypt","EG","Minya","07"]
["Egypt","EG","Alexandria","08"]
["Egypt","EG","Gharbia","09"]
["Egypt","EG","Sohag","10"]
["Egypt","EG","Asyut","11"]
["Egypt","EG","Monufia","12"]
["Egypt","EG","Qena","13"]
["Egypt","EG","Kafr El-Sheikh","14"]
["Egypt","EG","Faiyum","15"]
["Egypt","EG","Beni Suef","16"]
["Egypt","EG","Aswan","17"]
["Egypt","EG","Damietta","18"]
["Egypt","EG","Ismailia","19"]
["Egypt","EG","Port Said","20"]
["Egypt","EG","Suez","21"]
["Egypt","EG","Luxor","22"]
["Egypt","EG","North Sinai","23"]
["Egypt","EG","Matruh","24"]
["Egypt","EG","Red Sea","25"]
["Egypt","EG","New Valley","26"]
["Egypt","EG","South Sinai","27"]
["Spain","ES","Alava","01"]
["Spain","ES","Albacete","02"]
["Spain","ES","Alicante","03"]
["Spain","ES","Almeria","04"]
["Spain","ES","Avila","05"]
["Spain","ES","Badajoz","06"]
["Spain","ES","Baleares","07"]
["Spain","ES","Barcelona","08"]
["Spain","ES","Burgos","09"]
["Spain","ES","Caceres","10"]
["Spain","ES","Cadiz","11"]
["Spain","ES","Castellon","12"]
["Spain","ES","Ciudad Real","13"]
["Spain","ES","Cordoba","14"]
["Spain","ES","La Coruna","15"]
["Spain","ES","Cuenca","16"]
["Spain","ES","Gerona","17"]
["Spain","ES","Granada","18"]
["Spain","ES","Guadalajara","19"]
["Spain","ES","Guipuzcoa","20"]
["Spain","ES","Huelva","21"]
["Spain","ES","Huesca","22"]
["Spain","ES","Jaen","23"]
["Spain","ES","Leon","24"]
["Spain","ES","Lerida","25"]
["Spain","ES","La Rioja","26"]
["Spain","ES","Lugo","27"]
["Spain","ES","Madrid","28"]
["Spain","ES","Malaga","29"]
["Spain","ES","Murcia","30"]
["Spain","ES","Navarra","31"]
["Spain","ES","Orense","32"]
["Spain","ES","Asturias","33"]
["Spain","ES","Palencia","34"]
["Spain","ES","Las Palmas","35"]
["Spain","ES","Pontevedra","36"]
["Spain","ES","Salamanca","37"]
["Spain","ES","Sta. Cruz Tenerife","38"]
["Spain","ES","Cantabria","39"]
["Spain","ES","Segovia","40"]
["Spain","ES","Sevilla","41"]
["Spain","ES","Soria","42"]
["Spain","ES","Tarragona","43"]
["Spain","ES","Teruel","44"]
["Spain","ES","Toledo","45"]
["Spain","ES","Valencia","46"]
["Spain","ES","Valladolid","47"]
["Spain","ES","Vizcaya","48"]
["Spain","ES","Zamora","49"]
["Spain","ES","Zaragoza","50"]
["Finland","FI","Ahvenanmaa","001"]
["Finland","FI","Southern Finnland","002"]
["Finland","FI","Eastern Finnland","003"]
["Finland","FI","Lappi","004"]
["Finland","FI","Western Finnland","005"]
["Finland","FI","Oulu","006"]
["France","FR","Ain","01"]
["France","FR","Aisne","02"]
["France","FR","Allier","03"]
["France","FR","Alpes (Hte-Provence)","04"]
["France","FR","Alpes (Hautes)","05"]
["France","FR","Alpes-Maritimes","06"]
["France","FR","Ardeche","07"]
["France","FR","Ardennes","08"]
["France","FR","Ariege","09"]
["France","FR","Aube","10"]
["France","FR","Aude","11"]
["France","FR","Aveyron","12"]
["France","FR","Bouches-du-Rhone","13"]
["France","FR","Calvados","14"]
["France","FR","Cantal","15"]
["France","FR","Charente","16"]
["France","FR","Charente-Maritime","17"]
["France","FR","Cher","18"]
["France","FR","Correze","19"]
["France","FR","Cote-d'Or","21"]
["France","FR","Cotes-d'Armor","22"]
["France","FR","Creuse","23"]
["France","FR","Dordogne","24"]
["France","FR","Doubs","25"]
["France","FR","Drome","26"]
["France","FR","Eure","27"]
["France","FR","Eure-et-Loir","28"]
["France","FR","Finistere","29"]
["France","FR","Corse-du-Sud","2A"]
["France","FR","Corse-du-Nord","2B"]
["France","FR","Gard","30"]
["France","FR","Garonne (Haute)","31"]
["France","FR","Gers","32"]
["France","FR","Gironde","33"]
["France","FR","Herault","34"]
["France","FR","Ille-et-Vilaine","35"]
["France","FR","Indre","36"]
["France","FR","Indre-et-Loire","37"]
["France","FR","Isere","38"]
["France","FR","Jura","39"]
["France","FR","Landes","40"]
["France","FR","Loir-et-Cher","41"]
["France","FR","Loire","42"]
["France","FR","Loire (Haute)","43"]
["France","FR","Loire-Atlantique","44"]
["France","FR","Loiret","45"]
["France","FR","Lot","46"]
["France","FR","Lot-et-Garonne","47"]
["France","FR","Lozere","48"]
["France","FR","Maine-et-Loire","49"]
["France","FR","Manche","50"]
["France","FR","Marne","51"]
["France","FR","Marne (Haute)","52"]
["France","FR","Mayenne","53"]
["France","FR","Meurthe-et-Moselle","54"]
["France","FR","Meuse","55"]
["France","FR","Morbihan","56"]
["France","FR","Moselle","57"]
["France","FR","Nievre","58"]
["France","FR","Nord","59"]
["France","FR","Oise","60"]
["France","FR","Orne","61"]
["France","FR","Pas-de-Calais","62"]
["France","FR","Puy-de-Dome","63"]
["France","FR","Pyrenees-Atlantiques","64"]
["France","FR","Pyrenees (Hautes)","65"]
["France","FR","Pyrenees-Orientales","66"]
["France","FR","Bas-Rhin","67"]
["France","FR","Haut-Rhin","68"]
["France","FR","Rhone","69"]
["France","FR","Saone (Haute)","70"]
["France","FR","Saone-et-Loire","71"]
["France","FR","Sarthe","72"]
["France","FR","Savoie","73"]
["France","FR","Savoie (Haute)","74"]
["France","FR","Paris","75"]
["France","FR","Seine-Maritime","76"]
["France","FR","Seine-et-Marne","77"]
["France","FR","Yvelines","78"]
["France","FR","Sevres (Deux)","79"]
["France","FR","Somme","80"]
["France","FR","Tarn","81"]
["France","FR","Tarn-et-Garonne","82"]
["France","FR","Var","83"]
["France","FR","Vaucluse","84"]
["France","FR","Vendee","85"]
["France","FR","Vienne","86"]
["France","FR","Vienne (Haute)","87"]
["France","FR","Vosges","88"]
["France","FR","Yonne","89"]
["France","FR","Territ.-de-Belfort","90"]
["France","FR","Essonne","91"]
["France","FR","Hauts-de-Seine","92"]
["France","FR","Seine-Saint-Denis","93"]
["France","FR","Val-de-Marne","94"]
["France","FR","Val-d'Oise","95"]
["France","FR","D.O.M.-T.O.M.","97"]
["France","FR","Guadeloupe","971"]
["France","FR","Martinique","972"]
["France","FR","Guyane","973"]
["France","FR","Reunion","974"]
["France","FR","Saint-Pierre-et-Miq.","975"]
["France","FR","Wallis-et-Futuna","976"]
["France","FR","Hors-France","99"]
["United Kingdom","GB","Aberdeenshire","AB"]
["United Kingdom","GB","Argyllshire","AG"]
["United Kingdom","GB","Anglesey","AL"]
["United Kingdom","GB","Armagh","AM"]
["United Kingdom","GB","Angus/Forfarshire","AN"]
["United Kingdom","GB","Antrim","AT"]
["United Kingdom","GB","Ayrshire","AY"]
["United Kingdom","GB","Bedfordshire","BE"]
["United Kingdom","GB","Banffshire","BF"]
["United Kingdom","GB","Berkshire","BK"]
["United Kingdom","GB","Brecknockshire","BR"]
["United Kingdom","GB","Bath&NthEstSomerset","BS"]
["United Kingdom","GB","Buteshire","BT"]
["United Kingdom","GB","Buckinghamshire","BU"]
["United Kingdom","GB","Berwickshire","BW"]
["United Kingdom","GB","Cambridgeshire","CA"]
["United Kingdom","GB","Carmarthenshire","CB"]
["United Kingdom","GB","Cardiganshire","CD"]
["United Kingdom","GB","Caernarfonshire","CF"]
["United Kingdom","GB","Cheshire","CH"]
["United Kingdom","GB","Cromartyshire","CM"]
["United Kingdom","GB","Clackmannanshire","CN"]
["United Kingdom","GB","Cornwall","CO"]
["United Kingdom","GB","Caithness","CT"]
["United Kingdom","GB","Cumberland","CU"]
["United Kingdom","GB","Derbyshire","DB"]
["United Kingdom","GB","Denbighshire","DD"]
["United Kingdom","GB","Dumfriesshire","DF"]
["United Kingdom","GB","Down","DN"]
["United Kingdom","GB","Dorset","DO"]
["United Kingdom","GB","Dunbartonshire","DT"]
["United Kingdom","GB","Durham","DU"]
["United Kingdom","GB","Devon","DV"]
["United Kingdom","GB","East Lothian","EL"]
["United Kingdom","GB","Essex","ES"]
["United Kingdom","GB","Fife","FI"]
["United Kingdom","GB","Flintshire","FL"]
["United Kingdom","GB","Fermanagh","FM"]
["United Kingdom","GB","Gloucestershire","GL"]
["United Kingdom","GB","Hampshire","HA"]
["United Kingdom","GB","Hertfordshire","HT"]
["United Kingdom","GB","Huntingdonshire","HU"]
["United Kingdom","GB","Hereford and Worcs.","HW"]
["United Kingdom","GB","Invernesshire","IN"]
["United Kingdom","GB","Isle of Wight","IW"]
["United Kingdom","GB","Kent","KE"]
["United Kingdom","GB","Kincardineshire","KI"]
["United Kingdom","GB","Kirkcudbrightshire","KK"]
["United Kingdom","GB","Kinross-shire","KN"]
["United Kingdom","GB","Lancashire","LA"]
["United Kingdom","GB","Londonderry","LD"]
["United Kingdom","GB","Leicestershire","LE"]
["United Kingdom","GB","Lincolnshire","LI"]
["United Kingdom","GB","Lanarkshire","LN"]
["United Kingdom","GB","Midlothian","MD"]
["United Kingdom","GB","Merioneth","ME"]
["United Kingdom","GB","Mid Glamorgan","MG"]
["United Kingdom","GB","Monmouthshire","MM"]
["United Kingdom","GB","Morayshire","MR"]
["United Kingdom","GB","Montgomeryshire","MT"]
["United Kingdom","GB","Middlesex","MX"]
["United Kingdom","GB","Northamptonshire","NH"]
["United Kingdom","GB","Norfolk","NK"]
["United Kingdom","GB","Nairnshire","NR"]
["United Kingdom","GB","Nottinghamshire","NT"]
["United Kingdom","GB","Northumberland","NU"]
["United Kingdom","GB","Orkney","OR"]
["United Kingdom","GB","Oxfordshire","OX"]
["United Kingdom","GB","Peeblesshire","PE"]
["United Kingdom","GB","Pembrokeshire","PM"]
["United Kingdom","GB","Perthshire","PR"]
["United Kingdom","GB","Radnorshire","RA"]
["United Kingdom","GB","Renfrewshire","RE"]
["United Kingdom","GB","Ross-shire","RO"]
["United Kingdom","GB","Rutland","RU"]
["United Kingdom","GB","Roxburghshire","RX"]
["United Kingdom","GB","East Sussex","SE"]
["United Kingdom","GB","Selkirkshire","SF"]
["United Kingdom","GB","South Glamorgan","SG"]
["United Kingdom","GB","Shropshire","SH"]
["United Kingdom","GB","Suffolk","SK"]
["United Kingdom","GB","Shetland","SL"]
["United Kingdom","GB","Somerset","SO"]
["United Kingdom","GB","Staffordshire","ST"]
["United Kingdom","GB","Sutherland","SU"]
["United Kingdom","GB","Stirlingshire","SV"]
["United Kingdom","GB","West Sussex","SW"]
["United Kingdom","GB","Surrey","SY"]
["United Kingdom","GB","Tyrone","TY"]
["United Kingdom","GB","Warwickshire","WA"]
["United Kingdom","GB","Worcestershire","WC"]
["United Kingdom","GB","Westmorland","WE"]
["United Kingdom","GB","West Glamorgan","WG"]
["United Kingdom","GB","Wiltshire","WI"]
["United Kingdom","GB","West Lothian","WK"]
["United Kingdom","GB","Wigtownshire","WT"]
["United Kingdom","GB","North Yorkshire","YN"]
["United Kingdom","GB","South Yorkshire","YS"]
["United Kingdom","GB","West Yorkshire","YW"]
["Greece","GR","Aitolia kai Akarnan.","01"]
["Greece","GR","Akhaia","02"]
["Greece","GR","Argolis","03"]
["Greece","GR","Arkadhia","04"]
["Greece","GR","Arta","05"]
["Greece","GR","Attiki","06"]
["Greece","GR","Dhodhekanisos","07"]
["Greece","GR","Dhrama","08"]
["Greece","GR","Evritania","09"]
["Greece","GR","Evros","10"]
["Greece","GR","Evvoia","11"]
["Greece","GR","Florina","12"]
["Greece","GR","Fokis","13"]
["Greece","GR","Fthiotis","14"]
["Greece","GR","Grevena","15"]
["Greece","GR","Ilia","16"]
["Greece","GR","Imathia","17"]
["Greece","GR","Ioannina","18"]
["Greece","GR","Iraklion","19"]
["Greece","GR","Kardhitsa","20"]
["Greece","GR","Kastoria","21"]
["Greece","GR","Kavala","22"]
["Greece","GR","Kefallinia","23"]
["Greece","GR","Kerkira","24"]
["Greece","GR","Khalkidhiki","25"]
["Greece","GR","Khania","26"]
["Greece","GR","Khios","27"]
["Greece","GR","Kikladhes","28"]
["Greece","GR","Kilkis","29"]
["Greece","GR","Korinthia","30"]
["Greece","GR","Kozani","31"]
["Greece","GR","Lakonia","32"]
["Greece","GR","Larisa","33"]
["Greece","GR","Lasithi","34"]
["Greece","GR","Lesvos","35"]
["Greece","GR","Levkas","36"]
["Greece","GR","Magnisia","37"]
["Greece","GR","Messinia","38"]
["Greece","GR","Pella","39"]
["Greece","GR","Pieria","40"]
["Greece","GR","Piraievs","41"]
["Greece","GR","Preveza","42"]
["Greece","GR","Rethimni","43"]
["Greece","GR","Rodhopi","44"]
["Greece","GR","Samos","45"]
["Greece","GR","Serrai","46"]
["Greece","GR","Thesprotia","47"]
["Greece","GR","Thessaloniki","48"]
["Greece","GR","Trikala","49"]
["Greece","GR","Voiotia","50"]
["Greece","GR","Xanthi","51"]
["Greece","GR","Zakinthos","52"]
["Hong Kong","HK","Hong Kong Island","HK"]
["Hong Kong","HK","Kowloon","KLN"]
["Hong Kong","HK","New Territories","NT"]
["Croatia","HR","Zagrebacka","A00"]
["Croatia","HR","Krapinsko-zagorska","B00"]
["Croatia","HR","Sisacko-moslavacka","C00"]
["Croatia","HR","Karlovacka","D00"]
["Croatia","HR","Varazdinska","E00"]
["Croatia","HR","Koprivnicko-krizevac","F00"]
["Croatia","HR","Bjelovarsko-bilogors","G00"]
["Croatia","HR","Rijecko-goranska","H00"]
["Croatia","HR","Licko-senjska","I00"]
["Croatia","HR","Viroviticko-podravac","J00"]
["Croatia","HR","Pozesko-slavonska","K00"]
["Croatia","HR","Slavonskobrodska","L00"]
["Croatia","HR","Zadarska","M00"]
["Croatia","HR","Osjecko-baranjska","N00"]
["Croatia","HR","Sibensko-kninska","O00"]
["Croatia","HR","Vukovarsko-srijemska","P00"]
["Croatia","HR","Splitsko-dalmatinska","R00"]
["Croatia","HR","Istarska","S00"]
["Croatia","HR","Dubrovacko-neretvans","T00"]
["Croatia","HR","Medjimurska","U00"]
["Croatia","HR","Zagreb","V00"]
["Hungary","HU","Bacs-Kiskun","01"]
["Hungary","HU","Baranya","02"]
["Hungary","HU","Bekes","03"]
["Hungary","HU","Bekescsaba","04"]
["Hungary","HU","Borsod-Abauj-Zemplen","05"]
["Hungary","HU","Budapest","06"]
["Hungary","HU","Csongrad","07"]
["Hungary","HU","Debrecen","08"]
["Hungary","HU","Dunaujvaros","09"]
["Hungary","HU","Eger","10"]
["Hungary","HU","Fejer","11"]
["Hungary","HU","Gyor","12"]
["Hungary","HU","Gyor-Moson-Sopron","13"]
["Hungary","HU","Hajdu-Bihar","14"]
["Hungary","HU","Heves","15"]
["Hungary","HU","Hodmezovasarhely","16"]
["Hungary","HU","Jasz-Nagykun-Szolnok","17"]
["Hungary","HU","Kaposvar","18"]
["Hungary","HU","Kecskemet","19"]
["Hungary","HU","Komarom-Esztergom","20"]
["Hungary","HU","Miskolc","21"]
["Hungary","HU","Nagykanizsa","22"]
["Hungary","HU","Nograd","23"]
["Hungary","HU","Nyiregyhaza","24"]
["Hungary","HU","Pecs","25"]
["Hungary","HU","Pest","26"]
["Hungary","HU","Somogy","27"]
["Hungary","HU","Sopron","28"]
["Hungary","HU","Szabolcs-Szat.-Bereg","29"]
["Hungary","HU","Szeged","30"]
["Hungary","HU","Szekesfehervar","31"]
["Hungary","HU","Szolnok","32"]
["Hungary","HU","Szombathely","33"]
["Hungary","HU","Tatabanya","34"]
["Hungary","HU","Tolna","35"]
["Hungary","HU","Vas","36"]
["Hungary","HU","Veszprem","37"]
["Hungary","HU","Zala","38"]
["Hungary","HU","Zalaegerszeg","39"]
["Indonesia","ID","DKI Jakarta Jakarta","01"]
["Indonesia","ID","Jawa Barat West Java","02"]
["Indonesia","ID","Jawa Tengah Central","03"]
["Indonesia","ID","Jawa Timur East Java","04"]
["Indonesia","ID","DI Yogyakarta Yogyak","05"]
["Indonesia","ID","DI Aceh Aceh","06"]
["Indonesia","ID","Sumatera Utara North","07"]
["Indonesia","ID","Sumatera Barat West","08"]
["Indonesia","ID","Riau Riau","09"]
["Indonesia","ID","Jambi Jambi","10"]
["Indonesia","ID","Sumatera Selatan Sou","11"]
["Indonesia","ID","Bengkulu Bengkulu","12"]
["Indonesia","ID","Lampung Lampung","13"]
["Indonesia","ID","Kalimantan Selatan S","14"]
["Indonesia","ID","Kalimantan Barat Wes","15"]
["Indonesia","ID","Kalimantan Tengah Ce","16"]
["Indonesia","ID","Kalimantan Timur Eas","17"]
["Indonesia","ID","Sulawesi Selatan Sou","18"]
["Indonesia","ID","Sulawesi Tenggara So","19"]
["Indonesia","ID","Sulawesi Tengah Cent","20"]
["Indonesia","ID","Sulawesi Utara North","21"]
["Indonesia","ID","Bali Bali","22"]
["Indonesia","ID","Nusa Tenggara Barat","23"]
["Indonesia","ID","Nusa Tenggara Timur","24"]
["Indonesia","ID","Maluku Maluku","25"]
["Indonesia","ID","Irian Jaya Irian Jay","26"]
["Indonesia","ID","Timor Timur East Tim","27"]
["Ireland","IE","Cork","C"]
["Ireland","IE","Clare","CE"]
["Ireland","IE","Cavan","CN"]
["Ireland","IE","Carlow","CW"]
["Ireland","IE","Dublin","D"]
["Ireland","IE","Donegal","DL"]
["Ireland","IE","Galway","G"]
["Ireland","IE","Kildare","KE"]
["Ireland","IE","Kilkenny","KK"]
["Ireland","IE","Kerry","KY"]
["Ireland","IE","Longford","LD"]
["Ireland","IE","Louth","LH"]
["Ireland","IE","Limerick","LK"]
["Ireland","IE","Leitrim","LM"]
["Ireland","IE","Laois","LS"]
["Ireland","IE","Meath","MH"]
["Ireland","IE","Monaghan","MN"]
["Ireland","IE","Mayo","MO"]
["Ireland","IE","Offaly","OY"]
["Ireland","IE","Roscommon","RN"]
["Ireland","IE","Sligo","SO"]
["Ireland","IE","Tipperary","TA"]
["Ireland","IE","Waterford","WD"]
["Ireland","IE","Westmeath","WH"]
["Ireland","IE","Wicklow","WW"]
["Ireland","IE","Wexford","WX"]
["Israel","IL","Central","01"]
["Israel","IL","Haifa","02"]
["Israel","IL","Jerusalem","03"]
["Israel","IL","Northern","04"]
["Israel","IL","Southern","05"]
["Israel","IL","Tel Aviv","06"]
["India","IN","Andhra Pradesh","01"]
["India","IN","Arunachal Pradesh","02"]
["India","IN","Assam","03"]
["India","IN","Bihar","04"]
["India","IN","Goa","05"]
["India","IN","Gujarat","06"]
["India","IN","Haryana","07"]
["India","IN","Himachal Pradesh","08"]
["India","IN","Jammu and Kashmir","09"]
["India","IN","Karnataka","10"]
["India","IN","Kerala","11"]
["India","IN","Madhya Pradesh","12"]
["India","IN","Maharashtra","13"]
["India","IN","Manipur","14"]
["India","IN","Meghalaya","15"]
["India","IN","Mizoram","16"]
["India","IN","Nagaland","17"]
["India","IN","Orissa","18"]
["India","IN","Punjab","19"]
["India","IN","Rajasthan","20"]
["India","IN","Sikkim","21"]
["India","IN","Tamil Nadu","22"]
["India","IN","Tripura","23"]
["India","IN","Uttar Pradesh","24"]
["India","IN","West Bengal","25"]
["India","IN","Andaman and Nico.Is.","26"]
["India","IN","Chandigarh","27"]
["India","IN","Dadra and Nagar Hav.","28"]
["India","IN","Daman and Diu","29"]
["India","IN","Delhi","30"]
["India","IN","Lakshadweep","31"]
["India","IN","Puducherry","32"]
["India","IN","Chhattisgarh","33"]
["India","IN","Jharkhand","34"]
["India","IN","Uttarakhand","35"]
["Italy","IT","Agriento","AG"]
["Italy","IT","Alessandria","AL"]
["Italy","IT","Ancona","AN"]
["Italy","IT","Aosta","AO"]
["Italy","IT","Ascoli Piceno","AP"]
["Italy","IT","L'Aquila","AQ"]
["Italy","IT","Arezzo","AR"]
["Italy","IT","Asti","AT"]
["Italy","IT","Avellino","AV"]
["Italy","IT","Bari","BA"]
["Italy","IT","Bergamo","BG"]
["Italy","IT","Biella","BI"]
["Italy","IT","Belluno","BL"]
["Italy","IT","Benevento","BN"]
["Italy","IT","Bologna","BO"]
["Italy","IT","Brindisi","BR"]
["Italy","IT","Brescia","BS"]
["Italy","IT","Barletta Andria Tran","BT"]
["Italy","IT","Bolzano","BZ"]
["Italy","IT","Cagliari","CA"]
["Italy","IT","Campobasso","CB"]
["Italy","IT","Caserta","CE"]
["Italy","IT","Chieti","CH"]
["Italy","IT","Carbonia-Iglesias","CI"]
["Italy","IT","Caltanisetta","CL"]
["Italy","IT","Cuneo","CN"]
["Italy","IT","Como","CO"]
["Italy","IT","Cremona","CR"]
["Italy","IT","Cosenza","CS"]
["Italy","IT","Catania","CT"]
["Italy","IT","Catanzaro","CZ"]
["Italy","IT","Stati Esteri","EE"]
["Italy","IT","Enna","EN"]
["Italy","IT","Forli/Cesana","FC"]
["Italy","IT","Ferrara","FE"]
["Italy","IT","Foggia","FG"]
["Italy","IT","Florence","FI"]
["Italy","IT","Fermo","FM"]
["Italy","IT","Frosinone","FR"]
["Italy","IT","Fiume","FU"]
["Italy","IT","Genova","GE"]
["Italy","IT","Gorizia","GO"]
["Italy","IT","Grosseto","GR"]
["Italy","IT","Imperia","IM"]
["Italy","IT","Isernia","IS"]
["Italy","IT","Crotone","KR"]
["Italy","IT","Lecco","LC"]
["Italy","IT","Lecce","LE"]
["Italy","IT","Livorno","LI"]
["Italy","IT","Lodi","LO"]
["Italy","IT","Latina","LT"]
["Italy","IT","Lucca","LU"]
["Italy","IT","Monza e Brianza","MB"]
["Italy","IT","Macerata","MC"]
["Italy","IT","Messina","ME"]
["Italy","IT","Milan","MI"]
["Italy","IT","Mantova","MN"]
["Italy","IT","Modena","MO"]
["Italy","IT","Massa Carrara","MS"]
["Italy","IT","Matera","MT"]
["Italy","IT","Naples","NA"]
["Italy","IT","Novara","NO"]
["Italy","IT","Nuoro","NU"]
["Italy","IT","Ogliastra","OG"]
["Italy","IT","Oristano","OR"]
["Italy","IT","Olbia-Tempio","OT"]
["Italy","IT","Palermo","PA"]
["Italy","IT","Piacenza","PC"]
["Italy","IT","Padova","PD"]
["Italy","IT","Pescara","PE"]
["Italy","IT","Perugia","PG"]
["Italy","IT","Pisa","PI"]
["Italy","IT","Pola","PL"]
["Italy","IT","Pordenone","PN"]
["Italy","IT","Prato","PO"]
["Italy","IT","Parma","PR"]
["Italy","IT","Pistoia","PT"]
["Italy","IT","Pesaro-Urbino","PU"]
["Italy","IT","Pavia","PV"]
["Italy","IT","Potenza","PZ"]
["Italy","IT","Ravenna","RA"]
["Italy","IT","Reggio Calabria","RC"]
["Italy","IT","Reggio Emilia","RE"]
["Italy","IT","Ragusa","RG"]
["Italy","IT","Rieti","RI"]
["Italy","IT","Rome","RM"]
["Italy","IT","Rimini","RN"]
["Italy","IT","Rovigo","RO"]
["Italy","IT","Salerno","SA"]
["Italy","IT","Siena","SI"]
["Italy","IT","Sondrio","SO"]
["Italy","IT","La Spezia","SP"]
["Italy","IT","Siracusa","SR"]
["Italy","IT","Sassari","SS"]
["Italy","IT","Savona","SV"]
["Italy","IT","Taranto","TA"]
["Italy","IT","Teramo","TE"]
["Italy","IT","Trento","TN"]
["Italy","IT","Turin","TO"]
["Italy","IT","Trapani","TP"]
["Italy","IT","Terni","TR"]
["Italy","IT","Trieste","TS"]
["Italy","IT","Treviso","TV"]
["Italy","IT","Udine","UD"]
["Italy","IT","Varese","VA"]
["Italy","IT","Verbania","VB"]
["Italy","IT","Vercelli","VC"]
["Italy","IT","Venice","VE"]
["Italy","IT","Vicenza","VI"]
["Italy","IT","Verona","VR"]
["Italy","IT","Medio Campidano","VS"]
["Italy","IT","Viterbo","VT"]
["Italy","IT","Vibo Valentia","VV"]
["Italy","IT","Zara","ZA"]
["Japan","JP","Hokkaido","01"]
["Japan","JP","Aomori","02"]
["Japan","JP","Iwate","03"]
["Japan","JP","Miyagi","04"]
["Japan","JP","Akita","05"]
["Japan","JP","Yamagata","06"]
["Japan","JP","Fukushima","07"]
["Japan","JP","Ibaraki","08"]
["Japan","JP","Tochigi","09"]
["Japan","JP","Gunma","10"]
["Japan","JP","Saitama","11"]
["Japan","JP","Chiba","12"]
["Japan","JP","Tokyo","13"]
["Japan","JP","Kanagawa","14"]
["Japan","JP","Niigata","15"]
["Japan","JP","Toyama","16"]
["Japan","JP","Ishikawa","17"]
["Japan","JP","Fukui","18"]
["Japan","JP","Yamanashi","19"]
["Japan","JP","Nagano","20"]
["Japan","JP","Gifu","21"]
["Japan","JP","Shizuoka","22"]
["Japan","JP","Aichi","23"]
["Japan","JP","Mie","24"]
["Japan","JP","Shiga","25"]
["Japan","JP","Kyoto","26"]
["Japan","JP","Osaka","27"]
["Japan","JP","Hyogo","28"]
["Japan","JP","Nara","29"]
["Japan","JP","Wakayama","30"]
["Japan","JP","Tottori","31"]
["Japan","JP","Shimane","32"]
["Japan","JP","Okayama","33"]
["Japan","JP","Hiroshima","34"]
["Japan","JP","Yamaguchi","35"]
["Japan","JP","Tokushima","36"]
["Japan","JP","Kagawa","37"]
["Japan","JP","Ehime","38"]
["Japan","JP","Kochi","39"]
["Japan","JP","Fukuoka","40"]
["Japan","JP","Saga","41"]
["Japan","JP","Nagasaki","42"]
["Japan","JP","Kumamoto","43"]
["Japan","JP","Oita","44"]
["Japan","JP","Miyazaki","45"]
["Japan","JP","Kagoshima","46"]
["Japan","JP","Okinawa","47"]
["South Korea","KR","Cheju-do","01"]
["South Korea","KR","Cholla-bukto","02"]
["South Korea","KR","Cholla-namdo","03"]
["South Korea","KR","Ch´ungch´ong-bukto","04"]
["South Korea","KR","Ch´ungch´ong-namdo","05"]
["South Korea","KR","Inch´on-jikhalsi","06"]
["South Korea","KR","Kangwon-do","07"]
["South Korea","KR","Kwangju-jikhalsi","08"]
["South Korea","KR","Kyonggi-do","09"]
["South Korea","KR","Kyongsang-bukto","10"]
["South Korea","KR","Kyongsang-namdo","11"]
["South Korea","KR","Pusan-jikhalsi","12"]
["South Korea","KR","Soul-t´ukpyolsi","13"]
["South Korea","KR","Taegu-jikhalsi","14"]
["South Korea","KR","Taejon-jikhalsi","15"]
["South Korea","KR","Ulsan","16"]
["South Korea","KR","Sejong","17"]
["Kuwait","KW","Kuwait City","KW"]
["Kazakhstan","KZ","Almatynskaia","00"]
["Kazakhstan","KZ","Kostanaiskaia","01"]
["Kazakhstan","KZ","Severo-Kazakhstansk","02"]
["Kazakhstan","KZ","Pavlodarskaia","03"]
["Kazakhstan","KZ","Akmolinskaia","04"]
["Kazakhstan","KZ","Aktubinskaia","05"]
["Kazakhstan","KZ","Atyrauskaia","06"]
["Kazakhstan","KZ","Zapadno-Kazakhst","07"]
["Kazakhstan","KZ","Mangystayskaia","08"]
["Kazakhstan","KZ","Karagandinskaia","09"]
["Kazakhstan","KZ","Vostochno-Kazakhstan","10"]
["Kazakhstan","KZ","Gambilskaia","11"]
["Kazakhstan","KZ","Kyzilordinskaia","12"]
["Sri Lanka","LK","Central Province","01"]
["Sri Lanka","LK","Eastern Province","02"]
["Sri Lanka","LK","Northern Province","03"]
["Sri Lanka","LK","Western Province","04"]
["Sri Lanka","LK","Southern Province","05"]
["Sri Lanka","LK","North Western Provin","06"]
["Sri Lanka","LK","North Central Provin","07"]
["Sri Lanka","LK","Uva Province","08"]
["Sri Lanka","LK","Sabaragamuwa Provinc","09"]
["Mexico","MX","Aguascalientes","AGS"]
["Mexico","MX","Baja California","BC"]
["Mexico","MX","Baja California S","BCS"]
["Mexico","MX","Chihuahua","CHI"]
["Mexico","MX","Chiapas","CHS"]
["Mexico","MX","Campeche","CMP"]
["Mexico","MX","Coahuila","COA"]
["Mexico","MX","Colima","COL"]
["Mexico","MX","Distrito Federal","DF"]
["Mexico","MX","Durango","DGO"]
["Mexico","MX","Guerrero","GRO"]
["Mexico","MX","Guanajuato","GTO"]
["Mexico","MX","Hidalgo","HGO"]
["Mexico","MX","Jalisco","JAL"]
["Mexico","MX","Michoacan","MCH"]
["Mexico","MX","Estado de Mexico","MEX"]
["Mexico","MX","Morelos","MOR"]
["Mexico","MX","Nayarit","NAY"]
["Mexico","MX","Nuevo Leon","NL"]
["Mexico","MX","Oaxaca","OAX"]
["Mexico","MX","Puebla","PUE"]
["Mexico","MX","Quintana Roo","QR"]
["Mexico","MX","Queretaro","QRO"]
["Mexico","MX","Sinaloa","SIN"]
["Mexico","MX","San Luis Potosi","SLP"]
["Mexico","MX","Sonora","SON"]
["Mexico","MX","Tabasco","TAB"]
["Mexico","MX","Tlaxcala","TLX"]
["Mexico","MX","Tamaulipas","TMS"]
["Mexico","MX","Veracruz","VER"]
["Mexico","MX","Yucatan","YUC"]
["Mexico","MX","Zacatecas","ZAC"]
["Malaysia","MY","Johor","JOH"]
["Malaysia","MY","Kedah","KED"]
["Malaysia","MY","Kelantan","KEL"]
["Malaysia","MY","Kuala Lumpur","KUL"]
["Malaysia","MY","Labuan","LAB"]
["Malaysia","MY","Melaka","MEL"]
["Malaysia","MY","Pahang","PAH"]
["Malaysia","MY","Perlis","PEL"]
["Malaysia","MY","Perak","PER"]
["Malaysia","MY","Pulau Pinang","PIN"]
["Malaysia","MY","Wil. Persekutuan","PSK"]
["Malaysia","MY","Sabah","SAB"]
["Malaysia","MY","Sarawak","SAR"]
["Malaysia","MY","Selangor","SEL"]
["Malaysia","MY","Negeri Sembilan","SER"]
["Malaysia","MY","Trengganu","TRE"]
["Netherlands","NL","Drenthe","01"]
["Netherlands","NL","Flevoland","02"]
["Netherlands","NL","Friesland","03"]
["Netherlands","NL","Gelderland","04"]
["Netherlands","NL","Groningen","05"]
["Netherlands","NL","Limburg","06"]
["Netherlands","NL","Noord-Brabant","07"]
["Netherlands","NL","Noord-Holland","08"]
["Netherlands","NL","Overijssel","09"]
["Netherlands","NL","Utrecht","10"]
["Netherlands","NL","Zeeland","11"]
["Netherlands","NL","Zuid-Holland","12"]
["Norway","NO","Ostfold County","01"]
["Norway","NO","Akershus County","02"]
["Norway","NO","Oslo","03"]
["Norway","NO","Hedmark County","04"]
["Norway","NO","Oppland County","05"]
["Norway","NO","Buskerud County","06"]
["Norway","NO","Vestfold County","07"]
["Norway","NO","Telemark County","08"]
["Norway","NO","Aust-Agder County","09"]
["Norway","NO","Vest-Agder County","10"]
["Norway","NO","Rogaland County","11"]
["Norway","NO","Hordaland County","12"]
["Norway","NO","Sogn og Fjordane C.","14"]
["Norway","NO","More og Romsdal C.","15"]
["Norway","NO","Sor-Trondelag County","16"]
["Norway","NO","Nord-Trondelag Cnty","17"]
["Norway","NO","Nordland County","18"]
["Norway","NO","Troms County","19"]
["Norway","NO","Finnmark County","20"]
["New Zealand","NZ","Auckland","AKL"]
["New Zealand","NZ","Bay of Plenty","BOP"]
["New Zealand","NZ","Canterbury","CAN"]
["New Zealand","NZ","Hawke´s Bay","HAB"]
["New Zealand","NZ","Manawatu-Wanganui","MAN"]
["New Zealand","NZ","Northland","NTL"]
["New Zealand","NZ","Otago","OTA"]
["New Zealand","NZ","Southland","STL"]
["New Zealand","NZ","Taranaki","TAR"]
["New Zealand","NZ","Waikato","WAI"]
["New Zealand","NZ","West Coast","WEC"]
["New Zealand","NZ","Wellington","WLG"]
["Peru","PE","Tumbes","01"]
["Peru","PE","Piura","02"]
["Peru","PE","Lambayeque","03"]
["Peru","PE","La Libertad","04"]
["Peru","PE","Ancash","05"]
["Peru","PE","Lima y Callao","06"]
["Peru","PE","Ica","07"]
["Peru","PE","Arequipa","08"]
["Peru","PE","Moquegua","09"]
["Peru","PE","Tacna","10"]
["Peru","PE","Amazon","11"]
["Peru","PE","Cajamarca","12"]
["Peru","PE","San Martin","13"]
["Peru","PE","Huanuco","14"]
["Peru","PE","Pasco","15"]
["Peru","PE","Junin","16"]
["Peru","PE","Huancavelica","17"]
["Peru","PE","Ayacucho","18"]
["Peru","PE","Apurimac","19"]
["Peru","PE","Cuzco","20"]
["Peru","PE","Puno","21"]
["Peru","PE","Loreto","22"]
["Peru","PE","Ucayali","23"]
["Peru","PE","Madre de Dios","24"]
["Philippines","PH","Ilocos","01"]
["Philippines","PH","Cagayan Valley","02"]
["Philippines","PH","Central Luzon","03"]
["Philippines","PH","South Luzon","04"]
["Philippines","PH","Bicol","05"]
["Philippines","PH","West Visayas","06"]
["Philippines","PH","Central Visayas","07"]
["Philippines","PH","Eastern Visayas","08"]
["Philippines","PH","Western Mindanao","09"]
["Philippines","PH","Northern Mindanao","10"]
["Philippines","PH","Central Mindanao","11"]
["Philippines","PH","South Mindanao","12"]
["Poland","PL","Dolnoslaskie","DSL"]
["Poland","PL","Kujawsko-Pomorskie","K-P"]
["Poland","PL","Lubelskie","LBL"]
["Poland","PL","Lubuskie","LBS"]
["Poland","PL","Lodzkie","LDZ"]
["Poland","PL","Malopolskie","MAL"]
["Poland","PL","Mazowieckie","MAZ"]
["Poland","PL","Opolskie","OPO"]
["Poland","PL","Podkarpackie","PDK"]
["Poland","PL","Podlaskie","PDL"]
["Poland","PL","Pomorskie","POM"]
["Poland","PL","Slaskie","SLS"]
["Poland","PL","Swietokrzyskie","SWK"]
["Poland","PL","Warminsko-mazurskie","W-M"]
["Poland","PL","Wielkopolskie","WLK"]
["Poland","PL","Zachodnio-Pomorskie","Z-P"]
["Portugal","PT","Minho-Lima","10"]
["Portugal","PT","Cavado","11"]
["Portugal","PT","Ave","12"]
["Portugal","PT","Grande Porto","13"]
["Portugal","PT","Tamega","14"]
["Portugal","PT","Entre Douro e Vouga","15"]
["Portugal","PT","Douro","16"]
["Portugal","PT","Alto Tras-os-Montes","17"]
["Portugal","PT","Baixo Vouga","20"]
["Portugal","PT","Baixo Mondego","21"]
["Portugal","PT","Pinhal Litoral","22"]
["Portugal","PT","Pinhal Interior N.","23"]
["Portugal","PT","Pinhal Interior Sul","24"]
["Portugal","PT","Dao-Lafoes","25"]
["Portugal","PT","Serra da Estrela","26"]
["Portugal","PT","Beira Interior Norte","27"]
["Portugal","PT","Beira Interior Sul","28"]
["Portugal","PT","Cova da Beira","29"]
["Portugal","PT","Oeste","30"]
["Portugal","PT","Grande Lisboa","31"]
["Portugal","PT","Peninsula de Setubal","32"]
["Portugal","PT","Medio Tejo","33"]
["Portugal","PT","Leziria do Tejo","34"]
["Portugal","PT","Alentejo Litoral","40"]
["Portugal","PT","Alto Alentejo","41"]
["Portugal","PT","Alentejo Central","42"]
["Portugal","PT","Baixo Alentejo","43"]
["Portugal","PT","Algarve","50"]
["Portugal","PT","Reg. Aut. dos Açores","60"]
["Portugal","PT","Reg. Aut. da Madeira","70"]
["Qatar","QA","Doha","001"]
["Qatar","QA","The north","002"]
["Qatar","QA","The west coast","003"]
["Qatar","QA","The south","004"]
["Romania","RO","Alba","01"]
["Romania","RO","Arad","02"]
["Romania","RO","Arges","03"]
["Romania","RO","Bacau","04"]
["Romania","RO","Bihor","05"]
["Romania","RO","Bistrita-Nasaud","06"]
["Romania","RO","Botosani","07"]
["Romania","RO","Braila","08"]
["Romania","RO","Brasov","09"]
["Romania","RO","Bucuresti","10"]
["Romania","RO","Buzau","11"]
["Romania","RO","Calarasi","12"]
["Romania","RO","Caras-Severin","13"]
["Romania","RO","Cluj","14"]
["Romania","RO","Constanta","15"]
["Romania","RO","Covasna","16"]
["Romania","RO","Dimbovita","17"]
["Romania","RO","Dolj","18"]
["Romania","RO","Galati","19"]
["Romania","RO","Gorj","20"]
["Romania","RO","Giurgiu","21"]
["Romania","RO","Harghita","22"]
["Romania","RO","Hunedoara","23"]
["Romania","RO","Ialomita","24"]
["Romania","RO","Iasi","25"]
["Romania","RO","Ilfov","26"]
["Romania","RO","Maramures","27"]
["Romania","RO","Mehedinti","28"]
["Romania","RO","Mures","29"]
["Romania","RO","Neamt","30"]
["Romania","RO","Olt","31"]
["Romania","RO","Prahova","32"]
["Romania","RO","Salaj","33"]
["Romania","RO","Satu Mare","34"]
["Romania","RO","Sibiu","35"]
["Romania","RO","Suceava","36"]
["Romania","RO","Teleorman","37"]
["Romania","RO","Timis","38"]
["Romania","RO","Tulcea","39"]
["Romania","RO","Vaslui","40"]
["Romania","RO","Vilcea","41"]
["Romania","RO","Vrancea","42"]
["Russian Federation","RU","Adigeja Republic","01"]
["Russian Federation","RU","Highlands-Altay Rep.","02"]
["Russian Federation","RU","Republ.of Bashkortos","03"]
["Russian Federation","RU","Buryat Republic","04"]
["Russian Federation","RU","Dagestan Republic","05"]
["Russian Federation","RU","Ingushetija Republic","06"]
["Russian Federation","RU","Kabardino-Balkar.Rep","07"]
["Russian Federation","RU","Kalmyk Republic","08"]
["Russian Federation","RU","Karach.-Cherkessk Re","09"]
["Russian Federation","RU","Karelian Republic","10"]
["Russian Federation","RU","Komi Republic","11"]
["Russian Federation","RU","Marijskaya Republic","12"]
["Russian Federation","RU","Mordovian Republic","13"]
["Russian Federation","RU","Yakutiya-Saha Rrepub","14"]
["Russian Federation","RU","North-Osetiya Republ","15"]
["Russian Federation","RU","Tatarstan Republic","16"]
["Russian Federation","RU","Tuva Republic","17"]
["Russian Federation","RU","The Udmurt Republic","18"]
["Russian Federation","RU","Chakassky Republic","19"]
["Russian Federation","RU","Chechenskaya Republ.","20"]
["Russian Federation","RU","Chuvash Republic","21"]
["Russian Federation","RU","Altay Territory","22"]
["Russian Federation","RU","Krasnodar Territory","23"]
["Russian Federation","RU","Krasnoyarsk Territor","24"]
["Russian Federation","RU","Primorye Territory","25"]
["Russian Federation","RU","Stavropol Territory","26"]
["Russian Federation","RU","Khabarovsk Territory","27"]
["Russian Federation","RU","The Amur Area","28"]
["Russian Federation","RU","The Arkhangelsk Area","29"]
["Russian Federation","RU","The Astrakhan Area","30"]
["Russian Federation","RU","The Belgorod Area","31"]
["Russian Federation","RU","The Bryansk Area","32"]
["Russian Federation","RU","The Vladimir Area","33"]
["Russian Federation","RU","The Volgograd Area","34"]
["Russian Federation","RU","The Vologda Area","35"]
["Russian Federation","RU","The Voronezh Area","36"]
["Russian Federation","RU","The Ivanovo Area","37"]
["Russian Federation","RU","The Irkutsk Area","38"]
["Russian Federation","RU","The Kaliningrad Area","39"]
["Russian Federation","RU","The Kaluga Area","40"]
["Russian Federation","RU","Kamchatka Territory","41"]
["Russian Federation","RU","The Kemerovo Area","42"]
["Russian Federation","RU","The Kirov Area","43"]
["Russian Federation","RU","The Kostroma Area","44"]
["Russian Federation","RU","The Kurgan Area","45"]
["Russian Federation","RU","The Kursk Area","46"]
["Russian Federation","RU","The Leningrad Area","47"]
["Russian Federation","RU","The Lipetsk Area","48"]
["Russian Federation","RU","The Magadan Area","49"]
["Russian Federation","RU","The Moscow Area","50"]
["Russian Federation","RU","The Murmansk Area","51"]
["Russian Federation","RU","The Nizhniy Novgorod","52"]
["Russian Federation","RU","The Novgorod Area","53"]
["Russian Federation","RU","The Novosibirsk Area","54"]
["Russian Federation","RU","The Omsk Area","55"]
["Russian Federation","RU","The Orenburg Area","56"]
["Russian Federation","RU","The Oryol Area","57"]
["Russian Federation","RU","The Penza Area","58"]
["Russian Federation","RU","Perm Territory","59"]
["Russian Federation","RU","The Pskov Area","60"]
["Russian Federation","RU","The Rostov Area","61"]
["Russian Federation","RU","The Ryazan Area","62"]
["Russian Federation","RU","The Samara Area","63"]
["Russian Federation","RU","The Saratov Area","64"]
["Russian Federation","RU","The Sakhalin Area","65"]
["Russian Federation","RU","The Sverdlovsk Area","66"]
["Russian Federation","RU","The Smolensk Area","67"]
["Russian Federation","RU","The Tambov Area","68"]
["Russian Federation","RU","The Tver Area","69"]
["Russian Federation","RU","The Tomsk Area","70"]
["Russian Federation","RU","The Tula Area","71"]
["Russian Federation","RU","The Tyumen Area","72"]
["Russian Federation","RU","The Ulyanovsk Area","73"]
["Russian Federation","RU","The Chelyabinsk Area","74"]
["Russian Federation","RU","Zabaykalsk Territory","75"]
["Russian Federation","RU","The Yaroslavl Area","76"]
["Russian Federation","RU","c.Moscow","77"]
["Russian Federation","RU","c.St-Peterburg","78"]
["Russian Federation","RU","The Jewish Auton.are","79"]
["Russian Federation","RU","Aginsk Buryat Aut.di","80"]
["Russian Federation","RU","Komy Permjats.Aut.di","81"]
["Russian Federation","RU","Korjacs Auton.distri","82"]
["Russian Federation","RU","Nenekchky Auton.dist","83"]
["Russian Federation","RU","The Taymir Auton.dis","84"]
["Russian Federation","RU","Ust-Ordinsky Buryat","85"]
["Russian Federation","RU","Chanti-Mansyjsky Aut","86"]
["Russian Federation","RU","Chukotka Auton. dist","87"]
["Russian Federation","RU","Evensky Auton.distri","88"]
["Russian Federation","RU","Jamalo-Nenekchky Aut","89"]
["Sweden","SE","Blekinge County","001"]
["Sweden","SE","Dalarnas County","002"]
["Sweden","SE","Gotland County","003"]
["Sweden","SE","Gaevleborg County","004"]
["Sweden","SE","Halland County","005"]
["Sweden","SE","Jaemtland County","006"]
["Sweden","SE","Joenkoeping County","007"]
["Sweden","SE","Kalmar County","008"]
["Sweden","SE","Kronoberg County","009"]
["Sweden","SE","Norrbotten County","010"]
["Sweden","SE","Skaane County","011"]
["Sweden","SE","Stockholm County","012"]
["Sweden","SE","Soedermanland County","013"]
["Sweden","SE","Uppsala County","014"]
["Sweden","SE","Vaermland County","015"]
["Sweden","SE","Vaesterbotten County","016"]
["Sweden","SE","Vaesternorrland Cnty","017"]
["Sweden","SE","Vaestmanland County","018"]
["Sweden","SE","Vaestra Goetaland C.","019"]
["Sweden","SE","Oerebro County","020"]
["Sweden","SE","Oestergoetland Cnty","021"]
["Singapore","SG","Singapore","SG"]
["Slovenia","SI","Ajdov¹èina","001"]
["Slovenia","SI","Beltinci","002"]
["Slovenia","SI","Bled","003"]
["Slovenia","SI","Bohinj","004"]
["Slovenia","SI","Borovnica","005"]
["Slovenia","SI","Bovec","006"]
["Slovenia","SI","Brda","007"]
["Slovenia","SI","Brezovica","008"]
["Slovenia","SI","Bre¾ice","009"]
["Slovenia","SI","Ajdovscina","01"]
["Slovenia","SI","Ti¹ina","010"]
["Slovenia","SI","Celje","011"]
["Slovenia","SI","Cerklje na Gorenjske","012"]
["Slovenia","SI","Cerknica","013"]
["Slovenia","SI","Cerkno","014"]
["Slovenia","SI","Èren¹ovci","015"]
["Slovenia","SI","Èrna na Koro¹kem","016"]
["Slovenia","SI","Èrnomelj","017"]
["Slovenia","SI","Destrnik","018"]
["Slovenia","SI","Divaèa","019"]
["Slovenia","SI","Brezice","02"]
["Slovenia","SI","Dobrepolje","020"]
["Slovenia","SI","Dobrova-Polhov Grade","021"]
["Slovenia","SI","Dol pri Ljubljani","022"]
["Slovenia","SI","Dom¾ale","023"]
["Slovenia","SI","Dornava","024"]
["Slovenia","SI","Dravograd","025"]
["Slovenia","SI","Duplek","026"]
["Slovenia","SI","Gorenja vas-Poljane","027"]
["Slovenia","SI","Gori¹nica","028"]
["Slovenia","SI","Gornja Radgona","029"]
["Slovenia","SI","Celje","03"]
["Slovenia","SI","Gornji Grad","030"]
["Slovenia","SI","Gornji Petrovci","031"]
["Slovenia","SI","Grosuplje","032"]
["Slovenia","SI","©alovci","033"]
["Slovenia","SI","Hrastnik","034"]
["Slovenia","SI","Hrpelje-Kozina","035"]
["Slovenia","SI","Idrija","036"]
["Slovenia","SI","Ig","037"]
["Slovenia","SI","Ilirska Bistrica","038"]
["Slovenia","SI","Ivanèna Gorica","039"]
["Slovenia","SI","Cerknica","04"]
["Slovenia","SI","Izola - Isola","040"]
["Slovenia","SI","Jesenice","041"]
["Slovenia","SI","Jur¹inci","042"]
["Slovenia","SI","Kamnik","043"]
["Slovenia","SI","Kanal","044"]
["Slovenia","SI","Kidrièevo","045"]
["Slovenia","SI","Kobarid","046"]
["Slovenia","SI","Kobilje","047"]
["Slovenia","SI","Koèevje","048"]
["Slovenia","SI","Komen","049"]
["Slovenia","SI","Crnomelj","05"]
["Slovenia","SI","Koper - Capodistria","050"]
["Slovenia","SI","Kozje","051"]
["Slovenia","SI","Kranj","052"]
["Slovenia","SI","Kranjska Gora","053"]
["Slovenia","SI","Kr¹ko","054"]
["Slovenia","SI","Kungota","055"]
["Slovenia","SI","Kuzma","056"]
["Slovenia","SI","La¹ko","057"]
["Slovenia","SI","Lenart","058"]
["Slovenia","SI","Lendava - Lendva","059"]
["Slovenia","SI","Dravograd","06"]
["Slovenia","SI","Litija","060"]
["Slovenia","SI","Ljubljana","061"]
["Slovenia","SI","Ljubno","062"]
["Slovenia","SI","Ljutomer","063"]
["Slovenia","SI","Logatec","064"]
["Slovenia","SI","Lo¹ka dolina","065"]
["Slovenia","SI","Lo¹ki Potok","066"]
["Slovenia","SI","Luèe","067"]
["Slovenia","SI","Lukovica","068"]
["Slovenia","SI","Maj¹perk","069"]
["Slovenia","SI","Gornja Radgona","07"]
["Slovenia","SI","Maribor","070"]
["Slovenia","SI","Medvode","071"]
["Slovenia","SI","Menge¹","072"]
["Slovenia","SI","Metlika","073"]
["Slovenia","SI","Me¾ica","074"]
["Slovenia","SI","Miren-Kostanjevica","075"]
["Slovenia","SI","Mislinja","076"]
["Slovenia","SI","Moravèe","077"]
["Slovenia","SI","Moravske Toplice","078"]
["Slovenia","SI","Mozirje","079"]
["Slovenia","SI","Grosuplje","08"]
["Slovenia","SI","Murska Sobota","080"]
["Slovenia","SI","Muta","081"]
["Slovenia","SI","Naklo","082"]
["Slovenia","SI","Nazarje","083"]
["Slovenia","SI","Nova Gorica","084"]
["Slovenia","SI","Novo mesto","085"]
["Slovenia","SI","Odranci","086"]
["Slovenia","SI","Ormo¾","087"]
["Slovenia","SI","Osilnica","088"]
["Slovenia","SI","Pesnica","089"]
["Slovenia","SI","Hrastnik Lasko","09"]
["Slovenia","SI","Piran - Pirano","090"]
["Slovenia","SI","Pivka","091"]
["Slovenia","SI","Podèetrtek","092"]
["Slovenia","SI","Podvelka","093"]
["Slovenia","SI","Postojna","094"]
["Slovenia","SI","Preddvor","095"]
["Slovenia","SI","Ptuj","096"]
["Slovenia","SI","Puconci","097"]
["Slovenia","SI","Raèe-Fram","098"]
["Slovenia","SI","Radeèe","099"]
["Slovenia","SI","Idrija","10"]
["Slovenia","SI","Radenci","100"]
["Slovenia","SI","Radlje ob Dravi","101"]
["Slovenia","SI","Radovljica","102"]
["Slovenia","SI","Ravne na Koro¹kem","103"]
["Slovenia","SI","Ribnica","104"]
["Slovenia","SI","Roga¹ovci","105"]
["Slovenia","SI","Roga¹ka Slatina","106"]
["Slovenia","SI","Rogatec","107"]
["Slovenia","SI","Ru¹e","108"]
["Slovenia","SI","Semiè","109"]
["Slovenia","SI","Ilirska Bistrica","11"]
["Slovenia","SI","Sevnica","110"]
["Slovenia","SI","Se¾ana","111"]
["Slovenia","SI","Slovenj Gradec","112"]
["Slovenia","SI","Slovenska Bistrica","113"]
["Slovenia","SI","Slovenske Konjice","114"]
["Slovenia","SI","Star¹e","115"]
["Slovenia","SI","Sveti Jurij","116"]
["Slovenia","SI","©enèur","117"]
["Slovenia","SI","©entilj","118"]
["Slovenia","SI","©entjernej","119"]
["Slovenia","SI","Izola","12"]
["Slovenia","SI","©entjur pri Celju","120"]
["Slovenia","SI","©kocjan","121"]
["Slovenia","SI","©kofja Loka","122"]
["Slovenia","SI","©kofljica","123"]
["Slovenia","SI","©marje pri Jel¹ah","124"]
["Slovenia","SI","©martno ob Paki","125"]
["Slovenia","SI","©o¹tanj","126"]
["Slovenia","SI","©tore","127"]
["Slovenia","SI","Tolmin","128"]
["Slovenia","SI","Trbovlje","129"]
["Slovenia","SI","Jesenice","13"]
["Slovenia","SI","Trebnje","130"]
["Slovenia","SI","Tr¾iè","131"]
["Slovenia","SI","Turni¹èe","132"]
["Slovenia","SI","Velenje","133"]
["Slovenia","SI","Velike La¹èe","134"]
["Slovenia","SI","Videm","135"]
["Slovenia","SI","Vipava","136"]
["Slovenia","SI","Vitanje","137"]
["Slovenia","SI","Vodice","138"]
["Slovenia","SI","Vojnik","139"]
["Slovenia","SI","Kamnik","14"]
["Slovenia","SI","Vrhnika","140"]
["Slovenia","SI","Vuzenica","141"]
["Slovenia","SI","Zagorje ob Savi","142"]
["Slovenia","SI","Zavrè","143"]
["Slovenia","SI","Zreèe","144"]
["Slovenia","SI","®elezniki","146"]
["Slovenia","SI","®iri","147"]
["Slovenia","SI","Benedikt","148"]
["Slovenia","SI","Bistrica ob Sotli","149"]
["Slovenia","SI","Kocevje","15"]
["Slovenia","SI","Bloke","150"]
["Slovenia","SI","Braslovèe","151"]
["Slovenia","SI","Cankova","152"]
["Slovenia","SI","Cerkvenjak","153"]
["Slovenia","SI","Dobje","154"]
["Slovenia","SI","Dobrna","155"]
["Slovenia","SI","Dobrovnik - Dobronak","156"]
["Slovenia","SI","Dolenjske Toplice","157"]
["Slovenia","SI","Grad","158"]
["Slovenia","SI","Hajdina","159"]
["Slovenia","SI","Koper","16"]
["Slovenia","SI","Hoèe-Slivnica","160"]
["Slovenia","SI","Hodo¹ - Hodos","161"]
["Slovenia","SI","Horjul","162"]
["Slovenia","SI","Jezersko","163"]
["Slovenia","SI","Komenda","164"]
["Slovenia","SI","Kostel","165"]
["Slovenia","SI","Kri¾evci","166"]
["Slovenia","SI","Lovrenc na Pohorju","167"]
["Slovenia","SI","Markovci","168"]
["Slovenia","SI","Miklav¾ na Dravskem","169"]
["Slovenia","SI","Kranj","17"]
["Slovenia","SI","Mirna Peè","170"]
["Slovenia","SI","Oplotnica","171"]
["Slovenia","SI","Podlehnik","172"]
["Slovenia","SI","Polzela","173"]
["Slovenia","SI","Prebold","174"]
["Slovenia","SI","Prevalje","175"]
["Slovenia","SI","Razkri¾je","176"]
["Slovenia","SI","Ribnica na Pohorju","177"]
["Slovenia","SI","Selnica ob Dravi","178"]
["Slovenia","SI","Sodra¾ica","179"]
["Slovenia","SI","Krsko","18"]
["Slovenia","SI","Solèava","180"]
["Slovenia","SI","Sveta Ana","181"]
["Slovenia","SI","Sveti Andra¾ v Slov.","182"]
["Slovenia","SI","©empeter - Vrtojba","183"]
["Slovenia","SI","Tabor","184"]
["Slovenia","SI","Trnovska vas","185"]
["Slovenia","SI","Trzin","186"]
["Slovenia","SI","Velika Polana","187"]
["Slovenia","SI","Ver¾ej","188"]
["Slovenia","SI","Vransko","189"]
["Slovenia","SI","Lenart","19"]
["Slovenia","SI","®alec","190"]
["Slovenia","SI","®etale","191"]
["Slovenia","SI","®irovnica","192"]
["Slovenia","SI","®u¾emberk","193"]
["Slovenia","SI","Lendava","20"]
["Slovenia","SI","Litija","21"]
["Slovenia","SI","Ljubljana-Bezigrad","22"]
["Slovenia","SI","Ljubljana-Center","23"]
["Slovenia","SI","Ljubljana-Moste-Polj","24"]
["Slovenia","SI","Ljubljana-Siska","25"]
["Slovenia","SI","Ljubljana-Vic-Rudnik","26"]
["Slovenia","SI","Ljutomer","27"]
["Slovenia","SI","Logatec","28"]
["Slovenia","SI","Maribor","29"]
["Slovenia","SI","Metlika","30"]
["Slovenia","SI","Mozirje","31"]
["Slovenia","SI","Murska Sobota","32"]
["Slovenia","SI","Nova Gorica","33"]
["Slovenia","SI","Novo Mesto","34"]
["Slovenia","SI","Ormoz","35"]
["Slovenia","SI","Pesnica","36"]
["Slovenia","SI","Piran","37"]
["Slovenia","SI","Postojna","38"]
["Slovenia","SI","Ptuj","39"]
["Slovenia","SI","Radlje Ob Dravi","40"]
["Slovenia","SI","Radovljica","41"]
["Slovenia","SI","Ravne Na Koroskem","42"]
["Slovenia","SI","Ribnica","43"]
["Slovenia","SI","Ruse","44"]
["Slovenia","SI","Sentjur Pri Celju","45"]
["Slovenia","SI","Sevnica","46"]
["Slovenia","SI","Sezana","47"]
["Slovenia","SI","Skofja Loka","48"]
["Slovenia","SI","Slovenj Gradec","49"]
["Slovenia","SI","Slovenska Bistrica","50"]
["Slovenia","SI","Slovenske Konjice","51"]
["Slovenia","SI","Smarje Pri Jelsah","52"]
["Slovenia","SI","Tolmin","53"]
["Slovenia","SI","Trbovlje","54"]
["Slovenia","SI","Trebnje","55"]
["Slovenia","SI","Trzic","56"]
["Slovenia","SI","Velenje","57"]
["Slovenia","SI","Vrhnika","58"]
["Slovenia","SI","Zagorje Ob Savi","59"]
["Slovenia","SI","Zalec","60"]
["Thailand","TH","Amnat Charoen","01"]
["Thailand","TH","Ang Thong","02"]
["Thailand","TH","Buriram","03"]
["Thailand","TH","Chachoengsao","04"]
["Thailand","TH","Chai Nat","05"]
["Thailand","TH","Chaiyaphum","06"]
["Thailand","TH","Chanthaburi","07"]
["Thailand","TH","Chiang Mai","08"]
["Thailand","TH","Chiang Rai","09"]
["Thailand","TH","Chon Buri","10"]
["Thailand","TH","Chumphon","11"]
["Thailand","TH","Kalasin","12"]
["Thailand","TH","Kamphaeng Phet","13"]
["Thailand","TH","Kanchanaburi","14"]
["Thailand","TH","Khon Kaen","15"]
["Thailand","TH","Krabi","16"]
["Thailand","TH","Krung Thep","17"]
["Thailand","TH","Mahanakhon","18"]
["Thailand","TH","Lampang","19"]
["Thailand","TH","Lamphun","20"]
["Thailand","TH","Loei","21"]
["Thailand","TH","Lop Buri","22"]
["Thailand","TH","Mae Hong Son","23"]
["Thailand","TH","Maha Sarakham","24"]
["Thailand","TH","Mukdahan","25"]
["Thailand","TH","Nakhon Nayok","26"]
["Thailand","TH","Nakhon Pathom","27"]
["Thailand","TH","Nakhon Phanom","28"]
["Thailand","TH","Nakhon Ratchasima","29"]
["Thailand","TH","Nakhon Sawan","30"]
["Thailand","TH","Nakhon Si Thammarat","31"]
["Thailand","TH","Nan","32"]
["Thailand","TH","Narathiwat","33"]
["Thailand","TH","Nong Bua Lamphu","34"]
["Thailand","TH","Nong Khai","35"]
["Thailand","TH","Nonthaburi","36"]
["Thailand","TH","Pathum Thani","37"]
["Thailand","TH","Pattani","38"]
["Thailand","TH","Phangnga","39"]
["Thailand","TH","Phatthalung","40"]
["Thailand","TH","Phayao","41"]
["Thailand","TH","Phetchabun","42"]
["Thailand","TH","Phetchaburi","43"]
["Thailand","TH","Phichit","44"]
["Thailand","TH","Phitsanulok","45"]
["Thailand","TH","Phra Nakhon Si Ayut.","46"]
["Thailand","TH","Phrae","47"]
["Thailand","TH","Phuket","48"]
["Thailand","TH","Prachin Buri","49"]
["Thailand","TH","Bueng Kan","50"]
["Turkey","TR","Adana","01"]
["Turkey","TR","Adiyaman","02"]
["Turkey","TR","Afyon","03"]
["Turkey","TR","Agri","04"]
["Turkey","TR","Amasya","05"]
["Turkey","TR","Ankara","06"]
["Turkey","TR","Antalya","07"]
["Turkey","TR","Artvin","08"]
["Turkey","TR","Aydin","09"]
["Turkey","TR","Balikesir","10"]
["Turkey","TR","Bilecik","11"]
["Turkey","TR","Bingöl","12"]
["Turkey","TR","Bitlis","13"]
["Turkey","TR","Bolu","14"]
["Turkey","TR","Burdur","15"]
["Turkey","TR","Bursa","16"]
["Turkey","TR","Canakkale","17"]
["Turkey","TR","Cankiri","18"]
["Turkey","TR","Corum","19"]
["Turkey","TR","Denizli","20"]
["Turkey","TR","Diyarbakir","21"]
["Turkey","TR","Edirne","22"]
["Turkey","TR","Elazig","23"]
["Turkey","TR","Erzincan","24"]
["Turkey","TR","Erzurum","25"]
["Turkey","TR","Eskisehir","26"]
["Turkey","TR","Gaziantep","27"]
["Turkey","TR","Giresun","28"]
["Turkey","TR","Guemueshane","29"]
["Turkey","TR","Hakkari","30"]
["Turkey","TR","Hatay","31"]
["Turkey","TR","Isparta","32"]
["Turkey","TR","Icel","33"]
["Turkey","TR","Istanbul","34"]
["Turkey","TR","Izmir","35"]
["Turkey","TR","Kars","36"]
["Turkey","TR","Kastamonu","37"]
["Turkey","TR","Kayseri","38"]
["Turkey","TR","Kirklareli","39"]
["Turkey","TR","Kirshehir","40"]
["Turkey","TR","Kocaeli","41"]
["Turkey","TR","Konya","42"]
["Turkey","TR","Kuetahya","43"]
["Turkey","TR","Malatya","44"]
["Turkey","TR","Manisa","45"]
["Turkey","TR","K.Marash","46"]
["Turkey","TR","Mardin","47"]
["Turkey","TR","Mugla","48"]
["Turkey","TR","Mush","49"]
["Turkey","TR","Nevshehir","50"]
["Turkey","TR","Nigde","51"]
["Turkey","TR","Ordu","52"]
["Turkey","TR","Rize","53"]
["Turkey","TR","Sakarya","54"]
["Turkey","TR","Samsun","55"]
["Turkey","TR","Siirt","56"]
["Turkey","TR","Sinop","57"]
["Turkey","TR","Sivas","58"]
["Turkey","TR","Tekirdag","59"]
["Turkey","TR","Tokat","60"]
["Turkey","TR","Trabzon","61"]
["Turkey","TR","Tunceli","62"]
["Turkey","TR","Shanliurfa","63"]
["Turkey","TR","Ushak","64"]
["Turkey","TR","Van","65"]
["Turkey","TR","Yozgat","66"]
["Turkey","TR","Zonguldak","67"]
["Turkey","TR","Aksaray","68"]
["Turkey","TR","Bayburt","69"]
["Turkey","TR","Karaman","70"]
["Turkey","TR","Kirikkale","71"]
["Turkey","TR","Batman","72"]
["Turkey","TR","Shirnak","73"]
["Turkey","TR","Bartin","74"]
["Turkey","TR","Ardahan","75"]
["Turkey","TR","Igdir","76"]
["Turkey","TR","Yalova","77"]
["Taiwan","TW","Fu-chien","FJN"]
["Taiwan","TW","Kao-hsiung","KSH"]
["Taiwan","TW","T´ai-pei","TPE"]
["Taiwan","TW","Taiwan","TWN"]
["Ukraine","UA","Chernigivs'ka","CHG"]
["Ukraine","UA","Cherkas'ka","CHR"]
["Ukraine","UA","Chernovits'ka","CHV"]
["Ukraine","UA","Dnipropetrovs'ka","DNP"]
["Ukraine","UA","Donets'ka","DON"]
["Ukraine","UA","Harkivs'ka","HAR"]
["Ukraine","UA","Hmel'nits'ka","HML"]
["Ukraine","UA","Hersons'ka","HRS"]
["Ukraine","UA","Ivano-Frankivs'ka","IVF"]
["Ukraine","UA","Kievs'ka","KIE"]
["Ukraine","UA","Kirovograds'ka","KIR"]
["Ukraine","UA","Respublika Krim","KRM"]
["Ukraine","UA","L'vivsbka","L'V"]
["Ukraine","UA","Lugans'ka","LUG"]
["Ukraine","UA","Mikolaivs'ka","MIK"]
["Ukraine","UA","m.Kiev","M_K"]
["Ukraine","UA","m.Sevastopil'","M_S"]
["Ukraine","UA","Odes'ka","ODS"]
["Ukraine","UA","Poltavs'ka","POL"]
["Ukraine","UA","Rivnens'ka","RIV"]
["Ukraine","UA","Sums'ka","SUM"]
["Ukraine","UA","Ternopil's'ka","TER"]
["Ukraine","UA","Vinnits'ka","VIN"]
["Ukraine","UA","Volins'ka","VOL"]
["Ukraine","UA","Zakarpats'ka","ZAK"]
["Ukraine","UA","Zaporiz'ka","ZAP"]
["Ukraine","UA","Zhitomirs'ka","ZHI"]
["USA","US","Alaska","AK"]
["USA","US","Alabama","AL"]
["USA","US","Arkansas","AR"]
["USA","US","American Samoa","AS"]
["USA","US","Arizona","AZ"]
["USA","US","California","CA"]
["USA","US","Colorado","CO"]
["USA","US","Connecticut","CT"]
["USA","US","District of Columbia","DC"]
["USA","US","Delaware","DE"]
["USA","US","Florida","FL"]
["USA","US","Georgia","GA"]
["USA","US","Guam","GU"]
["USA","US","Hawaii","HI"]
["USA","US","Iowa","IA"]
["USA","US","Idaho","ID"]
["USA","US","Illinois","IL"]
["USA","US","Indiana","IN"]
["USA","US","Kansas","KS"]
["USA","US","Kentucky","KY"]
["USA","US","Louisiana","LA"]
["USA","US","Massachusetts","MA"]
["USA","US","Maryland","MD"]
["USA","US","Maine","ME"]
["USA","US","Michigan","MI"]
["USA","US","Minnesota","MN"]
["USA","US","Missouri","MO"]
["USA","US","Northern Mariana Isl","MP"]
["USA","US","Mississippi","MS"]
["USA","US","Montana","MT"]
["USA","US","North Carolina","NC"]
["USA","US","North Dakota","ND"]
["USA","US","Nebraska","NE"]
["USA","US","New Hampshire","NH"]
["USA","US","New Jersey","NJ"]
["USA","US","New Mexico","NM"]
["USA","US","Nevada","NV"]
["USA","US","New York","NY"]
["USA","US","Ohio","OH"]
["USA","US","Oklahoma","OK"]
["USA","US","Oregon","OR"]
["USA","US","Pennsylvania","PA"]
["USA","US","Puerto Rico","PR"]
["USA","US","Rhode Island","RI"]
["USA","US","South Carolina","SC"]
["USA","US","South Dakota","SD"]
["USA","US","Tennessee","TN"]
["USA","US","Texas","TX"]
["USA","US","Utah","UT"]
["USA","US","Virginia","VA"]
["USA","US","Virgin Islands","VI"]
["USA","US","Vermont","VT"]
["USA","US","Washington","WA"]
["USA","US","Wisconsin","WI"]
["USA","US","West Virginia","WV"]
["USA","US","Wyoming","WY"]
["Venezuela","VE","Amazon","AMA"]
["Venezuela","VE","Anzoategui","ANZ"]
["Venezuela","VE","Apure","APU"]
["Venezuela","VE","Aragua","ARA"]
["Venezuela","VE","Barinas","BAR"]
["Venezuela","VE","Bolivar","BOL"]
["Venezuela","VE","Carabobo","CAR"]
["Venezuela","VE","Cojedes","COJ"]
["Venezuela","VE","Delta Amacuro","DA"]
["Venezuela","VE","Distrito Federal","DF"]
["Venezuela","VE","Falcon","FAL"]
["Venezuela","VE","Guarico","GUA"]
["Venezuela","VE","Lara","LAR"]
["Venezuela","VE","Merida","MER"]
["Venezuela","VE","Miranda","MIR"]
["Venezuela","VE","Monagas","MON"]
["Venezuela","VE","Nueva Esparta","NE"]
["Venezuela","VE","Portuguesa","POR"]
["Venezuela","VE","Sucre","SUC"]
["Venezuela","VE","Tachira","TAC"]
["Venezuela","VE","Trujillo","TRU"]
["Venezuela","VE","Vargas","VAR"]
["Venezuela","VE","Yaracuy","YAR"]
["Venezuela","VE","Zulia","ZUL"]
["South Africa","ZA","Eastern Cape","EC"]
["South Africa","ZA","Free State","FS"]
["South Africa","ZA","Gauteng","GP"]
["South Africa","ZA","Limpopo","LP"]
["South Africa","ZA","Mpumalanga","MP"]
["South Africa","ZA","Northern Cape","NC"]
["South Africa","ZA","Northwest","NW"]
["South Africa","ZA","Western Cape","WC"]
["South Africa","ZA","KwaZulu-Natal","ZN"]
["Andorra","AD"," "," "]
["United Arab Emirates","AE"," "," "]
["Afghanistan","AF"," "," "]
["Antigua and Barbuda","AG"," "," "]
["Anguilla","AI"," "," "]
["Albania","AL"," "," "]
["Armenia","AM"," "," "]
["Angola","AO"," "," "]
["Antarctica","AQ"," "," "]
["American Samoa","AS"," "," "]
["Aruba","AW"," "," "]
["Azerbaijan","AZ"," "," "]
["Bosnia and Herzegovina","BA"," "," "]
["Barbados","BB"," "," "]
["Bangladesh","BD"," "," "]
["Burkina Faso","BF"," "," "]
["Bahrain","BH"," "," "]
["Burundi","BI"," "," "]
["Benin","BJ"," "," "]
["Blue","BL"," "," "]
["Bermuda","BM"," "," "]
["Brunei Darussalam","BN"," "," "]
["Bolivia","BO"," "," "]
["Bonaire, Sint Eustatius and Saba","BQ"," "," "]
["Bahamas","BS"," "," "]
["Bhutan","BT"," "," "]
["Bouvet Islands","BV"," "," "]
["Botswana","BW"," "," "]
["Belarus","BY"," "," "]
["Belize","BZ"," "," "]
["Cocos (Keeling) Islands","CC"," "," "]
["Democratic Republic of the Congo","CD"," "," "]
["Central African Republic","CF"," "," "]
["Republic of the Congo","CG"," "," "]
["Cote d'Ivoire","CI"," "," "]
["Cook Islands","CK"," "," "]
["Cameroon","CM"," "," "]
["Costa Rica","CR"," "," "]
["Serbia and Montenegro","CS"," "," "]
["Cuba","CU"," "," "]
["Cape Verde","CV"," "," "]
["Curacao","CW"," "," "]
["Christmas Islnd","CX"," "," "]
["Cyprus","CY"," "," "]
["Djibouti","DJ"," "," "]
["Dominica","DM"," "," "]
["Dominican Republic","DO"," "," "]
["Algeria","DZ"," "," "]
["Ecuador","EC"," "," "]
["Estonia","EE"," "," "]
["Western Sahara","EH"," "," "]
["Eritrea","ER"," "," "]
["Ethiopia","ET"," "," "]
["European Union","EU"," "," "]
["Fiji","FJ"," "," "]
["Falkland Islands","FK"," "," "]
["Micronesia","FM"," "," "]
["Faroe Islands","FO"," "," "]
["Gabon","GA"," "," "]
["Grenada","GD"," "," "]
["Georgia","GE"," "," "]
["French Guyana","GF"," "," "]
["Guernsey (Channel Islands)","GG"," "," "]
["Ghana","GH"," "," "]
["Gibraltar","GI"," "," "]
["Greenland","GL"," "," "]
["Gambia","GM"," "," "]
["Guinea","GN"," "," "]
["Guadeloupe","GP"," "," "]
["Equatorial Guinea","GQ"," "," "]
["South Georgia and the Southern Sandwich Islands","GS"," "," "]
["Guatemala","GT"," "," "]
["Guam","GU"," "," "]
["Guinea-Bissau","GW"," "," "]
["Guyana","GY"," "," "]
["Heard and McDonald Islands","HM"," "," "]
["Honduras","HN"," "," "]
["Haiti","HT"," "," "]
["Isle of Man","IM"," "," "]
["British Indian Ocean Territory","IO"," "," "]
["Iraq","IQ"," "," "]
["Iran","IR"," "," "]
["Iceland","IS"," "," "]
["Jersey","JE"," "," "]
["Jamaica","JM"," "," "]
["Jordan","JO"," "," "]
["Kenya","KE"," "," "]
["Kyrgyzstan","KG"," "," "]
["Cambodia","KH"," "," "]
["Kiribati","KI"," "," "]
["Comoros","KM"," "," "]
["Saint Kitts and Nevis","KN"," "," "]
["North Korea","KP"," "," "]
["Cayman Islands","KY"," "," "]
["Laos","LA"," "," "]
["Lebanon","LB"," "," "]
["St. Lucia","LC"," "," "]
["Liechtenstein","LI"," "," "]
["Liberia","LR"," "," "]
["Lesotho","LS"," "," "]
["Lithuania","LT"," "," "]
["Luxembourg","LU"," "," "]
["Latvia","LV"," "," "]
["Libya","LY"," "," "]
["Morocco","MA"," "," "]
["Monaco","MC"," "," "]
["Moldova","MD"," "," "]
["Madagascar","MG"," "," "]
["Marshall Islands","MH"," "," "]
["Macedonia","MK"," "," "]
["Mali","ML"," "," "]
["Burma","MM"," "," "]
["Mongolia","MN"," "," "]
["Macau","MO"," "," "]
["North Mariana Islands","MP"," "," "]
["Martinique","MQ"," "," "]
["Mauritania","MR"," "," "]
["Montserrat","MS"," "," "]
["Malta","MT"," "," "]
["Mauritius","MU"," "," "]
["Maldives","MV"," "," "]
["Malawi","MW"," "," "]
["Mozambique","MZ"," "," "]
["Namibia","NA"," "," "]
["New Caledonia","NC"," "," "]
["Niger","NE"," "," "]
["Norfolk Islands","NF"," "," "]
["Nigeria","NG"," "," "]
["Nicaragua","NI"," "," "]
["Nepal","NP"," "," "]
["Nauru","NR"," "," "]
["NATO","NT"," "," "]
["Niue","NU"," "," "]
["Oman","OM"," "," "]
["Orange","OR"," "," "]
["Panama","PA"," "," "]
["French Polynesia","PF"," "," "]
["Papua New Guinea","PG"," "," "]
["Pakistan","PK"," "," "]
["St. Pierre and Miquelon","PM"," "," "]
["Pitcairn Islands","PN"," "," "]
["Puerto Rico","PR"," "," "]
["Palestine","PS"," "," "]
["Palau","PW"," "," "]
["Paraguay","PY"," "," "]
["Reunion","RE"," "," "]
["Rwanda","RW"," "," "]
["Saudi Arabia","SA"," "," "]
["Solomon Islands","SB"," "," "]
["Seychelles","SC"," "," "]
["Sudan","SD"," "," "]
["Saint Helena","SH"," "," "]
["Svalbard","SJ"," "," "]
["Slovakia","SK"," "," "]
["Sierra Leone","SL"," "," "]
["San Marino","SM"," "," "]
["Senegal","SN"," "," "]
["Somalia","SO"," "," "]
["Suriname","SR"," "," "]
["South Sudan","SS"," "," "]
["Sao Tome and Principe","ST"," "," "]
["El Salvador","SV"," "," "]
["Sint Maarten (Dutch part)","SX"," "," "]
["Syria","SY"," "," "]
["Swaziland","SZ"," "," "]
["Turks and Caicos Islands","TC"," "," "]
["Chad","TD"," "," "]
["French Southern and Antarctic Lands","TF"," "," "]
["Togo","TG"," "," "]
["Tajikistan","TJ"," "," "]
["Tokelau Islands","TK"," "," "]
["East Timor","TL"," "," "]
["Turkmenistan","TM"," "," "]
["Tunisia","TN"," "," "]
["Tonga","TO"," "," "]
["East Timor","TP"," "," "]
["Trinidad and Tobago","TT"," "," "]
["Tuvalu","TV"," "," "]
["Tanzania","TZ"," "," "]
["Uganda","UG"," "," "]
["United States Minor Outlying Islands","UM"," "," "]
["United Nations","UN"," "," "]
["Uruguay","UY"," "," "]
["Uzbekistan","UZ"," "," "]
["Vatican City","VA"," "," "]
["St. Vincent and the Grenadines","VC"," "," "]
["British Virgin Islands","VG"," "," "]
["United States Virgin Islands","VI"," "," "]
["Vietnam","VN"," "," "]
["Vanuatu","VU"," "," "]
["Wallis and Futuna Islands","WF"," "," "]
["Samoa","WS"," "," "]
["Yemen","YE"," "," "]
["Mayotte","YT"," "," "]

{"sheet":"regions table","index":16,"n_rows":253,"n_cols":249,"rows_kept":253,"cut":false,"hidden":true,"merged":[]}
["Sri Lanka","Argentina","Austria","Australia","Belgium","Bulgaria","Brazil","Canada","Switzerland","Chile","China","Colombia","Czech Republic","Germany","Denmark","Egypt","Spain","Finland","France","United Kingdom","Greece","Hong Kong","Croatia","Hungary","Indonesia","Ireland","Israel","India","Italy","Japan","South Korea","Kuwait","Kazakhstan","Mexico","Malaysia","Netherlands","Norway","New Zealand","Peru","Philippines","Poland","Portugal","Qatar","Romania","Russian Federation","Sweden","Singapore","Slovenia","Thailand","Turkey","Taiwan","Ukraine","USA","Venezuela","South Africa","Andorra","United Arab Emirates","Afghanistan","Antigua and Barbuda","Anguilla","Albania","Armenia","Angola","Antarctica","American Samoa","Aruba","Azerbaijan","Bosnia and Herzegovina","Barbados","Bangladesh","Burkina Faso","Bahrain","Burundi","Benin","Blue","Bermuda","Brunei Darussalam","Bolivia","Bonaire, Sint Eustatius and Saba","Bahamas","Bhutan","Bouvet Islands","Botswana","Belarus","Belize","Cocos (Keeling) Islands","Democratic Republic of the Congo","Central African Republic","Republic of the Congo","Cote d'Ivoire","Cook Islands","Cameroon","Costa Rica","Serbia and Montenegro","Cuba","Cape Verde","Curacao","Christmas Islnd","Cyprus","Djibouti","Dominica","Dominican Republic","Algeria","Ecuador","Estonia","Western Sahara","Eritrea","Ethiopia","European Union","Fiji","Falkland Islands","Micronesia","Faroe Islands","Gabon","Grenada","Georgia","French Guyana","Guernsey (Channel Islands)","Ghana","Gibraltar","Greenland","Gambia","Guinea","Guadeloupe","Equatorial Guinea","South Georgia and the Southern Sandwich Islands","Guatemala","Guam","Guinea-Bissau","Guyana","Heard and McDonald Islands","Honduras","Haiti","Isle of Man","British Indian Ocean Territory","Iraq","Iran","Iceland","Jersey","Jamaica","Jordan","Kenya","Kyrgyzstan","Cambodia","Kiribati","Comoros","Saint Kitts and Nevis","North Korea","Cayman Islands","Laos","Lebanon","St. Lucia","Liechtenstein","Liberia","Lesotho","Lithuania","Luxembourg","Latvia","Libya","Morocco","Monaco","Moldova","Madagascar","Marshall Islands","Macedonia","Mali","Burma","Mongolia","Macau","North Mariana Islands","Martinique","Mauritania","Montserrat","Malta","Mauritius","Maldives","Malawi","Mozambique","Namibia","New Caledonia","Niger","Norfolk Islands","Nigeria","Nicaragua","Nepal","Nauru","NATO","Niue","Oman","Orange","Panama","French Polynesia","Papua New Guinea","Pakistan","St. Pierre and Miquelon","Pitcairn Islands","Puerto Rico","Palestine","Palau","Paraguay","Reunion","Rwanda","Saudi Arabia","Solomon Islands","Seychelles","Sudan","Saint Helena","Svalbard","Slovakia","Sierra Leone","San Marino","Senegal","Somalia","Suriname","South Sudan","Sao Tome and Principe","El Salvador","Sint Maarten (Dutch part)","Syria","Swaziland","Turks and Caicos Islands","Chad","French Southern and Antarctic Lands","Togo","Tajikistan","Tokelau Islands","East Timor","Turkmenistan","Tunisia","Tonga","East Timor2","Trinidad and Tobago","Tuvalu","Tanzania","Uganda","United States Minor Outlying Islands","United Nations","Uruguay","Uzbekistan","Vatican City","St. Vincent and the Grenadines","British Virgin Islands","United States Virgin Islands","Vietnam","Vanuatu","Wallis and Futuna Islands","Samoa","Yemen","Mayotte"]
["Central Province","Capital Federal","Burgenland","Aust Capital Terr","Antwerp","Burgas","Acre","Alberta","Aargau","I - Iquique","Beijing","ANTIOQUIA","Praha","Schleswig-Holstein","Danish Capital Reg.","Cairo","Alava","Ahvenanmaa","Ain","Aberdeenshire","Aitolia kai Akarnan.","Hong Kong Island","Zagrebacka","Bacs-Kiskun","DKI Jakarta Jakarta","Cork","Central","Andhra Pradesh","Agriento","Hokkaido","Cheju-do","Kuwait City","Almatynskaia","Aguascalientes","Johor","Drenthe","Ostfold County","Auckland","Tumbes","Ilocos","Dolnoslaskie","Minho-Lima","Doha","Alba","Adigeja Republic","Blekinge County","Singapore","Ajdov¹èina","Amnat Charoen","Adana","Fu-chien","Chernigivs'ka","Alaska","Amazon","Eastern Cape"," "," "," "," "," "," "," "," "," "," "," "," "," "," "," "," "," "," "," "," "," "," "," "," "," "," "," "," "," "," "," "," "," "," "," "," "," "," "," "," "," "," "," "," "," "," "," "," "," "," "," "," "," "," "," "," "," "," "," "," "," "," "," "," "," "," "," "," "," "," "," "," "," "," "," "," "," "," "," "," "," "," "," "," "," "," "," "," "," "," "," "," "," "," "," "," "," "," "," "," "," "," "," "," "," "," "," "," "," "," "," "," "," "," "," "," "," "," "," "," "," "," "," "," "," "," "," "," "," "," "," "," "," "," "," "," "," "," "," "," "," "," "," "," "," "," "," "," "," "," "," "," "," "," "," "," "," "," "," "," "," "," "," "," "," "," "," "," "," "," "," "," "," "," "," "," "," "," "," "," "," "," "," "," "," "," "," "," "," "," "," "," "," "," "]
["Eastern Province","Buenos Aires","Carinthia","New South Wales","Brabant","Grad Sofiya","Alagoas","British Columbia","Inner-Rhoden","II - Antofagasta","Shanghai","ATLANTICO","Stredocesky","Hamburg","Central Jutland","Giza","Albacete","Southern Finnland","Aisne","Argyllshire","Akhaia","Kowloon","Krapinsko-zagorska","Baranya","Jawa Barat West Java","Clare","Haifa","Arunachal Pradesh","Alessandria","Aomori","Cholla-bukto",null,"Kostanaiskaia","Baja California","Kedah","Flevoland","Akershus County","Bay of Plenty","Piura","Cagayan Valley","Kujawsko-Pomorskie","Cavado","The north","Arad","Highlands-Altay Rep.","Dalarnas County",null,"Beltinci","Ang Thong","Adiyaman","Kao-hsiung","Cherkas'ka","Alabama","Anzoategui","Free State"]
["Northern Province","Catamarca","Lower Austria","Northern Territory","Hainaut","Khaskovo","Amazon","Manitoba","Ausser-Rhoden","III - Copiapo","Tianjin","BOGOTA","Jihocesky","Lower Saxony","North Jutland","Al Sharqia","Alicante","Eastern Finnland","Allier","Anglesey","Argolis","New Territories","Sisacko-moslavacka","Bekes","Jawa Tengah Central","Cavan","Jerusalem","Assam","Ancona","Iwate","Cholla-namdo",null,"Severo-Kazakhstansk","Baja California S","Kelantan","Friesland","Oslo","Canterbury","Lambayeque","Central Luzon","Lubelskie","Ave","The west coast","Arges","Republ.of Bashkortos","Gotland County",null,"Bled","Buriram","Afyon","T´ai-pei","Chernovits'ka","Arkansas","Apure","Gauteng"]
["Western Province","Cordoba","Upper Austria","Queensland","Liege","Lovech","Amapa","New Brunswick","Bern","IV - La Serena","Nei Mongol","BOLIVAR","Plzensky","Bremen","Zealand","Dakahlia","Almeria","Lappi","Alpes (Hte-Provence)","Armagh","Arkadhia",null,"Karlovacka","Bekescsaba","Jawa Timur East Java","Carlow","Northern","Bihar","Aosta","Miyagi","Ch´ungch´ong-bukto",null,"Pavlodarskaia","Chihuahua","Kuala Lumpur","Gelderland","Hedmark County","Hawke´s Bay","La Libertad","South Luzon","Lubuskie","Grande Porto","The south","Bacau","Buryat Republic","Gaevleborg County",null,"Bohinj","Chachoengsao","Agri","Taiwan","Dnipropetrovs'ka","American Samoa","Aragua","Limpopo"]
["Southern Province","Corrientes","Salzburg","South Australia","Limburg","Montana","Bahia","Newfoundland/Labrad.","Basel Land","V - Valparaiso","Shanxi","BOYACA","Karlovarsky","Nrth Rhine Westfalia","South Denmark","Beheira","Avila","Western Finnland","Alpes (Hautes)","Angus/Forfarshire","Arta",null,"Varazdinska","Borsod-Abauj-Zemplen","DI Yogyakarta Yogyak","Dublin","Southern","Goa","Ascoli Piceno","Akita","Ch´ungch´ong-namdo",null,"Akmolinskaia","Chiapas","Labuan","Groningen","Oppland County","Manawatu-Wanganui","Ancash","Bicol","Lodzkie","Tamega",null,"Bihor","Dagestan Republic","Halland County",null,"Borovnica","Chai Nat","Amasya",null,"Donets'ka","Arizona","Barinas","Mpumalanga"]
["North Western Provin","Entre Rios","Styria","Tasmania","Luxembourg","Plovdiv","Ceara","Nova Scotia","Basel Stadt","VI - Rancagua","Hebei","CALDAS","Ustecky","Hessen",null,"Qalyubia","Badajoz","Oulu","Alpes-Maritimes","Antrim","Attiki",null,"Koprivnicko-krizevac","Budapest","DI Aceh Aceh","Donegal","Tel Aviv","Gujarat","L'Aquila","Yamagata","Inch´on-jikhalsi",null,"Aktubinskaia","Campeche","Melaka","Limburg","Buskerud County","Northland","Lima y Callao","West Visayas","Malopolskie","Entre Douro e Vouga",null,"Bistrita-Nasaud","Ingushetija Republic","Jaemtland County",null,"Bovec","Chaiyaphum","Ankara",null,"Harkivs'ka","California","Bolivar","Northern Cape"]
["North Central Provin","Jujuy","Tyrol","Victoria","Namur","Ruse","Brasilia","Northwest Territory","Fribourg","VII - Talca","Liaoning","CAQUETA","Liberecky","Rhineland Palatinate",null,"Minya","Baleares",null,"Ardeche","Ayrshire","Dhodhekanisos",null,"Bjelovarsko-bilogors","Csongrad","Sumatera Utara North","Galway",null,"Haryana","Arezzo","Fukushima","Kangwon-do",null,"Atyrauskaia","Coahuila","Pahang","Noord-Brabant","Vestfold County","Otago","Ica","Central Visayas","Mazowieckie","Douro",null,"Botosani","Kabardino-Balkar.Rep","Joenkoeping County",null,"Brda","Chanthaburi","Antalya",null,"Hmel'nits'ka","Colorado","Carabobo","Northwest"]
["Uva Province","Mendoza","Vorarlberg","Western Australia","Oost-Vlaanderen","Sofiya","Espirito Santo","Nunavut","Geneva","VIII - Concepcion","Jilin","CAUCA","Kralovehradecky","Baden-Wurttemberg",null,"Alexandria","Barcelona",null,"Ardennes","Bedfordshire","Dhrama",null,"Rijecko-goranska","Debrecen","Sumatera Barat West","Kildare",null,"Himachal Pradesh","Asti","Ibaraki","Kwangju-jikhalsi",null,"Zapadno-Kazakhst","Colima","Perlis","Noord-Holland","Telemark County","Southland","Arequipa","Eastern Visayas","Opolskie","Alto Tras-os-Montes",null,"Braila","Kalmyk Republic","Kalmar County",null,"Brezovica","Chiang Mai","Artvin",null,"Hersons'ka","Connecticut","Cojedes","Western Cape"]
["Sabaragamuwa Provinc","La Rioja","Vienna",null,"West-Vlaanderen","Varna","Goias","Ontario","Glarus","IX - Temuco","Heilongjiang","CESAR","Pardubicky","Bavaria",null,"Gharbia","Burgos",null,"Ariege","Banffshire","Evritania",null,"Licko-senjska","Dunaujvaros","Riau Riau","Kilkenny",null,"Jammu and Kashmir","Avellino","Tochigi","Kyonggi-do",null,"Mangystayskaia","Distrito Federal","Perak","Overijssel","Aust-Agder County","Taranaki","Moquegua","Western Mindanao","Podkarpackie","Baixo Vouga",null,"Brasov","Karach.-Cherkessk Re","Kronoberg County",null,"Bre¾ice","Chiang Rai","Aydin",null,"Ivano-Frankivs'ka","District of Columbia","Delta Amacuro","KwaZulu-Natal"]
[null,"Salta",null,null,"Brabant (Walloon)",null,"Maranhao","Prince Edward Island","Graubuenden","X - Puerto Montt","Jiangsu","CORDOBA","Vysocina","Saarland",null,"Sohag","Caceres",null,"Aube","Berkshire","Evros",null,"Viroviticko-podravac","Eger","Jambi Jambi","Kerry",null,"Karnataka","Bari","Gunma","Kyongsang-bukto",null,"Karagandinskaia","Durango","Pulau Pinang","Utrecht","Vest-Agder County","Waikato","Tacna","Northern Mindanao","Podlaskie","Baixo Mondego",null,"Bucuresti","Karelian Republic","Norrbotten County",null,"Ajdovscina","Chon Buri","Balikesir",null,"Kievs'ka","Delaware","Distrito Federal"]
[null,"San Juan",null,null,"Brussels (Capital)",null,"Minas Gerais","Quebec","Jura","XI - Coyhaique","Anhui","CUNDINAMARCA","Jihomoravsky","Berlin",null,"Asyut","Cadiz",null,"Aude","Brecknockshire","Evvoia",null,"Pozesko-slavonska","Fejer","Sumatera Selatan Sou","Longford",null,"Kerala","Bergamo","Saitama","Kyongsang-namdo",null,"Vostochno-Kazakhstan","Guerrero","Wil. Persekutuan","Zeeland","Rogaland County","West Coast","Amazon","Central Mindanao","Pomorskie","Pinhal Litoral",null,"Buzau","Komi Republic","Skaane County",null,"Ti¹ina","Chumphon","Bilecik",null,"Kirovograds'ka","Florida","Falcon"]
[null,"San Luis",null,null,null,null,"Mato Grosso do Sul","Saskatchewan","Lucerne","XII - Punta Arenas","Shandong","CHOCO","Olomoucky","Brandenburg",null,"Monufia","Castellon",null,"Aveyron","Bath&NthEstSomerset","Florina",null,"Slavonskobrodska","Gyor","Bengkulu Bengkulu","Louth",null,"Madhya Pradesh","Biella","Chiba","Pusan-jikhalsi",null,"Gambilskaia","Guanajuato","Sabah","Zuid-Holland","Hordaland County","Wellington","Cajamarca","South Mindanao","Slaskie","Pinhal Interior N.",null,"Calarasi","Marijskaya Republic","Stockholm County",null,"Celje","Kalasin","Bingöl",null,"Respublika Krim","Georgia","Guarico"]
[null,"Santa Fe",null,null,null,null,"Mato Grosso","Yukon Territory","Neuchatel","RM - Santiago","Zhejiang","HUILA","Zlinsky","Mecklenburg-Vorpomm.",null,"Qena","Ciudad Real",null,"Bouches-du-Rhone","Buteshire","Fokis",null,"Zadarska","Gyor-Moson-Sopron","Lampung Lampung","Limerick",null,"Maharashtra","Belluno","Tokyo","Soul-t´ukpyolsi",null,"Kyzilordinskaia","Hidalgo","Sarawak",null,"Sogn og Fjordane C.",null,"San Martin",null,"Swietokrzyskie","Pinhal Interior Sul",null,"Caras-Severin","Mordovian Republic","Soedermanland County",null,"Cerklje na Gorenjske","Kamphaeng Phet","Bitlis",null,"L'vivsbka","Guam","Lara"]
[null,"Santiago del Estero",null,null,null,null,"Para",null,"Nidwalden","XIV - Los Rios","Jiangxi","LA GUAJIRA","Moravskoslezsky","Saxony",null,"Kafr El-Sheikh","Cordoba",null,"Calvados","Buckinghamshire","Fthiotis",null,"Osjecko-baranjska","Hajdu-Bihar","Kalimantan Selatan S","Leitrim",null,"Manipur","Benevento","Kanagawa","Taegu-jikhalsi",null,null,"Jalisco","Selangor",null,"More og Romsdal C.",null,"Huanuco",null,"Warminsko-mazurskie","Dao-Lafoes",null,"Cluj","Yakutiya-Saha Rrepub","Uppsala County",null,"Cerknica","Kanchanaburi","Bolu",null,"Lugans'ka","Hawaii","Merida"]
[null,"Tucuman",null,null,null,null,"Paraiba",null,"Obwalden","XV - Arica y Parinac","Fujian","MAGDALENA",null,"Saxony-Anhalt",null,"Faiyum","La Coruna",null,"Cantal","Berwickshire","Grevena",null,"Sibensko-kninska","Heves","Kalimantan Barat Wes","Laois",null,"Meghalaya","Bologna","Niigata","Taejon-jikhalsi",null,null,"Michoacan","Negeri Sembilan",null,"Sor-Trondelag County",null,"Pasco",null,"Wielkopolskie","Serra da Estrela",null,"Constanta","North-Osetiya Republ","Vaermland County",null,"Cerkno","Khon Kaen","Burdur",null,"Mikolaivs'ka","Iowa","Miranda"]
[null,"Chaco",null,null,null,null,"Pernambuco",null,"St. Gallen",null,"Hunan","META",null,"Thuringia",null,"Beni Suef","Cuenca",null,"Charente","Cambridgeshire","Ilia",null,"Vukovarsko-srijemska","Hodmezovasarhely","Kalimantan Tengah Ce","Meath",null,"Mizoram","Brindisi","Toyama","Ulsan",null,null,"Estado de Mexico","Trengganu",null,"Nord-Trondelag Cnty",null,"Junin",null,"Zachodnio-Pomorskie","Beira Interior Norte",null,"Covasna","Tatarstan Republic","Vaesterbotten County",null,"Èren¹ovci","Krabi","Bursa",null,"m.Kiev","Idaho","Monagas"]
[null,"Chubut",null,null,null,null,"Piaui",null,"Schaffhausen",null,"Hubei","NARINO",null,null,null,"Aswan","Gerona",null,"Charente-Maritime","Carmarthenshire","Imathia",null,"Splitsko-dalmatinska","Jasz-Nagykun-Szolnok","Kalimantan Timur Eas","Monaghan",null,"Nagaland","Brescia","Ishikawa","Sejong",null,null,"Morelos",null,null,"Nordland County",null,"Huancavelica",null,null,"Beira Interior Sul",null,"Dimbovita","Tuva Republic","Vaesternorrland Cnty",null,"Èrna na Koro¹kem","Krung Thep","Canakkale",null,"m.Sevastopil'","Illinois","Nueva Esparta"]
[null,"Formosa",null,null,null,null,"Parana",null,"Solothurn",null,"Henan","NORTE SANTANDER",null,null,null,"Damietta","Granada",null,"Cher","Cardiganshire","Ioannina",null,"Istarska","Kaposvar","Sulawesi Selatan Sou","Mayo",null,"Orissa","Barletta Andria Tran","Fukui",null,null,null,"Nayarit",null,null,"Troms County",null,"Ayacucho",null,null,"Cova da Beira",null,"Dolj","The Udmurt Republic","Vaestmanland County",null,"Èrnomelj","Mahanakhon","Cankiri",null,"Odes'ka","Indiana","Portuguesa"]
[null,"Misiones",null,null,null,null,"Rio de Janeiro",null,"Schwyz",null,"Guangdong","QUINDIO",null,null,null,"Ismailia","Guadalajara",null,"Correze","Caernarfonshire","Iraklion",null,"Dubrovacko-neretvans","Kecskemet","Sulawesi Tenggara So","Offaly",null,"Punjab","Bolzano","Yamanashi",null,null,null,"Nuevo Leon",null,null,"Finnmark County",null,"Apurimac",null,null,"Oeste",null,"Galati","Chakassky Republic","Vaestra Goetaland C.",null,"Destrnik","Lampang","Corum",null,"Poltavs'ka","Kansas","Sucre"]
[null,"Neuquen",null,null,null,null,"Rio Grande do Norte",null,"Thurgau",null,"Hainan","RISARALDA",null,null,null,"Port Said","Guipuzcoa",null,"Cote-d'Or","Cheshire","Kardhitsa",null,"Medjimurska","Komarom-Esztergom","Sulawesi Tengah Cent","Roscommon",null,"Rajasthan","Cagliari","Nagano",null,null,null,"Oaxaca",null,null,null,null,"Cuzco",null,null,"Grande Lisboa",null,"Gorj","Chechenskaya Republ.","Oerebro County",null,"Divaèa","Lamphun","Denizli",null,"Rivnens'ka","Kentucky","Tachira"]
[null,"La Pampa",null,null,null,null,"Rondonia",null,"Ticino",null,"Guangxi","SANTANDER",null,null,null,"Suez","Huelva",null,"Cotes-d'Armor","Cromartyshire","Kastoria",null,"Zagreb","Miskolc","Sulawesi Utara North","Sligo",null,"Sikkim","Campobasso","Gifu",null,null,null,"Puebla",null,null,null,null,"Puno",null,null,"Peninsula de Setubal",null,"Giurgiu","Chuvash Republic","Oestergoetland Cnty",null,"Brezice","Loei","Diyarbakir",null,"Sums'ka","Louisiana","Trujillo"]
[null,"Rio Negro",null,null,null,null,"Roraima",null,"Uri",null,"Guizhou","SUCRE",null,null,null,"Luxor","Huesca",null,"Creuse","Clackmannanshire","Kavala",null,null,"Nagykanizsa","Bali Bali","Tipperary",null,"Tamil Nadu","Caserta","Shizuoka",null,null,null,"Quintana Roo",null,null,null,null,"Loreto",null,null,"Medio Tejo",null,"Harghita","Altay Territory",null,null,"Dobrepolje","Lop Buri","Edirne",null,"Ternopil's'ka","Massachusetts","Vargas"]
[null,"Santa Cruz",null,null,null,null,"Rio Grande do Sul",null,"Vaud",null,"Sichuan","TOLIMA",null,null,null,"North Sinai","Jaen",null,"Dordogne","Cornwall","Kefallinia",null,null,"Nograd","Nusa Tenggara Barat","Waterford",null,"Tripura","Chieti","Aichi",null,null,null,"Queretaro",null,null,null,null,"Ucayali",null,null,"Leziria do Tejo",null,"Hunedoara","Krasnodar Territory",null,null,"Dobrova-Polhov Grade","Mae Hong Son","Elazig",null,"Vinnits'ka","Maryland","Yaracuy"]
[null,"Tierra de Fuego",null,null,null,null,"Santa Catarina",null,"Valais",null,"Yunnan","VALLE",null,null,null,"Matruh","Leon",null,"Doubs","Caithness","Kerkira",null,null,"Nyiregyhaza","Nusa Tenggara Timur","Westmeath",null,"Uttar Pradesh","Carbonia-Iglesias","Mie",null,null,null,"Sinaloa",null,null,null,null,"Madre de Dios",null,null,"Alentejo Litoral",null,"Ialomita","Krasnoyarsk Territor",null,null,"Dol pri Ljubljani","Maha Sarakham","Erzincan",null,"Volins'ka","Maine","Zulia"]
[null,null,null,null,null,null,"Sergipe",null,"Zug",null,"Shaanxi","ARAUCA",null,null,null,"Red Sea","Lerida",null,"Drome","Cumberland","Khalkidhiki",null,null,"Pecs","Maluku Maluku","Wicklow",null,"West Bengal","Caltanisetta","Shiga",null,null,null,"San Luis Potosi",null,null,null,null,null,null,null,"Alto Alentejo",null,"Iasi","Primorye Territory",null,null,"Dom¾ale","Mukdahan","Erzurum",null,"Zakarpats'ka","Michigan"]
[null,null,null,null,null,null,"Sao Paulo",null,"Zurich",null,"Gansu","CASANARE",null,null,null,"New Valley","La Rioja",null,"Eure","Derbyshire","Khania",null,null,"Pest","Irian Jaya Irian Jay","Wexford",null,"Andaman and Nico.Is.","Cuneo","Kyoto",null,null,null,"Sonora",null,null,null,null,null,null,null,"Alentejo Central",null,"Ilfov","Stavropol Territory",null,null,"Dornava","Nakhon Nayok","Eskisehir",null,"Zaporiz'ka","Minnesota"]
[null,null,null,null,null,null,"Tocantins",null,null,null,"Ningxia","PUTUMAYO",null,null,null,"South Sinai","Lugo",null,"Eure-et-Loir","Denbighshire","Khios",null,null,"Somogy","Timor Timur East Tim",null,null,"Chandigarh","Como","Osaka",null,null,null,"Tabasco",null,null,null,null,null,null,null,"Baixo Alentejo",null,"Maramures","Khabarovsk Territory",null,null,"Dravograd","Nakhon Pathom","Gaziantep",null,"Zhitomirs'ka","Missouri"]
[null,null,null,null,null,null,null,null,null,null,"Qinghai","SAN ANDRES",null,null,null,null,"Madrid",null,"Finistere","Dumfriesshire","Kikladhes",null,null,"Sopron",null,null,null,"Dadra and Nagar Hav.","Cremona","Hyogo",null,null,null,"Tlaxcala",null,null,null,null,null,null,null,"Algarve",null,"Mehedinti","The Amur Area",null,null,"Duplek","Nakhon Phanom","Giresun",null,null,"Northern Mariana Isl"]
[null,null,null,null,null,null,null,null,null,null,"Xinjiang","AMAZONAS",null,null,null,null,"Malaga",null,"Corse-du-Sud","Down","Kilkis",null,null,"Szabolcs-Szat.-Bereg",null,null,null,"Daman and Diu","Cosenza","Nara",null,null,null,"Tamaulipas",null,null,null,null,null,null,null,"Reg. Aut. dos Açores",null,"Mures","The Arkhangelsk Area",null,null,"Gorenja vas-Poljane","Nakhon Ratchasima","Guemueshane",null,null,"Mississippi"]
[null,null,null,null,null,null,null,null,null,null,"Xizang","GUAINIA",null,null,null,null,"Murcia",null,"Corse-du-Nord","Dorset","Korinthia",null,null,"Szeged",null,null,null,"Delhi","Catania","Wakayama",null,null,null,"Veracruz",null,null,null,null,null,null,null,"Reg. Aut. da Madeira",null,"Neamt","The Astrakhan Area",null,null,"Gori¹nica","Nakhon Sawan","Hakkari",null,null,"Montana"]
[null,null,null,null,null,null,null,null,null,null,"Chong Qing","GUAVIARE",null,null,null,null,"Navarra",null,"Gard","Dunbartonshire","Kozani",null,null,"Szekesfehervar",null,null,null,"Lakshadweep","Catanzaro","Tottori",null,null,null,"Yucatan",null,null,null,null,null,null,null,null,null,"Olt","The Belgorod Area",null,null,"Gornja Radgona","Nakhon Si Thammarat","Hatay",null,null,"North Carolina"]
[null,null,null,null,null,null,null,null,null,null,null,"VAUPES",null,null,null,null,"Orense",null,"Garonne (Haute)","Durham","Lakonia",null,null,"Szolnok",null,null,null,"Puducherry","Stati Esteri","Shimane",null,null,null,"Zacatecas",null,null,null,null,null,null,null,null,null,"Prahova","The Bryansk Area",null,null,"Celje","Nan","Isparta",null,null,"North Dakota"]
[null,null,null,null,null,null,null,null,null,null,null,"VICHADA",null,null,null,null,"Asturias",null,"Gers","Devon","Larisa",null,null,"Szombathely",null,null,null,"Chhattisgarh","Enna","Okayama",null,null,null,null,null,null,null,null,null,null,null,null,null,"Salaj","The Vladimir Area",null,null,"Gornji Grad","Narathiwat","Icel",null,null,"Nebraska"]
[null,null,null,null,null,null,null,null,null,null,null,null,null,null,null,null,"Palencia",null,"Gironde","East Lothian","Lasithi",null,null,"Tatabanya",null,null,null,"Jharkhand","Forli/Cesana","Hiroshima",null,null,null,null,null,null,null,null,null,null,null,null,null,"Satu Mare","The Volgograd Area",null,null,"Gornji Petrovci","Nong Bua Lamphu","Istanbul",null,null,"New Hampshire"]
[null,null,null,null,null,null,null,null,null,null,null,null,null,null,null,null,"Las Palmas",null,"Herault","Essex","Lesvos",null,null,"Tolna",null,null,null,"Uttarakhand","Ferrara","Yamaguchi",null,null,null,null,null,null,null,null,null,null,null,null,null,"Sibiu","The Vologda Area",null,null,"Grosuplje","Nong Khai","Izmir",null,null,"New Jersey"]
[null,null,null,null,null,null,null,null,null,null,null,null,null,null,null,null,"Pontevedra",null,"Ille-et-Vilaine","Fife","Levkas",null,null,"Vas",null,null,null,null,"Foggia","Tokushima",null,null,null,null,null,null,null,null,null,null,null,null,null,"Suceava","The Voronezh Area",null,null,"©alovci","Nonthaburi","Kars",null,null,"New Mexico"]
[null,null,null,null,null,null,null,null,null,null,null,null,null,null,null,null,"Salamanca",null,"Indre","Flintshire","Magnisia",null,null,"Veszprem",null,null,null,null,"Florence","Kagawa",null,null,null,null,null,null,null,null,null,null,null,null,null,"Teleorman","The Ivanovo Area",null,null,"Hrastnik","Pathum Thani","Kastamonu",null,null,"Nevada"]
[null,null,null,null,null,null,null,null,null,null,null,null,null,null,null,null,"Sta. Cruz Tenerife",null,"Indre-et-Loire","Fermanagh","Messinia",null,null,"Zala",null,null,null,null,"Fermo","Ehime",null,null,null,null,null,null,null,null,null,null,null,null,null,"Timis","The Irkutsk Area",null,null,"Hrpelje-Kozina","Pattani","Kayseri",null,null,"New York"]
[null,null,null,null,null,null,null,null,null,null,null,null,null,null,null,null,"Cantabria",null,"Isere","Gloucestershire","Pella",null,null,"Zalaegerszeg",null,null,null,null,"Frosinone","Kochi",null,null,null,null,null,null,null,null,null,null,null,null,null,"Tulcea","The Kaliningrad Area",null,null,"Idrija","Phangnga","Kirklareli",null,null,"Ohio"]
[null,null,null,null,null,null,null,null,null,null,null,null,null,null,null,null,"Segovia",null,"Jura","Hampshire","Pieria",null,null,null,null,null,null,null,"Fiume","Fukuoka",null,null,null,null,null,null,null,null,null,null,null,null,null,"Vaslui","The Kaluga Area",null,null,"Ig","Phatthalung","Kirshehir",null,null,"Oklahoma"]
[null,null,null,null,null,null,null,null,null,null,null,null,null,null,null,null,"Sevilla",null,"Landes","Hertfordshire","Piraievs",null,null,null,null,null,null,null,"Genova","Saga",null,null,null,null,null,null,null,null,null,null,null,null,null,"Vilcea","Kamchatka Territory",null,null,"Ilirska Bistrica","Phayao","Kocaeli",null,null,"Oregon"]
[null,null,null,null,null,null,null,null,null,null,null,null,null,null,null,null,"Soria",null,"Loir-et-Cher","Huntingdonshire","Preveza",null,null,null,null,null,null,null,"Gorizia","Nagasaki",null,null,null,null,null,null,null,null,null,null,null,null,null,"Vrancea","The Kemerovo Area",null,null,"Ivanèna Gorica","Phetchabun","Konya",null,null,"Pennsylvania"]
[null,null,null,null,null,null,null,null,null,null,null,null,null,null,null,null,"Tarragona",null,"Loire","Hereford and Worcs.","Rethimni",null,null,null,null,null,null,null,"Grosseto","Kumamoto",null,null,null,null,null,null,null,null,null,null,null,null,null,null,"The Kirov Area",null,null,"Cerknica","Phetchaburi","Kuetahya",null,null,"Puerto Rico"]
[null,null,null,null,null,null,null,null,null,null,null,null,null,null,null,null,"Teruel",null,"Loire (Haute)","Invernesshire","Rodhopi",null,null,null,null,null,null,null,"Imperia","Oita",null,null,null,null,null,null,null,null,null,null,null,null,null,null,"The Kostroma Area",null,null,"Izola - Isola","Phichit","Malatya",null,null,"Rhode Island"]
[null,null,null,null,null,null,null,null,null,null,null,null,null,null,null,null,"Toledo",null,"Loire-Atlantique","Isle of Wight","Samos",null,null,null,null,null,null,null,"Isernia","Miyazaki",null,null,null,null,null,null,null,null,null,null,null,null,null,null,"The Kurgan Area",null,null,"Jesenice","Phitsanulok","Manisa",null,null,"South Carolina"]
[null,null,null,null,null,null,null,null,null,null,null,null,null,null,null,null,"Valencia",null,"Loiret","Kent","Serrai",null,null,null,null,null,null,null,"Crotone","Kagoshima",null,null,null,null,null,null,null,null,null,null,null,null,null,null,"The Kursk Area",null,null,"Jur¹inci","Phra Nakhon Si Ayut.","K.Marash",null,null,"South Dakota"]
[null,null,null,null,null,null,null,null,null,null,null,null,null,null,null,null,"Valladolid",null,"Lot","Kincardineshire","Thesprotia",null,null,null,null,null,null,null,"Lecco","Okinawa",null,null,null,null,null,null,null,null,null,null,null,null,null,null,"The Leningrad Area",null,null,"Kamnik","Phrae","Mardin",null,null,"Tennessee"]
[null,null,null,null,null,null,null,null,null,null,null,null,null,null,null,null,"Vizcaya",null,"Lot-et-Garonne","Kirkcudbrightshire","Thessaloniki",null,null,null,null,null,null,null,"Lecce",null,null,null,null,null,null,null,null,null,null,null,null,null,null,null,"The Lipetsk Area",null,null,"Kanal","Phuket","Mugla",null,null,"Texas"]
[null,null,null,null,null,null,null,null,null,null,null,null,null,null,null,null,"Zamora",null,"Lozere","Kinross-shire","Trikala",null,null,null,null,null,null,null,"Livorno",null,null,null,null,null,null,null,null,null,null,null,null,null,null,null,"The Magadan Area",null,null,"Kidrièevo","Prachin Buri","Mush",null,null,"Utah"]
[null,null,null,null,null,null,null,null,null,null,null,null,null,null,null,null,"Zaragoza",null,"Maine-et-Loire","Lancashire","Voiotia",null,null,null,null,null,null,null,"Lodi",null,null,null,null,null,null,null,null,null,null,null,null,null,null,null,"The Moscow Area",null,null,"Kobarid","Bueng Kan","Nevshehir",null,null,"Virginia"]
[null,null,null,null,null,null,null,null,null,null,null,null,null,null,null,null,null,null,"Manche","Londonderry","Xanthi",null,null,null,null,null,null,null,"Latina",null,null,null,null,null,null,null,null,null,null,null,null,null,null,null,"The Murmansk Area",null,null,"Kobilje",null,"Nigde",null,null,"Virgin Islands"]
[null,null,null,null,null,null,null,null,null,null,null,null,null,null,null,null,null,null,"Marne","Leicestershire","Zakinthos",null,null,null,null,null,null,null,"Lucca",null,null,null,null,null,null,null,null,null,null,null,null,null,null,null,"The Nizhniy Novgorod",null,null,"Koèevje",null,"Ordu",null,null,"Vermont"]
[null,null,null,null,null,null,null,null,null,null,null,null,null,null,null,null,null,null,"Marne (Haute)","Lincolnshire",null,null,null,null,null,null,null,null,"Monza e Brianza",null,null,null,null,null,null,null,null,null,null,null,null,null,null,null,"The Novgorod Area",null,null,"Komen",null,"Rize",null,null,"Washington"]
[null,null,null,null,null,null,null,null,null,null,null,null,null,null,null,null,null,null,"Mayenne","Lanarkshire",null,null,null,null,null,null,null,null,"Macerata",null,null,null,null,null,null,null,null,null,null,null,null,null,null,null,"The Novosibirsk Area",null,null,"Crnomelj",null,"Sakarya",null,null,"Wisconsin"]
[null,null,null,null,null,null,null,null,null,null,null,null,null,null,null,null,null,null,"Meurthe-et-Moselle","Midlothian",null,null,null,null,null,null,null,null,"Messina",null,null,null,null,null,null,null,null,null,null,null,null,null,null,null,"The Omsk Area",null,null,"Koper - Capodistria",null,"Samsun",null,null,"West Virginia"]
[null,null,null,null,null,null,null,null,null,null,null,null,null,null,null,null,null,null,"Meuse","Merioneth",null,null,null,null,null,null,null,null,"Milan",null,null,null,null,null,null,null,null,null,null,null,null,null,null,null,"The Orenburg Area",null,null,"Kozje",null,"Siirt",null,null,"Wyoming"]
[null,null,null,null,null,null,null,null,null,null,null,null,null,null,null,null,null,null,"Morbihan","Mid Glamorgan",null,null,null,null,null,null,null,null,"Mantova",null,null,null,null,null,null,null,null,null,null,null,null,null,null,null,"The Oryol Area",null,null,"Kranj",null,"Sinop"]
[null,null,null,null,null,null,null,null,null,null,null,null,null,null,null,null,null,null,"Moselle","Monmouthshire",null,null,null,null,null,null,null,null,"Modena",null,null,null,null,null,null,null,null,null,null,null,null,null,null,null,"The Penza Area",null,null,"Kranjska Gora",null,"Sivas"]
[null,null,null,null,null,null,null,null,null,null,null,null,null,null,null,null,null,null,"Nievre","Morayshire",null,null,null,null,null,null,null,null,"Massa Carrara",null,null,null,null,null,null,null,null,null,null,null,null,null,null,null,"Perm Territory",null,null,"Kr¹ko",null,"Tekirdag"]
[null,null,null,null,null,null,null,null,null,null,null,null,null,null,null,null,null,null,"Nord","Montgomeryshire",null,null,null,null,null,null,null,null,"Matera",null,null,null,null,null,null,null,null,null,null,null,null,null,null,null,"The Pskov Area",null,null,"Kungota",null,"Tokat"]
[null,null,null,null,null,null,null,null,null,null,null,null,null,null,null,null,null,null,"Oise","Middlesex",null,null,null,null,null,null,null,null,"Naples",null,null,null,null,null,null,null,null,null,null,null,null,null,null,null,"The Rostov Area",null,null,"Kuzma",null,"Trabzon"]
[null,null,null,null,null,null,null,null,null,null,null,null,null,null,null,null,null,null,"Orne","Northamptonshire",null,null,null,null,null,null,null,null,"Novara",null,null,null,null,null,null,null,null,null,null,null,null,null,null,null,"The Ryazan Area",null,null,"La¹ko",null,"Tunceli"]
[null,null,null,null,null,null,null,null,null,null,null,null,null,null,null,null,null,null,"Pas-de-Calais","Norfolk",null,null,null,null,null,null,null,null,"Nuoro",null,null,null,null,null,null,null,null,null,null,null,null,null,null,null,"The Samara Area",null,null,"Lenart",null,"Shanliurfa"]
[null,null,null,null,null,null,null,null,null,null,null,null,null,null,null,null,null,null,"Puy-de-Dome","Nairnshire",null,null,null,null,null,null,null,null,"Ogliastra",null,null,null,null,null,null,null,null,null,null,null,null,null,null,null,"The Saratov Area",null,null,"Lendava - Lendva",null,"Ushak"]
[null,null,null,null,null,null,null,null,null,null,null,null,null,null,null,null,null,null,"Pyrenees-Atlantiques","Nottinghamshire",null,null,null,null,null,null,null,null,"Oristano",null,null,null,null,null,null,null,null,null,null,null,null,null,null,null,"The Sakhalin Area",null,null,"Dravograd",null,"Van"]
[null,null,null,null,null,null,null,null,null,null,null,null,null,null,null,null,null,null,"Pyrenees (Hautes)","Northumberland",null,null,null,null,null,null,null,null,"Olbia-Tempio",null,null,null,null,null,null,null,null,null,null,null,null,null,null,null,"The Sverdlovsk Area",null,null,"Litija",null,"Yozgat"]
[null,null,null,null,null,null,null,null,null,null,null,null,null,null,null,null,null,null,"Pyrenees-Orientales","Orkney",null,null,null,null,null,null,null,null,"Palermo",null,null,null,null,null,null,null,null,null,null,null,null,null,null,null,"The Smolensk Area",null,null,"Ljubljana",null,"Zonguldak"]
[null,null,null,null,null,null,null,null,null,null,null,null,null,null,null,null,null,null,"Bas-Rhin","Oxfordshire",null,null,null,null,null,null,null,null,"Piacenza",null,null,null,null,null,null,null,null,null,null,null,null,null,null,null,"The Tambov Area",null,null,"Ljubno",null,"Aksaray"]
[null,null,null,null,null,null,null,null,null,null,null,null,null,null,null,null,null,null,"Haut-Rhin","Peeblesshire",null,null,null,null,null,null,null,null,"Padova",null,null,null,null,null,null,null,null,null,null,null,null,null,null,null,"The Tver Area",null,null,"Ljutomer",null,"Bayburt"]
[null,null,null,null,null,null,null,null,null,null,null,null,null,null,null,null,null,null,"Rhone","Pembrokeshire",null,null,null,null,null,null,null,null,"Pescara",null,null,null,null,null,null,null,null,null,null,null,null,null,null,null,"The Tomsk Area",null,null,"Logatec",null,"Karaman"]
[null,null,null,null,null,null,null,null,null,null,null,null,null,null,null,null,null,null,"Saone (Haute)","Perthshire",null,null,null,null,null,null,null,null,"Perugia",null,null,null,null,null,null,null,null,null,null,null,null,null,null,null,"The Tula Area",null,null,"Lo¹ka dolina",null,"Kirikkale"]
[null,null,null,null,null,null,null,null,null,null,null,null,null,null,null,null,null,null,"Saone-et-Loire","Radnorshire",null,null,null,null,null,null,null,null,"Pisa",null,null,null,null,null,null,null,null,null,null,null,null,null,null,null,"The Tyumen Area",null,null,"Lo¹ki Potok",null,"Batman"]
[null,null,null,null,null,null,null,null,null,null,null,null,null,null,null,null,null,null,"Sarthe","Renfrewshire",null,null,null,null,null,null,null,null,"Pola",null,null,null,null,null,null,null,null,null,null,null,null,null,null,null,"The Ulyanovsk Area",null,null,"Luèe",null,"Shirnak"]
[null,null,null,null,null,null,null,null,null,null,null,null,null,null,null,null,null,null,"Savoie","Ross-shire",null,null,null,null,null,null,null,null,"Pordenone",null,null,null,null,null,null,null,null,null,null,null,null,null,null,null,"The Chelyabinsk Area",null,null,"Lukovica",null,"Bartin"]
[null,null,null,null,null,null,null,null,null,null,null,null,null,null,null,null,null,null,"Savoie (Haute)","Rutland",null,null,null,null,null,null,null,null,"Prato",null,null,null,null,null,null,null,null,null,null,null,null,null,null,null,"Zabaykalsk Territory",null,null,"Maj¹perk",null,"Ardahan"]
[null,null,null,null,null,null,null,null,null,null,null,null,null,null,null,null,null,null,"Paris","Roxburghshire",null,null,null,null,null,null,null,null,"Parma",null,null,null,null,null,null,null,null,null,null,null,null,null,null,null,"The Yaroslavl Area",null,null,"Gornja Radgona",null,"Igdir"]
[null,null,null,null,null,null,null,null,null,null,null,null,null,null,null,null,null,null,"Seine-Maritime","East Sussex",null,null,null,null,null,null,null,null,"Pistoia",null,null,null,null,null,null,null,null,null,null,null,null,null,null,null,"c.Moscow",null,null,"Maribor",null,"Yalova"]
[null,null,null,null,null,null,null,null,null,null,null,null,null,null,null,null,null,null,"Seine-et-Marne","Selkirkshire",null,null,null,null,null,null,null,null,"Pesaro-Urbino",null,null,null,null,null,null,null,null,null,null,null,null,null,null,null,"c.St-Peterburg",null,null,"Medvode"]
[null,null,null,null,null,null,null,null,null,null,null,null,null,null,null,null,null,null,"Yvelines","South Glamorgan",null,null,null,null,null,null,null,null,"Pavia",null,null,null,null,null,null,null,null,null,null,null,null,null,null,null,"The Jewish Auton.are",null,null,"Menge¹"]
[null,null,null,null,null,null,null,null,null,null,null,null,null,null,null,null,null,null,"Sevres (Deux)","Shropshire",null,null,null,null,null,null,null,null,"Potenza",null,null,null,null,null,null,null,null,null,null,null,null,null,null,null,"Aginsk Buryat Aut.di",null,null,"Metlika"]
[null,null,null,null,null,null,null,null,null,null,null,null,null,null,null,null,null,null,"Somme","Suffolk",null,null,null,null,null,null,null,null,"Ravenna",null,null,null,null,null,null,null,null,null,null,null,null,null,null,null,"Komy Permjats.Aut.di",null,null,"Me¾ica"]
[null,null,null,null,null,null,null,null,null,null,null,null,null,null,null,null,null,null,"Tarn","Shetland",null,null,null,null,null,null,null,null,"Reggio Calabria",null,null,null,null,null,null,null,null,null,null,null,null,null,null,null,"Korjacs Auton.distri",null,null,"Miren-Kostanjevica"]
[null,null,null,null,null,null,null,null,null,null,null,null,null,null,null,null,null,null,"Tarn-et-Garonne","Somerset",null,null,null,null,null,null,null,null,"Reggio Emilia",null,null,null,null,null,null,null,null,null,null,null,null,null,null,null,"Nenekchky Auton.dist",null,null,"Mislinja"]
[null,null,null,null,null,null,null,null,null,null,null,null,null,null,null,null,null,null,"Var","Staffordshire",null,null,null,null,null,null,null,null,"Ragusa",null,null,null,null,null,null,null,null,null,null,null,null,null,null,null,"The Taymir Auton.dis",null,null,"Moravèe"]
[null,null,null,null,null,null,null,null,null,null,null,null,null,null,null,null,null,null,"Vaucluse","Sutherland",null,null,null,null,null,null,null,null,"Rieti",null,null,null,null,null,null,null,null,null,null,null,null,null,null,null,"Ust-Ordinsky Buryat",null,null,"Moravske Toplice"]
[null,null,null,null,null,null,null,null,null,null,null,null,null,null,null,null,null,null,"Vendee","Stirlingshire",null,null,null,null,null,null,null,null,"Rome",null,null,null,null,null,null,null,null,null,null,null,null,null,null,null,"Chanti-Mansyjsky Aut",null,null,"Mozirje"]
[null,null,null,null,null,null,null,null,null,null,null,null,null,null,null,null,null,null,"Vienne","West Sussex",null,null,null,null,null,null,null,null,"Rimini",null,null,null,null,null,null,null,null,null,null,null,null,null,null,null,"Chukotka Auton. dist",null,null,"Grosuplje"]
[null,null,null,null,null,null,null,null,null,null,null,null,null,null,null,null,null,null,"Vienne (Haute)","Surrey",null,null,null,null,null,null,null,null,"Rovigo",null,null,null,null,null,null,null,null,null,null,null,null,null,null,null,"Evensky Auton.distri",null,null,"Murska Sobota"]
[null,null,null,null,null,null,null,null,null,null,null,null,null,null,null,null,null,null,"Vosges","Tyrone",null,null,null,null,null,null,null,null,"Salerno",null,null,null,null,null,null,null,null,null,null,null,null,null,null,null,"Jamalo-Nenekchky Aut",null,null,"Muta"]
[null,null,null,null,null,null,null,null,null,null,null,null,null,null,null,null,null,null,"Yonne","Warwickshire",null,null,null,null,null,null,null,null,"Siena",null,null,null,null,null,null,null,null,null,null,null,null,null,null,null,null,null,null,"Naklo"]
[null,null,null,null,null,null,null,null,null,null,null,null,null,null,null,null,null,null,"Territ.-de-Belfort","Worcestershire",null,null,null,null,null,null,null,null,"Sondrio",null,null,null,null,null,null,null,null,null,null,null,null,null,null,null,null,null,null,"Nazarje"]
[null,null,null,null,null,null,null,null,null,null,null,null,null,null,null,null,null,null,"Essonne","Westmorland",null,null,null,null,null,null,null,null,"La Spezia",null,null,null,null,null,null,null,null,null,null,null,null,null,null,null,null,null,null,"Nova Gorica"]
[null,null,null,null,null,null,null,null,null,null,null,null,null,null,null,null,null,null,"Hauts-de-Seine","West Glamorgan",null,null,null,null,null,null,null,null,"Siracusa",null,null,null,null,null,null,null,null,null,null,null,null,null,null,null,null,null,null,"Novo mesto"]
[null,null,null,null,null,null,null,null,null,null,null,null,null,null,null,null,null,null,"Seine-Saint-Denis","Wiltshire",null,null,null,null,null,null,null,null,"Sassari",null,null,null,null,null,null,null,null,null,null,null,null,null,null,null,null,null,null,"Odranci"]
[null,null,null,null,null,null,null,null,null,null,null,null,null,null,null,null,null,null,"Val-de-Marne","West Lothian",null,null,null,null,null,null,null,null,"Savona",null,null,null,null,null,null,null,null,null,null,null,null,null,null,null,null,null,null,"Ormo¾"]
[null,null,null,null,null,null,null,null,null,null,null,null,null,null,null,null,null,null,"Val-d'Oise","Wigtownshire",null,null,null,null,null,null,null,null,"Taranto",null,null,null,null,null,null,null,null,null,null,null,null,null,null,null,null,null,null,"Osilnica"]
[null,null,null,null,null,null,null,null,null,null,null,null,null,null,null,null,null,null,"D.O.M.-T.O.M.","North Yorkshire",null,null,null,null,null,null,null,null,"Teramo",null,null,null,null,null,null,null,null,null,null,null,null,null,null,null,null,null,null,"Pesnica"]
[null,null,null,null,null,null,null,null,null,null,null,null,null,null,null,null,null,null,"Guadeloupe","South Yorkshire",null,null,null,null,null,null,null,null,"Trento",null,null,null,null,null,null,null,null,null,null,null,null,null,null,null,null,null,null,"Hrastnik Lasko"]
[null,null,null,null,null,null,null,null,null,null,null,null,null,null,null,null,null,null,"Martinique","West Yorkshire",null,null,null,null,null,null,null,null,"Turin",null,null,null,null,null,null,null,null,null,null,null,null,null,null,null,null,null,null,"Piran - Pirano"]
[null,null,null,null,null,null,null,null,null,null,null,null,null,null,null,null,null,null,"Guyane",null,null,null,null,null,null,null,null,null,"Trapani",null,null,null,null,null,null,null,null,null,null,null,null,null,null,null,null,null,null,"Pivka"]
[null,null,null,null,null,null,null,null,null,null,null,null,null,null,null,null,null,null,"Reunion",null,null,null,null,null,null,null,null,null,"Terni",null,null,null,null,null,null,null,null,null,null,null,null,null,null,null,null,null,null,"Podèetrtek"]
[null,null,null,null,null,null,null,null,null,null,null,null,null,null,null,null,null,null,"Saint-Pierre-et-Miq.",null,null,null,null,null,null,null,null,null,"Trieste",null,null,null,null,null,null,null,null,null,null,null,null,null,null,null,null,null,null,"Podvelka"]
[null,null,null,null,null,null,null,null,null,null,null,null,null,null,null,null,null,null,"Wallis-et-Futuna",null,null,null,null,null,null,null,null,null,"Treviso",null,null,null,null,null,null,null,null,null,null,null,null,null,null,null,null,null,null,"Postojna"]
[null,null,null,null,null,null,null,null,null,null,null,null,null,null,null,null,null,null,"Hors-France",null,null,null,null,null,null,null,null,null,"Udine",null,null,null,null,null,null,null,null,null,null,null,null,null,null,null,null,null,null,"Preddvor"]
[null,null,null,null,null,null,null,null,null,null,null,null,null,null,null,null,null,null,null,null,null,null,null,null,null,null,null,null,"Varese",null,null,null,null,null,null,null,null,null,null,null,null,null,null,null,null,null,null,"Ptuj"]
[null,null,null,null,null,null,null,null,null,null,null,null,null,null,null,null,null,null,null,null,null,null,null,null,null,null,null,null,"Verbania",null,null,null,null,null,null,null,null,null,null,null,null,null,null,null,null,null,null,"Puconci"]
[null,null,null,null,null,null,null,null,null,null,null,null,null,null,null,null,null,null,null,null,null,null,null,null,null,null,null,null,"Vercelli",null,null,null,null,null,null,null,null,null,null,null,null,null,null,null,null,null,null,"Raèe-Fram"]
[null,null,null,null,null,null,null,null,null,null,null,null,null,null,null,null,null,null,null,null,null,null,null,null,null,null,null,null,"Venice",null,null,null,null,null,null,null,null,null,null,null,null,null,null,null,null,null,null,"Radeèe"]
[null,null,null,null,null,null,null,null,null,null,null,null,null,null,null,null,null,null,null,null,null,null,null,null,null,null,null,null,"Vicenza",null,null,null,null,null,null,null,null,null,null,null,null,null,null,null,null,null,null,"Idrija"]
[null,null,null,null,null,null,null,null,null,null,null,null,null,null,null,null,null,null,null,null,null,null,null,null,null,null,null,null,"Verona",null,null,null,null,null,null,null,null,null,null,null,null,null,null,null,null,null,null,"Radenci"]
[null,null,null,null,null,null,null,null,null,null,null,null,null,null,null,null,null,null,null,null,null,null,null,null,null,null,null,null,"Medio Campidano",null,null,null,null,null,null,null,null,null,null,null,null,null,null,null,null,null,null,"Radlje ob Dravi"]
[null,null,null,null,null,null,null,null,null,null,null,null,null,null,null,null,null,null,null,null,null,null,null,null,null,null,null,null,"Viterbo",null,null,null,null,null,null,null,null,null,null,null,null,null,null,null,null,null,null,"Radovljica"]
[null,null,null,null,null,null,null,null,null,null,null,null,null,null,null,null,null,null,null,null,null,null,null,null,null,null,null,null,"Vibo Valentia",null,null,null,null,null,null,null,null,null,null,null,null,null,null,null,null,null,null,"Ravne na Koro¹kem"]
[null,null,null,null,null,null,null,null,null,null,null,null,null,null,null,null,null,null,null,null,null,null,null,null,null,null,null,null,"Zara",null,null,null,null,null,null,null,null,null,null,null,null,null,null,null,null,null,null,"Ribnica"]
[null,null,null,null,null,null,null,null,null,null,null,null,null,null,null,null,null,null,null,null,null,null,null,null,null,null,null,null,null,null,null,null,null,null,null,null,null,null,null,null,null,null,null,null,null,null,null,"Roga¹ovci"]
[null,null,null,null,null,null,null,null,null,null,null,null,null,null,null,null,null,null,null,null,null,null,null,null,null,null,null,null,null,null,null,null,null,null,null,null,null,null,null,null,null,null,null,null,null,null,null,"Roga¹ka Slatina"]
[null,null,null,null,null,null,null,null,null,null,null,null,null,null,null,null,null,null,null,null,null,null,null,null,null,null,null,null,null,null,null,null,null,null,null,null,null,null,null,null,null,null,null,null,null,null,null,"Rogatec"]
[null,null,null,null,null,null,null,null,null,null,null,null,null,null,null,null,null,null,null,null,null,null,null,null,null,null,null,null,null,null,null,null,null,null,null,null,null,null,null,null,null,null,null,null,null,null,null,"Ru¹e"]
[null,null,null,null,null,null,null,null,null,null,null,null,null,null,null,null,null,null,null,null,null,null,null,null,null,null,null,null,null,null,null,null,null,null,null,null,null,null,null,null,null,null,null,null,null,null,null,"Semiè"]
[null,null,null,null,null,null,null,null,null,null,null,null,null,null,null,null,null,null,null,null,null,null,null,null,null,null,null,null,null,null,null,null,null,null,null,null,null,null,null,null,null,null,null,null,null,null,null,"Ilirska Bistrica"]
[null,null,null,null,null,null,null,null,null,null,null,null,null,null,null,null,null,null,null,null,null,null,null,null,null,null,null,null,null,null,null,null,null,null,null,null,null,null,null,null,null,null,null,null,null,null,null,"Sevnica"]
[null,null,null,null,null,null,null,null,null,null,null,null,null,null,null,null,null,null,null,null,null,null,null,null,null,null,null,null,null,null,null,null,null,null,null,null,null,null,null,null,null,null,null,null,null,null,null,"Se¾ana"]
[null,null,null,null,null,null,null,null,null,null,null,null,null,null,null,null,null,null,null,null,null,null,null,null,null,null,null,null,null,null,null,null,null,null,null,null,null,null,null,null,null,null,null,null,null,null,null,"Slovenj Gradec"]
[null,null,null,null,null,null,null,null,null,null,null,null,null,null,null,null,null,null,null,null,null,null,null,null,null,null,null,null,null,null,null,null,null,null,null,null,null,null,null,null,null,null,null,null,null,null,null,"Slovenska Bistrica"]
[null,null,null,null,null,null,null,null,null,null,null,null,null,null,null,null,null,null,null,null,null,null,null,null,null,null,null,null,null,null,null,null,null,null,null,null,null,null,null,null,null,null,null,null,null,null,null,"Slovenske Konjice"]
[null,null,null,null,null,null,null,null,null,null,null,null,null,null,null,null,null,null,null,null,null,null,null,null,null,null,null,null,null,null,null,null,null,null,null,null,null,null,null,null,null,null,null,null,null,null,null,"Star¹e"]
[null,null,null,null,null,null,null,null,null,null,null,null,null,null,null,null,null,null,null,null,null,null,null,null,null,null,null,null,null,null,null,null,null,null,null,null,null,null,null,null,null,null,null,null,null,null,null,"Sveti Jurij"]
[null,null,null,null,null,null,null,null,null,null,null,null,null,null,null,null,null,null,null,null,null,null,null,null,null,null,null,null,null,null,null,null,null,null,null,null,null,null,null,null,null,null,null,null,null,null,null,"©enèur"]
[null,null,null,null,null,null,null,null,null,null,null,null,null,null,null,null,null,null,null,null,null,null,null,null,null,null,null,null,null,null,null,null,null,null,null,null,null,null,null,null,null,null,null,null,null,null,null,"©entilj"]
[null,null,null,null,null,null,null,null,null,null,null,null,null,null,null,null,null,null,null,null,null,null,null,null,null,null,null,null,null,null,null,null,null,null,null,null,null,null,null,null,null,null,null,null,null,null,null,"©entjernej"]
[null,null,null,null,null,null,null,null,null,null,null,null,null,null,null,null,null,null,null,null,null,null,null,null,null,null,null,null,null,null,null,null,null,null,null,null,null,null,null,null,null,null,null,null,null,null,null,"Izola"]
[null,null,null,null,null,null,null,null,null,null,null,null,null,null,null,null,null,null,null,null,null,null,null,null,null,null,null,null,null,null,null,null,null,null,null,null,null,null,null,null,null,null,null,null,null,null,null,"©entjur pri Celju"]
[null,null,null,null,null,null,null,null,null,null,null,null,null,null,null,null,null,null,null,null,null,null,null,null,null,null,null,null,null,null,null,null,null,null,null,null,null,null,null,null,null,null,null,null,null,null,null,"©kocjan"]
[null,null,null,null,null,null,null,null,null,null,null,null,null,null,null,null,null,null,null,null,null,null,null,null,null,null,null,null,null,null,null,null,null,null,null,null,null,null,null,null,null,null,null,null,null,null,null,"©kofja Loka"]
[null,null,null,null,null,null,null,null,null,null,null,null,null,null,null,null,null,null,null,null,null,null,null,null,null,null,null,null,null,null,null,null,null,null,null,null,null,null,null,null,null,null,null,null,null,null,null,"©kofljica"]
[null,null,null,null,null,null,null,null,null,null,null,null,null,null,null,null,null,null,null,null,null,null,null,null,null,null,null,null,null,null,null,null,null,null,null,null,null,null,null,null,null,null,null,null,null,null,null,"©marje pri Jel¹ah"]
[null,null,null,null,null,null,null,null,null,null,null,null,null,null,null,null,null,null,null,null,null,null,null,null,null,null,null,null,null,null,null,null,null,null,null,null,null,null,null,null,null,null,null,null,null,null,null,"©martno ob Paki"]
[null,null,null,null,null,null,null,null,null,null,null,null,null,null,null,null,null,null,null,null,null,null,null,null,null,null,null,null,null,null,null,null,null,null,null,null,null,null,null,null,null,null,null,null,null,null,null,"©o¹tanj"]
[null,null,null,null,null,null,null,null,null,null,null,null,null,null,null,null,null,null,null,null,null,null,null,null,null,null,null,null,null,null,null,null,null,null,null,null,null,null,null,null,null,null,null,null,null,null,null,"©tore"]
[null,null,null,null,null,null,null,null,null,null,null,null,null,null,null,null,null,null,null,null,null,null,null,null,null,null,null,null,null,null,null,null,null,null,null,null,null,null,null,null,null,null,null,null,null,null,null,"Tolmin"]
[null,null,null,null,null,null,null,null,null,null,null,null,null,null,null,null,null,null,null,null,null,null,null,null,null,null,null,null,null,null,null,null,null,null,null,null,null,null,null,null,null,null,null,null,null,null,null,"Trbovlje"]
[null,null,null,null,null,null,null,null,null,null,null,null,null,null,null,null,null,null,null,null,null,null,null,null,null,null,null,null,null,null,null,null,null,null,null,null,null,null,null,null,null,null,null,null,null,null,null,"Jesenice"]
[null,null,null,null,null,null,null,null,null,null,null,null,null,null,null,null,null,null,null,null,null,null,null,null,null,null,null,null,null,null,null,null,null,null,null,null,null,null,null,null,null,null,null,null,null,null,null,"Trebnje"]
[null,null,null,null,null,null,null,null,null,null,null,null,null,null,null,null,null,null,null,null,null,null,null,null,null,null,null,null,null,null,null,null,null,null,null,null,null,null,null,null,null,null,null,null,null,null,null,"Tr¾iè"]
[null,null,null,null,null,null,null,null,null,null,null,null,null,null,null,null,null,null,null,null,null,null,null,null,null,null,null,null,null,null,null,null,null,null,null,null,null,null,null,null,null,null,null,null,null,null,null,"Turni¹èe"]
[null,null,null,null,null,null,null,null,null,null,null,null,null,null,null,null,null,null,null,null,null,null,null,null,null,null,null,null,null,null,null,null,null,null,null,null,null,null,null,null,null,null,null,null,null,null,null,"Velenje"]
[null,null,null,null,null,null,null,null,null,null,null,null,null,null,null,null,null,null,null,null,null,null,null,null,null,null,null,null,null,null,null,null,null,null,null,null,null,null,null,null,null,null,null,null,null,null,null,"Velike La¹èe"]
[null,null,null,null,null,null,null,null,null,null,null,null,null,null,null,null,null,null,null,null,null,null,null,null,null,null,null,null,null,null,null,null,null,null,null,null,null,null,null,null,null,null,null,null,null,null,null,"Videm"]
[null,null,null,null,null,null,null,null,null,null,null,null,null,null,null,null,null,null,null,null,null,null,null,null,null,null,null,null,null,null,null,null,null,null,null,null,null,null,null,null,null,null,null,null,null,null,null,"Vipava"]
[null,null,null,null,null,null,null,null,null,null,null,null,null,null,null,null,null,null,null,null,null,null,null,null,null,null,null,null,null,null,null,null,null,null,null,null,null,null,null,null,null,null,null,null,null,null,null,"Vitanje"]
[null,null,null,null,null,null,null,null,null,null,null,null,null,null,null,null,null,null,null,null,null,null,null,null,null,null,null,null,null,null,null,null,null,null,null,null,null,null,null,null,null,null,null,null,null,null,null,"Vodice"]
[null,null,null,null,null,null,null,null,null,null,null,null,null,null,null,null,null,null,null,null,null,null,null,null,null,null,null,null,null,null,null,null,null,null,null,null,null,null,null,null,null,null,null,null,null,null,null,"Vojnik"]
[null,null,null,null,null,null,null,null,null,null,null,null,null,null,null,null,null,null,null,null,null,null,null,null,null,null,null,null,null,null,null,null,null,null,null,null,null,null,null,null,null,null,null,null,null,null,null,"Kamnik"]
[null,null,null,null,null,null,null,null,null,null,null,null,null,null,null,null,null,null,null,null,null,null,null,null,null,null,null,null,null,null,null,null,null,null,null,null,null,null,null,null,null,null,null,null,null,null,null,"Vrhnika"]
[null,null,null,null,null,null,null,null,null,null,null,null,null,null,null,null,null,null,null,null,null,null,null,null,null,null,null,null,null,null,null,null,null,null,null,null,null,null,null,null,null,null,null,null,null,null,null,"Vuzenica"]
[null,null,null,null,null,null,null,null,null,null,null,null,null,null,null,null,null,null,null,null,null,null,null,null,null,null,null,null,null,null,null,null,null,null,null,null,null,null,null,null,null,null,null,null,null,null,null,"Zagorje ob Savi"]
[null,null,null,null,null,null,null,null,null,null,null,null,null,null,null,null,null,null,null,null,null,null,null,null,null,null,null,null,null,null,null,null,null,null,null,null,null,null,null,null,null,null,null,null,null,null,null,"Zavrè"]
[null,null,null,null,null,null,null,null,null,null,null,null,null,null,null,null,null,null,null,null,null,null,null,null,null,null,null,null,null,null,null,null,null,null,null,null,null,null,null,null,null,null,null,null,null,null,null,"Zreèe"]
[null,null,null,null,null,null,null,null,null,null,null,null,null,null,null,null,null,null,null,null,null,null,null,null,null,null,null,null,null,null,null,null,null,null,null,null,null,null,null,null,null,null,null,null,null,null,null,"®elezniki"]
[null,null,null,null,null,null,null,null,null,null,null,null,null,null,null,null,null,null,null,null,null,null,null,null,null,null,null,null,null,null,null,null,null,null,null,null,null,null,null,null,null,null,null,null,null,null,null,"®iri"]
[null,null,null,null,null,null,null,null,null,null,null,null,null,null,null,null,null,null,null,null,null,null,null,null,null,null,null,null,null,null,null,null,null,null,null,null,null,null,null,null,null,null,null,null,null,null,null,"Benedikt"]
[null,null,null,null,null,null,null,null,null,null,null,null,null,null,null,null,null,null,null,null,null,null,null,null,null,null,null,null,null,null,null,null,null,null,null,null,null,null,null,null,null,null,null,null,null,null,null,"Bistrica ob Sotli"]
[null,null,null,null,null,null,null,null,null,null,null,null,null,null,null,null,null,null,null,null,null,null,null,null,null,null,null,null,null,null,null,null,null,null,null,null,null,null,null,null,null,null,null,null,null,null,null,"Kocevje"]
[null,null,null,null,null,null,null,null,null,null,null,null,null,null,null,null,null,null,null,null,null,null,null,null,null,null,null,null,null,null,null,null,null,null,null,null,null,null,null,null,null,null,null,null,null,null,null,"Bloke"]
[null,null,null,null,null,null,null,null,null,null,null,null,null,null,null,null,null,null,null,null,null,null,null,null,null,null,null,null,null,null,null,null,null,null,null,null,null,null,null,null,null,null,null,null,null,null,null,"Braslovèe"]
[null,null,null,null,null,null,null,null,null,null,null,null,null,null,null,null,null,null,null,null,null,null,null,null,null,null,null,null,null,null,null,null,null,null,null,null,null,null,null,null,null,null,null,null,null,null,null,"Cankova"]
[null,null,null,null,null,null,null,null,null,null,null,null,null,null,null,null,null,null,null,null,null,null,null,null,null,null,null,null,null,null,null,null,null,null,null,null,null,null,null,null,null,null,null,null,null,null,null,"Cerkvenjak"]
[null,null,null,null,null,null,null,null,null,null,null,null,null,null,null,null,null,null,null,null,null,null,null,null,null,null,null,null,null,null,null,null,null,null,null,null,null,null,null,null,null,null,null,null,null,null,null,"Dobje"]
[null,null,null,null,null,null,null,null,null,null,null,null,null,null,null,null,null,null,null,null,null,null,null,null,null,null,null,null,null,null,null,null,null,null,null,null,null,null,null,null,null,null,null,null,null,null,null,"Dobrna"]
[null,null,null,null,null,null,null,null,null,null,null,null,null,null,null,null,null,null,null,null,null,null,null,null,null,null,null,null,null,null,null,null,null,null,null,null,null,null,null,null,null,null,null,null,null,null,null,"Dobrovnik - Dobronak"]
[null,null,null,null,null,null,null,null,null,null,null,null,null,null,null,null,null,null,null,null,null,null,null,null,null,null,null,null,null,null,null,null,null,null,null,null,null,null,null,null,null,null,null,null,null,null,null,"Dolenjske Toplice"]
[null,null,null,null,null,null,null,null,null,null,null,null,null,null,null,null,null,null,null,null,null,null,null,null,null,null,null,null,null,null,null,null,null,null,null,null,null,null,null,null,null,null,null,null,null,null,null,"Grad"]
[null,null,null,null,null,null,null,null,null,null,null,null,null,null,null,null,null,null,null,null,null,null,null,null,null,null,null,null,null,null,null,null,null,null,null,null,null,null,null,null,null,null,null,null,null,null,null,"Hajdina"]
[null,null,null,null,null,null,null,null,null,null,null,null,null,null,null,null,null,null,null,null,null,null,null,null,null,null,null,null,null,null,null,null,null,null,null,null,null,null,null,null,null,null,null,null,null,null,null,"Koper"]
[null,null,null,null,null,null,null,null,null,null,null,null,null,null,null,null,null,null,null,null,null,null,null,null,null,null,null,null,null,null,null,null,null,null,null,null,null,null,null,null,null,null,null,null,null,null,null,"Hoèe-Slivnica"]
[null,null,null,null,null,null,null,null,null,null,null,null,null,null,null,null,null,null,null,null,null,null,null,null,null,null,null,null,null,null,null,null,null,null,null,null,null,null,null,null,null,null,null,null,null,null,null,"Hodo¹ - Hodos"]
[null,null,null,null,null,null,null,null,null,null,null,null,null,null,null,null,null,null,null,null,null,null,null,null,null,null,null,null,null,null,null,null,null,null,null,null,null,null,null,null,null,null,null,null,null,null,null,"Horjul"]
[null,null,null,null,null,null,null,null,null,null,null,null,null,null,null,null,null,null,null,null,null,null,null,null,null,null,null,null,null,null,null,null,null,null,null,null,null,null,null,null,null,null,null,null,null,null,null,"Jezersko"]
[null,null,null,null,null,null,null,null,null,null,null,null,null,null,null,null,null,null,null,null,null,null,null,null,null,null,null,null,null,null,null,null,null,null,null,null,null,null,null,null,null,null,null,null,null,null,null,"Komenda"]
[null,null,null,null,null,null,null,null,null,null,null,null,null,null,null,null,null,null,null,null,null,null,null,null,null,null,null,null,null,null,null,null,null,null,null,null,null,null,null,null,null,null,null,null,null,null,null,"Kostel"]
[null,null,null,null,null,null,null,null,null,null,null,null,null,null,null,null,null,null,null,null,null,null,null,null,null,null,null,null,null,null,null,null,null,null,null,null,null,null,null,null,null,null,null,null,null,null,null,"Kri¾evci"]
[null,null,null,null,null,null,null,null,null,null,null,null,null,null,null,null,null,null,null,null,null,null,null,null,null,null,null,null,null,null,null,null,null,null,null,null,null,null,null,null,null,null,null,null,null,null,null,"Lovrenc na Pohorju"]
[null,null,null,null,null,null,null,null,null,null,null,null,null,null,null,null,null,null,null,null,null,null,null,null,null,null,null,null,null,null,null,null,null,null,null,null,null,null,null,null,null,null,null,null,null,null,null,"Markovci"]
[null,null,null,null,null,null,null,null,null,null,null,null,null,null,null,null,null,null,null,null,null,null,null,null,null,null,null,null,null,null,null,null,null,null,null,null,null,null,null,null,null,null,null,null,null,null,null,"Miklav¾ na Dravskem"]
[null,null,null,null,null,null,null,null,null,null,null,null,null,null,null,null,null,null,null,null,null,null,null,null,null,null,null,null,null,null,null,null,null,null,null,null,null,null,null,null,null,null,null,null,null,null,null,"Kranj"]
[null,null,null,null,null,null,null,null,null,null,null,null,null,null,null,null,null,null,null,null,null,null,null,null,null,null,null,null,null,null,null,null,null,null,null,null,null,null,null,null,null,null,null,null,null,null,null,"Mirna Peè"]
[null,null,null,null,null,null,null,null,null,null,null,null,null,null,null,null,null,null,null,null,null,null,null,null,null,null,null,null,null,null,null,null,null,null,null,null,null,null,null,null,null,null,null,null,null,null,null,"Oplotnica"]
[null,null,null,null,null,null,null,null,null,null,null,null,null,null,null,null,null,null,null,null,null,null,null,null,null,null,null,null,null,null,null,null,null,null,null,null,null,null,null,null,null,null,null,null,null,null,null,"Podlehnik"]
[null,null,null,null,null,null,null,null,null,null,null,null,null,null,null,null,null,null,null,null,null,null,null,null,null,null,null,null,null,null,null,null,null,null,null,null,null,null,null,null,null,null,null,null,null,null,null,"Polzela"]
[null,null,null,null,null,null,null,null,null,null,null,null,null,null,null,null,null,null,null,null,null,null,null,null,null,null,null,null,null,null,null,null,null,null,null,null,null,null,null,null,null,null,null,null,null,null,null,"Prebold"]
[null,null,null,null,null,null,null,null,null,null,null,null,null,null,null,null,null,null,null,null,null,null,null,null,null,null,null,null,null,null,null,null,null,null,null,null,null,null,null,null,null,null,null,null,null,null,null,"Prevalje"]
[null,null,null,null,null,null,null,null,null,null,null,null,null,null,null,null,null,null,null,null,null,null,null,null,null,null,null,null,null,null,null,null,null,null,null,null,null,null,null,null,null,null,null,null,null,null,null,"Razkri¾je"]
[null,null,null,null,null,null,null,null,null,null,null,null,null,null,null,null,null,null,null,null,null,null,null,null,null,null,null,null,null,null,null,null,null,null,null,null,null,null,null,null,null,null,null,null,null,null,null,"Ribnica na Pohorju"]
[null,null,null,null,null,null,null,null,null,null,null,null,null,null,null,null,null,null,null,null,null,null,null,null,null,null,null,null,null,null,null,null,null,null,null,null,null,null,null,null,null,null,null,null,null,null,null,"Selnica ob Dravi"]
[null,null,null,null,null,null,null,null,null,null,null,null,null,null,null,null,null,null,null,null,null,null,null,null,null,null,null,null,null,null,null,null,null,null,null,null,null,null,null,null,null,null,null,null,null,null,null,"Sodra¾ica"]
[null,null,null,null,null,null,null,null,null,null,null,null,null,null,null,null,null,null,null,null,null,null,null,null,null,null,null,null,null,null,null,null,null,null,null,null,null,null,null,null,null,null,null,null,null,null,null,"Krsko"]
[null,null,null,null,null,null,null,null,null,null,null,null,null,null,null,null,null,null,null,null,null,null,null,null,null,null,null,null,null,null,null,null,null,null,null,null,null,null,null,null,null,null,null,null,null,null,null,"Solèava"]
[null,null,null,null,null,null,null,null,null,null,null,null,null,null,null,null,null,null,null,null,null,null,null,null,null,null,null,null,null,null,null,null,null,null,null,null,null,null,null,null,null,null,null,null,null,null,null,"Sveta Ana"]
[null,null,null,null,null,null,null,null,null,null,null,null,null,null,null,null,null,null,null,null,null,null,null,null,null,null,null,null,null,null,null,null,null,null,null,null,null,null,null,null,null,null,null,null,null,null,null,"Sveti Andra¾ v Slov."]
[null,null,null,null,null,null,null,null,null,null,null,null,null,null,null,null,null,null,null,null,null,null,null,null,null,null,null,null,null,null,null,null,null,null,null,null,null,null,null,null,null,null,null,null,null,null,null,"©empeter - Vrtojba"]
[null,null,null,null,null,null,null,null,null,null,null,null,null,null,null,null,null,null,null,null,null,null,null,null,null,null,null,null,null,null,null,null,null,null,null,null,null,null,null,null,null,null,null,null,null,null,null,"Tabor"]
[null,null,null,null,null,null,null,null,null,null,null,null,null,null,null,null,null,null,null,null,null,null,null,null,null,null,null,null,null,null,null,null,null,null,null,null,null,null,null,null,null,null,null,null,null,null,null,"Trnovska vas"]
[null,null,null,null,null,null,null,null,null,null,null,null,null,null,null,null,null,null,null,null,null,null,null,null,null,null,null,null,null,null,null,null,null,null,null,null,null,null,null,null,null,null,null,null,null,null,null,"Trzin"]
[null,null,null,null,null,null,null,null,null,null,null,null,null,null,null,null,null,null,null,null,null,null,null,null,null,null,null,null,null,null,null,null,null,null,null,null,null,null,null,null,null,null,null,null,null,null,null,"Velika Polana"]
[null,null,null,null,null,null,null,null,null,null,null,null,null,null,null,null,null,null,null,null,null,null,null,null,null,null,null,null,null,null,null,null,null,null,null,null,null,null,null,null,null,null,null,null,null,null,null,"Ver¾ej"]
[null,null,null,null,null,null,null,null,null,null,null,null,null,null,null,null,null,null,null,null,null,null,null,null,null,null,null,null,null,null,null,null,null,null,null,null,null,null,null,null,null,null,null,null,null,null,null,"Vransko"]
[null,null,null,null,null,null,null,null,null,null,null,null,null,null,null,null,null,null,null,null,null,null,null,null,null,null,null,null,null,null,null,null,null,null,null,null,null,null,null,null,null,null,null,null,null,null,null,"Lenart"]
[null,null,null,null,null,null,null,null,null,null,null,null,null,null,null,null,null,null,null,null,null,null,null,null,null,null,null,null,null,null,null,null,null,null,null,null,null,null,null,null,null,null,null,null,null,null,null,"®alec"]
[null,null,null,null,null,null,null,null,null,null,null,null,null,null,null,null,null,null,null,null,null,null,null,null,null,null,null,null,null,null,null,null,null,null,null,null,null,null,null,null,null,null,null,null,null,null,null,"®etale"]
[null,null,null,null,null,null,null,null,null,null,null,null,null,null,null,null,null,null,null,null,null,null,null,null,null,null,null,null,null,null,null,null,null,null,null,null,null,null,null,null,null,null,null,null,null,null,null,"®irovnica"]
[null,null,null,null,null,null,null,null,null,null,null,null,null,null,null,null,null,null,null,null,null,null,null,null,null,null,null,null,null,null,null,null,null,null,null,null,null,null,null,null,null,null,null,null,null,null,null,"®u¾emberk"]
[null,null,null,null,null,null,null,null,null,null,null,null,null,null,null,null,null,null,null,null,null,null,null,null,null,null,null,null,null,null,null,null,null,null,null,null,null,null,null,null,null,null,null,null,null,null,null,"Lendava"]
[null,null,null,null,null,null,null,null,null,null,null,null,null,null,null,null,null,null,null,null,null,null,null,null,null,null,null,null,null,null,null,null,null,null,null,null,null,null,null,null,null,null,null,null,null,null,null,"Litija"]
[null,null,null,null,null,null,null,null,null,null,null,null,null,null,null,null,null,null,null,null,null,null,null,null,null,null,null,null,null,null,null,null,null,null,null,null,null,null,null,null,null,null,null,null,null,null,null,"Ljubljana-Bezigrad"]
[null,null,null,null,null,null,null,null,null,null,null,null,null,null,null,null,null,null,null,null,null,null,null,null,null,null,null,null,null,null,null,null,null,null,null,null,null,null,null,null,null,null,null,null,null,null,null,"Ljubljana-Center"]
[null,null,null,null,null,null,null,null,null,null,null,null,null,null,null,null,null,null,null,null,null,null,null,null,null,null,null,null,null,null,null,null,null,null,null,null,null,null,null,null,null,null,null,null,null,null,null,"Ljubljana-Moste-Polj"]
[null,null,null,null,null,null,null,null,null,null,null,null,null,null,null,null,null,null,null,null,null,null,null,null,null,null,null,null,null,null,null,null,null,null,null,null,null,null,null,null,null,null,null,null,null,null,null,"Ljubljana-Siska"]
[null,null,null,null,null,null,null,null,null,null,null,null,null,null,null,null,null,null,null,null,null,null,null,null,null,null,null,null,null,null,null,null,null,null,null,null,null,null,null,null,null,null,null,null,null,null,null,"Ljubljana-Vic-Rudnik"]
[null,null,null,null,null,null,null,null,null,null,null,null,null,null,null,null,null,null,null,null,null,null,null,null,null,null,null,null,null,null,null,null,null,null,null,null,null,null,null,null,null,null,null,null,null,null,null,"Ljutomer"]
[null,null,null,null,null,null,null,null,null,null,null,null,null,null,null,null,null,null,null,null,null,null,null,null,null,null,null,null,null,null,null,null,null,null,null,null,null,null,null,null,null,null,null,null,null,null,null,"Logatec"]
[null,null,null,null,null,null,null,null,null,null,null,null,null,null,null,null,null,null,null,null,null,null,null,null,null,null,null,null,null,null,null,null,null,null,null,null,null,null,null,null,null,null,null,null,null,null,null,"Maribor"]
[null,null,null,null,null,null,null,null,null,null,null,null,null,null,null,null,null,null,null,null,null,null,null,null,null,null,null,null,null,null,null,null,null,null,null,null,null,null,null,null,null,null,null,null,null,null,null,"Metlika"]
[null,null,null,null,null,null,null,null,null,null,null,null,null,null,null,null,null,null,null,null,null,null,null,null,null,null,null,null,null,null,null,null,null,null,null,null,null,null,null,null,null,null,null,null,null,null,null,"Mozirje"]
[null,null,null,null,null,null,null,null,null,null,null,null,null,null,null,null,null,null,null,null,null,null,null,null,null,null,null,null,null,null,null,null,null,null,null,null,null,null,null,null,null,null,null,null,null,null,null,"Murska Sobota"]
[null,null,null,null,null,null,null,null,null,null,null,null,null,null,null,null,null,null,null,null,null,null,null,null,null,null,null,null,null,null,null,null,null,null,null,null,null,null,null,null,null,null,null,null,null,null,null,"Nova Gorica"]
[null,null,null,null,null,null,null,null,null,null,null,null,null,null,null,null,null,null,null,null,null,null,null,null,null,null,null,null,null,null,null,null,null,null,null,null,null,null,null,null,null,null,null,null,null,null,null,"Novo Mesto"]
[null,null,null,null,null,null,null,null,null,null,null,null,null,null,null,null,null,null,null,null,null,null,null,null,null,null,null,null,null,null,null,null,null,null,null,null,null,null,null,null,null,null,null,null,null,null,null,"Ormoz"]
[null,null,null,null,null,null,null,null,null,null,null,null,null,null,null,null,null,null,null,null,null,null,null,null,null,null,null,null,null,null,null,null,null,null,null,null,null,null,null,null,null,null,null,null,null,null,null,"Pesnica"]
[null,null,null,null,null,null,null,null,null,null,null,null,null,null,null,null,null,null,null,null,null,null,null,null,null,null,null,null,null,null,null,null,null,null,null,null,null,null,null,null,null,null,null,null,null,null,null,"Piran"]
[null,null,null,null,null,null,null,null,null,null,null,null,null,null,null,null,null,null,null,null,null,null,null,null,null,null,null,null,null,null,null,null,null,null,null,null,null,null,null,null,null,null,null,null,null,null,null,"Postojna"]
[null,null,null,null,null,null,null,null,null,null,null,null,null,null,null,null,null,null,null,null,null,null,null,null,null,null,null,null,null,null,null,null,null,null,null,null,null,null,null,null,null,null,null,null,null,null,null,"Ptuj"]
[null,null,null,null,null,null,null,null,null,null,null,null,null,null,null,null,null,null,null,null,null,null,null,null,null,null,null,null,null,null,null,null,null,null,null,null,null,null,null,null,null,null,null,null,null,null,null,"Radlje Ob Dravi"]
[null,null,null,null,null,null,null,null,null,null,null,null,null,null,null,null,null,null,null,null,null,null,null,null,null,null,null,null,null,null,null,null,null,null,null,null,null,null,null,null,null,null,null,null,null,null,null,"Radovljica"]
[null,null,null,null,null,null,null,null,null,null,null,null,null,null,null,null,null,null,null,null,null,null,null,null,null,null,null,null,null,null,null,null,null,null,null,null,null,null,null,null,null,null,null,null,null,null,null,"Ravne Na Koroskem"]
[null,null,null,null,null,null,null,null,null,null,null,null,null,null,null,null,null,null,null,null,null,null,null,null,null,null,null,null,null,null,null,null,null,null,null,null,null,null,null,null,null,null,null,null,null,null,null,"Ribnica"]
[null,null,null,null,null,null,null,null,null,null,null,null,null,null,null,null,null,null,null,null,null,null,null,null,null,null,null,null,null,null,null,null,null,null,null,null,null,null,null,null,null,null,null,null,null,null,null,"Ruse"]
[null,null,null,null,null,null,null,null,null,null,null,null,null,null,null,null,null,null,null,null,null,null,null,null,null,null,null,null,null,null,null,null,null,null,null,null,null,null,null,null,null,null,null,null,null,null,null,"Sentjur Pri Celju"]
[null,null,null,null,null,null,null,null,null,null,null,null,null,null,null,null,null,null,null,null,null,null,null,null,null,null,null,null,null,null,null,null,null,null,null,null,null,null,null,null,null,null,null,null,null,null,null,"Sevnica"]
[null,null,null,null,null,null,null,null,null,null,null,null,null,null,null,null,null,null,null,null,null,null,null,null,null,null,null,null,null,null,null,null,null,null,null,null,null,null,null,null,null,null,null,null,null,null,null,"Sezana"]
[null,null,null,null,null,null,null,null,null,null,null,null,null,null,null,null,null,null,null,null,null,null,null,null,null,null,null,null,null,null,null,null,null,null,null,null,null,null,null,null,null,null,null,null,null,null,null,"Skofja Loka"]
[null,null,null,null,null,null,null,null,null,null,null,null,null,null,null,null,null,null,null,null,null,null,null,null,null,null,null,null,null,null,null,null,null,null,null,null,null,null,null,null,null,null,null,null,null,null,null,"Slovenj Gradec"]
[null,null,null,null,null,null,null,null,null,null,null,null,null,null,null,null,null,null,null,null,null,null,null,null,null,null,null,null,null,null,null,null,null,null,null,null,null,null,null,null,null,null,null,null,null,null,null,"Slovenska Bistrica"]
[null,null,null,null,null,null,null,null,null,null,null,null,null,null,null,null,null,null,null,null,null,null,null,null,null,null,null,null,null,null,null,null,null,null,null,null,null,null,null,null,null,null,null,null,null,null,null,"Slovenske Konjice"]
[null,null,null,null,null,null,null,null,null,null,null,null,null,null,null,null,null,null,null,null,null,null,null,null,null,null,null,null,null,null,null,null,null,null,null,null,null,null,null,null,null,null,null,null,null,null,null,"Smarje Pri Jelsah"]
[null,null,null,null,null,null,null,null,null,null,null,null,null,null,null,null,null,null,null,null,null,null,null,null,null,null,null,null,null,null,null,null,null,null,null,null,null,null,null,null,null,null,null,null,null,null,null,"Tolmin"]
[null,null,null,null,null,null,null,null,null,null,null,null,null,null,null,null,null,null,null,null,null,null,null,null,null,null,null,null,null,null,null,null,null,null,null,null,null,null,null,null,null,null,null,null,null,null,null,"Trbovlje"]
[null,null,null,null,null,null,null,null,null,null,null,null,null,null,null,null,null,null,null,null,null,null,null,null,null,null,null,null,null,null,null,null,null,null,null,null,null,null,null,null,null,null,null,null,null,null,null,"Trebnje"]
[null,null,null,null,null,null,null,null,null,null,null,null,null,null,null,null,null,null,null,null,null,null,null,null,null,null,null,null,null,null,null,null,null,null,null,null,null,null,null,null,null,null,null,null,null,null,null,"Trzic"]
[null,null,null,null,null,null,null,null,null,null,null,null,null,null,null,null,null,null,null,null,null,null,null,null,null,null,null,null,null,null,null,null,null,null,null,null,null,null,null,null,null,null,null,null,null,null,null,"Velenje"]
[null,null,null,null,null,null,null,null,null,null,null,null,null,null,null,null,null,null,null,null,null,null,null,null,null,null,null,null,null,null,null,null,null,null,null,null,null,null,null,null,null,null,null,null,null,null,null,"Vrhnika"]
[null,null,null,null,null,null,null,null,null,null,null,null,null,null,null,null,null,null,null,null,null,null,null,null,null,null,null,null,null,null,null,null,null,null,null,null,null,null,null,null,null,null,null,null,null,null,null,"Zagorje Ob Savi"]
[null,null,null,null,null,null,null,null,null,null,null,null,null,null,null,null,null,null,null,null,null,null,null,null,null,null,null,null,null,null,null,null,null,null,null,null,null,null,null,null,null,null,null,null,null,null,null,"Zalec"]